{"text_format":"3","workbook":"xlsx","n_sheets":1,"sheets":["EP1321-STAGE-3-Unpriced BOQ"],"read":"whole","date_system":"1900"}

{"sheet":"EP1321-STAGE-3-Unpriced BOQ","index":0,"n_rows":4826,"n_cols":14,"rows_kept":4826,"merged":[[0,6,0,7],[1,5,1,7],[2,5,2,7],[3,5,3,7]]}
[{"$nulls":6},"Tender No. TBC"]
[{"$nulls":5},"Letaba TVET College: Giyani Campus"]
[{"$nulls":5},"Construction of Building C & X"]
[{"$nulls":5},"Tender Bills of Quantities"]
[]
["ITEM NO",{"$nulls":4},"QUANTITY","RATE","AMOUNT"]
[]
[null,null,"SECTION 1"]
[]
[null,null,"BILL NO. 1"]
[]
[null,null,"PRELIMINARIES"]
[]
[null,null,"\"PRELIMINARIES FOR INCLUSION IN BILLS OF QUANTITIES AND LUMP SUM DOCUMENTS BASED ON THE JBCC SERIES 2000 DOCUMENTATION\""]
[]
[null,null,"NOTES"]
[]
[null,null,"i)  \tThe agreement is to be the JBCC Series 2000 Principal\tBuilding Agreement prepared by the Joint Building \tContracts Committee Inc. Edition 4.1 March 2005"]
[]
[null,null,"ii)  \tThe JBCC Preliminaries May 2005 edition for use with\tthe JBCC Principal Building Agreement Edition 4.1 \tMarch 2005 is taken to be incorporated herein. The\ttenderer is deemed to have referred to these\tdocuments for the full intent and meaning of each\tclause. These clauses are referred to by number and\theading only. Where standard clauses or alternatives\tare not applicable to the contract such modification or\tcorrections as are necessary are given under each\trelevant clause"]
[]
[null,null,"iii)\tNo claim whatsoever shall be entertained in respect of \terrors or omissions in pricing due to brevity of\tdescriptions of items in these Bills of Quantities which\tare fully described when read in conjunction with the\trelevant clauses of the said Conditions of Contract,\tStandard Preliminaries and Preambles"]
[]
[null,null,"iv)\tThe Tenderer shall allow opposite each of the clause \twhatever costs and charges he may consider\tnecessary for the carrying out, complying with and due \tobservance of the provisions, conditions and\trequirements set out herein  \tOnly priced items will be considered in respect of any\tadjustment of this Section  \tAny items left unpriced will be understood to be\tprovided free of charge and no claim for any extras\tarising out of the Tenderer's omission to price any item\twill be entertained"]
[]
[null,null,"SECTION A : PRINCIPAL BUILDING AGREEMENT"]
[]
[{"v":1,"d":"1 "},null,"Clause 1:  Definitions and interpretations",null,"Item",{"v":1,"d":"1 "},null,{"$f":"ROUND(F28*G28,2)","v":{"v":0,"d":"0.00"}}]
[]
[{"v":2,"d":"2 "},null,"Clause 2:  Offer acceptance and performance",null,"Item",{"v":1,"d":"1 "},null,{"$f":"ROUND(F30*G30,2)","v":{"v":0,"d":"0.00"}}]
[]
[{"v":3,"d":"3 "},null,"Clause 3:  Documents",null,"Item",{"v":1,"d":"1 "},null,{"$f":"ROUND(F32*G32,2)","v":{"v":0,"d":"0.00"}}]
[]
[{"v":4,"d":"4 "},null,"Clause 4:  Design responsibility",null,"Item",{"v":1,"d":"1 "},null,{"$f":"ROUND(F34*G34,2)","v":{"v":0,"d":"0.00"}}]
[]
[{"v":5,"d":"5 "},null,"Clause 5:  Employer's agents",null,"Item",{"v":1,"d":"1 "},null,{"$f":"ROUND(F36*G36,2)","v":{"v":0,"d":"0.00"}}]
[]
[{"v":6,"d":"6 "},null,"Clause 6:  Site representative",null,"Item",{"v":1,"d":"1 "},null,{"$f":"ROUND(F38*G38,2)","v":{"v":0,"d":"0.00"}}]
[]
[{"v":7,"d":"7 "},null,"Clause 7:  Compliance with regulations",null,"Item",{"v":1,"d":"1 "},null,{"$f":"ROUND(F40*G40,2)","v":{"v":0,"d":"0.00"}}]
[]
[null,null,"This clause will be deemed to include all aspects of the Occupational Health and Safety Act"]
[]
[{"v":8,"d":"8 "},null,"Clause 8:  Works risk",null,"Item",{"v":1,"d":"1 "},null,{"$f":"ROUND(F44*G44,2)","v":{"v":0,"d":"0.00"}}]
[]
[{"v":9,"d":"9 "},null,"Clause 9:  Indemnities",null,"Item",{"v":1,"d":"1 "},null,{"$f":"ROUND(F46*G46,2)","v":{"v":0,"d":"0.00"}}]
[]
[{"v":10,"d":"10 "},null,"Clause 10:  Works insurances",null,"Item",{"v":1,"d":"1 "},null,{"$f":"ROUND(F48*G48,2)","v":{"v":0,"d":"0.00"}}]
[]
[{"v":11,"d":"11 "},null,"Clause 11:  Liability insurances",null,"Item",{"v":1,"d":"1 "},null,{"$f":"ROUND(F50*G50,2)","v":{"v":0,"d":"0.00"}}]
[]
[{"v":12,"d":"12 "},null,"Clause 12:  Effecting  insurance",null,"Item",{"v":1,"d":"1 "},null,{"$f":"ROUND(F52*G52,2)","v":{"v":0,"d":"0.00"}}]
[]
[{"v":13,"d":"13 "},null,"Clause 13:   No Clause",null,"N/A","0.0"]
[]
[{"v":14,"d":"14 "},null,"Clause 14:  Security",null,"Item",{"v":1,"d":"1 "},null,{"$f":"ROUND(F56*G56,2)","v":{"v":0,"d":"0.00"}}]
[]
[{"v":15,"d":"15 "},null,"Clause 15:  Preparation for and  execution of the works",null,"Item",{"v":1,"d":"1 "},null,{"$f":"ROUND(F58*G58,2)","v":{"v":0,"d":"0.00"}}]
[]
[{"v":16,"d":"16 "},null,"Clause 16:  Access to the works",null,"Item",{"v":1,"d":"1 "},null,{"$f":"ROUND(F60*G60,2)","v":{"v":0,"d":"0.00"}}]
[]
[{"v":17,"d":"17 "},null,"Clause 17:  Contract instructions",null,"Item",{"v":1,"d":"1 "},null,{"$f":"ROUND(F62*G62,2)","v":{"v":0,"d":"0.00"}}]
[]
[{"v":18,"d":"18 "},null,"Clause 18:  Setting out of the works",null,"Item",{"v":1,"d":"1 "},null,{"$f":"ROUND(F64*G64,2)","v":{"v":0,"d":"0.00"}}]
[]
[{"v":19,"d":"19 "},null,"Clause 19:  Assignment",null,"Item",{"v":1,"d":"1 "},null,{"$f":"ROUND(F66*G66,2)","v":{"v":0,"d":"0.00"}}]
[]
[{"v":20,"d":"20 "},null,"Clause 20:  Nominated sub-contractors",null,"Item",{"v":1,"d":"1 "},null,{"$f":"ROUND(F68*G68,2)","v":{"v":0,"d":"0.00"}}]
[]
[{"v":21,"d":"21 "},null,"Clause 21:  Selected sub-contractors",null,"Item",{"v":1,"d":"1 "},null,{"$f":"ROUND(F70*G70,2)","v":{"v":0,"d":"0.00"}}]
[]
[{"v":22,"d":"22 "},null,"Clause 22:  Employer's direct contractors",null,"Item",{"v":1,"d":"1 "},null,{"$f":"ROUND(F72*G72,2)","v":{"v":0,"d":"0.00"}}]
[]
[null,null,"Clause 22.2 shall be amended by the following addition:  The Contractor shall within seven days after the site handover date notify the Principal Agent of the required date of appointment of the direct contractors so listed in the schedule"]
[]
[{"v":23,"d":"23 "},null,"Clause 23:  Contractor's domestic sub-contractors",null,"Item",{"v":1,"d":"1 "},null,{"$f":"ROUND(F76*G76,2)","v":{"v":0,"d":"0.00"}}]
[]
[{"v":24,"d":"24 "},null,"Clause 24:  Practical completion",null,"Item",{"v":1,"d":"1 "},null,{"$f":"ROUND(F78*G78,2)","v":{"v":0,"d":"0.00"}}]
[]
[{"v":25,"d":"25 "},null,"Clause 25:  Works completion",null,"Item",{"v":1,"d":"1 "},null,{"$f":"ROUND(F80*G80,2)","v":{"v":0,"d":"0.00"}}]
[]
[null,null,"Clause 25 will be amplified with the addition of the following:  Clause 25.6 The period for achieving works completion shall commence on the date of practical completion and end twenty (20) working days from such date"]
[]
[{"v":26,"d":"26 "},null,"Clause 26:  Final completion",null,"Item",{"v":1,"d":"1 "},null,{"$f":"ROUND(F84*G84,2)","v":{"v":0,"d":"0.00"}}]
[]
[{"v":27,"d":"27 "},null,"Clause 27:  Latent defect liability period",null,"Item",{"v":1,"d":"1 "},null,{"$f":"ROUND(F86*G86,2)","v":{"v":0,"d":"0.00"}}]
[]
[{"v":28,"d":"28 "},null,"Clause 28:  Sectional completion",null,"Item",{"v":1,"d":"1 "},null,{"$f":"ROUND(F88*G88,2)","v":{"v":0,"d":"0.00"}}]
[]
[{"v":29,"d":"29 "},null,"Clause 29:  Revision of date for practical completion",null,"Item",{"v":1,"d":"1 "},null,{"$f":"ROUND(F90*G90,2)","v":{"v":0,"d":"0.00"}}]
[]
[null,null,"Clause 29.1 will be amended with the changes and addition of the following:  Clause 29.1.1 Exceptional inclement weather  Clause 29.1.7 A direct contractor"]
[]
[null,null,"Clause 29.2 will be amended with the following:  Clause 29.2.8 No clause  Clause 29.2.10 No clause  Clause 29.5 will be amended to read ..... twenty (20) working days......"]
[]
[{"v":30,"d":"30 "},null,"Clause 30:  Penalty for non completion",null,"Item",{"v":1,"d":"1 "},null,{"$f":"ROUND(F96*G96,2)","v":{"v":0,"d":"0.00"}}]
[]
[null,null,"Clause 30 will be amended with the addition of the following:  Clause 30.2 Where the contractor fails to bring the works or sections thereof to works completion on the date or dates stated in clause 25.6 or revision thereof in terms of 24.8 and 29.0, the contractor shall be liable to the employer for the penalty per calender day for noncompletion of the works or each section thereof at the same rate as stated in the schedule for practical completion. The Principal agent shall calculate the penalty due from the date or revised date in terms of 29.0 up to and including the actual date of works completion of the works or section thereof or cancellation in terms of 36.3  Clause 30.3 Where the employer levies such penalties the principal agent shall detail the amount for recovery in terms of 33.1.1"]
[]
[{"v":31,"d":"31 "},null,"Clause 31:  Interim payment to the contractor",null,"Item",{"v":1,"d":"1 "},null,{"$f":"ROUND(F100*G100,2)","v":{"v":0,"d":"0.00"}}]
[]
[null,null,"Clause 31.9 the second line will be amended to read: Thirty (30) calendar days ........."]
[]
[{"v":32,"d":"32 "},null,"Clause 32:  Adjustment to the contract value",null,"Item",{"v":1,"d":"1 "},null,{"$f":"ROUND(F104*G104,2)","v":{"v":0,"d":"0.00"}}]
[]
[{"v":33,"d":"33 "},null,"Clause 33:  Recovery of expenses and loss",null,"Item",{"v":1,"d":"1 "},null,{"$f":"ROUND(F106*G106,2)","v":{"v":0,"d":"0.00"}}]
[]
[{"v":34,"d":"34 "},null,"Clause 34:  Final account and final payment",null,"Item",{"v":1,"d":"1 "},null,{"$f":"ROUND(F108*G108,2)","v":{"v":0,"d":"0.00"}}]
[]
[{"v":35,"d":"35 "},null,"Clause 35:  Payment to other parties",null,"Item",{"v":1,"d":"1 "},null,{"$f":"ROUND(F110*G110,2)","v":{"v":0,"d":"0.00"}}]
[]
[{"v":36,"d":"36 "},null,"Clause 36:  Cancellation by employer - Contractor's default",null,"Item",{"v":1,"d":"1 "},null,{"$f":"ROUND(F112*G112,2)","v":{"v":0,"d":"0.00"}}]
[]
[{"v":37,"d":"37 "},null,"Clause 37:  Cancellation by employer - Loss and damage",null,"Item",{"v":1,"d":"1 "},null,{"$f":"ROUND(F114*G114,2)","v":{"v":0,"d":"0.00"}}]
[]
[{"v":38,"d":"38 "},null,"Clause 38:  Cancellation by contractor - Employer's default",null,"Item",{"v":1,"d":"1 "},null,{"$f":"ROUND(F116*G116,2)","v":{"v":0,"d":"0.00"}}]
[]
[{"v":39,"d":"39 "},null,"Clause 39:  Cancellation - Cessation of the works",null,"Item",{"v":1,"d":"1 "},null,{"$f":"ROUND(F118*G118,2)","v":{"v":0,"d":"0.00"}}]
[]
[{"v":40,"d":"40 "},null,"Clause 40:  Settlement of disagreements and disputes",null,"Item",{"v":1,"d":"1 "},null,{"$f":"ROUND(F120*G120,2)","v":{"v":0,"d":"0.00"}}]
[]
[{"v":41,"d":"41 "},null,"Clause 41:  State Clauses",null,"N/A",{"v":1,"d":"1 "}]
[]
[{"v":42,"d":"42 "},null,"Clause 42:   Pre-Tender Information",null,"Item",{"v":1,"d":"1 "},null,{"$f":"ROUND(F124*G124,2)","v":{"v":0,"d":"0.00"}}]
[]
[null,null,"Clause 42.1 CONTRACTING AND OTHER PARTIES"]
[]
[null,null,"42.1.1Employer: Development Bank of Southern Africa\t                                           Postal Address: 1258 Lever Road\t\t                                                                                                                                                                                                               Midrand, Johannesburg\t\t                                                              Gauteng\t\t                                                                                                           1685                                                                                                                                Tel: 011 313 3911                                  \tFax: TBC \t                                                                                                                                                                                                                                                                                                                                                                                                                                                                                               Domicilium: 1258 Lever Road\t                                                                      Midrand, Johannesburg\t                                                               Gauteng\t                                                                                                              1685"]
[]
[null,null,"42.1.2 Principal Agent:                                                                                               Postal Address:                                                                                                Tel:                                                                                                                            Fax: "]
[]
[null,null,"42.1.3 Architect:                                                                                               Postal Address:                                                                                               Tel:                                                                                                                              Fax:                                                                                                "]
[]
[null,null,"42.1.4Quantity Surveyor:                                                                                                Postal Address:                                                                                                 Tel:                                                                                                              \t Fax: "]
[]
[null,null,"42.1.5Civil & Structural Engineer: \t                                                                                               Postal Address:                                                                                                Tel:                                                                                                                           Fax:"]
[]
[null,null,"42.1.6 Electrical and Electronical Engineers:                                                                                                  Postal Address:                                                                                                Tel:                                                                                               \t                           Fax: \t"]
[]
[null,null,"42.1.7 Mechanical Engineers:                                                                                                Postal Address:                                                                                               Tel:                                                                                                                          \t Fax:                                                                                                "]
[]
[null,null,"42.1.8Landscape Architects:                                                                                               Postal Address:\t                                                                                                                        Tel:                                                                               \t                                          Fax:\t"]
[]
[null,null,"Clause 42.2 CONTRACT DETAILS"]
[]
[null,null,"42.2.1  Works Description - Construction of new building C: Library and E-Learning Centre - Construction of new building X: Classrooms and Computer Laboratoriesc - Installation of Sewer and Waterlines - Electrical Installation - Mechanical Installation - Fire Installation"]
[]
[null,null,"42.2.2 The site is on: Section C Industrial main road opposite traffic department"]
[]
[null,null,"42.2.3 Work or installation by direct contractors TBC"]
[]
[null,null,"42.2.4"]
[]
[null,null,"42.2.5 Possession of the site is to be given  as follow: 16 November 2022"]
[]
[null,null,"42.2.6 Period for the commencement of works after the contractor takes possesion of the site : 15 Months"]
[]
[null,null,"42.2.7 The date for practical completion for the works as a whole: 15 February 2024"]
[]
[{"v":43,"d":"43 "},null,"42.2.8 Intended dates of practical completion and the penalties per calendar day for the works are as follows: 15 February 2024 & R 11 250.00/day",null,"Item",{"v":1,"d":"1 "},null,{"$f":"ROUND(F160*G160,2)","v":{"v":0,"d":"0.00"}}]
[]
[null,null,"42.2.9 The law applicable to this agreement shall be that of the Republic of South Africa"]
[]
[null,null,"Clause 42.3 INSURANCES"]
[]
[{"v":44,"d":"44 "},null,"42.3.1 Contract works insurance to be effected by Contractor For the amount of",null,"Item",{"v":1,"d":"1 "},null,{"$f":"ROUND(F166*G166,2)","v":{"v":0,"d":"0.00"}}]
[]
[null,null,"42.3.2 Supplementary insurance:"]
[]
[{"v":45,"d":"45 "},null,"42.3.3Public Liability insurance to be effected by:For the amount of With a deductible of",null,"Item",{"v":1,"d":"1 "},null,{"$f":"ROUND(F170*G170,2)","v":{"v":0,"d":"0.00"}}]
[]
[null,null,"42.3.4Support insurance is not required"]
[]
[null,null,"42.4 DOCUMENTS"]
[]
[null,null,"42.4.1 Waiver of contractor's lien or right of continuing possesion is required"]
[]
[null,null,"42.4.2 Construction documents copies to be supplied to the contractor free of charge :"]
[]
[null,null,"42.4.3 Bills of quantities drawn up in accordance with : Standard systems, Sixth Edition (Revised)"]
[]
[null,null,"42.4.4 Submission of priced Bills of Quantities : 5 working days"]
[]
[{"v":46,"d":"46 "},null,"42.4.5 JBCC Engineering General Conditions",null,"N/A","0.0"]
[]
[{"v":47,"d":"47 "},null,"42.4.6Contract value is not to be adjusted Tenderers are to allow for price fluctuations in their tender",null,"Item",{"v":1,"d":"1 "},null,{"$f":"ROUND(F186*G186,2)","v":{"v":0,"d":"0.00"}}]
[]
[null,null,"42.4.7 Changes made to the provisions of JBCC. Tenderers are referred to the specific clauses and items for changes made"]
[]
[null,null,"SECTION B : JBCC PRELIMINARIES"]
[]
[null,null,"Definitions and interpretations"]
[]
[{"v":48,"d":"48 "},null,"Clause 1.1:  Definitions and interpretations",null,"Item",{"v":1,"d":"1 "},null,{"$f":"ROUND(F194*G194,2)","v":{"v":0,"d":"0.00"}}]
[]
[null,null,"Documents"]
[]
[{"v":49,"d":"49 "},null,"Clause 2.1:  Checking of documents",null,"Item",{"v":1,"d":"1 "},null,{"$f":"ROUND(F198*G198,2)","v":{"v":0,"d":"0.00"}}]
[]
[{"v":50,"d":"50 "},null,"Clause 2.2:  Provisional bills of quantities",null,"Item",{"v":1,"d":"1 "},null,{"$f":"ROUND(F200*G200,2)","v":{"v":0,"d":"0.00"}}]
[]
[{"v":51,"d":"51 "},null,"Clause 2.3:  Availability of construction documentation",null,"Item",{"v":1,"d":"1 "},null,{"$f":"ROUND(F202*G202,2)","v":{"v":0,"d":"0.00"}}]
[]
[{"v":52,"d":"52 "},null,"Clause 2.4:  Interest of agents",null,"Item",{"v":1,"d":"1 "},null,{"$f":"ROUND(F204*G204,2)","v":{"v":0,"d":"0.00"}}]
[]
[{"v":53,"d":"53 "},null,"Clause 2.5:  Priced documents",null,"Item",{"v":1,"d":"1 "},null,{"$f":"ROUND(F206*G206,2)","v":{"v":0,"d":"0.00"}}]
[]
[{"v":54,"d":"54 "},null,"Clause 2.6:  Tender submission",null,"Item",{"v":1,"d":"1 "},null,{"$f":"ROUND(F208*G208,2)","v":{"v":0,"d":"0.00"}}]
[]
[null,null,"The site"]
[]
[{"v":55,"d":"55 "},null,"Clause 3.1:  Defined works area",null,"Item",{"v":1,"d":"1 "},null,{"$f":"ROUND(F212*G212,2)","v":{"v":0,"d":"0.00"}}]
[]
[{"v":56,"d":"56 "},null,"Clause 3.2:  Geotechnical investigation",null,"N/A","0.00"]
[]
[null,null,"A detailed geotechnical report is available from the Structural Engineer's offices"]
[]
[{"v":57,"d":"57 "},null,"Clause 3.3:  Inspection of the site",null,"Item",{"v":1,"d":"1 "},null,{"$f":"ROUND(F218*G218,2)","v":{"v":0,"d":"0.00"}}]
[]
[{"v":58,"d":"58 "},null,"Clause 3.4:  Existing premises occupied",null,"N/A","0.00"]
[]
[{"v":59,"d":"59 "},null,"Clause 3.5:  Previous work - dimensional accuracy",null,"Item",{"v":1,"d":"1 "},null,{"$f":"ROUND(F222*G222,2)","v":{"v":0,"d":"0.00"}}]
[]
[null,null,"Basement excavation contracts will be executed prior to this contract"]
[]
[{"v":60,"d":"60 "},null,"Clause 3.6:  Previous work - defects",null,"Item",{"v":1,"d":"1 "},null,{"$f":"ROUND(F226*G226,2)","v":{"v":0,"d":"0.00"}}]
[]
[{"v":61,"d":"61 "},null,"Clause 3.7:  Services - known",null,"Item",{"v":1,"d":"1 "},null,{"$f":"ROUND(F228*G228,2)","v":{"v":0,"d":"0.00"}}]
[]
[{"v":62,"d":"62 "},null,"Clause 3.8:  Services - unknown",null,"Item",{"v":1,"d":"1 "},null,{"$f":"ROUND(F230*G230,2)","v":{"v":0,"d":"0.00"}}]
[]
[{"v":63,"d":"63 "},null,"Clause 3.9:  Protection of trees",null,"Item",{"v":1,"d":"1 "},null,{"$f":"ROUND(F232*G232,2)","v":{"v":0,"d":"0.00"}}]
[]
[{"v":64,"d":"64 "},null,"Clause 3.10:  Articles of value",null,"Item",{"v":1,"d":"1 "},null,{"$f":"ROUND(F234*G234,2)","v":{"v":0,"d":"0.00"}}]
[]
[{"v":65,"d":"65 "},null,"Clause 3.11:  Inspection of adjoining properties",null,"Item",{"v":1,"d":"1 "},null,{"$f":"ROUND(F236*G236,2)","v":{"v":0,"d":"0.00"}}]
[]
[null,null,"Management of contract"]
[]
[{"v":66,"d":"66 "},null,"Clause 4.1:  Management of the works",null,"Item",{"v":1,"d":"1 "},null,{"$f":"ROUND(F240*G240,2)","v":{"v":0,"d":"0.00"}}]
[]
[{"v":67,"d":"67 "},null,"Clause 4.2:  Programming of the works",null,"Item",{"v":1,"d":"1 "},null,{"$f":"ROUND(F242*G242,2)","v":{"v":0,"d":"0.00"}}]
[]
[null,null,"Clause 4.2 is amended by the addition of the following: -  The contractor will be responsible to submit a detailed construction programme written 7 days of site handover. This programme should be compiled based on the critical path method of programming and the critical activities are to be clearly highlighted"]
[]
[{"v":68,"d":"68 "},null,"Clause 4.3:  Progress meetings",null,"Item",{"v":1,"d":"1 "},null,{"$f":"ROUND(F246*G246,2)","v":{"v":0,"d":"0.00"}}]
[]
[{"v":69,"d":"69 "},null,"Clause 4.4:  Technical meetings",null,"Item",{"v":1,"d":"1 "},null,{"$f":"ROUND(F248*G248,2)","v":{"v":0,"d":"0.00"}}]
[]
[{"v":70,"d":"70 "},null,"Clause 4.5:  Labour and plant records",null,"Item",{"v":1,"d":"1 "},null,{"$f":"ROUND(F250*G250,2)","v":{"v":0,"d":"0.00"}}]
[]
[null,null,"Samples and shop drawings"]
[]
[{"v":71,"d":"71 "},null,"Clause 5.1:   Samples of materials",null,"Item",{"v":1,"d":"1 "},null,{"$f":"ROUND(F254*G254,2)","v":{"v":0,"d":"0.00"}}]
[]
[{"v":72,"d":"72 "},null,"Clause 5.2:   Workmanship samples",null,"Item",{"v":1,"d":"1 "},null,{"$f":"ROUND(F256*G256,2)","v":{"v":0,"d":"0.00"}}]
[]
[{"v":73,"d":"73 "},null,"Clause 5.3:   Shop drawings",null,"Item",{"v":1,"d":"1 "},null,{"$f":"ROUND(F258*G258,2)","v":{"v":0,"d":"0.00"}}]
[]
[{"v":74,"d":"74 "},null,"Clause 5.4:   Compliance with manufacturer's instructions",null,"Item",{"v":1,"d":"1 "},null,{"$f":"ROUND(F260*G260,2)","v":{"v":0,"d":"0.00"}}]
[]
[null,null,"Temporary works and plant"]
[]
[{"v":75,"d":"75 "},null,"Clause 6.1:  Deposits and fees",null,"Item",{"v":1,"d":"1 "},null,{"$f":"ROUND(F264*G264,2)","v":{"v":0,"d":"0.00"}}]
[]
[{"v":76,"d":"76 "},null,"Clause 6.2:  Enclosure of works",null,"Item",{"v":1,"d":"1 "},null,{"$f":"ROUND(F266*G266,2)","v":{"v":0,"d":"0.00"}}]
[]
[{"v":77,"d":"77 "},null,"Clause 6.2 shall be amended by the following addition:The contractor to ensure that the site will be enclosed at all times. The enclosure has to be of such extent that the neighboring sites and properties are secure for the entire duration of the project.",null,"Item",{"v":1,"d":"1 "},null,{"$f":"ROUND(F268*G268,2)","v":{"v":0,"d":"0.00"}}]
[]
[{"v":78,"d":"78 "},null,"Clause 6.3:  Advertising",null,"Item",{"v":1,"d":"1 "},null,{"$f":"ROUND(F270*G270,2)","v":{"v":0,"d":"0.00"}}]
[]
[{"v":79,"d":"79 "},null,"Clause 6.4:  Plant, equipment, sheds and offices",null,"Item",{"v":1,"d":"1 "},null,{"$f":"ROUND(F272*G272,2)","v":{"v":0,"d":"0.00"}}]
[]
[{"v":80,"d":"80 "},null,"Clause 6.5:  Main notice board",null,"Item",{"v":1,"d":"1 "},null,{"$f":"ROUND(F274*G274,2)","v":{"v":0,"d":"0.00"}}]
[]
[{"v":81,"d":"81 "},null,"Clause 6.6:  Sub-contractors' noticeboard",null,"Item",{"v":1,"d":"1 "},null,{"$f":"ROUND(F276*G276,2)","v":{"v":0,"d":"0.00"}}]
[]
[null,null,"Temporary services"]
[]
[{"v":82,"d":"82 "},null,"Clause 7.1:  Location",null,"Item",{"v":1,"d":"1 "},null,{"$f":"ROUND(F280*G280,2)","v":{"v":0,"d":"0.00"}}]
[]
[{"v":83,"d":"83 "},null,"Clause 7.2:  Water",null,"Item",{"v":1,"d":"1 "},null,{"$f":"ROUND(F282*G282,2)","v":{"v":0,"d":"0.00"}}]
[]
[null,null,"Alternative C shall apply"]
[]
[{"v":84,"d":"84 "},null,"Clause 7.3:  Electricity",null,"Item",{"v":1,"d":"1 "},null,{"$f":"ROUND(F286*G286,2)","v":{"v":0,"d":"0.00"}}]
[]
[null,null,"Alternative C shall apply"]
[]
[{"v":85,"d":"85 "},null,"Clause 7.4:  Telecommunication",null,"Item",{"v":1,"d":"1 "},null,{"$f":"ROUND(F290*G290,2)","v":{"v":0,"d":"0.00"}}]
[]
[{"v":86,"d":"86 "},null,"Clause 7.5:  Ablution facilities",null,"Item",{"v":1,"d":"1 "},null,{"$f":"ROUND(F292*G292,2)","v":{"v":0,"d":"0.00"}}]
[]
[null,null,"Alternative A shall apply"]
[]
[null,null,"Prime cost amounts"]
[]
[{"v":87,"d":"87 "},null,"Clause 8.1:  Responsibility for prime cost amounts",null,"Item",{"v":1,"d":"1 "},null,{"$f":"ROUND(F298*G298,2)","v":{"v":0,"d":"0.00"}}]
[]
[null,null,"Attendance on n/s subcontractors"]
[]
[{"v":88,"d":"88 "},null,"Clause 9.1:   General attendance",null,"Item",{"v":1,"d":"1 "},null,{"$f":"ROUND(F302*G302,2)","v":{"v":0,"d":"0.00"}}]
[]
[{"v":89,"d":"89 "},null,"Clause 9.2:   Special attendance",null,"N/A","0.00"]
[]
[{"v":90,"d":"90 "},null,"Clause 9.3:   Commissioning - fuel, water and power",null,"Item",{"v":1,"d":"1 "},null,{"$f":"ROUND(F306*G306,2)","v":{"v":0,"d":"0.00"}}]
[]
[null,null,"Financial aspects"]
[]
[{"v":91,"d":"91 "},null,"Clause 10.1:  Statutory taxes duties and levies",null,"Item",{"v":1,"d":"1 "},null,{"$f":"ROUND(F310*G310,2)","v":{"v":0,"d":"0.00"}}]
[]
[{"v":92,"d":"92 "},null,"Clause 10.2:  Payment of preliminaries",null,"Item",{"v":1,"d":"1 "},null,{"$f":"ROUND(F312*G312,2)","v":{"v":0,"d":"0.00"}}]
[]
[{"v":93,"d":"93 "},null,"Clause 10.3:  Adjustment of preliminaries",null,"Item",{"v":1,"d":"1 "},null,{"$f":"ROUND(F314*G314,2)","v":{"v":0,"d":"0.00"}}]
[]
[{"v":94,"d":"94 "},null,"Clause 10.4:  Payment certificate cash flow",null,"Item",{"v":1,"d":"1 "},null,{"$f":"ROUND(F316*G316,2)","v":{"v":0,"d":"0.00"}}]
[]
[null,null,"General"]
[]
[{"v":95,"d":"95 "},null,"Clause 11.1:  Protection of the work",null,"Item",{"v":1,"d":"1 "},null,{"$f":"ROUND(F320*G320,2)","v":{"v":0,"d":"0.00"}}]
[]
[{"v":96,"d":"96 "},null,"Clause 11.2:  Protection/isolation of existing/sectionally occupied works",null,"Item",{"v":1,"d":"1 "},null,{"$f":"ROUND(F322*G322,2)","v":{"v":0,"d":"0.00"}}]
[]
[{"v":97,"d":"97 "},null,"Clause 11.3:  Security of the works",null,"Item",{"v":1,"d":"1 "},null,{"$f":"ROUND(F324*G324,2)","v":{"v":0,"d":"0.00"}}]
[]
[{"v":98,"d":"98 "},null,"Clause 11.4:  Notice before covering work",null,"Item",{"v":1,"d":"1 "},null,{"$f":"ROUND(F326*G326,2)","v":{"v":0,"d":"0.00"}}]
[]
[{"v":99,"d":"99 "},null,"Clause 11.5:  Disturbance",null,"Item",{"v":1,"d":"1 "},null,{"$f":"ROUND(F328*G328,2)","v":{"v":0,"d":"0.00"}}]
[]
[{"v":100,"d":"100 "},null,"Clause 11.6:  Environmental disturbance",null,"Item",{"v":1,"d":"1 "},null,{"$f":"ROUND(F330*G330,2)","v":{"v":0,"d":"0.00"}}]
[]
[{"v":101,"d":"101 "},null,"Clause 11.7:  Works cleaning and clearing",null,"Item",{"v":1,"d":"1 "},null,{"$f":"ROUND(F332*G332,2)","v":{"v":0,"d":"0.00"}}]
[]
[{"v":102,"d":"102 "},null,"Clause 11.8:  Vermin",null,"Item",{"v":1,"d":"1 "},null,{"$f":"ROUND(F334*G334,2)","v":{"v":0,"d":"0.00"}}]
[]
[{"v":103,"d":"103 "},null,"Clause 11.9:  Overhand work",null,"Item",{"v":1,"d":"1 "},null,{"$f":"ROUND(F336*G336,2)","v":{"v":0,"d":"0.00"}}]
[]
[{"v":104,"d":"104 "},null,"Clause 11.10:  Instruction manuals and guarantees",null,"Item",{"v":1,"d":"1 "},null,{"$f":"ROUND(F338*G338,2)","v":{"v":0,"d":"0.00"}}]
[]
[{"v":105,"d":"105 "},null,"Clause 11.11:  As built information",null,"Item",{"v":1,"d":"1 "},null,{"$f":"ROUND(F340*G340,2)","v":{"v":0,"d":"0.00"}}]
[]
[{"v":106,"d":"106 "},null,"Clause 11.12:  Tenant installations",null,"Item",{"v":1,"d":"1 "},null,{"$f":"ROUND(F342*G342,2)","v":{"v":0,"d":"0.00"}}]
[]
[{"v":107,"d":"107 "},null,"Clause 12.0 Schedule of variables",null,"Item",{"v":1,"d":"1 "},null,{"$f":"ROUND(F344*G344,2)","v":{"v":0,"d":"0.00"}}]
[]
[null,null,"Clause 12.1 Pre-tender Information"]
[]
[{"v":108,"d":"108 "},null,"Clause 12.1.1 Provisional bills of quantities",null,"Item",{"v":1,"d":"1 "},null,{"$f":"ROUND(F348*G348,2)","v":{"v":0,"d":"0.00"}}]
[]
[null,null,"The quantities are provisional"]
[]
[{"v":109,"d":"109 "},null,"Clause 12.1.2 Availability of construction documentation",null,"Item",{"v":1,"d":"1 "},null,{"$f":"ROUND(F352*G352,2)","v":{"v":0,"d":"0.00"}}]
[]
[null,null,"Construction documentation is not completed"]
[]
[{"v":110,"d":"110 "},null,"Clause 12.1.3 Interests of agents",null,"Item",{"v":1,"d":"1 "},null,{"$f":"ROUND(F356*G356,2)","v":{"v":0,"d":"0.00"}}]
[]
[{"v":111,"d":"111 "},null,"Clause 12.1.4 Defined works area",null,"Item",{"v":1,"d":"1 "},null,{"$f":"ROUND(F358*G358,2)","v":{"v":0,"d":"0.00"}}]
[]
[null,null,"To be agreed"]
[]
[{"v":112,"d":"112 "},null,"Clause 12.1.5 Geotechnical investigation",null,"Item",{"v":1,"d":"1 "},null,{"$f":"ROUND(F362*G362,2)","v":{"v":0,"d":"0.00"}}]
[]
[null,null,"Detail report available for inspection at the offices of the structural engineer"]
[]
[{"v":113,"d":"113 "},null,"Clause 12.1.6 Existing premises occupied",null,"N/A","0.0"]
[]
[{"v":114,"d":"114 "},null,"Clause 12.1.7 Previous work - dimensional accuracy",null,"Item",{"v":1,"d":"1 "},null,{"$f":"ROUND(F368*G368,2)","v":{"v":0,"d":"0.00"}}]
[]
[null,null,"Basement excavation contracts will be executed prior to this contract"]
[]
[{"v":115,"d":"115 "},null,"Clause 12.1.8 Previous work - defects",null,"Item",{"v":1,"d":"1 "},null,{"$f":"ROUND(F372*G372,2)","v":{"v":0,"d":"0.00"}}]
[]
[{"v":116,"d":"116 "},null,"Clause 12.1.9 Services Known",null,"Item",{"v":1,"d":"1 "},null,{"$f":"ROUND(F374*G374,2)","v":{"v":0,"d":"0.00"}}]
[]
[null,null,"All known services are as indicated on drawings and documentation"]
[]
[{"v":117,"d":"117 "},null,"Clause 12.1.10 Protection of trees",null,"N/A","0.0"]
[]
[{"v":118,"d":"118 "},null,"Clause 12.1.11 Inspection of adjoining properties",null,"Item",{"v":1,"d":"1 "},null,{"$f":"ROUND(F380*G380,2)","v":{"v":0,"d":"0.00"}}]
[]
[{"v":119,"d":"119 "},null,"Clause 12.1.12 Enclosure of the works",null,"Item",{"v":1,"d":"1 "},null,{"$f":"ROUND(F382*G382,2)","v":{"v":0,"d":"0.00"}}]
[]
[{"v":120,"d":"120 "},null,"Clause 12.1.13 Offices",null,"Item",{"v":1,"d":"1 "},null,{"$f":"ROUND(F384*G384,2)","v":{"v":0,"d":"0.00"}}]
[]
[null,null,"Office accommodation and furniture to accommodate 15 people is required"]
[]
[{"v":121,"d":"121 "},null,"Clause 12.1.14 Main notice board",null,"Item",{"v":1,"d":"1 "},null,{"$f":"ROUND(F388*G388,2)","v":{"v":0,"d":"0.00"}}]
[]
[null,null,"Main notice board is required"]
[]
[{"v":122,"d":"122 "},null,"Clause 12.1.5 Subcontractors notice board",null,"Item",{"v":1,"d":"1 "},null,{"$f":"ROUND(F392*G392,2)","v":{"v":0,"d":"0.00"}}]
[]
[null,null,"A sub-contractor's notice board is not required"]
[]
[{"v":123,"d":"123 "},null,"Clause 12.1.16 Water",null,"Item",{"v":1,"d":"1 "},null,{"$f":"ROUND(F396*G396,2)","v":{"v":0,"d":"0.00"}}]
[]
[null,null,"Option A (by Contractor) shall apply"]
[]
[{"v":124,"d":"124 "},null,"Clause 12.1.17 Electricity",null,"Item",{"v":1,"d":"1 "},null,{"$f":"ROUND(F400*G400,2)","v":{"v":0,"d":"0.00"}}]
[]
[null,null,"Option A (by contractor) shall apply"]
[]
[{"v":125,"d":"125 "},null,"Clause 12.1.18 Telecommunications",null,"Item",{"v":1,"d":"1 "},null,{"$f":"ROUND(F404*G404,2)","v":{"v":0,"d":"0.00"}}]
[]
[null,null,"telephone and facsimile to be provided"]
[]
[{"v":126,"d":"126 "},null,"Clause 12.1.19 Ablution facilities",null,"Item",{"v":1,"d":"1 "},null,{"$f":"ROUND(F408*G408,2)","v":{"v":0,"d":"0.00"}}]
[]
[null,null,"Option A (by contractor) shall apply"]
[]
[{"v":127,"d":"127 "},null,"Protection of existing /sectionally occupied works",null,"Item",{"v":1,"d":"1 "},null,{"$f":"ROUND(F412*G412,2)","v":{"v":0,"d":"0.00"}}]
[]
[{"v":128,"d":"128 "},null,"Clause 12.1.21 Special attendance",null,"N/A","0.0"]
[]
[{"v":129,"d":"129 "},null,"Clause 12.1.22 Protection of the works",null,"Item",{"v":1,"d":"1 "},null,{"$f":"ROUND(F416*G416,2)","v":{"v":0,"d":"0.00"}}]
[]
[{"v":130,"d":"130 "},null,"Clause 12.1.23 Disturbance",null,"Item",{"v":1,"d":"1 "},null,{"$f":"ROUND(F418*G418,2)","v":{"v":0,"d":"0.00"}}]
[]
[{"v":131,"d":"131 "},null,"Clause 12.1.24 Environmental disturbance",null,"Item",{"v":1,"d":"1 "},null,{"$f":"ROUND(F420*G420,2)","v":{"v":0,"d":"0.00"}}]
[]
[null,null,"SECTION C : SPECIFIC PRELIMINARIES"]
[]
[{"v":132,"d":"132 "},null,"Provision for a Community Liason Officer",null,"Item",{"v":1.05,"d":"1 "},null,{"$f":"ROUND(F424*G424,2)","v":{"v":0,"d":"0.00"}}]
[]
[{"v":133,"d":"133 "},null,"EPWP rate for unskilled labour in Greater Giyani Municipality is R170 per day",null,"Item",{"v":1,"d":"1 "},null,{"$f":"ROUND(F426*G426,2)","v":{"v":0,"d":"0.00"}}]
[]
[{"v":134,"d":"134 "},null,"Warranties for materials and workmanshipWhere warranties for materials and/or workmanship are called for, the contractor shall obtain a written warranty,addressed to the employer, from the entity supplying the materials and/or doing the work and shall deliver same to the principal agent on the final completion of the contractThe warranty shall state that workmanship, materials and installation are warranted for a specific period from the date of practical completion and that any defects that may arise during the specified period shall be made good at the expense of the entity supplying the materialsand/or doing the work, upon written notice to do soThe warranty will not be enforced if the work is damaged by defects in the execution of the works, in which case the responsibility for replacement shall rest entirely with the contractorF:.......................... V:......................... T:.........................",null,"Item",{"v":0,"d":"0 "},null,{"$f":"ROUND(F428*G428,2)","v":{"v":0,"d":"0.00"}}]
[]
[{"v":135,"d":"135 "},null,"As built drawings",null,"Item",{"v":0,"d":"0 "},null,{"$f":"ROUND(F430*G430,2)","v":{"v":0,"d":"0.00"}}]
[]
[{"v":136,"d":"136 "},null,"OvertimeShould overtime be required to be worked for any reason whatsoever, the cost of such overtime is to be borne by the contractor unless the principal agent has specifically authorised, prior to execution thereof, that costs for such overtime are to be borne by the employerF:.......................... V:......................... T:.........................",null,"Item",{"v":0,"d":"0 "},null,{"$f":"ROUND(F432*G432,2)","v":{"v":0,"d":"0.00"}}]
[]
[{"v":137,"d":"137 "},null,"Co-operation of the contractor for cost managementIt is specifically agreed that the contractor accepts the obligation of assisting the principal agent in implementing proper cost management. The contractor will be advised by the principal agent of all cost management procedures which will be implemented to ensure that the contract value does not exceed the budgetF:.......................... V:......................... T:.........................",null,"Item",{"v":0,"d":"0 "},null,{"$f":"ROUND(F434*G434,2)","v":{"v":0,"d":"0.00"}}]
[]
[{"v":138,"d":"138 "},null,"OverloadingThe contractor shall take all necessary steps to ensure that no damage occurs due to overloading of any portionof the works or temporary works e.g. scaffolding, etc. The contractor shall submit details of his proposed loading, storage, plant erection, etc. to the principal agent for approval prior to proceeding with such loading, storing or erecting and shall comply with and pay for the principal agent's requirements in connection with the provision of temporary support work, etc. Any damage caused to the works by overloading shall be made good by the contractor at his sole expenseF:.......................... V:......................... T:.........................",null,"Item",{"v":0,"d":"0 "},null,{"$f":"ROUND(F436*G436,2)","v":{"v":0,"d":"0.00"}}]
[]
[{"v":139,"d":"139 "},null,"Propping of floors belowThe contractor is advised that propping of floors below may be required if he wishes to use any areas of completed suspended reinforced concrete slabs for vehicle access, storage of materials and goods and location of plant, scaffolding, etc. The location of these areas and any necessary propping shall be approved by the principal agent and the cost thereof shall be borne by the contractorF:.......................... V:......................... T:.........................",null,"Item",{"v":0,"d":"0 "},null,{"$f":"ROUND(F438*G438,2)","v":{"v":0,"d":"0.00"}}]
[]
[{"v":140,"d":"140 "},null,"Testing of flat roof waterproofing for water tightnessFlat roof waterproof areas shall be prepared with small sand dykes around them of a size and enclosing an area approved by the principal agent, flooded with water and kept \"ponded\" for at least forty (40) hours as a test to ensure the water tightness of the waterproofing and before any further construction work is carried out above the waterproofingF:.......................... V:......................... T:.........................",null,"Item",{"v":0,"d":"0 "},null,{"$f":"ROUND(F440*G440,2)","v":{"v":0,"d":"0.00"}}]
[]
[{"v":141,"d":"141 "},null,"Broad based black economic empowerment (BBBEE)Tenders submitted will be evaluated taking into account their empowerment ratingThe employer will be monitoring the broad based black economic empowerment (BBBEE) status of the contractor throughout the execution of the worksThe contractor is to submit to the principal agent on an monthly basis a schedule of spend, split into vendors engaged as subcontractors and suppliers indicating their BBBEE rating including proof of the said ratingF:.......................... V:......................... T:.........................",null,"Item",{"v":0,"d":"0 "},null,{"$f":"ROUND(F442*G442,2)","v":{"v":0,"d":"0.00"}}]
[]
[{"v":142,"d":"142 "},null,"Advertising rightsThe employer may elect to contract with advertising agencies for the erection of advertising hoardings, banners, wraps or the like for the duration of the contract. The contractor shall not prevent such an arrangement and will assist in the facilitation of same. Position and type of advertising structure to be agreed with the principal agent so as not to hinder the contractor in meeting the obligations under this agreementF:.......................... V:......................... T:.........................",null,"Item",{"v":0,"d":"0 "},null,{"$f":"ROUND(F444*G444,2)","v":{"v":0,"d":"0.00"}}]
[]
[{"v":143,"d":"143 "},null,"ConfidentialityThe contractor undertakes to maintain in confidence any and all information regarding this project and shall obtain appropriate similar undertakings from all subcontractors and suppliers. Such information shall not be used in any way except in connection with the execution of the works.No information regarding this project shall be published or disclosed without the prior written consent of the employerF:.......................... V:......................... T:........................",null,"Item",{"v":0,"d":"0 "},null,{"$f":"ROUND(F446*G446,2)","v":{"v":0,"d":"0.00"}}]
[]
[{"v":144,"d":"144 "},null,"Specific Goal Participation Tenderers should note that this project is subject to the maximum utilization of women, youth and disabled and preference will be given as such and also monitored during the construction stage.  Details of the Specific Goal ParticipationDetails of the tenderer's proposals in this regard is to be  provided before commencement of the works and data  forms to be completed by the contractor F:.................... V:.................... T:....................",null,"Item",{"v":0,"d":"0 "},null,{"$f":"ROUND(F448*G448,2)","v":{"v":0,"d":"0.00"}}]
[]
[{"v":145,"d":"145 "},null,"Non Accredited TrainingTenderers are to note that non accredited training (i.e. on site training) is to be provided during the construction period. F:.................... V:.................... T:....................",null,"Item",{"v":0,"d":"0 "},null,{"$f":"ROUND(F450*G450,2)","v":{"v":0,"d":"0.00"}}]
[]
[{"v":146,"d":"146 "},null,"Site Instructions  Site instructions issued on site are to be recorded in triplicate in a site instruction book which is to be maintained on site by the contractor   F:............................. V:............................ T:............................",null,"Item",{"v":0,"d":"0 "},null,{"$f":"ROUND(F452*G452,2)","v":{"v":0,"d":"0.00"}}]
[]
[{"v":147,"d":"147 "},null,"Labour RecordAt the end of each week the contractor shall provide the principal agent with a written record, in schedule form, reflecting the number and description of tradesmen and labourers employed by him and all subcontractors on the works each day. F:............................. V:............................ T:............................",null,"Item",{"v":0,"d":"0 "},null,{"$f":"ROUND(F454*G454,2)","v":{"v":0,"d":"0.00"}}]
[]
[{"v":148,"d":"148 "},null,"Plant Record  At the end of each week the contractor shall provide the principal agent with a written record, in schedule form, reflecting the number, type and capacity of all plant, excluding hand tools, currently used on the works.   F:............................. V:............................ T:............................",null,"Item",{"v":0,"d":"0 "},null,{"$f":"ROUND(F456*G456,2)","v":{"v":0,"d":"0.00"}}]
[]
[{"v":149,"d":"149 "},null,"Occupational Health and Safety Act - Section 37(2)F:.................... V:.................... T:.................... attention is drawn to the fact that the Occupational Health and Safety Act (Act 85 of 1993) is in force. Copies of the Act are available from the Government Printing Works, 149 Bosman Street, Pretoria (Private Bag X85, Pretoria, 0001, Tel No. (012) 334-4500). Tenderers are expected to be fully acquainted with the requirements of the Act.A pro-forma \"Agreement in terms of the Occupational Health and Safety Act - Part C 1.4\" is included in these bid documents. Tenderers are advised to study this pro-forma in order to make themselves fully conversant with the requirements and responsibilities of the Act and the Municipality.Tenderers are to provide for the above-mentioned requirements and to allow for all cost implications regarding the above including risk assessment, safety plan and monitoring system for the duration of the contract.NB: Tenderers are advised to pay close attention to the specific health and safety provisions as delineated by the health and safety consultant as these may have cost implications. The employer shall henceforth deem the price or cost associated with such provisions included in the tenderer's offer.F:............................. V:............................ T:............................",null,"Item",{"v":0,"d":"0 "},null,{"$f":"ROUND(F458*G458,2)","v":{"v":0,"d":"0.00"}}]
[]
[{"v":150,"d":"150 "},null,"Community Employment and SMME Involvement  The building and related projects of the EMM shall be labour intensive and shall promote community employment in the execution of the contract resulting from this tender. Furthermore, it shall contribute to the development of SME's (Small and Medium Enterprises) especially from previously disadvantaged communities  Local labour  It is an explicit condition of this contract that only persons normally resident in the locality of the works (Local labour) may be employed on the contract. Provided however, that should adequate and appropriate labour not be available within the locality, other labour may be employed, subject to the approval of the Representative/Agent and satisfactory proof being provided that every reasonable endeavour has been made, to employ labour from the immediate locality. The contractors shall identify the local community leaders, with the purpose of negotiating with them, regarding the utilisation of local labour in the construction process. In this regard, the Contractor shall furthermore give preference, where possible, to the employment of single heads of households, women, youth and disabled persons. The Contractor shall in general, maximize the involvement of the local community   F:.................... V:.................... T:....................",null,"Item",{"v":0,"d":"0 "},null,{"$f":"ROUND(F460*G460,2)","v":{"v":0,"d":"0.00"}}]
[]
[null,null,"SECTION D : HEALTH AND SAFETY REQUIREMENTS FOR ALL TENDER BILL OF QUANTITIES"]
[]
[null,null,"OCCUPATIONAL HEALTH AND SAFETY ACT, 1993 AND THE CONSTRUCTION REGULATION, 2014"]
[]
[{"v":151,"d":"151 "},null,"Prepare and compile H&S plan as per site specification Health and safety specifications (section C3, scope of works). OHS Act & regulations    F:............................. V:............................ T:............................",null,"Item",{"v":1,"d":"1 "},null,{"$f":"ROUND(F466*G466,2)","v":{"v":0,"d":"0.00"}}]
[]
[{"v":152,"d":"152 "},null,"Allow for the preparation and compilation of the site specific health and safety file, and a health and safety working file    F:............................. V:............................ T:............................",null,"Item",{"v":1,"d":"1 "},null,{"$f":"ROUND(F468*G468,2)","v":{"v":0,"d":"0.00"}}]
[]
[{"v":153,"d":"153 "},null,"Changes and amendments as may be required for ongoing maintenance of health and safety file and working file    F:............................. V:............................ T:............................",null,"Item",{"v":1,"d":"1 "},null,{"$f":"ROUND(F470*G470,2)","v":{"v":0,"d":"0.00"}}]
[]
[{"v":154,"d":"154 "},null,"Occupational Health and Safety Act - Section 37(2)F:.................... V:.................... T:.................... attention is drawn to the fact that the Occupational Health and Safety Act (Act 85 of 1993) is in force. Copies of the Act are available from the Government Printing Works, 149 Bosman Street, Pretoria (Private Bag X85, Pretoria, 0001, Tel No. (012) 334-4500). Tenderers are expected to be fully acquainted with the requirements of the Act.A pro-forma \"Agreement in terms of the Occupational Health and Safety Act - Part C 1.4\" is included in these bid documents. Tenderers are advised to study this pro-forma in order to make themselves fully conversant with the requirements and responsibilities of the Act and the Municipality.Tenderers are to provide for the above-mentioned requirements and to allow for all cost implications regarding the above including risk assessment, safety plan and monitoring system for the duration of the contract.NB: Tenderers are advised to pay close attention to the specific health and safety provisions as delineated by the health and safety consultant as these may have cost implications. The employer shall henceforth deem the price or cost associated with such provisions included in the tenderer's offer.F:............................. V:............................ T:............................",null,"Item",{"v":1,"d":"1 "},null,{"$f":"ROUND(F472*G472,2)","v":{"v":0,"d":"0.00"}}]
[]
[null,null,"PART B OHS ACT COMPLIANCE - IMPLEMENTATION OF THE HEALTH AND SAFETY"]
[]
[null,null,"Personal Protective Clothing & Equipment"]
[]
[{"v":155,"d":"155 "},null,"Foot protection ( steel toe cap, gum boots etc.)   F:............................. V:............................ T:............................",null,"Item",{"v":1,"d":"1 "},null,{"$f":"ROUND(F478*G478,2)","v":{"v":0,"d":"0.00"}}]
[]
[{"v":156,"d":"156 "},null,"Clothing (Overalls Depicting Contractors Company name/identification)   F:............................. V:............................ T:............................",null,"Item",{"v":1,"d":"1 "},null,{"$f":"ROUND(F480*G480,2)","v":{"v":0,"d":"0.00"}}]
[]
[{"v":157,"d":"157 "},null,"Glove (leather, PVC, Acid resistant etc.)   F:............................. V:............................ T:............................",null,"Item",{"v":1,"d":"1 "},null,{"$f":"ROUND(F482*G482,2)","v":{"v":0,"d":"0.00"}}]
[]
[{"v":158,"d":"158 "},null,"Head Protection: Hard hats, colour coded - Supervisory (Red) Labour (Green) First Aid (Blue) Sun Shields etc.   F:............................. V:............................ T:............................",null,"Item",{"v":1,"d":"1 "},null,{"$f":"ROUND(F484*G484,2)","v":{"v":0,"d":"0.00"}}]
[]
[{"v":159,"d":"159 "},null,"Ear Protection earplugs, earmuffs, etc.)   F:............................. V:............................ T:............................",null,"Item",{"v":1,"d":"1 "},null,{"$f":"ROUND(F486*G486,2)","v":{"v":0,"d":"0.00"}}]
[]
[{"v":160,"d":"160 "},null,"Eye Protection (Face Shield, Goggles, Spectacles etc.)   F:............................. V:............................ T:............................",null,"Item",{"v":1,"d":"1 "},null,{"$f":"ROUND(F488*G488,2)","v":{"v":0,"d":"0.00"}}]
[]
[{"v":161,"d":"161 "},null,"Air (Dust Masks etc.)   F:............................. V:............................ T:............................",null,"Item",{"v":1,"d":"1 "},null,{"$f":"ROUND(F490*G490,2)","v":{"v":0,"d":"0.00"}}]
[]
[{"v":162,"d":"162 "},null,"Visibility (luminous high visibility safety vest/jackets/bibs/head gear etc.)   F:............................. V:............................ T:............................",null,"Item",{"v":1,"d":"1 "},null,{"$f":"ROUND(F492*G492,2)","v":{"v":0,"d":"0.00"}}]
[]
[{"v":163,"d":"163 "},null,"Fall Risk/ Fall pProtection/ Working at Heights This only required when work is 2m or more in height    F:............................. V:............................ T:............................",null,"Item",{"v":1,"d":"1 "},null,{"$f":"ROUND(F494*G494,2)","v":{"v":0,"d":"0.00"}}]
[]
[{"v":164,"d":"164 "},null,"Harness/double lanyard, retractable, reach etc.)   F:............................. V:............................ T:............................",null,"Item",{"v":1,"d":"1 "},null,{"$f":"ROUND(F496*G496,2)","v":{"v":0,"d":"0.00"}}]
[]
[{"v":165,"d":"165 "},null,"Fall Protection and Recovery Plan (and recovery, gear)   F:............................. V:............................ T:............................",null,"Item",{"v":1,"d":"1 "},null,{"$f":"ROUND(F498*G498,2)","v":{"v":0,"d":"0.00"}}]
[]
[{"v":166,"d":"166 "},null,"Portable ladders, OA frame, extendable, length, material etc.    F:............................. V:............................ T:............................",null,"Item",{"v":1,"d":"1 "},null,{"$f":"ROUND(F500*G500,2)","v":{"v":0,"d":"0.00"}}]
[]
[{"v":167,"d":"167 "},null,"Barricading/ Hoarding (Supply, Install & Removal)    F:............................. V:............................ T:............................",null,"Item",{"v":1,"d":"1 "},null,{"$f":"ROUND(F502*G502,2)","v":{"v":0,"d":"0.00"}}]
[]
[{"v":168,"d":"168 "},null,"Construction perimeter (fence, shade netting, corrugated iron, shutter board, hard barricade etc.)   F:............................. V:............................ T:............................",null,"Item",{"v":1,"d":"1 "},null,{"$f":"ROUND(F504*G504,2)","v":{"v":0,"d":"0.00"}}]
[]
[{"v":169,"d":"169 "},null,"Trench and Manhole Excavation",null,"Item",{"v":1,"d":"1 "},null,{"$f":"ROUND(F506*G506,2)","v":{"v":0,"d":"0.00"}}]
[]
[{"v":170,"d":"170 "},null,"Roads and roads reserves -  Pre warning (danger tape, orange \"shark\" netting, cones, temporary road signs, etc.)   F:............................. V:............................ T:............................",null,"Item",{"v":1,"d":"1 "},null,{"$f":"ROUND(F508*G508,2)","v":{"v":0,"d":"0.00"}}]
[]
[null,null,"Health and Safety Control and Training"]
[]
[{"v":171,"d":"171 "},null,"Provide full time competent construction health and safety on site to assist in the control of all health and safety aspects on site (CRB(5))   F:............................. V:............................ T:............................",null,"Item",{"v":1,"d":"1 "},null,{"$f":"ROUND(F512*G512,2)","v":{"v":0,"d":"0.00"}}]
[]
[{"v":172,"d":"172 "},null,"Induction training (employees, visitors, sub-contractors, local residence/ home owners   F:............................. V:............................ T:............................",null,"Item",{"v":1,"d":"1 "},null,{"$f":"ROUND(F514*G514,2)","v":{"v":0,"d":"0.00"}}]
[]
[{"v":173,"d":"173 "},null,"Medical Examination",null,"Item",{"v":1,"d":"1 "},null,{"$f":"ROUND(F516*G516,2)","v":{"v":0,"d":"0.00"}}]
[]
[{"v":174,"d":"174 "},null,"Medical treatments   F:............................. V:............................ T:............................",null,"Item",{"v":1,"d":"1 "},null,{"$f":"ROUND(F518*G518,2)","v":{"v":0,"d":"0.00"}}]
[]
[{"v":175,"d":"175 "},null,"Entry Medical Examination   F:............................. V:............................ T:............................",null,"Item",{"v":1,"d":"1 "},null,{"$f":"ROUND(F520*G520,2)","v":{"v":0,"d":"0.00"}}]
[]
[{"v":176,"d":"176 "},null,"Periodical (if contract more than 8 months) Medical Examination   F:............................. V:............................ T:............................",null,"Item",{"v":1,"d":"1 "},null,{"$f":"ROUND(F522*G522,2)","v":{"v":0,"d":"0.00"}}]
[]
[{"v":177,"d":"177 "},null,"Exist Medical Examination   F:............................. V:............................ T:............................",null,"Item",{"v":1,"d":"1 "},null,{"$f":"ROUND(F524*G524,2)","v":{"v":0,"d":"0.00"}}]
[]
[{"v":178,"d":"178 "},null,"Signage, Information Display, Awareness",null,"Item",{"v":1,"d":"1 "},null,{"$f":"ROUND(F526*G526,2)","v":{"v":0,"d":"0.00"}}]
[]
[{"v":179,"d":"179 "},null,"Construction (fire fighting, general information, prohibitory, mandatory, warming, hazchem, photo luminescent, etc.)   F:............................. V:............................ T:............................",null,"Item",{"v":1,"d":"1 "},null,{"$f":"ROUND(F528*G528,2)","v":{"v":0,"d":"0.00"}}]
[]
[{"v":180,"d":"180 "},null,"Roads (temporary, traffic control, associated with construction work within the road reserve, etc.)   F:............................. V:............................ T:............................",null,"Item",{"v":1,"d":"1 "},null,{"$f":"ROUND(F530*G530,2)","v":{"v":0,"d":"0.00"}}]
[]
[{"v":181,"d":"181 "},null,"Health and Safety information display board in site office (emergency evacuation flow diagram, emergency contract numbers, electrical, general, etc.   F:............................. V:............................ T:............................",null,"Item",{"v":1,"d":"1 "},null,{"$f":"ROUND(F532*G532,2)","v":{"v":0,"d":"0.00"}}]
[]
[{"v":182,"d":"182 "},null,"Construction Vehicle, Mobile Plant and Roads",null,"Item",{"v":1,"d":"1 "},null,{"$f":"ROUND(F534*G534,2)","v":{"v":0,"d":"0.00"}}]
[]
[{"v":183,"d":"183 "},null,"Equipment (stop blocs, traffic flags)\t\t   F:............................. V:............................ T:............................",null,"Item",{"v":1,"d":"1 "},null,{"$f":"ROUND(F536*G536,2)","v":{"v":0,"d":"0.00"}}]
[]
[{"v":184,"d":"184 "},null,"Rotating/strobe lights for construction vehicle and mobile plant   F:............................. V:............................ T:............................",null,"Item",{"v":1,"d":"1 "},null,{"$f":"ROUND(F538*G538,2)","v":{"v":0,"d":"0.00"}}]
[]
[{"v":185,"d":"185 "},null,"Facilities (wash bay, fuel bay, service bay)\t   F:............................. V:............................ T:............................",null,"Item",{"v":1,"d":"1 "},null,{"$f":"ROUND(F540*G540,2)","v":{"v":0,"d":"0.00"}}]
[]
[{"v":186,"d":"186 "},null,"Fire Fighting Emergencies",null,"Item",{"v":1,"d":"1 "},null,{"$f":"ROUND(F542*G542,2)","v":{"v":0,"d":"0.00"}}]
[]
[{"v":187,"d":"187 "},null,"Fire fighting equipment (fire extinguishers - dry powder, for all construction vehicle, site vehicle, site office and on site)   F:............................. V:............................ T:............................",null,"Item",{"v":1,"d":"1 "},null,{"$f":"ROUND(F544*G544,2)","v":{"v":0,"d":"0.00"}}]
[]
[{"v":188,"d":"188 "},null,"Alarm signalling device (hooter/ blow horn/ siren/ bell/ whistle etc.)   F:............................. V:............................ T:............................",null,"Item",{"v":1,"d":"1 "},null,{"$f":"ROUND(F546*G546,2)","v":{"v":0,"d":"0.00"}}]
[]
[{"v":189,"d":"189 "},null,"Emergenoles",null,"Item",{"v":1,"d":"1 "},null,{"$f":"ROUND(F548*G548,2)","v":{"v":0,"d":"0.00"}}]
[]
[{"v":190,"d":"190 "},null,"First aid treatment box (and refills, stretcher, medical waste drop box, etc.   F:............................. V:............................ T:............................",null,"Item",{"v":1,"d":"1 "},null,{"$f":"ROUND(F550*G550,2)","v":{"v":0,"d":"0.00"}}]
[]
[{"v":191,"d":"191 "},null,"Substance abuse testing (breathalyser, etc.   F:............................. V:............................ T:............................",null,"Item",{"v":1,"d":"1 "},null,{"$f":"ROUND(F552*G552,2)","v":{"v":0,"d":"0.00"}}]
[]
[{"v":192,"d":"192 "},null,"Facilities",null,"Item",{"v":1,"d":"1 "},null,{"$f":"ROUND(F554*G554,2)","v":{"v":0,"d":"0.00"}}]
[]
[{"v":193,"d":"193 "},null,"Ablution (chemical/mobile)   F:............................. V:............................ T:............................",null,"Item",{"v":1,"d":"1 "},null,{"$f":"ROUND(F556*G556,2)","v":{"v":0,"d":"0.00"}}]
[]
[{"v":194,"d":"194 "},null,"Change house and lockers   F:............................. V:............................ T:............................",null,"Item",{"v":1,"d":"1 "},null,{"$f":"ROUND(F558*G558,2)","v":{"v":0,"d":"0.00"}}]
[]
[{"v":195,"d":"195 "},null,"Shelter eating facility (Table, chairs, portable water)   F:............................. V:............................ T:............................",null,"Item",{"v":1,"d":"1 "},null,{"$f":"ROUND(F560*G560,2)","v":{"v":0,"d":"0.00"}}]
[]
[{"v":196,"d":"196 "},null,"Site office/space for health and safety personnel  (table, chair)   F:............................. V:............................ T:............................",null,"Item",{"v":1,"d":"1 "},null,{"$f":"ROUND(F562*G562,2)","v":{"v":0,"d":"0.00"}}]
[]
[{"v":197,"d":"197 "},null,"Security/ access control point (gate, gate keeper, guard house, etc.)   F:............................. V:............................ T:............................",null,"Item",{"v":1,"d":"1 "},null,{"$f":"ROUND(F564*G564,2)","v":{"v":0,"d":"0.00"}}]
[]
[{"v":198,"d":"198 "},null,"HCS storage facilities (bound walls, cage, etc)   F:............................. V:............................ T:............................",null,"Item",{"v":1,"d":"1 "},null,{"$f":"ROUND(F566*G566,2)","v":{"v":0,"d":"0.00"}}]
[]
[{"v":199,"d":"199 "},null,"HIV AIDS AWARENESS",null,"Item",{"v":1,"d":"1 "},null,{"$f":"ROUND(F568*G568,2)","v":{"v":0,"d":"0.00"}}]
[]
[{"v":200,"d":"200 "},null,"Compliance with the requirement of the HIV and AIDS specification   F:............................. V:............................ T:............................",null,"Item",{"v":1,"d":"1 "},null,{"$f":"ROUND(F570*G570,2)","v":{"v":0,"d":"0.00"}}]
[]
[null,null,"COMPLIANCE WITH COVID-19 HEALTH AND SAFETY REGULATIONS"]
[]
[{"v":201,"d":"201 "},null,"Compliance with the requirement of the COVID-19 regulations   F:............................. V:............................ T:............................",null,"Item",{"v":1,"d":"1 "},null,{"$f":"ROUND(F574*G574,2)","v":{"v":0,"d":"0.00"}}]
[]
[{"$nulls":7},{"$f":"SUM(H11:H575)","v":{"v":0,"d":"0.00"}}]
[]
[null,null,"SECTION NO 2: BUILDERS WORK"]
[]
[null,null,"BILL NO 1"]
[]
[null,null,"EARTHWORKS"]
[]
[null,null,"PREAMBLES"]
[]
[null,null,"The tenderer is advised to refer to \"Model Preamble For Trades\" before pricing this Bill"]
[]
[null,null,"SUPPLEMENTARY PREAMBLES"]
[]
[null,null,"Nature of ground"]
[]
[null,null,"The nature of the ground is assumed to be soft to hard shale, therefore \"earth\", but possibly interspersed with \"soft rock\" or \"hard rock\""]
[]
[null,null,"Carting away of excavated material"]
[]
[null,null,"Descriptions of carting away of excavated material shall be deemed to include loading excavated material onto trucks directly from the excavations or, alternatively, from stock piles situated on the building site and carted away to a dump site identified by the contractor as no additional money would be approved for distances unknown"]
[]
[null,null,"Filling"]
[]
[null,null,"Notwithstanding the reference to prescribed multiple handling in clause 1 page 6 of the Standard System of Measuring Building Work, prices for filling and backfilling shall include for all selection and any multiple handling of material"]
[]
[null,null,"EXCAVATIONS"]
[]
[null,null,"Excavation in earth not exceeding 2m deep"]
[]
[{"v":1,"d":"1 "},null,"Trenches",null,"m³",{"v":512,"d":"512 "},null,{"$f":"ROUND(F606*G606,2)","v":{"v":0,"d":"0.00"}}]
[]
[{"v":2,"d":"2 "},null,"Bases",null,"m³",{"v":144,"d":"144 "},null,{"$f":"ROUND(F608*G608,2)","v":{"v":0,"d":"0.00"}}]
[]
[{"v":3,"d":"3 "},null,"Reduced levels under floors",null,"m³",{"v":965,"d":"965 "},null,{"$f":"ROUND(F610*G610,2)","v":{"v":0,"d":"0.00"}}]
[]
[null,null,"Extra over trench and hole excavations in earth for excavation in"]
[]
[{"v":4,"d":"4 "},null,"Soft rock",null,"m³",{"v":51,"d":"51 "},null,{"$f":"ROUND(F614*G614,2)","v":{"v":0,"d":"0.00"}}]
[]
[{"v":5,"d":"5 "},null,"Hard rock",null,"m³",{"v":152,"d":"152 "},null,{"$f":"ROUND(F616*G616,2)","v":{"v":0,"d":"0.00"}}]
[]
[null,null,"Extra over all excavations for carting away"]
[]
[{"v":6,"d":"6 "},null,"Surplus material from excavations and/or stock piles on site to a dumping site to be located by the contractor",null,"m³",{"v":334,"d":"334 "},null,{"$f":"ROUND(F620*G620,2)","v":{"v":0,"d":"0.00"}}]
[]
[null,null,"Risk of collapse of excavations"]
[]
[{"v":7,"d":"7 "},null,"Sides of trench and hole excavations not exceeding 1,5m deep below natural ground level",null,"m²",{"v":1338,"d":"1,338 "},null,{"$f":"ROUND(F624*G624,2)","v":{"v":0,"d":"0.00"}}]
[]
[null,null,"Keeping excavations free of water"]
[]
[{"v":8,"d":"8 "},null,"Keep excavations free of water",null,"Item",{"v":2.1,"d":"2 "},null,{"$f":"ROUND(F628*G628,2)","v":{"v":0,"d":"0.00"}}]
[]
[null,null,"FILLING ETC"]
[]
[null,null,"Earth filling obtained from the excavations and/or prescribed stock piles on site, compacted to 93% Mod AASHTO density"]
[]
[{"v":9,"d":"9 "},null,"Backfilling to trenches, holes, etc",null,"m³",{"v":283,"d":"283 "},null,{"$f":"ROUND(F634*G634,2)","v":{"v":0,"d":"0.00"}}]
[]
[null,null,"Earth filling supplied by the contractor, compacted to 95% Mod AASHTO density"]
[]
[{"v":10,"d":"10 "},null,"Contractor to supply two layers of G7 material compacted to 95% MOD AASHTO on two layers of selected insitu material, etc.",null,"m³",{"v":241,"d":"241 "},null,{"$f":"ROUND(F638*G638,2)","v":{"v":0,"d":"0.00"}}]
[]
[null,null,"Earth filling supplied by the contractor, compacted to 95% Mod AASHTO density"]
[]
[{"v":11,"d":"11 "},null,"Contractor to supply two layers of G5 material compacted to 95% MOD AASHTO on two layers of selected insitu material, etc.",null,"m³",{"v":483,"d":"483 "},null,{"$f":"ROUND(F642*G642,2)","v":{"v":0,"d":"0.00"}}]
[]
[null,null,"Compaction of surfaces"]
[]
[{"v":12,"d":"12 "},null,"Compaction of ground surface under floors etc including scarifying for a depth of 150mm, breaking down oversize material, adding suitable material where necessary and compacting to 93% Mod AASHTO density",null,"m²",{"v":2120,"d":"2,120 "},null,{"$f":"ROUND(F646*G646,2)","v":{"v":0,"d":"0.00"}}]
[]
[null,null,"Prescribed density test on filling"]
[]
[{"v":13,"d":"13 "},null,"\"Modified AASHTO Density test\"",null,"No",{"v":145,"d":"145 "},null,{"$f":"ROUND(F650*G650,2)","v":{"v":0,"d":"0.00"}}]
[]
[null,null,"SOIL POISONING"]
[]
[null,null,"Soil insecticide"]
[]
[{"v":14,"d":"14 "},null,"Under floors etc, including forming and poisoning shallow furrows against foundation walls etc, filling in furrows and ramming",null,"m²",{"v":1609,"d":"1,609 "},null,{"$f":"ROUND(F656*G656,2)","v":{"v":0,"d":"0.00"}}]
[]
[{"v":15,"d":"15 "},null,"To bottoms and sides of trenches etc",null,"m²",{"v":1850,"d":"1,850 "},null,{"$f":"ROUND(F658*G658,2)","v":{"v":0,"d":"0.00"}}]
[]
[{"$nulls":7},{"$f":"SUM(H600:H659)","v":{"v":0,"d":"0.00"}}]
[]
[null,null,"SECTION NO 2: BUILDERS WORK"]
[]
[null,null,"BILL NO 2"]
[]
[null,null,"CONCRETE, FORM WORK AND REINFORCEMENT"]
[]
[null,null,"PREAMBLES"]
[]
[null,null,"The tenderer is advised to refer to \"Model Preamble For Trades\" before pricing this Bill"]
[]
[null,null,"SUPPLEMENTARY PREAMBLES"]
[]
[null,null,"Cost of tests"]
[]
[null,null,"The costs of making, storing and testing of concrete test cubes as required under clause 7 \"Tests\" of SABS 1200 G shall include the cost of providing cube moulds necessary for the purpose, for testing costs and for submitting reports on the tests to the architect.  The testing shall be undertaken by an independent firm or institution nominated by the contractor to the approval of the architect. (Test cubes are measured separately)"]
[]
[null,null,"Form work"]
[]
[null,null,"Description of form work shall be deemed to include use and waste only (except where described as \"left in\" or \"permanent\"), for fitting together in the required forms, wedging, plumbing and fixing to true angles and surfaces as necessary to ensure easy release during stripping and for reconditioning as necessary before re-use"]
[]
[null,null,"The vertical strutting shall be carried down to such construction as is sufficiently strong to afford the required support without damage and shall remain in position until the newly constructed work is able to support itself"]
[]
[null,null,"Form works to soffits of solid slabs etc shall be deemed to be slabs not exceeding 250mm thick unless otherwise described"]
[]
[null,null,"Form work to soffits of slabs, beams, etc shall be deemed to be propped up exceeding 1,5m and not exceeding 3,5m high unless otherwise described"]
[]
[null,null,"Form work to sides of bases, pile caps, ground beams, etc will only be measured where it is prescribed by the engineer for design reasons.  Form work necessitated by irregularity or collapse of excavated faces will not be measured and the cost thereof shall be deemed to be included in the allowance for taking the risk of collapse of the sides of the excavations, provision for which is made in \"Earthworks\""]
[]
[null,null,"UN-REINFORCED CONCRETE CAST AGAINST EXCAVATED SURFACES"]
[]
[null,null,"15MPa/19mm concrete"]
[]
[{"v":16,"d":"16 "},null,"50mm Surface blinding under footings and bases",null,"m³",{"v":26,"d":"26 "},null,{"$f":"ROUND(F694*G694,2)","v":{"v":0,"d":"0.00"}}]
[]
[{"v":17,"d":"17 "},null,"Concrete fillet against up stand beams",null,"m³",{"v":107,"d":"107 "},null,{"$f":"ROUND(F696*G696,2)","v":{"v":0,"d":"0.00"}}]
[]
[null,null,"REINFORCED CONCRETE CAST AGAINST EXCAVATED SURFACES"]
[]
[null,null,"25MPa/19mm concrete"]
[]
[{"v":18,"d":"18 "},null,"Bases",null,"m³",{"v":37,"d":"37 "},null,{"$f":"ROUND(F702*G702,2)","v":{"v":0,"d":"0.00"}}]
[]
[{"v":19,"d":"19 "},null,"Columns",null,"m³",{"v":9,"d":"9 "},null,{"$f":"ROUND(F704*G704,2)","v":{"v":0,"d":"0.00"}}]
[]
[{"v":20,"d":"20 "},null,"Strip footings",null,"m³",{"v":131,"d":"131 "},null,{"$f":"ROUND(F706*G706,2)","v":{"v":0,"d":"0.00"}}]
[]
[null,null,"REINFORCED CONCRETE"]
[]
[null,null,"30MPa/19mm concrete"]
[]
[{"v":21,"d":"21 "},null,"Surface beds",null,"m³",{"v":161,"d":"161 "},null,{"$f":"ROUND(F712*G712,2)","v":{"v":0,"d":"0.00"}}]
[]
[{"v":22,"d":"22 "},null,"Slabs, including beams and inverted beams",null,"m³",{"v":214,"d":"214 "},null,{"$f":"ROUND(F714*G714,2)","v":{"v":0,"d":"0.00"}}]
[]
[{"v":23,"d":"23 "},null,"Stairs, including landings, beams and inverted beams",null,"m³",{"v":2,"d":"2 "},null,{"$f":"ROUND(F716*G716,2)","v":{"v":0,"d":"0.00"}}]
[]
[null,null,"40MPa/19mm concrete"]
[]
[{"v":24,"d":"24 "},null,"Walls",null,"m³",{"v":28,"d":"28 "},null,{"$f":"ROUND(F720*G720,2)","v":{"v":0,"d":"0.00"}}]
[]
[null,null,"TEST CUBES"]
[]
[{"v":25,"d":"25 "},null,"Making and testing 150 x 150 x 150mm (set of 3 cubes) concrete strength test cubes (Provisional)",null,"No",{"v":122,"d":"122 "},null,{"$f":"ROUND(F724*G724,2)","v":{"v":0,"d":"0.00"}}]
[]
[null,null,"CONCRETE SUNDRIES"]
[]
[null,null,"Finishing top surfaces of concrete smooth with a wood float/ steel trowel"]
[]
[{"v":26,"d":"26 "},null,"Surface beds, slabs, etc",null,"m²",{"v":2294,"d":"2,294 "},null,{"$f":"ROUND(F730*G730,2)","v":{"v":0,"d":"0.00"}}]
[]
[null,null,"FORMWORK"]
[]
[null,null,"ROUGH FORMWORK"]
[]
[null,null,"Rough formwork to sides"]
[]
[{"v":27,"d":"27 "},null,"Sides of lift shaft exceeding 3.5m but not exceeding 5m high",null,"m²",{"v":205,"d":"205 "},null,{"$f":"ROUND(F738*G738,2)","v":{"v":0,"d":"0.00"}}]
[]
[null,null,"SMOOTH FORMWORK (DEGREE OF ACCURACY 1)"]
[]
[null,null,"Smooth formwork to sides"]
[]
[{"v":28,"d":"28 "},null,"Edges, risers, ends and reveals not exceeding 300mm high or wide",null,"m",{"v":466,"d":"466 "},null,{"$f":"ROUND(F744*G744,2)","v":{"v":0,"d":"0.00"}}]
[]
[{"v":29,"d":"29 "},null,"Rectangular columns not exceeding 3.5m high",null,"m²",{"v":88,"d":"88 "},null,{"$f":"ROUND(F746*G746,2)","v":{"v":0,"d":"0.00"}}]
[]
[null,null,"Smooth formwork to sides and soffits"]
[]
[{"v":30,"d":"30 "},null,"Slabs propped exceeding 1.5m not exceeding 3.5m high",null,"m²",{"v":686,"d":"686 "},null,{"$f":"ROUND(F750*G750,2)","v":{"v":0,"d":"0.00"}}]
[]
[{"v":31,"d":"31 "},null,"Sloping soffits of slabs propped exceeding 1.5m and not exceeding 3.5m high",null,"m²",{"v":17,"d":"17 "},null,{"$f":"ROUND(F752*G752,2)","v":{"v":0,"d":"0.00"}}]
[]
[{"v":32,"d":"32 "},null,"Wall beams",null,"m²",{"v":400,"d":"400 "},null,{"$f":"ROUND(F754*G754,2)","v":{"v":0,"d":"0.00"}}]
[]
[null,null,"SUNDRIES"]
[]
[null,null,"Precast concrete Full bores including steel covere"]
[]
[{"v":33,"d":"33 "},null,"100mm wide full bore cast into concrete roofs",null,"No",{"v":8,"d":"8 "},null,{"$f":"ROUND(F760*G760,2)","v":{"v":0,"d":"0.00"}}]
[]
[null,null,"MOVEMENT JOINTS ETC"]
[]
[null,null,"Expansion joints"]
[]
[{"v":34,"d":"34 "},null,"10mm Deep expansion joints between brick walls and concrete surfaces including 9 x 10mm high dove grey PVC movement joint fixed to floors with an approved adhesive",null,"m",{"v":1180,"d":"1,180 "},null,{"$f":"ROUND(F766*G766,2)","v":{"v":0,"d":"0.00"}}]
[]
[null,null,"Isolation joints"]
[]
[{"v":35,"d":"35 "},null,"6 x 10mm Isolation joints in top of concrete including 76mm wide aluminium medium duty structural floor joint cover, with butyl rubber strips, fixed in floor joints with five steel springs clips per 3m length",null,"m",{"v":1684,"d":"1,684 "},null,{"$f":"ROUND(F770*G770,2)","v":{"v":0,"d":"0.00"}}]
[]
[null,null,"REINFORCEMENT"]
[]
[null,null,"Steel reinforcement to structural concrete work"]
[]
[{"v":36,"d":"36 "},null,"All reinforcement in varying diameters as per Engineer's schedules",null,"t",60.98,null,{"$f":"ROUND(F776*G776,2)","v":{"v":0,"d":"0.00"}}]
[]
[{"v":37,"d":"37 "},null,"Type 193 fabric reinforcement in concrete surface beds, slabs, etc",null,"m²",{"v":2294,"d":"2,294 "},null,{"$f":"ROUND(F778*G778,2)","v":{"v":0,"d":"0.00"}}]
[]
[{"$nulls":7},{"$f":"SUM(H669:H779)","v":{"v":0,"d":"0.00"}}]
[]
[null,null,"SECTION NO 2: BUILDERS WORK"]
[]
[null,null,"BILL NO 3"]
[]
[null,null,"MASONRY"]
[]
[null,null,"PREAMBLES"]
[]
[null,null,"The tenderer is advised to refer to \"Model Preamble For Trades\" before pricing this Bill"]
[]
[null,null,"SUPPLEMENTARY PREAMBLES"]
[]
[null,null,"Sizes in descriptions"]
[]
[null,null,"Where sizes in descriptions are given in brick units, \"one brick\" shall represent the length and \"half brick\" the width of a brick"]
[]
[null,null,"Linings to concrete"]
[]
[null,null,"Descriptions of linings to concrete, unless otherwise described, shall be deemed to include wire ties"]
[]
[null,null,"Hollow walls, etc"]
[]
[null,null,"Descriptions of hollow walls shall be deemed to include wire ties and leaving every fifth perpend of the bottom course of the external skin open as a weep hole"]
[]
[null,null,"Reinforced brick lintels"]
[]
[null,null,"Lintels shall bear at least 160mm onto adjacent walling.  Where such bearing cannot be obtained due to the proximity of adjacent openings the lintel shall be continuous"]
[]
[null,null,"Face bricks"]
[]
[null,null,"Bricks shall be ordered timeously to obtain uniformity in size and colour"]
[]
[null,null,"Pointing"]
[]
[null,null,"Descriptions of recessed pointing to fair face brickwork and face brickwork shall be deemed to include square recessed, hollow recessed, weathered pointing, etc"]
[]
[null,null,"BRICKWORK"]
[]
[null,null,"FOUNDATIONS"]
[]
[null,null,"Brickwork of NFX bricks (14 MPa nominal compressive strength) in class I mortar"]
[]
[{"v":38,"d":"38 "},null,"One brick wall",null,"m²",{"v":189,"d":"189 "},null,{"$f":"ROUND(F824*G824,2)","v":{"v":0,"d":"0.00"}}]
[]
[{"v":39,"d":"39 "},null,"Cavity brick wall",null,"m²",{"v":469,"d":"469 "},null,{"$f":"ROUND(F826*G826,2)","v":{"v":0,"d":"0.00"}}]
[]
[null,null,"SUPERSTRUCTURE"]
[]
[null,null,"Brickwork of NFP bricks (14 MPa nominal compressive strength) in class I mortar"]
[]
[{"v":40,"d":"40 "},null,"Half brick walls",null,"m²",{"v":183,"d":"183 "},null,{"$f":"ROUND(F832*G832,2)","v":{"v":0,"d":"0.00"}}]
[]
[{"v":41,"d":"41 "},null,"One brick walls",null,"m²",{"v":1161,"d":"1,161 "},null,{"$f":"ROUND(F834*G834,2)","v":{"v":0,"d":"0.00"}}]
[]
[{"v":42,"d":"42 "},null,"Cavity brick wall",null,"m²",{"v":2376,"d":"2,376 "},null,{"$f":"ROUND(F836*G836,2)","v":{"v":0,"d":"0.00"}}]
[]
[null,null,"FACE BRICKWORK"]
[]
[null,null,"\"Corobrick Eston 20-30MPa burnt sienna imperial FBS clay face bricks pointed with recessed horizontal and flush vertical joints in Class 2 mortar."]
[]
[{"v":43,"d":"43 "},null,"Extra over brickwork for face brickwork",null,"m²",{"v":1649,"d":"1,649 "},null,{"$f":"ROUND(F842*G842,2)","v":{"v":0,"d":"0.00"}}]
[]
[{"v":44,"d":"44 "},null,"Extra over brickwork for brick-on-edge header course window sill",null,"m",{"v":3715,"d":"3,715 "},null,{"$f":"ROUND(F844*G844,2)","v":{"v":0,"d":"0.00"}}]
[]
[{"v":45,"d":"45 "},null,"Extra over brickwork for brick-on-edge lintel",null,"m",{"v":212,"d":"212 "},null,{"$f":"ROUND(F846*G846,2)","v":{"v":0,"d":"0.00"}}]
[]
[null,null,"BRICKWORK SUNDRIES"]
[]
[null,null,"Brickwork reinforcement"]
[]
[{"v":46,"d":"46 "},null,"75mm Wide reinforcement built in horizontally",null,"m",{"v":1077,"d":"1,077 "},null,{"$f":"ROUND(F852*G852,2)","v":{"v":0,"d":"0.00"}}]
[]
[{"v":47,"d":"47 "},null,"150mm Wide reinforcement built in horizontally",null,"m",{"v":22667,"d":"22,667 "},null,{"$f":"ROUND(F854*G854,2)","v":{"v":0,"d":"0.00"}}]
[]
[null,null,"\"Allied Concrete \" prestressed fabricated lintels"]
[]
[{"v":48,"d":"48 "},null,"110 x 70mm Lintels in lengths not exceeding 3m",null,"m",{"v":212,"d":"212 "},null,{"$f":"ROUND(F858*G858,2)","v":{"v":0,"d":"0.00"}}]
[]
[]
[{"$nulls":7},{"$f":"SUM(H812:H860)","v":{"v":0,"d":"0.00"}}]
[null,null,"SECTION NO 2: BUILDERS WORK"]
[]
[null,null,"BILL NO 4"]
[]
[null,null,"WATERPROOFING"]
[]
[null,null,"PREAMBLES"]
[]
[null,null,"The tenderer is advised to refer to \"Model Preamble For Trades\" before pricing this Bill"]
[]
[null,null,"SUPPLEMENTARY PREAMBLES"]
[]
[null,null,"Waterproofing"]
[]
[null,null,"Waterproofing of roofs, basements, etc shall be laid under a ten year guarantee.  Waterproofing to roofs shall be laid to even falls to outlets etc with necessary ridges, hips and valleys.  Descriptions of sheet or membrane waterproofing shall be deemed to include additional labour to turn-ups and turn-downs"]
[]
[null,null,"DAMPPROOFING OF WALLS"]
[]
[null,null,"One layer of 250 micron \"Gunplas USB Green\" polyolefin waterproofing membrane"]
[]
[{"v":49,"d":"49 "},null,"In walls, under cills etc.",null,"m²",{"v":160,"d":"160 "},null,{"$f":"ROUND(F882*G882,2)","v":{"v":0,"d":"0.00"}}]
[]
[{"v":50,"d":"50 "},null,"Vertically between walls",null,"m²",{"v":2332,"d":"2,332 "},null,{"$f":"ROUND(F884*G884,2)","v":{"v":0,"d":"0.00"}}]
[]
[null,null,"One layer of 250 Micron green polyethylene damp-proof membrane (SANS 952-1985 Type C) sealed at laps with PVC self-adhesive tape"]
[]
[{"v":51,"d":"51 "},null,"Under surface beds",null,"m²",{"v":1609,"d":"1,609 "},null,{"$f":"ROUND(F888*G888,2)","v":{"v":0,"d":"0.00"}}]
[]
[null,null,"WATERPROOFING TO ROOFS, BASEMENTS, ETC."]
[]
[null,null,"4mm Thick modified bitumen waterproofing membrane laid on screeds (screeds elsewhere), per architect's specification"]
[]
[{"v":52,"d":"52 "},null,"On flats roofs, including upstand beams",null,"m²",{"v":57,"d":"57 "},null,{"$f":"ROUND(F894*G894,2)","v":{"v":0,"d":"0.00"}}]
[]
[{"$nulls":7},{"$f":"SUM(H870:H895)","v":{"v":0,"d":"0.00"}}]
[]
[null,null,"SECTION NO 2: BUILDERS WORK"]
[]
[null,null,"BILL NO 5"]
[]
[null,null,"ROOF COVERINGS ETC"]
[]
[null,null,"PREAMBLES"]
[]
[null,null,"The tenderer is advised to refer to \"Model Preamble For Trades\" before pricing this Bill"]
[]
[null,null,"SUPPLEMENTARY PREAMBLES"]
[]
[null,null,"Straight cutting"]
[]
[null,null,"Descriptions of all roof coverings are deemed to include for all straight cutting"]
[]
[null,null,"PROFILED METAL SHEETING AND ACCESSORIES"]
[]
[null,null,"klip-tite 700mm profile roll formed in continuous lengths from chromadek 0,58mm ISQ 550 fixed to 150x50mm steel purlins using KL 700 clips and class 3 fastners, on 255x150mm GMS I-beam in strict accordance with manufacturer's specifications by a GRS Approved contractor"]
[]
[{"v":53,"d":"53 "},null,"Roof covering not exceeding 25 degrees (Measured flat on plan)",null,"m²",{"v":2160,"d":"2,160 "},null,{"$f":"ROUND(F918*G918,2)","v":{"v":0,"d":"0.00"}}]
[]
[null,null,"SHEET METAL FLASHINGS, LININGS, COPINGS, ETC"]
[]
[null,null,"0.50mm Thick :Global Roofing Solutions\" or similar approved Z200 \"Spelter\" galvanised steel sheeting (dark dolphin) top coated finish on one side and (pebble grey) backing coated finish, including necessary accessories fixed to purlins"]
[]
[{"v":54,"d":"54 "},null,"Ridge capping 600mm girth",null,"m",{"v":137,"d":"137 "},null,{"$f":"ROUND(F924*G924,2)","v":{"v":0,"d":"0.00"}}]
[]
[{"v":55,"d":"55 "},null,"Hip flashing 600mm girth",null,"m",{"v":181,"d":"181 "},null,{"$f":"ROUND(F926*G926,2)","v":{"v":0,"d":"0.00"}}]
[]
[{"v":56,"d":"56 "},null,"Counter flashing 150mm girth",null,"m",{"v":57,"d":"57 "},null,{"$f":"ROUND(F928*G928,2)","v":{"v":0,"d":"0.00"}}]
[]
[{"v":57,"d":"57 "},null,"Headwall flashing 305mm girth",null,"m",{"v":57,"d":"57 "},null,{"$f":"ROUND(F930*G930,2)","v":{"v":0,"d":"0.00"}}]
[]
[null,null,"ROOF AND WALL INSULATION"]
[]
[null,null,"4mm \"Alububble\" or similar approved aluminium foil (colour: black), fixed to steel purlins"]
[]
[{"v":58,"d":"58 "},null,"100mm Thick insulation laid out taut over purlins (at approximately 1.1m centres) and fixed concurrent with roof covering, including white plastic coated straining wires at 300mm centres and flap joints",null,"m²",{"v":2160,"d":"2,160 "},null,{"$f":"ROUND(F936*G936,2)","v":{"v":0,"d":"0.00"}}]
[]
[null,null,"EAVES , VERGES ,ETC"]
[]
[null,null,"Medium density ungrooved fibre cement fascia boards, including fixing to timber rafters, twice screwed with 12 x 40mm countersunk brass screws and PVC H- profile fascia board joiners between boards and PVC H- profile corner joiners at board ends"]
[]
[{"v":59,"d":"59 "},null,"225 x 12mm Fascias",null,"m",{"v":444,"d":"444 "},null,{"$f":"ROUND(F942*G942,2)","v":{"v":0,"d":"0.00"}}]
[]
[null,null,"Moulded fibre cement barge boards including fixing to 38 x 38mm trimmer battens, twice screwed with 12 x 40mm countersunk brass screws and PVC H- profile barge board joiners between boards and at roof apex"]
[]
[{"v":60,"d":"60 "},null,"275 x 80mm Barge boards",null,"m",{"v":26,"d":"26 "},null,{"$f":"ROUND(F946*G946,2)","v":{"v":0,"d":"0.00"}}]
[]
[{"$nulls":7},{"$f":"SUM(H907:H947)","v":{"v":0,"d":"0.00"}}]
[]
[null,null,"SECTION NO 2: BUILDERS WORK"]
[]
[null,null,"BILL NO 6"]
[]
[null,null,"CARPENTRY AND JOINERY"]
[]
[null,null,"PREAMBLES"]
[]
[null,null,"The tenderer is advised to refer to \"Model Preamble For Trades\" before pricing this Bill"]
[]
[null,null,"SUPPLEMENTARY PREAMBLES"]
[]
[null,null,"Particle board:"]
[]
[null,null,"Particle board shall comply with the following specifications:"]
[]
[null,null,"a) SABS 1300 Particle board: exterior and flooring type"]
[]
[null,null,"b) SABS 1301 Particle board: interior type"]
[]
[null,null,"Joinery:"]
[]
[null,null,"Descriptions of frames shall be deemed to include frames, transomes, mullions, rails, etc"]
[]
[null,null,"Descriptions of hardwood joinery shall be deemed to include pelleting of bolt holes"]
[]
[null,null,"Fixing"]
[]
[null,null,"Items described as \"nailed\" shall be deemed to be fixed with hardened steel nails or shot pins to brickwork or concrete. All fixings to be HDG"]
[]
[null,null,"Decorative laminate finish:"]
[]
[null,null,"Laminate finish shall be glued under pressure.  Edge strips shall be butt jointed at junctions with adjacent similar finish"]
[]
[null,null,"Descriptions of frames shall be deemed to include frames, transomes, mullions, rails, etc. Descriptions of hardwood joinery shall be deemed to include pelleting of bolt holes. Items described as \"nailed\" shall be deemed to be fixed with hardened steel nails or shot pins to brickwork or concrete. Laminate finish shall be glued under pressure.  Edge strips shall be butt jointed at junctions with adjacent similar finish"]
[]
[null,null,"SOLID CORE FLUSH DOORS"]
[]
[null,null,"44mm Thick supawood semi-solid core panel door with marine plywood veneer on both sides prepared for painting (painting measured elsewhere)"]
[]
[{"v":61,"d":"61 "},null,"992 x 2154mm High single doors (TC6/D06)",null,"No",{"v":4,"d":"4 "},null,{"$f":"ROUND(F990*G990,2)","v":{"v":0,"d":"0.00"}}]
[]
[{"v":62,"d":"62 "},null,"1200 x 2056mm High double doors (TC3/D03)",null,"No",{"v":4,"d":"4 "},null,{"$f":"ROUND(F992*G992,2)","v":{"v":0,"d":"0.00"}}]
[]
[null,null,"44mm Thick supawood solid core panel door with marine plywood veneer on both sides prepared for painting (painting measured elsewhere)"]
[]
[{"v":63,"d":"63 "},null,"850 x 2056mm High single doors with 100mm undercut  (TC5); (TX4)",null,"No",{"v":6,"d":"6 "},null,{"$f":"ROUND(F996*G996,2)","v":{"v":0,"d":"0.00"}}]
[]
[{"v":64,"d":"64 "},null,"900 x 2056mm High single doors, including 400 x 300mm high cutting for louvre opening (louvre measured elsewhere) (TX2)",null,"No",{"v":2,"d":"2 "},null,{"$f":"ROUND(F998*G998,2)","v":{"v":0,"d":"0.00"}}]
[]
[{"v":65,"d":"65 "},null,"901 x 2100mm High single doors (TX5)",null,"No",{"v":4,"d":"4 "},null,{"$f":"ROUND(F1000*G1000,2)","v":{"v":0,"d":"0.00"}}]
[]
[{"v":66,"d":"66 "},null,"901 x 2056mm High single doors, including 400 x 300mm high cutting for louvre opening (louvre measured elsewhere) (TX2)",null,"No",{"v":13,"d":"13 "},null,{"$f":"ROUND(F1002*G1002,2)","v":{"v":0,"d":"0.00"}}]
[]
[{"v":67,"d":"67 "},null,"965 x 2210mm High single doors including 300 x 400mm high cutting for louvre opening (louvre measured elsewhere) (TC4/D04)",null,"No",{"v":9,"d":"9 "},null,{"$f":"ROUND(F1004*G1004,2)","v":{"v":0,"d":"0.00"}}]
[]
[{"v":68,"d":"68 "},null,"994 x 2152mm High single doors (TX7)",null,"No",{"v":2,"d":"2 "},null,{"$f":"ROUND(F1006*G1006,2)","v":{"v":0,"d":"0.00"}}]
[]
[{"v":69,"d":"69 "},null,"1800 x 2056mm High double doors (TX2)",null,"No",{"v":8,"d":"8 "},null,{"$f":"ROUND(F1008*G1008,2)","v":{"v":0,"d":"0.00"}}]
[]
[{"v":70,"d":"70 "},null,"1800 x 2346mm High double doors (TC1)",null,"No",{"v":15,"d":"15 "},null,{"$f":"ROUND(F1010*G1010,2)","v":{"v":0,"d":"0.00"}}]
[]
[null,null,"COUNTER TOPS"]
[]
[null,null,"\"RUDI'S CHOICE\" or similar approved granite counter tops"]
[]
[{"v":71,"d":"71 "},null,"28mm Thick x 600mm wide granite top with 2-3mm bevel on surface edge (colour: Crema Rosita). Granite surface to be sealed using an approved stone sealer all in accordance with manufacturers specifications.",null,"m",{"v":21,"d":"21 "},null,{"$f":"ROUND(F1016*G1016,2)","v":{"v":0,"d":"0.00"}}]
[]
[{"$nulls":7},{"$f":"SUM(H959:H1017)","v":{"v":0,"d":"0.00"}}]
[]
[null,null,"SECTION NO 2: BUILDERS WORK"]
[]
[null,null,"BILL NO 7"]
[]
[null,null,"CEILINGS, PARTITIONSAND ACCESS FLOORING"]
[]
[null,null,"PREAMBLES"]
[]
[null,null,"The tenderer is advised to refer to \"Model Preamble For Trades\" before pricing this Bill"]
[]
[null,null,"NOTE :"]
[]
[null,null,"Unless otherwise stated herein, all items in this bill shall be deemed to fall into Work Group No.129 for CPAP formula purposes"]
[]
[null,null,"SUPPLEMENTARY PREAMBLES"]
[]
[null,null,"Descriptions:"]
[]
[null,null,"Items described as \"nailed\" shall be deemed to be fixed with hardened steel nails or pins or shot pinned to brickwork or concrete. All fixings to be HDG"]
[]
[null,null,"Items described as \"plugged\" shall be deemed to include screwing to fibre, plastic or metal plugs at not exceeding 600mm centres, and where described as \"bolted\" the bolts have been given elsewhere"]
[]
[null,null,"Coved cornices"]
[]
[null,null,"Gypsum plasterboard coved cornices shall be scribed at internal angles and mitred at external angles. Cornices shall be nailed through ceiling boards to brandering and walls with 2mm diameter galvanised or cadmium plated clout headed nails at 300mm centres or fixed to walls with hardened steel nails."]
[]
[null,null,"Proprietary suspended ceilings"]
[]
[null,null,"Electric light fittings, diffusers, panels, etc. generally are \"lay-in\" units of the same dimensions as the suspension grid described and allowance shall be made accordingly for their support, inclusive of any flexibility in setting out that may be required (ceiling panels have not been deducted and pricing shall take cognisance thereof)."]
[]
[null,null,"\"Rhino-Drywall\" partition systems"]
[]
[null,null,"\"Rhino-Drywall\" partitions shall comprise 63,5mm top and bottom galvanised steel tracks with 63,5mm galvanised steel vertical studs at maximum 600mm centres, friction fitted or pop-riveted to the top and bottom tracks with similar additional vertical studs as necessary at abutments, ends, etc. and covered as described with wallboard screwed to studding with \"Drywall\" screws at maximum 220mm centres. Boards shall be butt jointed and finished with \"Rhino\" tape and \"Readymix D\" jointing compound, all in accordance with the manufacturer's instructions, complete with flat section aluminium skirtings. Intersections and abutments are measured separately and descriptions shall be deemed to include any additional studs, corner beads, jointing compound."]
[]
[null,null,"CEILINGS ETC"]
[]
[null,null,"SUSPENDED CEILINGS"]
[]
[null,null,"1200 x 600 x 15mm Thick \"Pelican Systems AMF Thermofon\" or similar approved acoustic white square edged ceiling tiles, including 24mm wide x 38mm high pre-painted exposed \"Econogrid\" tee suspension system, hangers, grid and hold down clips."]
[]
[{"v":72,"d":"72 "},null,"Ceilings suspended not exceeding 1m below concrete soffits",null,"m²",{"v":1745,"d":"1,745 "},null,{"$f":"ROUND(F1060*G1060,2)","v":{"v":0,"d":"0.00"}}]
[]
[null,null,"\"CKM W20/20\" or Similar approved shadowline perimeter trim, fixed at 450mm centres, including all anchors to architects specification."]
[]
[{"v":73,"d":"73 "},null,"Shadowline cornice",null,"m",{"v":1638,"d":"1,638 "},null,{"$f":"ROUND(F1064*G1064,2)","v":{"v":0,"d":"0.00"}}]
[]
[null,null,"CEILING INSULATION"]
[]
[{"v":74,"d":"74 "},null,"100mm Thick \"Alutherm\" fibre glass blanket to be laid on ceilings applied strictly in accordance with the manufacturer's instructions",null,"m²",{"v":1745,"d":"1,745 "},null,{"$f":"ROUND(F1068*G1068,2)","v":{"v":0,"d":"0.00"}}]
[]
[null,null,"ACCESS FLOORING"]
[]
[null,null,"\"Pentafloor\" or similar approved access flooring, per architect's specification"]
[]
[{"v":75,"d":"75 "},null,"\"ISO Floors\" or similar approved Modular and interchangeable steel panel access flooring including pedestals and panels, to architect's specification",null,"m²",{"v":9,"d":"9 "},null,{"$f":"ROUND(F1074*G1074,2)","v":{"v":0,"d":"0.00"}}]
[]
[{"v":76,"d":"76 "},null,"\"ISO Floor\" skirting",null,"m",{"v":13,"d":"13 "},null,{"$f":"ROUND(F1076*G1076,2)","v":{"v":0,"d":"0.00"}}]
[]
[{"$nulls":7},{"$f":"SUM(H1047:H1077)","v":{"v":0,"d":"0.00"}}]
[]
[null,null,"SECTION NO 2: BUILDERS WORK"]
[]
[null,null,"BILL NO 8"]
[]
[null,null,"FLOOR COVERINGS"]
[]
[null,null,"Note:\tUnless otherwise stated herein, all items in this bill shall be deemed to fall into Work Group No. 130 for CPAP formula purposes."]
[]
[null,null,"PREAMBLES"]
[]
[null,null,"The tenderer is advised to refer to \"Model Preamble For Trades\" before pricing this Bill"]
[]
[null,null,"CARPET TILES"]
[]
[null,null,"500 x 500 x 6mm Thick \"BELGOTEX NEXUS BERBERPOINT\" or similar approved \"stainproof miracle fibre\" carpet tiles to architects specification (PC = R400/m2)"]
[]
[{"v":77,"d":"77 "},null,"Carpet tiles on floors",null,"m²",{"v":400,"d":"400 "},null,{"$f":"ROUND(F1096*G1096,2)","v":{"v":0,"d":"0.00"}}]
[]
[null,null,"MENTIS GRATING"]
[]
[{"v":78,"d":"78 "},null,"36mm Thick uncoated mild steel mentis grating and frame on shaft floors, per engineer's specification",null,"m²",{"v":16,"d":"16 "},null,{"$f":"ROUND(F1100*G1100,2)","v":{"v":0,"d":"0.00"}}]
[]
[{"$nulls":7},{"$f":"SUM(H1094:H1101)","v":{"v":0,"d":"0.00"}}]
[]
[null,null,"SECTION NO 2: BUILDERS WORK"]
[]
[null,null,"BILL NO 8"]
[]
[null,null,"IRONMONGERY"]
[]
[null,null,"PREAMBLES"]
[]
[null,null,"The tenderer is advised to refer to \"Model Preamble For Trades\" before pricing this Bill"]
[]
[null,null,"SUPPLEMENTARY PREAMBLES"]
[]
[null,null,"Proprietary items"]
[]
[null,null,"Where applicable the manufacturers' names or product catalogue titles are given in sub-headings preceding the items  Prices are to be based on the specific products/articles specified. If contractors wish to offer alternative products/articles for certain items, these items are to be clearly marked and the alternative specification given with supporting brochures, etc. clarifying the features of the products/articles offered  On request returnable samples are to be provided to the principal agent for consideration"]
[]
[null,null,"Finishes to ironmongery"]
[]
[null,null,"Where applicable finishes to ironmongery are indicated by suffixes in accordance with the following lists   Satin bronze lacquered Chromium plated sc Satin chromium plated se Silver enamelled Grey enamelled AS Anodised silver AB Anodised bronze AG Anodised gold ABL Anodised black PB Polished brass PL   Polished and lacquered PT Epoxy coated SD Sanded"]
[]
[null,null,"Fixing"]
[]
[null,null,"Items described as \"plugged\" shall be deemed to include screwing to fibre, plastic or metal plugs in brickwork or concrete"]
[]
[null,null,"HINGES, BOLTS, ETC."]
[]
[{"v":79,"d":"79 "},null,"Stainless steel two ball bearing butt hinges",null,"No",{"v":97,"d":"97 "},null,{"$f":"ROUND(F1130*G1130,2)","v":{"v":0,"d":"0.00"}}]
[]
[{"v":80,"d":"80 "},null,"Other Alufab 1040 100mm Aluminium Sinkless Hinge, Centre Pin with standard alignment grooving for easy fitment",null,"Pairs",{"v":50.4,"d":"50 "},null,{"$f":"ROUND(F1132*G1132,2)","v":{"v":0,"d":"0.00"}}]
[]
[{"v":81,"d":"81 "},null,"dormakaba Hat and Coat Hook with rubber buffer",null,"No",{"v":6,"d":"6 "},null,{"$f":"ROUND(F1134*G1134,2)","v":{"v":0,"d":"0.00"}}]
[]
[{"v":82,"d":"82 "},null,"dormakaba Cabin hook 150mm",null,"No",{"v":11,"d":"11 "},null,{"$f":"ROUND(F1136*G1136,2)","v":{"v":0,"d":"0.00"}}]
[]
[{"v":83,"d":"83 "},null,"dormakaba M4 Patent Male / Female fixing screw pack (2 pairs per pack)",null,"No",{"v":25,"d":"25 "},null,{"$f":"ROUND(F1138*G1138,2)","v":{"v":0,"d":"0.00"}}]
[]
[null,null,"HANDLES"]
[]
[{"v":84,"d":"84 "},null,"dormakaba 120x40mm Oval Flush Pull Handle",null,"No",{"v":4,"d":"4 "},null,{"$f":"ROUND(F1142*G1142,2)","v":{"v":0,"d":"0.00"}}]
[]
[{"v":85,"d":"85 "},null,"dormakaba DPH301C Pull Handle BT fixed on a 170x170x1.2mm thick Grade 430 stainless steel plate with no cylinder cutout. Stainless Steel Plate to have 4 countersunk holes for screw fixing.",null,"No",{"v":13,"d":"13 "},null,{"$f":"ROUND(F1144*G1144,2)","v":{"v":0,"d":"0.00"}}]
[]
[{"v":86,"d":"86 "},null,"dormakaba 382x32mm Straight Tubular Pull Handle BTB (BTB Fixing Sets included)",null,"No",{"v":6,"d":"6 "},null,{"$f":"ROUND(F1146*G1146,2)","v":{"v":0,"d":"0.00"}}]
[]
[{"v":87,"d":"87 "},null,"dormakaba 382x32mm D Shaped Offset Tubular Pull Handle BTB (BTB Fixing Sets included)",null,"No",{"v":2,"d":"2 "},null,{"$f":"ROUND(F1148*G1148,2)","v":{"v":0,"d":"0.00"}}]
[]
[{"v":88,"d":"88 "},null,"dormakaba 325x25mm Straight Tubular Pull Handle BTB (BTB Fixing Sets included)",null,"No",{"v":1,"d":"1 "},null,{"$f":"ROUND(F1150*G1150,2)","v":{"v":0,"d":"0.00"}}]
[]
[{"v":89,"d":"89 "},null,"dormakaba 149x19mm Straight Tubular Pull Handle BTB (BTB Fixing Sets included)",null,"No",{"v":26,"d":"26 "},null,{"$f":"ROUND(F1152*G1152,2)","v":{"v":0,"d":"0.00"}}]
[]
[{"v":90,"d":"90 "},null,"dormakaba 62x44mm Ring Flush Pull Handle",null,"No",{"v":8,"d":"8 "},null,{"$f":"ROUND(F1154*G1154,2)","v":{"v":0,"d":"0.00"}}]
[]
[{"v":91,"d":"91 "},null,"dormakaba Lever handle on 170x170 plate with Cylinder cutout",null,"No",{"v":32,"d":"32 "},null,{"$f":"ROUND(F1156*G1156,2)","v":{"v":0,"d":"0.00"}}]
[]
[{"v":92,"d":"92 "},null,"dormakaba Lever handle on narrow stile rose with narrow stile Cylinder escutcheons",null,"No",{"v":7,"d":"7 "},null,{"$f":"ROUND(F1158*G1158,2)","v":{"v":0,"d":"0.00"}}]
[]
[{"v":93,"d":"93 "},null,"UNION Helping hand indicator bolt for paraplegic wc",null,"No",{"v":3,"d":"3 "},null,{"$f":"ROUND(F1160*G1160,2)","v":{"v":0,"d":"0.00"}}]
[]
[{"v":94,"d":"94 "},null,"dormakaba 800x206mm Cistern Back Rail",null,"No",{"v":1,"d":"1 "},null,{"$f":"ROUND(F1162*G1162,2)","v":{"v":0,"d":"0.00"}}]
[]
[{"v":95,"d":"95 "},null,"dormakaba 300x300x300mm Side Grab Rail",null,"No",{"v":1,"d":"1 "},null,{"$f":"ROUND(F1164*G1164,2)","v":{"v":0,"d":"0.00"}}]
[]
[null,null,"LOCKS"]
[]
[{"v":96,"d":"96 "},null,"dormakaba Narrow Stile Sash Lock Operating with European Profile Cylinder. Case  dimentions (mm) 174H x 52D. Forend dimentions (mm) 238H x 22W. Backset 35mm. 20mm Throw",null,"No",{"v":7,"d":"7 "},null,{"$f":"ROUND(F1168*G1168,2)","v":{"v":0,"d":"0.00"}}]
[]
[{"v":97,"d":"97 "},null,"dormakaba Narrow Stile Dead Lock Operating with European Profile Cylinder. Case dimentions (mm) 174H x 52D. Forend dimentions (mm) 238H x 22W. Backset 35mm. 20mm Throw",null,"No",{"v":2,"d":"2 "},null,{"$f":"ROUND(F1170*G1170,2)","v":{"v":0,"d":"0.00"}}]
[]
[{"v":98,"d":"98 "},null,"dormakaba Narrow Stile Hook Lock Operating with European Profile Cylinder. Case dimentions (mm) 174H x 45D. Forend dimentions (mm) 290H x 22W. Backset 35mm. 18mm Throw",null,"No",{"v":2,"d":"2 "},null,{"$f":"ROUND(F1172*G1172,2)","v":{"v":0,"d":"0.00"}}]
[]
[{"v":99,"d":"99 "},null,"dormakaba Bathroom Deadlock. Case dimensions (mm) 102H x 78D. Forend dimensions (mm) 155H x 22W.Backset 57mm.",null,"No",{"v":26,"d":"26 "},null,{"$f":"ROUND(F1174*G1174,2)","v":{"v":0,"d":"0.00"}}]
[]
[{"v":100,"d":"100 "},null,"dormakaba Cylinder Sash Lock. Case dimensions (mm) 116.5H x 78D. Forend  imensions (mm) 168H x 22W. Backset 57mm. Centres 61mm.",null,"No",{"v":32,"d":"32 "},null,{"$f":"ROUND(F1176*G1176,2)","v":{"v":0,"d":"0.00"}}]
[]
[{"v":101,"d":"101 "},null,"dormakaba Cylinder Deadlock. Case dimensions (mm) 116.5H x 78D. Forend dimensions (mm) 168H x 22W. Backset 57mm.",null,"No",{"v":15,"d":"15 "},null,{"$f":"ROUND(F1178*G1178,2)","v":{"v":0,"d":"0.00"}}]
[]
[{"v":102,"d":"102 "},null,"dormakaba 63mm - 31.5.5mm Europrofile Nickel Plated E-SP 5 Pin Double Cylinder - Master Keyed",null,"No",{"v":26,"d":"26 "},null,{"$f":"ROUND(F1180*G1180,2)","v":{"v":0,"d":"0.00"}}]
[]
[{"v":103,"d":"103 "},null,"dormakaba 63mm - 31.5.5mm Europrofile Nickel Plated E-SP 5 Pin Knob Cylinder - Master Keyed",null,"No",{"v":2,"d":"2 "},null,{"$f":"ROUND(F1182*G1182,2)","v":{"v":0,"d":"0.00"}}]
[]
[{"v":104,"d":"104 "},null,"dormakaba 40.5 - Europrofile Nickel Plated E-SP 5 Pin Single Cylinder - Master Keyed",null,"No",{"v":4,"d":"4 "},null,{"$f":"ROUND(F1184*G1184,2)","v":{"v":0,"d":"0.00"}}]
[]
[{"v":105,"d":"105 "},null,"dormakaba Round Cylinder escutcheon",null,"No",{"v":5,"d":"5 "},null,{"$f":"ROUND(F1186*G1186,2)","v":{"v":0,"d":"0.00"}}]
[]
[{"v":106,"d":"106 "},null,"dormakaba Narrow Stile Cylinder escutcheon",null,"No",{"v":4,"d":"4 "},null,{"$f":"ROUND(F1188*G1188,2)","v":{"v":0,"d":"0.00"}}]
[]
[{"v":107,"d":"107 "},null,"dormakaba Bathroom WC indicator (Red and White) and turnknob",null,"No",{"v":5,"d":"5 "},null,{"$f":"ROUND(F1190*G1190,2)","v":{"v":0,"d":"0.00"}}]
[]
[{"v":108,"d":"108 "},null,"dormakaba Rebate conversion kit for Euro Profile locks D036S, D037D.",null,"No",{"v":13,"d":"13 "},null,{"$f":"ROUND(F1192*G1192,2)","v":{"v":0,"d":"0.00"}}]
[]
[{"v":109,"d":"109 "},null,"dormakaba Three point locking panic bar - Double door - Door leaf 1000mm wide x 3400mm high (2101. 2104.2104. 2201. PHX02. PHX05)",null,"No",{"v":2,"d":"2 "},null,{"$f":"ROUND(F1194*G1194,2)","v":{"v":0,"d":"0.00"}}]
[]
[{"v":110,"d":"110 "},null,"dormakaba 153mm Manual flush bolt with heel",null,"No",{"v":21,"d":"21 "},null,{"$f":"ROUND(F1196*G1196,2)","v":{"v":0,"d":"0.00"}}]
[]
[{"v":111,"d":"111 "},null,"Flush Bolt as per Manufacturer",null,"No",{"v":4,"d":"4 "},null,{"$f":"ROUND(F1198*G1198,2)","v":{"v":0,"d":"0.00"}}]
[]
[{"v":112,"d":"112 "},null,"dormakaba Adjustable Roller Bolt",null,"No",{"v":5,"d":"5 "},null,{"$f":"ROUND(F1200*G1200,2)","v":{"v":0,"d":"0.00"}}]
[]
[{"v":113,"d":"113 "},null,"dormakaba ES200 EASY Sliding door operator as per separate quotation.",null,"No",{"v":2,"d":"2 "},null,{"$f":"ROUND(F1202*G1202,2)","v":{"v":0,"d":"0.00"}}]
[]
[null,null,"PUSH PLATES"]
[]
[{"v":114,"d":"114 "},null,"dormakaba 170x170x1.2mm thick Grade 430 stainless steel plate. Stainless Steel Plate to have 4 countersunk holes for screw fixing.",null,"No",{"v":9,"d":"9 "},null,{"$f":"ROUND(F1206*G1206,2)","v":{"v":0,"d":"0.00"}}]
[]
[{"v":115,"d":"115 "},null,"dormakaba 170x170x1.2mm thick Grade 430 stainless steel plate with cylinder cutout left. Stainless Steel Plate to have 4 countersunk holes for screw fixing.",null,"No",{"v":6,"d":"6 "},null,{"$f":"ROUND(F1208*G1208,2)","v":{"v":0,"d":"0.00"}}]
[]
[{"v":116,"d":"116 "},null,"dormakaba 170x170x1.2mm thick Grade 430 stainless steel plate with cylinder cutout right. Stainless Steel Plate to have 4 countersunk holes for screw fixing.",null,"No",{"v":1,"d":"1 "},null,{"$f":"ROUND(F1210*G1210,2)","v":{"v":0,"d":"0.00"}}]
[]
[{"v":117,"d":"117 "},null,"Kick Plate 1.2mm x 200mm high x width of door 430 brush stainless steel, (or similar approved by the architect)",null,"No",{"v":3,"d":"3 "},null,{"$f":"ROUND(F1212*G1212,2)","v":{"v":0,"d":"0.00"}}]
[]
[null,null,"DOOR CLOSERS"]
[]
[{"v":118,"d":"118 "},null,"dormakaba EN 3/4 Regular Arm NON HOLD OPEN Door Closer - Hydraulic Speed Control. Pull Side Fixing EN3 850-950, EN4 950-1100",null,"No",{"v":13,"d":"13 "},null,{"$f":"ROUND(F1216*G1216,2)","v":{"v":0,"d":"0.00"}}]
[]
[{"v":119,"d":"119 "},null,"dormakaba EN 2-4 Regular Arm NON HOLD OPEN Door Closer - Adjustable Strength, Hydraulic Speed Control. Pull Side Fixing EN2 750-850, EN3 850-950, EN4 950-1100",null,"No",{"v":1,"d":"1 "},null,{"$f":"ROUND(F1218*G1218,2)","v":{"v":0,"d":"0.00"}}]
[]
[{"v":120,"d":"120 "},null,"dormakaba EN 2-4 Parallel Arm NON HOLD OPEN Door Closer - Adjustable Strength, Hydraulic Speed Control. Push Side Fitting (Parallel Arm Bracket Included) EN2 750-850, EN3 850-950, EN4 950-1100",null,"No",{"v":5,"d":"5 "},null,{"$f":"ROUND(F1220*G1220,2)","v":{"v":0,"d":"0.00"}}]
[]
[{"v":121,"d":"121 "},null,"dormakaba EN 2-4 Parallel Arm DELAYED ACTION Door Closer. Push Side Fixing (Parallel Arm Bracket Included) EN2 750-850, EN3 850-950, EN4 950-1100",null,"No",{"v":1,"d":"1 "},null,{"$f":"ROUND(F1222*G1222,2)","v":{"v":0,"d":"0.00"}}]
[]
[{"v":122,"d":"122 "},null,"dormakaba EN 3-6 Parallel Arm NON HOLD OPEN Door Closer - Adjustable Strength, Hydraulic Speed Control. Push Side Fixing (Parallel Arm Bracket Included) EN3 850-950, EN4 950-1100, EN5 1100-1250, EN6 1250-1400. Door Closer tested to EN 1154. Approved to AS1905 Part 1 Fire Resistant Doors. Certified manufacturer to ISO 9001",null,"No",{"v":6,"d":"6 "},null,{"$f":"ROUND(F1224*G1224,2)","v":{"v":0,"d":"0.00"}}]
[]
[null,null,"LETTERS, NAMEPLATES, ETC"]
[]
[null,null,"Dorma"]
[]
[{"v":123,"d":"123 "},null,"dormakaba 150x150mm MALE sign",null,"No",{"v":1,"d":"1 "},null,{"$f":"ROUND(F1230*G1230,2)","v":{"v":0,"d":"0.00"}}]
[]
[{"v":124,"d":"124 "},null,"dormakaba 150x150mm FEMALE sign",null,"No",{"v":1,"d":"1 "},null,{"$f":"ROUND(F1232*G1232,2)","v":{"v":0,"d":"0.00"}}]
[]
[{"v":125,"d":"125 "},null,"dormakaba 150x150mm DISABLED PERSONS sign",null,"No",{"v":1,"d":"1 "},null,{"$f":"ROUND(F1234*G1234,2)","v":{"v":0,"d":"0.00"}}]
[]
[{"v":126,"d":"126 "},null,"dormakaba 150x150mm ELECTRICAL sign",null,"No",{"v":1,"d":"1 "},null,{"$f":"ROUND(F1236*G1236,2)","v":{"v":0,"d":"0.00"}}]
[]
[{"v":127,"d":"127 "},null,"dormakaba 150x150mm CLEANER sign",null,"No",{"v":1,"d":"1 "},null,{"$f":"ROUND(F1238*G1238,2)","v":{"v":0,"d":"0.00"}}]
[]
[{"v":128,"d":"128 "},null,"dormakaba 150x150mm FIRE HOSE REEL sign",null,"No",{"v":3,"d":"3 "},null,{"$f":"ROUND(F1240*G1240,2)","v":{"v":0,"d":"0.00"}}]
[]
[{"v":129,"d":"129 "},null,"Illuminated Fire Escape Signage by other",null,"No",{"v":2,"d":"2 "},null,{"$f":"ROUND(F1242*G1242,2)","v":{"v":0,"d":"0.00"}}]
[]
[null,null,"SUNDRIES"]
[]
[{"v":130,"d":"130 "},null,"Stainless steel floor mounted door stop",null,"No",{"v":18,"d":"18 "},null,{"$f":"ROUND(F1246*G1246,2)","v":{"v":0,"d":"0.00"}}]
[]
[{"v":131,"d":"131 "},null,"dormakaba Dust Proof Strike",null,"No",{"v":18,"d":"18 "},null,{"$f":"ROUND(F1248*G1248,2)","v":{"v":0,"d":"0.00"}}]
[]
[{"v":132,"d":"132 "},null,"dormakaba Wall Buffer",null,"No",{"v":8,"d":"8 "},null,{"$f":"ROUND(F1250*G1250,2)","v":{"v":0,"d":"0.00"}}]
[]
[{"v":133,"d":"133 "},null,"Other Trox AGS-T Door Grille, 300mm X 300mm - Anodized Aluminium",null,"No",{"v":9,"d":"9 "},null,{"$f":"ROUND(F1252*G1252,2)","v":{"v":0,"d":"0.00"}}]
[]
[{"$nulls":7},{"$f":"SUM(H1118:H1253)","v":{"v":0,"d":"0.00"}}]
[]
[null,null,"SECTION NO 2: BUILDERS WORK"]
[]
[null,null,"BILL NO 9"]
[]
[null,null,"METALWORK"]
[]
[null,null,"PREAMBLES"]
[]
[null,null,"The tenderer is advised to refer to \"Model Preamble For Trades\" before pricing this Bill"]
[]
[null,null,"SUPPLEMENTARY PREAMBLES"]
[]
[null,null,"Descriptions of bolts, anchors, etc"]
[]
[null,null,"Descriptions of bolts shall be deemed to include nuts and washers"]
[]
[null,null,"Descriptions of expansion anchors and bolts and chemical anchors and bolts shall be deemed to include nuts, washers and mortices in brickwork or concrete"]
[]
[null,null,"Items described as\"holed for bolt(s)\" shall be deemed to exclude the bolts unless otherwise described"]
[]
[null,null,"Items described as \"plugged\" shall be deemed to include screwing to fibre, plastic or metal plugs at not exceeding 600mm centres"]
[]
[null,null,"Subcontractor executing aluminium work to be a registered AAAMSA member, manufacturer and installation to include ironmongery scheduled.  Extrude aluminium to be fabricated from alloy 6063 in temper T6 in accordance with the latest addition of BS 1474.  Glazing to be selected, fixed and marked in accordance with SANS 50572.  Warranty against delamination and or colour delidation of safety glass and or hermetically sealed glazing to be provided, valid for a minimum of five years.  Frames to receive glazing capable of withstanding the wind loads to be determined by a competent person, but shall not be less that 100Pa.  Windows assembly to be stainless steel screws through out, contact between steel and aluminium to be prevented by means of example double sided tape.  Compatibility between sealant and frame surface to be confirmed in writing before application.  Fixing of aluminium windows to steel window linings to be with stainless steel, self tapping screws.  Wire glass, if used as safety glass, to conform to SANS 1263 part 1.  Glazed installations to be protected during construction and to be handed over perfect.  AAAMSA test certificate A1, and SAGGA certificate of conformance to be provided for all aluminium work installed.  Full detailed shop drawings to be provided for approval by the Architect prior to manufacture."]
[]
[null,null,"ALUMINIUM WINDOWS"]
[]
[null,null,"Purpose-made clear 4mm low-e safety glass, normal-strength, glazed epoxy powder-coated aluminium window with fixed panels and perimeter sealed all round internally and externally with non-pickable epoxy joint sealant"]
[]
[{"v":134,"d":"134 "},null,"600 x 600mm High aluminium windows, including all ironmongery (TX04)",null,"No",{"v":23,"d":"23 "},null,{"$f":"ROUND(F1284*G1284,2)","v":{"v":0,"d":"0.00"}}]
[]
[{"v":135,"d":"135 "},null,"600 x 1800mm High aluminium windows, including all ironmongery (TX2)",null,"No",{"v":17,"d":"17 "},null,{"$f":"ROUND(F1286*G1286,2)","v":{"v":0,"d":"0.00"}}]
[]
[{"v":136,"d":"136 "},null,"610 x 1200mm High aluminium windows, including all ironmongery (TC02)",null,"No",{"v":22,"d":"22 "},null,{"$f":"ROUND(F1288*G1288,2)","v":{"v":0,"d":"0.00"}}]
[]
[{"v":137,"d":"137 "},null,"450 x 1200mm High aluminium windows, including all ironmongery (TX06)",null,"No",{"v":23,"d":"23 "},null,{"$f":"ROUND(F1290*G1290,2)","v":{"v":0,"d":"0.00"}}]
[]
[{"v":138,"d":"138 "},null,"900 x 1500mm High aluminium windows, including all ironmongery (TC3)",null,"No",{"v":19,"d":"19 "},null,{"$f":"ROUND(F1292*G1292,2)","v":{"v":0,"d":"0.00"}}]
[]
[{"v":139,"d":"139 "},null,"900 x 2700mm High aluminium windows, including all ironmongery (TC4)",null,"No",{"v":4,"d":"4 "},null,{"$f":"ROUND(F1294*G1294,2)","v":{"v":0,"d":"0.00"}}]
[]
[{"v":140,"d":"140 "},null,"1200 x 1520mm High aluminium windows, including all ironmongery (TX1)",null,"No",{"v":14,"d":"14 "},null,{"$f":"ROUND(F1296*G1296,2)","v":{"v":0,"d":"0.00"}}]
[]
[{"v":141,"d":"141 "},null,"1800 x 450mm High aluminium windows, including all ironmongery (TC1)",null,"No",{"v":2,"d":"2 "},null,{"$f":"ROUND(F1298*G1298,2)","v":{"v":0,"d":"0.00"}}]
[]
[{"v":142,"d":"142 "},null,"1800 x 600mm High aluminium windows, including all ironmongery (TX3)",null,"No",{"v":4,"d":"4 "},null,{"$f":"ROUND(F1300*G1300,2)","v":{"v":0,"d":"0.00"}}]
[]
[{"v":143,"d":"143 "},null,"2400 x 1500mm High aluminium windows, including all ironmongery (TX1)",null,"No",{"v":48,"d":"48 "},null,{"$f":"ROUND(F1302*G1302,2)","v":{"v":0,"d":"0.00"}}]
[]
[null,null,"ALUMINIUM SHOPFRONTS"]
[]
[null,null,"Black anodised aluminium shop front with 2 aluminium butt hinges a side with 6mm thick laminated safety glass to be provided in the top and bottom panels and black anodised aluminium door with glass panels as per the Architect's specification"]
[]
[{"v":144,"d":"144 "},null,"1360 x 2180mm High aluminium shopfront door, including all ironmongery (TC7)",null,"No",{"v":7,"d":"7 "},null,{"$f":"ROUND(F1308*G1308,2)","v":{"v":0,"d":"0.00"}}]
[]
[null,null,"ALUMINIUM DOOR FRAMES"]
[]
[null,null,"Purpose-made aluminium frame with 2 aluminium butt hinges a side with 6mm thick laminated safety glass to be provided in the top and bottom panels and black anodised aluminium door with glass panels as per the Architect's specification"]
[]
[{"v":145,"d":"145 "},null,"1800 x 2346mm High aluminium double door frames, including all ironmongery (TC1)",null,"No",{"v":15,"d":"15 "},null,{"$f":"ROUND(F1314*G1314,2)","v":{"v":0,"d":"0.00"}}]
[]
[null,null,"ALUMINIUM DOOR"]
[]
[null,null,"Black anodised aluminium frame and door with 6mm thick laminated safety glass to be provided in the top and bottom panels as per the Architect's specification"]
[]
[{"v":146,"d":"146 "},null,"1930 x 3048mm High aluminium double door frames, including all ironmongery (TC2/D02)",null,"No",{"v":2,"d":"2 "},null,{"$f":"ROUND(F1320*G1320,2)","v":{"v":0,"d":"0.00"}}]
[]
[null,null,"1.6mm Thick \"standard double rebated pressed metal door frames for one brick wall"]
[]
[{"v":147,"d":"147 "},null,"Door frame for 1200 x 2056mm high door (TC3); (TX1)",null,"No",{"v":8,"d":"8 "},null,{"$f":"ROUND(F1324*G1324,2)","v":{"v":0,"d":"0.00"}}]
[]
[{"v":148,"d":"148 "},null,"Door frame for 965 x 2210mm high door (TC4/D04)",null,"No",{"v":9,"d":"9 "},null,{"$f":"ROUND(F1326*G1326,2)","v":{"v":0,"d":"0.00"}}]
[]
[{"v":149,"d":"149 "},null,"Door frame for 965 x 2210mm high door (TX4)",null,"No",{"v":13,"d":"13 "},null,{"$f":"ROUND(F1328*G1328,2)","v":{"v":0,"d":"0.00"}}]
[]
[{"v":150,"d":"150 "},null,"Door frame for 850 x 2056mm high door (TC5); (TX4)",null,"No",{"v":6,"d":"6 "},null,{"$f":"ROUND(F1330*G1330,2)","v":{"v":0,"d":"0.00"}}]
[]
[{"v":151,"d":"151 "},null,"Door frame for 1200 x 2056mm high door (T2/D02)",null,"No",{"v":2,"d":"2 "},null,{"$f":"ROUND(F1332*G1332,2)","v":{"v":0,"d":"0.00"}}]
[]
[{"v":152,"d":"152 "},null,"Door frame for 1800 x 2056mm high door (TX2)",null,"No",{"v":8,"d":"8 "},null,{"$f":"ROUND(F1334*G1334,2)","v":{"v":0,"d":"0.00"}}]
[]
[{"v":153,"d":"153 "},null,"Door frame for 901 x 2100mm high door (TX5)",null,"No",{"v":4,"d":"4 "},null,{"$f":"ROUND(F1336*G1336,2)","v":{"v":0,"d":"0.00"}}]
[]
[{"v":154,"d":"154 "},null,"Door frame for 994 x 2154mm high door (TX7)",null,"No",{"v":2,"d":"2 "},null,{"$f":"ROUND(F1338*G1338,2)","v":{"v":0,"d":"0.00"}}]
[]
[null,null,"1.6mm Thick \"custom single rebated pressed metal door frames for one brick wall"]
[]
[{"v":155,"d":"155 "},null,"Door frame for 992 x 2154mm high door (TC6/D06)",null,"No",{"v":4,"d":"4 "},null,{"$f":"ROUND(F1342*G1342,2)","v":{"v":0,"d":"0.00"}}]
[]
[{"v":156,"d":"156 "},null,"Door frame for 900 x 2056mm high door (TX6)",null,"No",{"v":2,"d":"2 "},null,{"$f":"ROUND(F1344*G1344,2)","v":{"v":0,"d":"0.00"}}]
[]
[null,null,"GALVANIZED STEEL LOUVRE PANELS"]
[]
[null,null,"Powder coated alumiunium louvre panels screwed into aluminium window frames"]
[]
[{"v":157,"d":"157 "},null,"450 x 1200mm High aluminium windows, including all ironmongery (TX06)",null,"No",{"v":23,"d":"23 "},null,{"$f":"ROUND(F1350*G1350,2)","v":{"v":0,"d":"0.00"}}]
[]
[{"v":158,"d":"158 "},null,"600 x 600mm High aluminium windows, including all ironmongery (TX04)",null,"No",{"v":23,"d":"23 "},null,{"$f":"ROUND(F1352*G1352,2)","v":{"v":0,"d":"0.00"}}]
[]
[{"v":159,"d":"159 "},null,"610 x 1200mm High aluminium windows, including all ironmongery (TC02)",null,"No",{"v":22,"d":"22 "},null,{"$f":"ROUND(F1354*G1354,2)","v":{"v":0,"d":"0.00"}}]
[]
[{"v":160,"d":"160 "},null,"600 x 1800mm High aluminium windows, including all ironmongery (TX2)",null,"No",{"v":17,"d":"17 "},null,{"$f":"ROUND(F1356*G1356,2)","v":{"v":0,"d":"0.00"}}]
[]
[{"v":161,"d":"161 "},null,"900 x 1500mm High aluminium windows, including all ironmongery (TC3)",null,"No",{"v":19,"d":"19 "},null,{"$f":"ROUND(F1358*G1358,2)","v":{"v":0,"d":"0.00"}}]
[]
[{"v":162,"d":"162 "},null,"900 x 2700mm High aluminium windows, including all ironmongery (TC4)",null,"No",{"v":4,"d":"4 "},null,{"$f":"ROUND(F1360*G1360,2)","v":{"v":0,"d":"0.00"}}]
[]
[{"v":163,"d":"163 "},null,"1200 x 1520mm High aluminium windows, including all ironmongery (TX1)",null,"No",{"v":14,"d":"14 "},null,{"$f":"ROUND(F1362*G1362,2)","v":{"v":0,"d":"0.00"}}]
[]
[{"v":164,"d":"164 "},null,"1800 x 450mm High aluminium windows, including all ironmongery (TC1)",null,"No",{"v":2,"d":"2 "},null,{"$f":"ROUND(F1364*G1364,2)","v":{"v":0,"d":"0.00"}}]
[]
[{"v":165,"d":"165 "},null,"1800 x 600mm High aluminium windows, including all ironmongery (TX3)",null,"No",{"v":4,"d":"4 "},null,{"$f":"ROUND(F1366*G1366,2)","v":{"v":0,"d":"0.00"}}]
[]
[{"v":166,"d":"166 "},null,"2400 x 1500mm High aluminium windows, including all ironmongery (TX1)",null,"No",{"v":48,"d":"48 "},null,{"$f":"ROUND(F1368*G1368,2)","v":{"v":0,"d":"0.00"}}]
[]
[{"v":167,"d":"167 "},null,"300 x 400mm High louvre",null,"No",{"v":24,"d":"24 "},null,{"$f":"ROUND(F1370*G1370,2)","v":{"v":0,"d":"0.00"}}]
[]
[null,null,"STEEL FRAME SOLAR SHADING"]
[]
[null,null,"\"EVA-LAST EVA-TECH\" or similar approved 35 x 35mm hollow beam \"Xavia\" on steel frame"]
[]
[{"v":168,"d":"168 "},null,"Steel shading to architect's specification",null,"m²",{"v":832,"d":"832 "},null,{"$f":"ROUND(F1376*G1376,2)","v":{"v":0,"d":"0.00"}}]
[]
[null,null,"SUNDRIES"]
[]
[null,null,"Grating, covers, etc"]
[]
[{"v":169,"d":"169 "},null,"36mm Thick uncoated mild steel mentis grating and frame on shaft floors, per engineer's specification",null,"m²",{"v":16,"d":"16 "},null,{"$f":"ROUND(F1382*G1382,2)","v":{"v":0,"d":"0.00"}}]
[]
[{"$nulls":7},{"$f":"SUM(H1278:H1383)","v":{"v":0,"d":"0.00"}}]
[]
[null,null,"SECTION NO 2: BUILDERS WORK"]
[]
[null,null,"BILL NO 10"]
[]
[null,null,"STRUCTURAL STEELWORK"]
[]
[null,null,"PREAMBLES"]
[]
[null,null,"For preambles refer to \"General Preambles for Trades\""]
[]
[null,null,"SUPPLEMENTARY PREAMBLES"]
[]
[null,null,"Descriptions of bolts shall be deemed to include nuts and washers"]
[]
[null,null,"Descriptions of L-shaped and U-shaped anchor bolts shall be deemed to include bending, threading, nuts and washers and embedding in concrete"]
[]
[null,null,"Descriptions of expansion anchors and bolts and chemical anchors and bolts shall be deemed to include nuts, washers and mortices in brickwork or concrete"]
[]
[null,null,"Descriptions of L-shaped and U-shaped anchor bolts shall be deemed to include bending, threading, nuts and washers and embedding in concrete. Where anchor bolts are described as embedded in sides or soffits of concrete it shall be deemed to include holes through formwork."]
[]
[null,null,"Descriptions of expansion anchors and bolts and chemical anchors and bolts shall be deemed to include nuts, washers and mortices in brickwork or concrete."]
[]
[null,null,"STEEL COLUMNS AND BEAMS"]
[]
[null,null,"GALVANISED STEEL COLUMNS AND BEAMS"]
[]
[null,null,"Welded columns in single lengths with flat base, cap, bearer and connection plates, bolted to concrete"]
[]
[{"v":170,"d":"170 "},null,"152 x 152 x 23.4kg/m H-section columns",null,"t",7.56,null,{"$f":"ROUND(F1414*G1414,2)","v":{"v":0,"d":"0.00"}}]
[]
[null,null,"Welded beams in single lengths with flat section base, top, bearer, gussets and connection plates"]
[]
[{"v":171,"d":"171 "},null,"254 x 146 x 31.3kg/m I-section beams",null,"t",28.89,null,{"$f":"ROUND(F1418*G1418,2)","v":{"v":0,"d":"0.00"}}]
[]
[null,null,"GALVANISED STEEL PURLINS, GIRTS, BRACING, ETC"]
[]
[null,null,"Welded bracing etc with flat section connection plates bolted to steel"]
[]
[{"v":172,"d":"172 "},null,"152 x 152 x 23.4kg/m H-section",null,"t",1.22,null,{"$f":"ROUND(F1424*G1424,2)","v":{"v":0,"d":"0.00"}}]
[]
[null,null,"Purlins and girts, bolted to steel"]
[]
[{"v":173,"d":"173 "},null,"125 x 65 x 20 x 2.0 x 5.42kg/m Lipped Channel",null,"t",4.84,null,{"$f":"ROUND(F1428*G1428,2)","v":{"v":0,"d":"0.00"}}]
[]
[{"v":174,"d":"174 "},null,"175 x 65 x 20 x 2.5 x 5.18kg/m Lipped Channel",null,"t",6.63,null,{"$f":"ROUND(F1430*G1430,2)","v":{"v":0,"d":"0.00"}}]
[]
[{"v":175,"d":"175 "},null,"80 x 60 x 6  x 6.37kg/m SHS",null,"t",16.28,null,{"$f":"ROUND(F1432*G1432,2)","v":{"v":0,"d":"0.00"}}]
[]
[null,null,"BASE, CONNECTION AND END PLATES"]
[]
[null,null,"Connector and end plates bolted to steel"]
[]
[{"v":176,"d":"176 "},null,"Plates",null,"t",3.43,null,{"$f":"ROUND(F1438*G1438,2)","v":{"v":0,"d":"0.00"}}]
[]
[null,null,"Bolts to columns, beams, etc"]
[]
[{"v":177,"d":"177 "},null,"High tensile bolts",null,"t",3.43,null,{"$f":"ROUND(F1442*G1442,2)","v":{"v":0,"d":"0.00"}}]
[]
[{"$nulls":7},{"$f":"SUM(H1393:H1443)","v":{"v":0,"d":"0.00"}}]
[]
[null,null,"SECTION NO 2: BUILDERS WORK"]
[]
[null,null,"BILL NO 11"]
[]
[null,null,"PLASTERING"]
[]
[null,null,"PREAMBLES"]
[]
[null,null,"The tenderer is advised to refer to \"Model Preamble For Trades\" before pricing this Bill"]
[]
[null,null,"SCREEDS"]
[]
[null,null,"Various thickness on floors and landings"]
[]
[{"v":178,"d":"178 "},null,"Average 50mm thick grano screed",null,"m²",{"v":2238,"d":"2,238 "},null,{"$f":"ROUND(F1460*G1460,2)","v":{"v":0,"d":"0.00"}}]
[]
[null,null,"INTERNAL PLASTER"]
[]
[null,null,"One coat cement plaster on brickwork"]
[]
[{"v":179,"d":"179 "},null,"On walls",null,"m²",{"v":5017,"d":"5,017 "},null,{"$f":"ROUND(F1466*G1466,2)","v":{"v":0,"d":"0.00"}}]
[]
[{"v":180,"d":"180 "},null,"On narrow widths",null,"m²",{"v":527,"d":"527 "},null,{"$f":"ROUND(F1468*G1468,2)","v":{"v":0,"d":"0.00"}}]
[]
[null,null,"One coat \"Rhinolight\" or similar approved skim plaster, including one coat plaster primer (MIN DFT 20 MICRON) and two coats acrylic cashmere (MIN DFT 20 MICRON) per coat (colour: white)"]
[]
[{"v":181,"d":"181 "},null,"To soffits of concrete slabs",null,"m²",{"v":629,"d":"629 "},null,{"$f":"ROUND(F1472*G1472,2)","v":{"v":0,"d":"0.00"}}]
[]
[null,null,"EXTERNAL PLASTER"]
[]
[null,null,"Cement plaster on brickwork"]
[]
[{"v":182,"d":"182 "},null,"On walls",null,"m²",{"v":163,"d":"163 "},null,{"$f":"ROUND(F1478*G1478,2)","v":{"v":0,"d":"0.00"}}]
[]
[{"$nulls":7},{"$f":"SUM(H1448:H1479)","v":{"v":0,"d":"0.00"}}]
[]
[null,null,"SECTION NO 2: BUILDERS WORK"]
[]
[null,null,"BILL NO. 12"]
[]
[null,null,"PLUMBING AND DRAINAGE  (PROVISIONAL)"]
[]
[null,null,"PREAMBLES"]
[]
[null,null,"Note : Tenderers are referred to the \"Model Preambles for Trades\" (2008 Edition) as supplied by the Association of South African Quantity Surveyors, which shall be deemed to be incorporated in these Bills of Quantities"]
[]
[null,null,"SUPPLEMENTARY PREAMBLES"]
[]
[null,null,"Supplementary preamble items, described in Bill No. 1, shall equally apply to this Bill."]
[]
[null,null,"GENERAL"]
[]
[null,null,"General notes, described in Bill No. 1, shall equally apply to this Bill."]
[]
[null,null,"SPECIFICATIONS AND DRAWINGS"]
[]
[null,null,"Tenderers shall refer to and comply with the drawings included as annexures to this document when pricing all items contained in this bill of quantities"]
[]
[null,null,"RAINWATER DISPOSAL"]
[]
[null,null,"Heunis steel square gutter and rainwater pipes"]
[]
[{"v":183,"d":"183 "},null,"100 x 75mm Roof gutters with beaded front edge",null,"m",{"v":370,"d":"370 "},null,{"$f":"ROUND(F1508*G1508,2)","v":{"v":0,"d":"0.00"}}]
[]
[{"v":184,"d":"184 "},null,"100 x 75mm Rainwater pipes",null,"m",{"v":801,"d":"801 "},null,{"$f":"ROUND(F1510*G1510,2)","v":{"v":0,"d":"0.00"}}]
[]
[null,null,"The applicable \"extra over\" items from the following list are to be inserted directly after each of the foregoing items"]
[]
[{"v":185,"d":"185 "},null,"Extra over gutter for stopped end",null,"No",{"v":32,"d":"32 "},null,{"$f":"ROUND(F1514*G1514,2)","v":{"v":0,"d":"0.00"}}]
[]
[{"v":186,"d":"186 "},null,"Extra over gutter for outlet for 100 x 75mm pipe",null,"No",{"v":32,"d":"32 "},null,{"$f":"ROUND(F1516*G1516,2)","v":{"v":0,"d":"0.00"}}]
[]
[{"v":187,"d":"187 "},null,"Extra over rainwater pipe for bend",null,"No",{"v":63,"d":"63 "},null,{"$f":"ROUND(F1518*G1518,2)","v":{"v":0,"d":"0.00"}}]
[]
[{"v":188,"d":"188 "},null,"Extra over rainwater pipe for shoe",null,"No",{"v":32,"d":"32 "},null,{"$f":"ROUND(F1520*G1520,2)","v":{"v":0,"d":"0.00"}}]
[]
[null,null,"Sanitary plumbing pipe reticulation"]
[]
[null,null,"Hot and cold water internal pipe reticulation"]
[]
[{"v":189,"d":"189 "},null,"Reticulation pipe system complete including all connections to the main water supply (main water supply - elsewhere)",null,"Item",{"v":1.06,"d":"1 "},null,{"$f":"ROUND(F1526*G1526,2)","v":{"v":0,"d":"0.00"}}]
[]
[null,null,"SANITARY FITTINGS"]
[]
[null,null,"WC"]
[]
[{"v":190,"d":"190 "},null,"Geberit Abalona WC wall hung rimfree pan for Wheelchair access (seat Abalona seat ring) class 1, Full flush 4.5l, in accordance with en 997. Actuator: Gegerit mambo single flush actuator for Stop and go. Brushed finish stainless steel. Cistern - Geberit Kombifix concealed cistern, 4.5l set Up.",null,"No",{"v":3,"d":"3 "},null,{"$f":"ROUND(F1532*G1532,2)","v":{"v":0,"d":"0.00"}}]
[]
[{"v":191,"d":"191 "},null,"Geberit Abalona WC wall hung rimfree pan (seat Abalona seat ring) class 1, Full flush 4.5l, in accordance with en 997. Actuator: Geberit mambo single flush actuator for Stop and go. Brushed finish stainless steel. Cistern - Geberit Kombifix concealed cistern, 4.5l set Up.",null,"No",{"v":18,"d":"18 "},null,{"$f":"ROUND(F1534*G1534,2)","v":{"v":0,"d":"0.00"}}]
[]
[null,null,"WHB"]
[]
[{"v":192,"d":"192 "},null,"Vaal sanitaryware vitreos china 475 x 370 x 130mm \"alto art\" surface mounted basin. no provision for tapholes or overflow. white. or similar approved.  neoperl aerator insert \"€“ mikado spray 1.9l/min designer spray\" with the vandal proof casing \"wc m22 vr - vandal proof cp housing",null,"No",{"v":23,"d":"23 "},null,{"$f":"ROUND(F1538*G1538,2)","v":{"v":0,"d":"0.00"}}]
[]
[{"v":193,"d":"193 "},null,"Lecico commercial atlas medical basin semi-pedestal Colour white, size 410 x 500 x 480mm high fixed with Stainless steel screws and washers to plugs in Wall and sealed with abe dow corning acetoxy Silicone sealant where basin meets wall or similar Approved by architect.",null,"No",{"v":3,"d":"3 "},null,{"$f":"ROUND(F1540*G1540,2)","v":{"v":0,"d":"0.00"}}]
[]
[null,null,"Urinal"]
[]
[{"v":194,"d":"194 "},null,"Vaal sanitaryware 415 x 275 x 315mm flatback white vitreous china wall mounted urinal or similar architect approved.",null,"No",{"v":6,"d":"6 "},null,{"$f":"ROUND(F1544*G1544,2)","v":{"v":0,"d":"0.00"}}]
[]
[null,null,"Sinks"]
[]
[{"v":195,"d":"195 "},null,"Kwikot Standard Wash Trough Insert W / Ribbing 550 X 450mm Stainless Steel.",null,"No",{"v":3,"d":"3 "},null,{"$f":"ROUND(F1548*G1548,2)","v":{"v":0,"d":"0.00"}}]
[]
[{"v":196,"d":"196 "},null,"Franke cascade model cdx621-120 grade 304 18/10 Polished stainless steel double end bowl inset sink (code: 821023), overall size 1200 x 500mm with two 343 x 410 x 157mm deep bowls, fitted onto cupboard (elsewhere specified) including pvc trap (trap Elsewhere specified) with 2no. 90mm waste fittings.Or similar architect approved.",null,"No",{"v":1,"d":"1 "},null,{"$f":"ROUND(F1550*G1550,2)","v":{"v":0,"d":"0.00"}}]
[]
[null,null,"BRASSWARE, TAPS ETC."]
[]
[null,null,"Cobra"]
[]
[{"v":197,"d":"197 "},null,"Cobra watertech 15mm chrome plated pillar tap (code: 505-21b) with blue indice and elbow action lever, manufactured in accordance with SANS 226:2009 type 2 (BS 5412) or similar approved by Architect.",null,"No",{"v":3,"d":"3 "},null,{"$f":"ROUND(F1556*G1556,2)","v":{"v":0,"d":"0.00"}}]
[]
[{"v":198,"d":"198 "},null,"Cold water cobra stella bibtap extended chrome plated, or similar architect approved.",null,"No",{"v":3,"d":"3 "},null,{"$f":"ROUND(F1558*G1558,2)","v":{"v":0,"d":"0.00"}}]
[]
[null,null,"Mixers"]
[]
[{"v":199,"d":"199 "},null,"Grohe allure brilliant 15mm chrome single lever basin mixer (code: 23114000), fitted in accordance with the manufacturers recommendations. or similar approved. \"€¢ allure brilliant single lever basin mixer \"€¢ \"½\" xl-size chrome \"€¢ suitable for free standing basins \"€¢ volume: 0.020832m\"³.",null,"No",{"v":23,"d":"23 "},null,{"$f":"ROUND(F1562*G1562,2)","v":{"v":0,"d":"0.00"}}]
[]
[{"v":200,"d":"200 "},null,"Sink to include projectline wall mounted single lever mixer (code: 303365) with overarm swivel spout. or similar architect approved.  water saving aerator \"wc pca 06 - 6l per minute cascade\" with the vandal proof casing \"wc m22 vr - vandal proof cp housing\"",null,"No",{"v":1,"d":"1 "},null,{"$f":"ROUND(F1564*G1564,2)","v":{"v":0,"d":"0.00"}}]
[]
[null,null,"TRAPS, CISTERNS, WASTES ETC."]
[]
[{"v":201,"d":"201 "},null,"Geberit Alpha Kombifix Concealed Cistern (80mm) (W/H) 110175011",null,"No",{"v":21,"d":"21 "},null,{"$f":"ROUND(F1568*G1568,2)","v":{"v":0,"d":"0.00"}}]
[]
[{"v":202,"d":"202 "},null,"Wirquin All In One White Universal Bottle Trap With 32 And 40mm Outlet",null,"No",{"v":6,"d":"6 "},null,{"$f":"ROUND(F1570*G1570,2)","v":{"v":0,"d":"0.00"}}]
[]
[{"v":203,"d":"203 "},null,"Cobra watertech 40mm chrome plated bottle trap (code: 360) with 75mm deep re-seal, adjustable telescopic pipe and 40mm outlet or similar approved by architect.",null,"No",{"v":3,"d":"3 "},null,{"$f":"ROUND(F1572*G1572,2)","v":{"v":0,"d":"0.00"}}]
[]
[{"v":204,"d":"204 "},null,"Italtile Itd Anti Vandal Pull Up Basin Waste, Chrome",null,"No",{"v":26,"d":"26 "},null,{"$f":"ROUND(F1574*G1574,2)","v":{"v":0,"d":"0.00"}}]
[]
[{"v":205,"d":"205 "},null,"Sink plain p trap 76 seal 40mm",null,"No",{"v":4,"d":"4 "},null,{"$f":"ROUND(F1576*G1576,2)","v":{"v":0,"d":"0.00"}}]
[]
[{"v":206,"d":"206 "},null,"Basin plain p trap 38 seal 32mm with 40mm outlet",null,"No",{"v":26,"d":"26 "},null,{"$f":"ROUND(F1578*G1578,2)","v":{"v":0,"d":"0.00"}}]
[]
[null,null,"VALVES, ETC."]
[]
[{"v":207,"d":"207 "},null,"Italtile Itd Angle Valve 15x15mm",null,"No",{"v":26,"d":"26 "},null,{"$f":"ROUND(F1582*G1582,2)","v":{"v":0,"d":"0.00"}}]
[]
[null,null,"Water Meters"]
[]
[{"v":208,"d":"208 "},null,"Supply, Install, Test, Commission and provide 12 month guarantee for the installation of cold water meters installation. as per engineers specification",null,"Item",{"v":1,"d":"1 "},null,{"$f":"ROUND(F1586*G1586,2)","v":{"v":0,"d":"0.00"}}]
[]
[null,null,"SANITARY ACCESSORIES"]
[]
[null,null,"Supply and install the following complete"]
[]
[{"v":209,"d":"209 "},null,"Franke stratos strx 672 1,2/1,5mm thick grade 304 18/10 satin stainless steel toilet roll holders (code:359716), size 304 x 156 x 140,7mm deep for 2 rolls maximum 108mm diameter with spindle system and cylinder lock with standard franke key, plugged and screwed to the wall with stainless steel screws",null,"No",{"v":19,"d":"19 "},null,{"$f":"ROUND(F1592*G1592,2)","v":{"v":0,"d":"0.00"}}]
[]
[{"v":210,"d":"210 "},null,"Franke stratos strx618 1,2/1,5mm thick satin finished stainless steel soap dispenser (code: 2120041), size 100 x 134 x 304mm high with a replaceable and refillable 1 litre container, cylinder lock with standard franke key, plugged and screwed to the wall with stainless steel screws.",null,"No",{"v":9,"d":"9 "},null,{"$f":"ROUND(F1594*G1594,2)","v":{"v":0,"d":"0.00"}}]
[]
[{"v":211,"d":"211 "},null,"Franke chronos bs 611 v grade 304 18/10 satin stainless steel sanitary towel disposal bins (code: 359830), size 304 x 205 x 134mm deep with capacity of 6 litres, plugged and screwed to the wall with stainless steel screws, or similar approved",null,"No",{"v":9,"d":"9 "},null,{"$f":"ROUND(F1596*G1596,2)","v":{"v":0,"d":"0.00"}}]
[]
[{"$nulls":7},{"$f":"SUM(H1489:H1597)","v":{"v":0,"d":"0.00"}}]
[]
[null,null,"SECTION NO 2: BUILDERS WORK"]
[]
[null,null,"BILL NO 13"]
[]
[null,null,"TILING"]
[]
[null,null,"PREAMBLES"]
[]
[null,null,"The tenderer is advised to refer to \"Model Preamble For Trades\" before pricing this Bill"]
[]
[null,null,"SUPPLEMENTARY PREAMBLES"]
[]
[null,null,"Fixing"]
[]
[null,null,"Unless described as \"fixed with adhesive to plaster (plaster elsewhere)\" descriptions of tiling on brick or concrete walls, columns, etc shall be deemed to include 1:4 cement plaster backing and descriptions of tiling on concrete floors etc shall be deemed to include 1:3 plaster bedding"]
[]
[null,null,"Tiling described as \"fixed with adhesive on power floated concrete\" shall be deemed to include for approved tiling key-coat"]
[]
[null,null,"Ceramic, porcelain, marble and granite tiles are to be fixed and grouted with suitable adhesives and grouts from the \"Tal Professional\" range of products as recommended by the manufacturer of the tiles"]
[]
[null,null,"WALL TILING"]
[]
[null,null,"All materials, including adhesive, grouting,etc. will be included in the prime cost amounts."]
[]
[null,null,"600 x 1200 x 8mm Thick \"Union tiles\" or similar approved porcelain tiles fixed to wood floated cement screed on surface bed, including 3mm joints with \"Tal Tile\" grout (PC amount = R400/m2)"]
[]
[{"v":212,"d":"212 "},null,"Porcelain tiles on walls, splash backs, etc.",null,"m²",{"v":707,"d":"707 "},null,{"$f":"ROUND(F1626*G1626,2)","v":{"v":0,"d":"0.00"}}]
[]
[null,null,"FLOOR TILING"]
[]
[null,null,"600 x 600 x 8mm Thick porcelain tiles fixed to wood floated cement screed on surface bed, including 3mm joints with \"Tal Tile\" grout (PC amount = R350/m2)"]
[]
[{"v":213,"d":"213 "},null,"Porcelain tiles on floors, including landings",null,"m²",{"v":1809,"d":"1,809 "},null,{"$f":"ROUND(F1632*G1632,2)","v":{"v":0,"d":"0.00"}}]
[]
[{"v":214,"d":"214 "},null,"100mm High porcelain tile skirting",null,"m",{"v":590,"d":"590 "},null,{"$f":"ROUND(F1634*G1634,2)","v":{"v":0,"d":"0.00"}}]
[]
[null,null,"600 x 600 x 8mm Thick \"Union tiles\" or similar approved non-slip porcelain tiles fixed to wood floated cement screed on surface bed, including 3mm joints with \"Tal Tile\" grout (PC amount = R400/m2)"]
[]
[{"v":215,"d":"215 "},null,"Non-slip porcelain tiles on floors, including landings",null,"m²",{"v":144,"d":"144 "},null,{"$f":"ROUND(F1638*G1638,2)","v":{"v":0,"d":"0.00"}}]
[]
[{"v":216,"d":"216 "},null,"100mm High non-slip porcelain tile skirting",null,"m",{"v":202,"d":"202 "},null,{"$f":"ROUND(F1640*G1640,2)","v":{"v":0,"d":"0.00"}}]
[]
[null,null,"SUNDRIES"]
[]
[{"v":217,"d":"217 "},null,"8 x 12mm Polished aluminium screwfix transition cover",null,"m",{"v":105,"d":"105 "},null,{"$f":"ROUND(F1644*G1644,2)","v":{"v":0,"d":"0.00"}}]
[]
[{"$nulls":7},{"$f":"SUM(H1619:H1645)","v":{"v":0,"d":"0.00"}}]
[]
[null,null,"SECTION NO 2: BUILDERS WORK"]
[]
[null,null,"BILL NO 14"]
[]
[null,null,"GLAZING"]
[]
[null,null,"PREAMBLES"]
[]
[null,null,"The tenderer is advised to refer to \"Model Preamble For Trades\" before pricing this Bill"]
[]
[null,null,"SUPPLEMENTARY PREAMBLES"]
[]
[null,null,"Float glass"]
[]
[null,null,"The term \"float glass\" is used for monolithic annealed glass"]
[]
[null,null,"Laminated glass"]
[]
[null,null,"Laminated glass to have polyvinyl butyral (PVB) interlayer(s)"]
[]
[null,null,"TOPS, SHELVES, DOORS, MIRRORS, ETC"]
[]
[null,null,"Black aluminium frame, fitted above and centered to vanity, fitted flush with tiling onto smooth plastered wall with manufacturer-approved, double sided adhesive tape or similar approved by architect"]
[]
[{"v":218,"d":"218 "},null,"Mirror size 500 x 900mm high (CODE: 41211000)",null,"No",{"v":26,"d":"26 "},null,{"$f":"ROUND(F1672*G1672,2)","v":{"v":0,"d":"0.00"}}]
[]
[{"$nulls":7},{"$f":"SUM(H1672:H1673)","v":{"v":0,"d":"0.00"}}]
[]
[null,null,"SECTION NO 2: BUILDERS WORK"]
[]
[null,null,"BILL NO 15"]
[]
[null,null,"PAINTWORK"]
[]
[null,null,"PREAMBLES"]
[]
[null,null,"For preambles see \"General Preambles for Trades\""]
[]
[null,null,"SUPPLEMENTARY PREAMBLES"]
[]
[null,null,"DESCRIPTIONS"]
[]
[null,null,"Descriptions of paintwork shall be deemed to include for all cutting in"]
[]
[null,null,"PAINT SPECIFICATIONS"]
[]
[null,null,"Note: Surface to be dry, sound and clean and cured for a minimum of 14 days, with a moisture content measured with a doser hygrometer (or equivalent) of BD 2 scale - 8% or less."]
[]
[null,null,"PAINTWORK, ETC TO NEW WORK"]
[]
[null,null,"PAINT ON FLOATED PLASTER"]
[]
[null,null,"One coat plaster primer (UC 56) and two coats \"Wall & All (WAA)\""]
[]
[{"v":219,"d":"219 "},null,"Internal walls",null,"m²",{"v":5544,"d":"5,544 "},null,{"$f":"ROUND(F1702*G1702,2)","v":{"v":0,"d":"0.00"}}]
[]
[null,null,"One coat professional plaster primer (PPP 700) and two coats professional superior matt (PEM 950), according to architects specification (specification document: NW107T)"]
[]
[null,null,"SMOOTH CONCRETE SURFACES"]
[]
[null,null,"One coat alkali resistant plaster primer and two coats PVA acrylic emulsion paint"]
[]
[{"v":220,"d":"220 "},null,"Ceilings and beams",null,"m²",{"v":629,"d":"629 "},null,{"$f":"ROUND(F1710*G1710,2)","v":{"v":0,"d":"0.00"}}]
[]
[null,null,"METAL SURFACES"]
[]
[null,null,"One coat \"Zinc\" chromate primer, one coat universal undercoat and two coats of universal matt enamel paint.Colour to be confirmed as per the Architect specification"]
[]
[{"v":221,"d":"221 "},null,"Door frames",null,"m²",{"v":196,"d":"196 "},null,{"$f":"ROUND(F1716*G1716,2)","v":{"v":0,"d":"0.00"}}]
[]
[null,null,"One coat galvanised iron primer and finish with two coats water-based matt enamel"]
[]
[{"v":222,"d":"222 "},null,"Down pipes, gutters etc",null,"m",{"v":370,"d":"370 "},null,{"$f":"ROUND(F1720*G1720,2)","v":{"v":0,"d":"0.00"}}]
[]
[null,null,"WOOD"]
[]
[null,null,"One coat wood primer, one coat universal undercoat  and two coats universal SABS approved paint."]
[]
[{"v":223,"d":"223 "},null,"Timber doors",null,"m²",{"v":521,"d":"521 "},null,{"$f":"ROUND(F1726*G1726,2)","v":{"v":0,"d":"0.00"}}]
[]
[null,null,"One coat wood primer, one coat universal undercoat and two coats universal. Colour:TBC"]
[]
[null,null,"FIBRE CENEMT"]
[]
[null,null,"One coat prime universal undercoat and finish with two coats super acrylic"]
[]
[{"v":224,"d":"224 "},null,"225 x 12mm Fascias",null,"m²",{"v":96,"d":"96 "},null,{"$f":"ROUND(F1734*G1734,2)","v":{"v":0,"d":"0.00"}}]
[]
[{"v":225,"d":"225 "},null,"275 x 80mm Barge boards",null,"m²",{"v":8,"d":"8 "},null,{"$f":"ROUND(F1736*G1736,2)","v":{"v":0,"d":"0.00"}}]
[]
[{"$nulls":7},{"$f":"SUM(H1679:H1737)","v":{"v":0,"d":"0.00"}}]
[]
[null,null,"BILL NO 16"]
[]
[null,null,"SECTION NO. 2"]
[]
[null,null,"EXTERNAL WORKS"]
[]
[null,null,"PREAMBLES"]
[]
[null,null,"GENERAL"]
[]
[null,null,"The construction of the boundary wall will confirmed during construction phase and will be communicated to the contractor if  the works should commence."]
[]
[null,null,"SUPPLEMENTARY PREAMBLES"]
[]
[null,null,"Supplementary preambles, described in Bill No. 1, shall equally apply to this Bill"]
[]
[null,null,"Sizes in descriptions"]
[]
[null,null,"Where sizes in descriptions are give in brick units, \"one brick\" shall represent the length and \"half brick\" the width of a brick"]
[]
[null,null,"Hollow walls etc"]
[]
[null,null,"Descriptions of hollow walls shall be deemed to include leaving every fifth perpend of the bottom course of the external skin open as a weep hole."]
[]
[null,null,"Face bricks"]
[]
[null,null,"Bricks shall be ordered timeously to obtain uniformity in size,  colour and ordered to fall well within the Tenderers programme"]
[]
[null,null,"Pointing"]
[]
[null,null,"Descriptions of recessed pointing to fair face brickwork and face brickwork shall be deemed to include square recessed, hollow recessed, weathered pointing, etc"]
[]
[null,null,"SAMPLES"]
[]
[null,null,"SITE CLEARANCE"]
[]
[{"v":226,"d":"226 "},null,"Allowance for digging up and removing all rubbish, shrubs, bush, vegetable soil, etc., not exceeding 200 mm girth, from the whole area of the site to be built upon",null,"m²",{"v":1146,"d":"1,146 "},null,{"$f":"ROUND(F1776*G1776,2)","v":{"v":0,"d":"0.00"}}]
[]
[null,null,"Excavation in earth not exceeding 2m deep"]
[]
[{"v":227,"d":"227 "},null,"Over site between buildings, retaining walls, etc to reduce levels and dispose in prescribed stock piles on site",null,"m³",{"v":516,"d":"516 "},null,{"$f":"ROUND(F1780*G1780,2)","v":{"v":0,"d":"0.00"}}]
[]
[null,null,"Extra over bulk excavations in earth for excavation in"]
[]
[{"v":228,"d":"228 "},null,"Soft rock.",null,"m³",{"v":52,"d":"52 "},null,{"$f":"ROUND(F1784*G1784,2)","v":{"v":0,"d":"0.00"}}]
[]
[{"v":229,"d":"229 "},null,"Hard rock.",null,"m³",{"v":77,"d":"77 "},null,{"$f":"ROUND(F1786*G1786,2)","v":{"v":0,"d":"0.00"}}]
[]
[null,null,"Extra over all excavations for carting away"]
[]
[{"v":230,"d":"230 "},null,"Surplus material from excavations and/or stock piles on site to a dumping site to be located by the contractor",null,"m³",{"v":516,"d":"516 "},null,{"$f":"ROUND(F1790*G1790,2)","v":{"v":0,"d":"0.00"}}]
[]
[null,null,"Keeping excavations free of water"]
[]
[{"v":231,"d":"231 "},null,"Keeping excavations free from water, other than subterranean water",null,"Item",{"v":1,"d":"1 "},null,{"$f":"ROUND(F1794*G1794,2)","v":{"v":0,"d":"0.00"}}]
[]
[null,null,"FILLING, ETC"]
[]
[null,null,"Earth filling supplied by the contractor under parking areas, roadways, etc"]
[]
[{"v":232,"d":"232 "},null,"G5 Earth filling supplied by the contractor compacted to 95% Modified AASHTO density",null,"m³",{"v":344,"d":"344 "},null,{"$f":"ROUND(F1800*G1800,2)","v":{"v":0,"d":"0.00"}}]
[]
[{"v":233,"d":"233 "},null,"G7 Earth filling supplied by the contractor compacted to 93% Modified AASHTO density",null,"m³",{"v":172,"d":"172 "},null,{"$f":"ROUND(F1802*G1802,2)","v":{"v":0,"d":"0.00"}}]
[]
[null,null,"Compaction of surfaces"]
[]
[{"v":234,"d":"234 "},null,"Compaction of ground surface under paving areas etc including scarifying for a depth of 150mm, breaking down oversize material, adding suitable material where necessary and compacting to 100% Mod AASHTO density",null,"m²",{"v":1146,"d":"1,146 "},null,{"$f":"ROUND(F1806*G1806,2)","v":{"v":0,"d":"0.00"}}]
[]
[null,null,"Prescribed density tests on filling"]
[]
[{"v":235,"d":"235 "},null,"Modified AASHTO Density test",null,"No",{"v":103,"d":"103 "},null,{"$f":"ROUND(F1810*G1810,2)","v":{"v":0,"d":"0.00"}}]
[]
[null,null,"SOIL POISONING"]
[]
[null,null,"Soil insecticide"]
[]
[{"v":236,"d":"236 "},null,"Under floors etc including forming and poisoning shallow furrows against foundation walls etc, filling in furrows and ramming",null,"m²",{"v":1845,"d":"1,845 "},null,{"$f":"ROUND(F1816*G1816,2)","v":{"v":0,"d":"0.00"}}]
[]
[null,null,"PAVING"]
[]
[null,null,"80mm Thick 35 MPa interlocking  Cel pavers laid on 20mm bedding"]
[]
[{"v":237,"d":"237 "},null,"Paving to road, parking area, pavement, etc. to fall  including any consequent straight cutting.",null,"m²",{"v":1146,"d":"1,146 "},null,{"$f":"ROUND(F1822*G1822,2)","v":{"v":0,"d":"0.00"}}]
[]
[{"$nulls":7},{"$f":"SUM(H1772:H1823)","v":{"v":0,"d":"0.00"}}]
[]
[{"v":1,"d":"1 "},null,"Earthworks",null,"Page",{"v":30,"d":"30 "},null,{"$f":"+H660","v":{"v":0,"d":"0.00"}}]
[]
[{"v":2,"d":"2 "},null,"Concrete, Formwork & Reinforcement",null,"Page",{"v":35,"d":"35 "},null,{"$f":"+H780","v":{"v":0,"d":"0.00"}}]
[]
[{"v":3,"d":"3 "},null,"Masonry",null,"Page",{"v":39,"d":"39 "},null,{"$f":"+H861","v":{"v":0,"d":"0.00"}}]
[]
[{"v":4,"d":"4 "},null,"Waterproofing",null,"Page",{"v":42,"d":"42 "},null,{"$f":"+H896","v":{"v":0,"d":"0.00"}}]
[]
[{"v":5,"d":"5 "},null,"Roof Coverings, etc.",null,"Page",{"v":45,"d":"45 "},null,{"$f":"+H948","v":{"v":0,"d":"0.00"}}]
[]
[{"v":6,"d":"6 "},null,"Carpentry and Joinery",null,"Page",{"v":49,"d":"49 "},null,{"$f":"+H1018","v":{"v":0,"d":"0.00"}}]
[]
[{"v":7,"d":"7 "},null,"Ceilings, Partitions and Access Flooring",null,"Page",{"v":53,"d":"53 "},null,{"$f":"+H1078","v":{"v":0,"d":"0.00"}}]
[]
[{"v":8,"d":"8 "},null,"Floor Coverings, Plastic Linings, etc.",null,"Page",{"v":54,"d":"54 "},null,{"$f":"+H1102","v":{"v":0,"d":"0.00"}}]
[]
[{"v":9,"d":"9 "},null,"Ironmongery",null,"Page",{"v":61,"d":"61 "},null,{"$f":"+H1254","v":{"v":0,"d":"0.00"}}]
[]
[{"v":10,"d":"10 "},null,"Metalwork",null,"Page",{"v":68,"d":"68 "},null,{"$f":"+H1384","v":{"v":0,"d":"0.00"}}]
[]
[{"v":11,"d":"11 "},null,"Structural Steelwork",null,"Page",{"v":71,"d":"71 "},null,{"$f":"+H1444","v":{"v":0,"d":"0.00"}}]
[]
[{"v":12,"d":"12 "},null,"Plastering",null,"Page",{"v":72,"d":"72 "},null,{"$f":"+H1480","v":{"v":0,"d":"0.00"}}]
[]
[{"v":13,"d":"13 "},null,"Plumbing and Drainage",null,"Page",{"v":78,"d":"78 "},null,{"$f":"+H1598","v":{"v":0,"d":"0.00"}}]
[]
[{"v":14,"d":"14 "},null,"Tiling",null,"Page",{"v":81,"d":"81 "},null,{"$f":"+H1646","v":{"v":0,"d":"0.00"}}]
[]
[{"v":15,"d":"15 "},null,"Glazing",null,"Page",{"v":82,"d":"82 "},null,{"$f":"+H1674","v":{"v":0,"d":"0.00"}}]
[]
[{"v":16,"d":"16 "},null,"Paintwork",null,"Page",{"v":85,"d":"85 "},null,{"$f":"+H1738","v":{"v":0,"d":"0.00"}}]
[]
[{"v":17,"d":"17 "},null,"External Works",null,"Page",{"v":89,"d":"89 "},null,{"$f":"+H1824","v":{"v":0,"d":"0.00"}}]
[]
[{"$nulls":7},{"$f":"SUM(H1826:H1859)","v":{"v":0,"d":"0.00"}}]
[]
[null,null,"SECTION 3"]
[]
[null,null,"BILL NO 1"]
[]
[null,null,"PROVISIONAL SUMS AND BUDGETARY ALLOWANCES"]
[]
[null,null,"PREAMBLES"]
[]
[null,null,"NOTE : Tenderers are advised to study the \"MODEL PREAMBLES FOR TRADES\" (2008 Edition) as recommended and published by the Association of South African Quantity Surveyors before pricing this bill."]
[]
[null,null,"GENERAL"]
[]
[null,null,"General items, described in Bill No. 1, shall equally apply to this Bill."]
[]
[null,null,"SUPPLEMENTARY PREAMBLES"]
[]
[null,null,"Supplementary preambles, described in Bill No. 1, shall equally apply to this Bill"]
[]
[null,null,"BUDGETARY ALLOWANCES"]
[]
[null,null,"NOTE: \"  These items are to be taken into account in the pricing of the \" Preliminaries as they will NOT attract separate Preliminaries of \" their own.\" \"  Mark-ups are included in the values. \"  The following budgetary allowances are for work to be \" executed by the PRINCIPAL CONTRACTOR\" "]
[]
[null,null,"PROVISIONAL SUMS."]
[]
[null,null,"SUB-CONTRACTORS WORK"]
[]
[null,null,"LIFE/WHEELCHAIR HOIST"]
[]
[{"v":1,"d":"1 "},null,"R 700 000.00 (Seven Hundred Thousand Rand) For the supply and installation of Lift/Wheelchair Hoist",null,"Item",{"v":1,"d":"1 "},null,{"$f":"ROUND(F1890*G1890,2)","v":{"v":0,"d":"0.00"}}]
[]
[{"v":2,"d":"2 "},null,"Add for Profit",null,"%IT",{"v":3,"d":"3 "},null,{"$f":"+G1892*F1892%","v":{"v":0,"d":"0.00"}}]
[]
[{"v":3,"d":"3 "},null,"Attendance",null,"%IT",{"v":3,"d":"3 "},null,{"$f":"+G1894*F1894%","v":{"v":0,"d":"0.00"}}]
[]
[null,null,"CATERING FOR MONTHLY PSC MEETINGS"]
[]
[{"v":4,"d":"4 "},null,"R 45 000.00 (Forty Five Thousand Hundred Rand) for catering for the monthly PSC meeting for 15 Months.",null,"Item",{"v":1,"d":"1 "},null,{"$f":"ROUND(F1898*G1898,2)","v":{"v":0,"d":"0.00"}}]
[]
[{"v":5,"d":"5 "},null,"Add for Profit",null,"%IT",{"v":3,"d":"3 "},null,{"$f":"+G1900*F1900%","v":{"v":0,"d":"0.00"}}]
[]
[{"v":6,"d":"6 "},null,"Attendance",null,"%IT",{"v":3,"d":"3 "},null,{"$f":"+G1902*F1902%","v":{"v":0,"d":"0.00"}}]
[]
[{"$nulls":7},{"$f":"SUM(H1890:H1903)","v":{"v":0,"d":"0.00"}}]
[]
[null,null,"SECTION 4"]
[]
[null,null,"BILL NO 1"]
[]
[null,null,"SCHEDULE 2:"]
[]
[null,null,"SITE CLEARANCE"]
[]
[{"v":1,"d":"1 "},null,"Clear and grub 3.0m wide street strip for pipe in road reserve.",null,"m",{"v":1000,"d":"1,000 "},null,{"$f":"ROUND(F1914*G1914,2)","v":{"v":0,"d":"0.00"}}]
[]
[null,null,"Remove and grub large trees, and tree stumps of girth:"]
[]
[{"v":2,"d":"2 "},null,"a. Over 1m and up to and including 2m",null,"No",{"v":5,"d":"5 "},null,{"$f":"ROUND(F1918*G1918,2)","v":{"v":0,"d":"0.00"}}]
[]
[{"v":3,"d":"3 "},null,"b. Over 2m and up to and including 3m",null,"No",{"v":5,"d":"5 "},null,{"$f":"ROUND(F1920*G1920,2)","v":{"v":0,"d":"0.00"}}]
[]
[null,null,"2. Existing services"]
[]
[{"v":4,"d":"4 "},null,"a . Locating existing services",null,"SUM",{"v":1,"d":"1 "},null,{"$f":"ROUND(F1924*G1924,2)","v":{"v":0,"d":"0.00"}}]
[]
[{"v":5,"d":"5 "},null,"b. Excavate by hand, backfill and compact in common",null,"m³",{"v":120,"d":"120 "},null,{"$f":"ROUND(F1926*G1926,2)","v":{"v":0,"d":"0.00"}}]
[]
[null,null,"    material to expose underground services"]
[]
[{"v":6,"d":"6 "},null,"c. Temporary protection of existing services",null,"SUM",{"v":1,"d":"1 "},null,{"$f":"ROUND(F1930*G1930,2)","v":{"v":0,"d":"0.00"}}]
[]
[{"$nulls":7},{"$f":"SUM(H1914:H1931)","v":{"v":0,"d":"0.00"}}]
[]
[null,null,"SECTION 4"]
[]
[null,null,"BILL NO 2"]
[]
[null,null,"SCHEDULE 3:"]
[]
[null,null,"WATER SUPPLY - EARTHWORKS"]
[]
[null,null,"EXCAVATIONS"]
[]
[null,null,"Excavate up to 800mm wide, 1m deep in all materials for trenches, backfill, compact, and dispose of surplus / unsuitable material for diameters:"]
[]
[{"v":7,"d":"7 "},null,"1.  75 mm diameter",null,"m",{"v":1000,"d":"1,000 "},null,{"$f":"ROUND(F1946*G1946,2)","v":{"v":0,"d":"0.00"}}]
[]
[{"v":8,"d":"8 "},null,"2.  90 mm diameter",null,"m",{"v":200,"d":"200 "},null,{"$f":"ROUND(F1948*G1948,2)","v":{"v":0,"d":"0.00"}}]
[]
[{"v":9,"d":"9 "},null,"3.  110 mm diameter",null,"m",{"v":500,"d":"500 "},null,{"$f":"ROUND(F1950*G1950,2)","v":{"v":0,"d":"0.00"}}]
[]
[{"v":10,"d":"10 "},null,"4.  160 mm diameter",null,"m","0.0",null,"Rate Only"]
[]
[{"v":11,"d":"11 "},null,"5.  200 mm diameter",null,"m","0.0",null,"Rate Only"]
[]
[{"v":12,"d":"12 "},null,"6.  250 mm diameter",null,"m","0.0",null,"Rate Only"]
[]
[null,null,"Extra-over items 3.1 for"]
[]
[{"v":13,"d":"13 "},null,"1. Intermediate excavation",null,"m³",{"v":293,"d":"293 "},null,{"$f":"ROUND(F1960*G1960,2)","v":{"v":0,"d":"0.00"}}]
[]
[{"v":14,"d":"14 "},null,"2. Hard rock excavation",null,"m³",{"v":363,"d":"363 "},null,{"$f":"ROUND(F1962*G1962,2)","v":{"v":0,"d":"0.00"}}]
[]
[{"v":15,"d":"15 "},null,"Excavate and dispose of unsuitable material from trench bottom (Provisional)",null,"m³",{"v":41,"d":"41 "},null,{"$f":"ROUND(F1964*G1964,2)","v":{"v":0,"d":"0.00"}}]
[]
[null,null,"Exposing of existing services"]
[]
[{"v":16,"d":"16 "},null,"1. Excavate on existing pipeline, expose the pipe, check the size & class, record and request Resident Engineer for confirmation",null,"m³",{"v":144,"d":"144 "},null,{"$f":"ROUND(F1968*G1968,2)","v":{"v":0,"d":"0.00"}}]
[]
[{"v":17,"d":"17 "},null,"2. Excavate on existing asbestos pipes, disconnect and removal from trench to designated storage",null,"m",{"v":2000,"d":"2,000 "},null,{"$f":"ROUND(F1970*G1970,2)","v":{"v":0,"d":"0.00"}}]
[]
[null,null,"EXCAVATION ANCILLARIES"]
[]
[null,null,"Make up deficiency in backfill material (Provisional)"]
[]
[{"v":18,"d":"18 "},null,"a. From other necessary excavations on site",null,"m³",{"v":213,"d":"213 "},null,{"$f":"ROUND(F1976*G1976,2)","v":{"v":0,"d":"0.00"}}]
[]
[{"v":19,"d":"19 "},null,"b. by importation from commercial sources or off- site sources selected by the Contractor",null,"m³",{"v":213,"d":"213 "},null,{"$f":"ROUND(F1978*G1978,2)","v":{"v":0,"d":"0.00"}}]
[]
[{"v":20,"d":"20 "},null,"Compaction in road reserves",null,"m³",{"v":127,"d":"127 "},null,{"$f":"ROUND(F1980*G1980,2)","v":{"v":0,"d":"0.00"}}]
[]
[null,null,"Overhaul"]
[]
[{"v":21,"d":"21 "},null,"a. Limited overhaul: Over 0.1km up to 1km (Provisional)",null,"m³",{"v":1500,"d":"1,500 "},null,{"$f":"ROUND(F1984*G1984,2)","v":{"v":0,"d":"0.00"}}]
[]
[{"v":22,"d":"22 "},null,"b. Long overhaul: Over 1km  (Provisional)",null,"M3/KM",{"v":1000,"d":"1,000 "},null,{"$f":"ROUND(F1986*G1986,2)","v":{"v":0,"d":"0.00"}}]
[]
[{"v":23,"d":"23 "},null,"Shore trench opposite structure or service",null,"m",{"v":5,"d":"5 "},null,{"$f":"ROUND(F1988*G1988,2)","v":{"v":0,"d":"0.00"}}]
[]
[null,null,"(Provisional)"]
[]
[null,null,"Existing services that intersect or adjoin a pipe trench"]
[]
[{"v":24,"d":"24 "},null,"a. Services that intersect a trench",null,"No",{"v":20,"d":"20 "},null,{"$f":"ROUND(F1994*G1994,2)","v":{"v":0,"d":"0.00"}}]
[]
[{"v":25,"d":"25 "},null,"b. Services that adjoin a trench",null,"m",{"v":10,"d":"10 "},null,{"$f":"ROUND(F1996*G1996,2)","v":{"v":0,"d":"0.00"}}]
[]
[null,null,"BEDDING"]
[]
[null,null,"Provision of bedding from trench excavation"]
[]
[{"v":26,"d":"26 "},null,"a. Selected granular",null,"m³",{"v":265,"d":"265 "},null,{"$f":"ROUND(F2002*G2002,2)","v":{"v":0,"d":"0.00"}}]
[]
[{"v":27,"d":"27 "},null,"b. Selected fill",null,"m³",{"v":179,"d":"179 "},null,{"$f":"ROUND(F2004*G2004,2)","v":{"v":0,"d":"0.00"}}]
[]
[null,null,"From commercial sources (Provisional)"]
[]
[{"v":28,"d":"28 "},null,"a. Selected granular",null,"m³",{"v":143,"d":"143 "},null,{"$f":"ROUND(F2008*G2008,2)","v":{"v":0,"d":"0.00"}}]
[]
[{"v":29,"d":"29 "},null,"b. Selected fill",null,"m³",{"v":97,"d":"97 "},null,{"$f":"ROUND(F2010*G2010,2)","v":{"v":0,"d":"0.00"}}]
[]
[{"v":30,"d":"30 "},null,"c. 19mm Crushed stone",null,"m³",{"v":33,"d":"33 "},null,{"$f":"ROUND(F2012*G2012,2)","v":{"v":0,"d":"0.00"}}]
[]
[{"v":31,"d":"31 "},null,"Encasing of pipes in concrete (20MPa)",null,"m³",{"v":5,"d":"5 "},null,{"$f":"ROUND(F2014*G2014,2)","v":{"v":0,"d":"0.00"}}]
[]
[null,null,"Overhaul of material (Provisional)"]
[]
[{"v":32,"d":"32 "},null,"a. Bedding cradle",null,"M3/KM",{"v":1000,"d":"1,000 "},null,{"$f":"ROUND(F2018*G2018,2)","v":{"v":0,"d":"0.00"}}]
[]
[{"v":33,"d":"33 "},null,"b. Selected fill blanket",null,"M3/KM",{"v":1000,"d":"1,000 "},null,{"$f":"ROUND(F2020*G2020,2)","v":{"v":0,"d":"0.00"}}]
[]
[{"$nulls":7},{"$f":"SUM(H1937:H2021)","v":{"v":0,"d":"0.00"}}]
[]
[null,null,"SECTION 4"]
[]
[null,null,"BILL NO 3"]
[]
[null,null,"SCHEDULE 4:"]
[]
[null,null,"WATER SUPPLY - PIPEWORKS"]
[]
[null,null,"PIPES"]
[]
[null,null,"Supply, handle, lay, bed in flexible pipe bedding and test uPVC class 9 pipes complete with spigot and socket joints."]
[]
[null,null,"(All material including fittings to be SABS approved)"]
[]
[{"v":34,"d":"34 "},null,"1.  75 mm diameter",null,"m",{"v":1000,"d":"1,000 "},null,{"$f":"ROUND(F2038*G2038,2)","v":{"v":0,"d":"0.00"}}]
[]
[{"v":35,"d":"35 "},null,"2.  90 mm diameter",null,"m",{"v":500,"d":"500 "},null,{"$f":"ROUND(F2040*G2040,2)","v":{"v":0,"d":"0.00"}}]
[]
[{"v":36,"d":"36 "},null,"3.  110 mm diameter",null,"m",{"v":500,"d":"500 "},null,{"$f":"ROUND(F2042*G2042,2)","v":{"v":0,"d":"0.00"}}]
[]
[{"v":37,"d":"37 "},null,"4.  160 mm diameter",null,"m","0.0",null,"Rate Only"]
[]
[null,null,"SPECIALS AND FITTINGS"]
[]
[null,null,"Extra-over item 4.1 for supplying, handling, laying, bedding, jointing and testing of the following fittings for use on uPVC pipes"]
[]
[null,null,"Bends"]
[]
[null,null,"11.25 degree bends"]
[]
[{"v":38,"d":"38 "},null,"2. 75mm",null,"No",{"v":26,"d":"26 "},null,{"$f":"ROUND(F2054*G2054,2)","v":{"v":0,"d":"0.00"}}]
[]
[{"v":39,"d":"39 "},null,"3. 90mm",null,"No","0.0",null,"Rate Only"]
[]
[{"v":40,"d":"40 "},null,"4. 110mm",null,"No",{"v":4,"d":"4 "},null,{"$f":"ROUND(F2058*G2058,2)","v":{"v":0,"d":"0.00"}}]
[]
[{"v":41,"d":"41 "},null,"5. 160mm",null,"No",{"v":3,"d":"3 "},null,{"$f":"ROUND(F2060*G2060,2)","v":{"v":0,"d":"0.00"}}]
[]
[null,null,"22.5 degree bends"]
[]
[{"v":42,"d":"42 "},null,"1. 50mm",null,"No","0.0",null,"Rate Only"]
[]
[{"v":43,"d":"43 "},null,"2. 75mm",null,"No",{"v":12,"d":"12 "},null,{"$f":"ROUND(F2066*G2066,2)","v":{"v":0,"d":"0.00"}}]
[]
[{"v":44,"d":"44 "},null,"3. 90mm",null,"No","0.0",null,"Rate Only"]
[]
[{"v":45,"d":"45 "},null,"4. 110mm",null,"No",{"v":3,"d":"3 "},null,{"$f":"ROUND(F2070*G2070,2)","v":{"v":0,"d":"0.00"}}]
[]
[{"v":46,"d":"46 "},null,"5. 160mm",null,"No",{"v":1,"d":"1 "},null,{"$f":"ROUND(F2072*G2072,2)","v":{"v":0,"d":"0.00"}}]
[]
[{"v":47,"d":"47 "},null,"6. 200mm",null,"No","0.0",null,"Rate Only"]
[]
[{"v":48,"d":"48 "},null,"7. 250mm",null,"No","0.0",null,"Rate Only"]
[]
[null,null,"45 degree bends"]
[]
[{"v":49,"d":"49 "},null,"1. 50mm",null,"No","0.0",null,"Rate Only"]
[]
[{"v":50,"d":"50 "},null," 2. 75mm",null,"No",{"v":5,"d":"5 "},null,{"$f":"ROUND(F2082*G2082,2)","v":{"v":0,"d":"0.00"}}]
[]
[{"v":51,"d":"51 "},null,"3. 90mm",null,"No","0.0",null,"Rate Only"]
[]
[{"v":52,"d":"52 "},null,"4. 110mm",null,"No","0.0",null,"Rate Only"]
[]
[{"v":53,"d":"53 "},null,"5. 160mm",null,"No",{"v":1,"d":"1 "},null,{"$f":"ROUND(F2088*G2088,2)","v":{"v":0,"d":"0.00"}}]
[]
[{"v":54,"d":"54 "},null,"6. 200mm",null,"No","0.0",null,"Rate Only"]
[]
[{"v":55,"d":"55 "},null,"7. 250mm",null,"No","0.0",null,"Rate Only"]
[]
[null,null,"90 degree bends"]
[]
[{"v":56,"d":"56 "},null,"1. 75mm",null,"No",{"v":16,"d":"16 "},null,{"$f":"ROUND(F2096*G2096,2)","v":{"v":0,"d":"0.00"}}]
[]
[{"v":57,"d":"57 "},null,"2. 110mm",null,"No",{"v":2,"d":"2 "},null,{"$f":"ROUND(F2098*G2098,2)","v":{"v":0,"d":"0.00"}}]
[]
[{"v":58,"d":"58 "},null,"3. 160mm",null,"No",{"v":3,"d":"3 "},null,{"$f":"ROUND(F2100*G2100,2)","v":{"v":0,"d":"0.00"}}]
[]
[null,null,"Tees"]
[]
[{"v":59,"d":"59 "},null,"1. 75mm x 50mm",null,"No","0.0",null,"Rate Only"]
[]
[{"v":60,"d":"60 "},null,"2. 75mm x 75mm",null,"No",{"v":23,"d":"23 "},null,{"$f":"ROUND(F2106*G2106,2)","v":{"v":0,"d":"0.00"}}]
[]
[{"v":61,"d":"61 "},null,"3. 90mm x 50mm",null,"No","0.0",null,"Rate Only"]
[]
[{"v":62,"d":"62 "},null,"4. 90mm x 75mm",null,"No","0.0",null,"Rate Only"]
[]
[{"v":63,"d":"63 "},null,"5. 110mm x 75mm",null,"No",{"v":1,"d":"1 "},null,{"$f":"ROUND(F2112*G2112,2)","v":{"v":0,"d":"0.00"}}]
[]
[{"v":64,"d":"64 "},null,"6. 110mm x 110mm",null,"No",{"v":5,"d":"5 "},null,{"$f":"ROUND(F2114*G2114,2)","v":{"v":0,"d":"0.00"}}]
[]
[{"v":65,"d":"65 "},null,"7. 160mm x 110mm",null,"No","0.0",null,"Rate Only"]
[]
[{"v":66,"d":"66 "},null,"8. 160mm x 160mm",null,"No",{"v":1,"d":"1 "},null,{"$f":"ROUND(F2118*G2118,2)","v":{"v":0,"d":"0.00"}}]
[]
[{"v":67,"d":"67 "},null,"9. 200mm x 75mm",null,"No","0.0",null,"Rate Only"]
[]
[{"v":68,"d":"68 "},null,"10. 200mm x 110mm",null,"No","0.0",null,"Rate Only"]
[]
[{"v":69,"d":"69 "},null,"11. 250mm x 200mm",null,"No","0.0",null,"Rate Only"]
[]
[null,null,"Flange adaptors"]
[]
[{"v":70,"d":"70 "},null,"1. 50mm",null,"No","0.0",null,"Rate Only"]
[]
[{"v":71,"d":"71 "},null," 2. 75mm",null,"No",{"v":4,"d":"4 "},null,{"$f":"ROUND(F2130*G2130,2)","v":{"v":0,"d":"0.00"}}]
[]
[{"v":72,"d":"72 "},null,"3. 90mm",null,"No","0.0",null,"Rate Only"]
[]
[{"v":73,"d":"73 "},null,"4. 110mm",null,"No","0.0",null,"Rate Only"]
[]
[{"v":74,"d":"74 "},null,"5. 160mm",null,"No","0.0",null,"Rate Only"]
[]
[{"v":75,"d":"75 "},null,"6. 200mm",null,"No","0.0",null,"Rate Only"]
[]
[{"v":76,"d":"76 "},null,"7. 250mm",null,"No","0.0",null,"Rate Only"]
[]
[null,null,"Reducers"]
[]
[{"v":77,"d":"77 "},null,"1. 110mm x 50mm",null,"No","0.0",null,"Rate Only"]
[]
[{"v":78,"d":"78 "},null,"2. 110mm x 75mm",null,"No",{"v":8,"d":"8 "},null,{"$f":"ROUND(F2146*G2146,2)","v":{"v":0,"d":"0.00"}}]
[]
[{"v":79,"d":"79 "},null,"3. 110mm x 90mm",null,"No","0.0",null,"Rate Only"]
[]
[{"v":80,"d":"80 "},null,"4. 160mm x 75mm",null,"No","0.0",null,"Rate Only"]
[]
[{"v":81,"d":"81 "},null,"5. 160mm x 110mm",null,"No",{"v":2,"d":"2 "},null,{"$f":"ROUND(F2152*G2152,2)","v":{"v":0,"d":"0.00"}}]
[]
[{"v":82,"d":"82 "},null,"6. 160mm x 160mm",null,"No","0.0",null,"Rate Only"]
[]
[null,null,"End Caps"]
[]
[{"v":83,"d":"83 "},null,"1. 75mm",null,"No",{"v":23,"d":"23 "},null,{"$f":"ROUND(F2158*G2158,2)","v":{"v":0,"d":"0.00"}}]
[]
[{"v":84,"d":"84 "},null,"2. 90mm",null,"No","0.0",null,"Rate Only"]
[]
[{"v":85,"d":"85 "},null,"3. 110mm",null,"No","0.0",null,"Rate Only"]
[]
[null,null,"Isolating valves"]
[]
[null,null,"Extra-over item 4.1 for the supplying, installingcutting in and testing flanged Class 10 anti-clockwise closing non rising spindle resilient seal gate valves foruPVC  as shown on detailed drawings for pipe diameters"]
[]
[{"v":86,"d":"86 "},null," 1.  50 mm diameter",null,"No","0.0",null,"Rate Only"]
[]
[{"v":87,"d":"87 "},null,"2.  75 mm diameter",null,"No",{"v":2,"d":"2 "},null,{"$f":"ROUND(F2170*G2170,2)","v":{"v":0,"d":"0.00"}}]
[]
[{"v":88,"d":"88 "},null,"3.  90 mm diameter",null,"No",{"v":1,"d":"1 "},null,{"$f":"ROUND(F2172*G2172,2)","v":{"v":0,"d":"0.00"}}]
[]
[{"v":89,"d":"89 "},null,"4.  110 mm diameter",null,"No",{"v":1,"d":"1 "},null,{"$f":"ROUND(F2174*G2174,2)","v":{"v":0,"d":"0.00"}}]
[]
[{"v":90,"d":"90 "},null,"5.  160 mm diameter",null,"No","0.0",null,"Rate Only"]
[]
[null,null,"CHAMBERS"]
[]
[{"v":91,"d":"91 "},null,"Construct valves chambers complete with step irons, cover and frames as per detailed drawings, up to 1.5m depth.",null,"No",{"v":4,"d":"4 "},null,{"$f":"ROUND(F2180*G2180,2)","v":{"v":0,"d":"0.00"}}]
[]
[{"v":92,"d":"92 "},null,"Provision of lockable manhole covers",null,"No",{"v":4,"d":"4 "},null,{"$f":"ROUND(F2182*G2182,2)","v":{"v":0,"d":"0.00"}}]
[]
[null,null,"DECOMMISSIONING PIPELINES (ASBESTOS)"]
[]
[{"v":93,"d":"93 "},null,"3. Excavation, cutting out, plugging, removal and     transporting existing fittings for all pipe material     to depot",null,"No",{"v":10,"d":"10 "},null,{"$f":"ROUND(F2186*G2186,2)","v":{"v":0,"d":"0.00"}}]
[]
[{"v":94,"d":"94 "},null,"4. Backfill chambers using selected fill",null,"m³",{"v":4,"d":"4 "},null,{"$f":"ROUND(F2188*G2188,2)","v":{"v":0,"d":"0.00"}}]
[]
[null,null,"SUNDRIES"]
[]
[{"v":95,"d":"95 "},null,"Thrust blocks and pedastals class 25/19 concrete",null,"m³",{"v":12,"d":"12 "},null,{"$f":"ROUND(F2192*G2192,2)","v":{"v":0,"d":"0.00"}}]
[]
[null,null,"Connection to existing water mains, including excavation, bedding, backfillingcutting of pipes, repair and plugging redundantpipes for pipe diameters"]
[]
[{"v":96,"d":"96 "},null,"1.  50 mm diameter",null,"No",{"v":5,"d":"5 "},null,{"$f":"ROUND(F2196*G2196,2)","v":{"v":0,"d":"0.00"}}]
[]
[{"v":97,"d":"97 "},null,"2.  75 mm diameter",null,"No",{"v":2,"d":"2 "},null,{"$f":"ROUND(F2198*G2198,2)","v":{"v":0,"d":"0.00"}}]
[]
[{"v":98,"d":"98 "},null,"3.  90 mm diameter",null,"No",{"v":2,"d":"2 "},null,"Rate Only"]
[]
[{"v":99,"d":"99 "},null,"4.  110 mm diameter",null,"No",{"v":1,"d":"1 "},null,{"$f":"ROUND(F2202*G2202,2)","v":{"v":0,"d":"0.00"}}]
[]
[{"v":100,"d":"100 "},null,"5.  160 mm diameter",null,"No","0.0",null,"Rate Only"]
[]
[{"v":101,"d":"101 "},null,"6.  200 mm diameter",null,"No","0.0",null,"Rate Only"]
[]
[{"v":102,"d":"102 "},null,"7.  250 mm diameter",null,"No","0.0",null,"Rate Only"]
[]
[{"v":103,"d":"103 "},null,"Disinfection of the pipeline including the associated fittings",null,"m",{"v":1500,"d":"1,500 "},null,{"$f":"ROUND(F2210*G2210,2)","v":{"v":0,"d":"0.00"}}]
[]
[{"v":104,"d":"104 "},null,"Communal Standpipes / drinking fountains Supply, install and test standpipe complete as shown on",null,"No",{"v":5,"d":"5 "},null,{"$f":"ROUND(F2212*G2212,2)","v":{"v":0,"d":"0.00"}}]
[]
[null,null," typical detail drawings"]
[]
[{"v":105,"d":"105 "},null,"Pipe Markers Supply and install precast concrete pipeline markers.",null,"No",{"v":10,"d":"10 "},null,{"$f":"ROUND(F2216*G2216,2)","v":{"v":0,"d":"0.00"}}]
[]
[{"$nulls":7},{"$f":"SUM(H2026:H2217)","v":{"v":0,"d":"0.00"}}]
[]
[null,null,"SECTION 4"]
[]
[null,null,"BILL NO 4"]
[]
[null,null,"SCHEDULE 5:"]
[]
[null,null,"SITE CLEARANCE"]
[]
[{"v":106,"d":"106 "},null,"Clear and grub street strip for pipe in road reserve.",null,"m²",{"v":17,"d":"17 "},null,{"$f":"ROUND(F2228*G2228,2)","v":{"v":0,"d":"0.00"}}]
[]
[null,null,"Remove and grub large trees, and tree stumps of girth:"]
[]
[{"v":107,"d":"107 "},null,"a. Over 1m and up to and including 2m",null,"No",{"v":5,"d":"5 "},null,{"$f":"ROUND(F2232*G2232,2)","v":{"v":0,"d":"0.00"}}]
[]
[{"v":108,"d":"108 "},null,"b. Over 2m and up to and including 3m",null,"No",{"v":5,"d":"5 "},null,{"$f":"ROUND(F2234*G2234,2)","v":{"v":0,"d":"0.00"}}]
[]
[null,null,"ELEVATED TANK - EARTHWORKS"]
[]
[null,null,"EXCAVATIONS"]
[]
[null,null,"Excavate up to 800mm wide, 1m deep in all materials for trenches, backfill, compact, and dispose of surplus / unsuitable material for diameters:"]
[]
[null,null,"Giyani TVET College"]
[]
[{"v":109,"d":"109 "},null,"1. 80mm",null,"m",{"v":112,"d":"112 "},null,{"$f":"ROUND(F2244*G2244,2)","v":{"v":0,"d":"0.00"}}]
[]
[{"v":110,"d":"110 "},null,"2. 100mm",null,"m",{"v":65,"d":"65 "},null,{"$f":"ROUND(F2246*G2246,2)","v":{"v":0,"d":"0.00"}}]
[]
[{"v":111,"d":"111 "},null,"3. 150mm",null,"m",{"v":35,"d":"35 "},null,{"$f":"ROUND(F2248*G2248,2)","v":{"v":0,"d":"0.00"}}]
[]
[null,null,"Extra-over items 3.1 for"]
[]
[{"v":112,"d":"112 "},null,"1. Intermediate excavation",null,"m³",{"v":13,"d":"13 "},null,{"$f":"ROUND(F2252*G2252,2)","v":{"v":0,"d":"0.00"}}]
[]
[{"v":113,"d":"113 "},null,"2. Hard rock excavation",null,"m³",{"v":17,"d":"17 "},null,{"$f":"ROUND(F2254*G2254,2)","v":{"v":0,"d":"0.00"}}]
[]
[null,null,"BEDDING"]
[]
[null,null,"Provision of bedding from trench excavation"]
[]
[{"v":114,"d":"114 "},null,"a. Selected granular",null,"m³",{"v":14,"d":"14 "},null,{"$f":"ROUND(F2260*G2260,2)","v":{"v":0,"d":"0.00"}}]
[]
[{"v":115,"d":"115 "},null,"b. Selected fill",null,"m³",{"v":8,"d":"8 "},null,{"$f":"ROUND(F2262*G2262,2)","v":{"v":0,"d":"0.00"}}]
[]
[null,null,"From commercial sources (Provisional)"]
[]
[{"v":116,"d":"116 "},null,"a. Selected granular",null,"m³",{"v":8,"d":"8 "},null,{"$f":"ROUND(F2266*G2266,2)","v":{"v":0,"d":"0.00"}}]
[]
[{"v":117,"d":"117 "},null,"b. Selected fill",null,"m³",{"v":4,"d":"4 "},null,{"$f":"ROUND(F2268*G2268,2)","v":{"v":0,"d":"0.00"}}]
[]
[{"v":118,"d":"118 "},null,"c. 19mm Crushed stone",null,"m³",{"v":2,"d":"2 "},null,{"$f":"ROUND(F2270*G2270,2)","v":{"v":0,"d":"0.00"}}]
[]
[{"$nulls":7},{"$f":"SUM(H2222:H2271)","v":{"v":0,"d":"0.00"}}]
[]
[null,null,"SECTION 4"]
[]
[null,null,"BILL NO 5"]
[]
[null,null,"SCHEDULE 6:"]
[]
[null,null,"PREFABRICATED STEEL TANK"]
[]
[null,null,"EARTHWORKS"]
[]
[null,null,"SITE PREPARATION"]
[]
[{"v":119,"d":"119 "},null,"Remove topsoil to nominal depth 150mm, stockpile and maintain.",null,"m²",{"v":80,"d":"80 "},null,{"$f":"ROUND(F2286*G2286,2)","v":{"v":0,"d":"0.00"}}]
[]
[null,null,"BULK EXCAVATION"]
[]
[null,null,"b) Extra-over for :"]
[]
[{"v":120,"d":"120 "},null,"     1) Intermediate excavation",null,"m³",{"v":10,"d":"10 "},null,{"$f":"ROUND(F2292*G2292,2)","v":{"v":0,"d":"0.00"}}]
[]
[{"v":121,"d":"121 "},null,"     2) Hard rock excavation",null,"m³",{"v":5,"d":"5 "},null,{"$f":"ROUND(F2294*G2294,2)","v":{"v":0,"d":"0.00"}}]
[]
[null,null,"RESTRICTED EXCAVATIONS"]
[]
[{"v":122,"d":"122 "},null,"a) Excavate for restricted foundations, footings and trenches in all materials and use for backfill or embankment or dispose.",null,"m³",{"v":160,"d":"160 "},null,{"$f":"ROUND(F2298*G2298,2)","v":{"v":0,"d":"0.00"}}]
[]
[null,null,"EARTHWORKS (ROADS , SUBGRADE)"]
[]
[{"v":123,"d":"123 "},null,"Rip and re-compact insitu to 90% MOD AASHTO",null,"m³",{"v":12,"d":"12 "},null,{"$f":"ROUND(F2302*G2302,2)","v":{"v":0,"d":"0.00"}}]
[]
[{"v":124,"d":"124 "},null,"Geotechnical grid (Traix TX170)",null,"m²",{"v":80,"d":"80 "},null,{"$f":"ROUND(F2304*G2304,2)","v":{"v":0,"d":"0.00"}}]
[]
[{"v":125,"d":"125 "},null,"Backfill 500mm with course insitu material in 150mm layers.",null,"m³",{"v":40,"d":"40 "},null,{"$f":"ROUND(F2306*G2306,2)","v":{"v":0,"d":"0.00"}}]
[]
[null,null,"PREFABRICATED TANK"]
[]
[{"v":126,"d":"126 "},null,"Supply, handle, install, erect hot dipped galvanised ABECOsteel tank. 4.88m length x 2.44m width x 2.44m deep. Including lockable access manhole with built-in screened vent.Internal and external ladder, a level indicator, as well as allfittings required for installation.  And the supply, handling,installation,and erection of hot dipped galvanised steel support structures 10m high,including an access ladder with safety cage. As well as all standard fittings required forinstallation and walkway around tank base",null,"No",{"v":1,"d":"1 "},null,{"$f":"ROUND(F2310*G2310,2)","v":{"v":0,"d":"0.00"}}]
[]
[null,null,"CONCRETE"]
[]
[{"v":127,"d":"127 "},null,"Binding layer in 15MPa concrete (50mm thick)",null,"m²",{"v":4,"d":"4 "},null,{"$f":"ROUND(F2314*G2314,2)","v":{"v":0,"d":"0.00"}}]
[]
[{"v":128,"d":"128 "},null,"Shutter rough",null,"m²",{"v":25,"d":"25 "},null,{"$f":"ROUND(F2316*G2316,2)","v":{"v":0,"d":"0.00"}}]
[]
[null,null,"SCHEDULED REINFORCEMENT"]
[]
[{"v":129,"d":"129 "},null,"Steel bars",null,"t",{"v":16,"d":"16.00"},null,{"$f":"ROUND(F2320*G2320,2)","v":{"v":0,"d":"0.00"}}]
[]
[{"v":130,"d":"130 "},null,"Strength of concrete grade 30/19",null,"m³",{"v":50,"d":"50 "},null,{"$f":"ROUND(F2322*G2322,2)","v":{"v":0,"d":"0.00"}}]
[]
[null,null,"UNFORMED SURFACE FINISHES"]
[]
[{"v":131,"d":"131 "},null,"Steel float",null,"m²",{"v":70,"d":"70 "},null,{"$f":"ROUND(F2326*G2326,2)","v":{"v":0,"d":"0.00"}}]
[]
[{"v":132,"d":"132 "},null,"M20 Bolts cast in complete with washer plate and nuts, all",null,"No",{"v":16,"d":"16 "},null,{"$f":"ROUND(F2328*G2328,2)","v":{"v":0,"d":"0.00"}}]
[]
[null,null,"galvanised."]
[]
[null,null,"PIPES"]
[]
[null,null,"Supply,lay, and bed pipes complete with couplings for Class 16 steel pipes of the following diameter:(All material including fittings to be SABS approved)"]
[]
[{"v":133,"d":"133 "},null,"1.  80 mm diameter",null,"m",{"v":40,"d":"40 "},null,{"$f":"ROUND(F2336*G2336,2)","v":{"v":0,"d":"0.00"}}]
[]
[{"v":134,"d":"134 "},null,"2.  100 mm diameter",null,"m",{"v":55,"d":"55 "},null,{"$f":"ROUND(F2338*G2338,2)","v":{"v":0,"d":"0.00"}}]
[]
[{"v":135,"d":"135 "},null,"3.  150 mm diameter",null,"m",{"v":35,"d":"35 "},null,{"$f":"ROUND(F2340*G2340,2)","v":{"v":0,"d":"0.00"}}]
[]
[null,null,"Supply, handle, lay, bed in flexible pipe bedding and test uPVC class 16 pipes complete with spigot and socket joints.(All material including fittings to be SABS approved)"]
[]
[{"v":136,"d":"136 "},null,"1.  75 mm diameter",null,"m",{"v":72,"d":"72 "},null,{"$f":"ROUND(F2344*G2344,2)","v":{"v":0,"d":"0.00"}}]
[]
[{"v":137,"d":"137 "},null,"2.  110 mm diameter",null,"m",{"v":10,"d":"10 "},null,{"$f":"ROUND(F2346*G2346,2)","v":{"v":0,"d":"0.00"}}]
[]
[null,null,"11.25 degree Bends"]
[]
[{"v":138,"d":"138 "},null,"1. 75mm",null,"No",{"v":1,"d":"1 "},null,{"$f":"ROUND(F2350*G2350,2)","v":{"v":0,"d":"0.00"}}]
[]
[null,null,"90 degree Bends"]
[]
[{"v":139,"d":"139 "},null,"1. 100mm",null,"No",{"v":5,"d":"5 "},null,{"$f":"ROUND(F2354*G2354,2)","v":{"v":0,"d":"0.00"}}]
[]
[{"v":140,"d":"140 "},null,"2. 80mm",null,"No",{"v":5,"d":"5 "},null,{"$f":"ROUND(F2356*G2356,2)","v":{"v":0,"d":"0.00"}}]
[]
[{"v":141,"d":"141 "},null,"3. 150mm",null,"No",{"v":1,"d":"1 "},null,{"$f":"ROUND(F2358*G2358,2)","v":{"v":0,"d":"0.00"}}]
[]
[{"v":142,"d":"142 "},null,"4.75mm",null,"No",{"v":4,"d":"4 "},null,{"$f":"ROUND(F2360*G2360,2)","v":{"v":0,"d":"0.00"}}]
[]
[null,null,"Tees"]
[]
[{"v":143,"d":"143 "},null,"1. 100mm x 100mm",null,"No",{"v":1,"d":"1 "},null,{"$f":"ROUND(F2364*G2364,2)","v":{"v":0,"d":"0.00"}}]
[]
[null,null,"Flange adaptors"]
[]
[{"v":144,"d":"144 "},null,"1. 75mm",null,"No",{"v":1,"d":"1 "},null,{"$f":"ROUND(F2368*G2368,2)","v":{"v":0,"d":"0.00"}}]
[]
[{"v":145,"d":"145 "},null,"2. 110mm",null,"No",{"v":2,"d":"2 "},null,{"$f":"ROUND(F2370*G2370,2)","v":{"v":0,"d":"0.00"}}]
[]
[{"v":146,"d":"146 "},null,"3. 160mm",null,"No","0.0",null,"Rate Only"]
[]
[null,null,"Extra over Item 8.2.1 for supplying, fixing and bedding of valves"]
[]
[{"v":147,"d":"147 "},null,"DN100 flanged cosmos Meinecke WPD bulk meter with digital output or similar approved; Class 16",null,"No",{"v":1,"d":"1 "},null,{"$f":"ROUND(F2376*G2376,2)","v":{"v":0,"d":"0.00"}}]
[]
[{"v":148,"d":"148 "},null,"DN80 flanged cosmos Meinecke WPD bulk meter with digital output or similar approved; Class 16",null,"No",{"v":1,"d":"1 "},null,{"$f":"ROUND(F2378*G2378,2)","v":{"v":0,"d":"0.00"}}]
[]
[{"v":149,"d":"149 "},null,"DN100 flanged Bermad 70F Y-Pattern strainer or similar approved",null,"No",{"v":1,"d":"1 "},null,{"$f":"ROUND(F2380*G2380,2)","v":{"v":0,"d":"0.00"}}]
[]
[null,null,"approved; Class 16"]
[]
[{"v":150,"d":"150 "},null,"DN80 flanged Bermad 70F Y-Pattern strainer or similar approved",null,"No",{"v":1,"d":"1 "},null,{"$f":"ROUND(F2384*G2384,2)","v":{"v":0,"d":"0.00"}}]
[]
[null,null,"approved; Class 16"]
[]
[{"v":151,"d":"151 "},null,"DN100 flanged Vosa Series 7354 Equilibrium float valve or similar approved; Class 16",null,"No",{"v":1,"d":"1 "},null,{"$f":"ROUND(F2388*G2388,2)","v":{"v":0,"d":"0.00"}}]
[]
[null,null,"Extra over Item 3.1 for supplying and installing special couplings Viking Johnson/Klamflex flanged Adaptors; Class 16"]
[]
[{"v":152,"d":"152 "},null,"1. DN100",null,"No",{"v":2,"d":"2 "},null,{"$f":"ROUND(F2392*G2392,2)","v":{"v":0,"d":"0.00"}}]
[]
[{"v":153,"d":"153 "},null,"2. DN 80",null,"No",{"v":2,"d":"2 "},null,{"$f":"ROUND(F2394*G2394,2)","v":{"v":0,"d":"0.00"}}]
[]
[{"v":154,"d":"154 "},null,"DN100 flanged ball valve; Class 16",null,"No",{"v":1,"d":"1 "},null,{"$f":"ROUND(F2396*G2396,2)","v":{"v":0,"d":"0.00"}}]
[]
[{"v":155,"d":"155 "},null,"Steel Plinths",null,"No",{"v":4,"d":"4 "},null,{"$f":"ROUND(F2398*G2398,2)","v":{"v":0,"d":"0.00"}}]
[]
[null,null,"Isolating valves"]
[]
[null,null,"Extra-over item 4.1 for the supplying, installingcutting in and testing flanged Class 16 anti-clockwise closing non rising spindle resilient seal gate valves forsteel pipes  as shown on detailed drawings for pipe diameters"]
[]
[{"v":156,"d":"156 "},null,"1.  80 mm diameter",null,"No",{"v":1,"d":"1 "},null,{"$f":"ROUND(F2404*G2404,2)","v":{"v":0,"d":"0.00"}}]
[]
[{"v":157,"d":"157 "},null,"2.  100 mm diameter",null,"No",{"v":1,"d":"1 "},null,{"$f":"ROUND(F2406*G2406,2)","v":{"v":0,"d":"0.00"}}]
[]
[{"v":158,"d":"158 "},null,"3. 150 mm diameter",null,"No",{"v":1,"d":"1 "},null,{"$f":"ROUND(F2408*G2408,2)","v":{"v":0,"d":"0.00"}}]
[]
[null,null,"CHAMBERS"]
[]
[{"v":159,"d":"159 "},null,"Construct concrete inlet and outlet chamber Type 1 complete with step irons, and frames as per detailed drawings, up to 2.5m depth.",null,"No",{"v":1,"d":"1 "},null,{"$f":"ROUND(F2412*G2412,2)","v":{"v":0,"d":"0.00"}}]
[]
[{"v":160,"d":"160 "},null,"Construct concrete inlet chamber Type 2 complete with step irons, and frames as per detailed drawings, up to 2.5m depth.",null,"No","0.0",null,"Rate Only"]
[]
[{"v":161,"d":"161 "},null,"Construct concrete outlet chamber Type 3 complete with step irons, and frames as per detailed drawings, up to 2.5m depth.",null,"No","0.0",null,"Rate Only"]
[]
[{"v":162,"d":"162 "},null,"Construct  scour valve chamber Type 4  , complete with step irons, and frames as per detailed drawings up to 2.5m depth.",null,"No","0.0",null,"Rate Only"]
[]
[{"v":163,"d":"163 "},null,"Construct  scour valve chambers Type 5  , completewith step irons, and overflow box, and frames as per detailed drawings, up to 2.5m depth.",null,"No",{"v":1,"d":"1 "}]
[]
[{"v":164,"d":"164 "},null,"Construct  isolating valve chamber Type 6, complete with step irons, and frames as per detailed drawings, up to 2.3m",null,"No","0.0",null,"Rate Only"]
[]
[{"v":165,"d":"165 "},null,"Construct  isolating valve chamber Type 7, complete with step irons, and frames as per detailed drawings, up to 2.3m",null,"No","0.0",null,"Rate Only"]
[]
[{"v":166,"d":"166 "},null,"Construct inlet and outlet chamber Type 8, complete with step irons,and frames as per detailed drawing, up to 2.4m depth.",null,"No","0.0",null,"Rate Only"]
[]
[{"v":167,"d":"167 "},null,"Provision of lockable manhole covers",null,"No",{"v":2,"d":"2 "},null,{"$f":"ROUND(F2428*G2428,2)","v":{"v":0,"d":"0.00"}}]
[]
[null,null,"SUNDRIES"]
[]
[{"v":168,"d":"168 "},null,"Thrust blocks and pedestals class 25/19 concrete",null,"m³",{"v":5,"d":"5 "},null,{"$f":"ROUND(F2432*G2432,2)","v":{"v":0,"d":"0.00"}}]
[]
[{"v":169,"d":"169 "},null,"Disinfection of the pipeline including the associated fittings",null,"m",{"v":212,"d":"212 "},null,{"$f":"ROUND(F2434*G2434,2)","v":{"v":0,"d":"0.00"}}]
[]
[{"$nulls":7},{"$f":"SUM(H2279:H2435)","v":{"v":0,"d":"0.00"}},null,2393690]
[]
[null,null,"SECTION 4"]
[]
[null,null,"BILL NO 6"]
[]
[null,null,"SECTION : SITE CLEARANCE"]
[]
[null,null,"CLEAR SITE"]
[]
[{"v":170,"d":"170 "},null,"Clear and grub Site",null,"HA",{"v":1,"d":"1 "},null,{"$f":"+F2446*G2446","v":{"v":0,"d":"0.00"}}]
[]
[null,null,"Remove and grub large trees and tree stumps of girth Over and up to"]
[]
[{"v":171,"d":"171 "},null,"1 m 2 m",null,"No",{"v":2,"d":"2 "},null,{"$f":"ROUND(F2450*G2450,2)","v":{"v":0,"d":"0.00"}}]
[]
[{"v":172,"d":"172 "},null,"2 m 3 m",null,"No",{"v":1,"d":"1 "},null,{"$f":"ROUND(F2452*G2452,2)","v":{"v":0,"d":"0.00"}}]
[]
[{"v":173,"d":"173 "},null,"3 m upwards in 1 m steps",null,"No",{"v":1,"d":"1 "},null,{"$f":"ROUND(F2454*G2454,2)","v":{"v":0,"d":"0.00"}}]
[]
[{"v":174,"d":"174 "},null,"Reclear surfaces (provisional) (where ordered by Engineer)",null,"HA",{"v":1,"d":"1 "},null,{"$f":"+F2456*G2456","v":{"v":0,"d":"0.00"}}]
[]
[{"v":175,"d":"175 "},null,"Take down existing fences",null,"KM","0.0",null,"Rate Only"]
[]
[{"v":176,"d":"176 "},null,"Dismantle and remove pipelines (not encased in concrete), electricity transmission lines, cables, etc.",null,"m",{"v":750,"d":"750 "},null,{"$f":"ROUND(F2460*G2460,2)","v":{"v":0,"d":"0.00"}}]
[]
[{"v":177,"d":"177 "},null,"Dismantle and remove pipelines encased in concrete",null,"m","0.0",null,"Rate Only"]
[]
[{"v":178,"d":"178 "},null,"Excavate carefully, lift, recover and deliver sewer pipes to  temporal store. (Excavation and backfilling measured elsewhere)",null,"m",{"v":750,"d":"750 "},null,{"$f":"ROUND(F2464*G2464,2)","v":{"v":0,"d":"0.00"}}]
[]
[{"v":179,"d":"179 "},null,"Demolish and remove structures/buildings",null,"SUM",{"v":7500,"d":"7,500 "},null,"Rate Only"]
[]
[{"v":180,"d":"180 "},null,"Dismantle steelwork, etc.",null,"SUM",{"v":1,"d":"1 "},null,{"$f":"ROUND(F2468*G2468,2)","v":{"v":0,"d":"0.00"}}]
[]
[{"v":181,"d":"181 "},null,"Cart materials and debris to unspecified sites and dump (provisional)",null,"T/KM",{"v":25,"d":"25 "},null,{"$f":"ROUND(F2470*G2470,2)","v":{"v":0,"d":"0.00"}}]
[]
[null,null,"ALTERNATIVE"]
[]
[{"v":182,"d":"182 "},null,"Remove and grub all trees and tree stumps regardless of girth",null,"HA",{"v":1,"d":"1 "},null,{"$f":"ROUND(F2474*G2474,2)","v":{"v":0,"d":"0.00"}}]
[]
[null,null,"SECTION : PIPE TRENCHES (SEWER)"]
[]
[null,null,"EXCAVATION"]
[]
[null,null,"Excavate in all materials for trenches backfill, compact, and dispose of surplus/unsuitable material, for pipes up to 300 mm diam. for total trench depth:"]
[]
[{"v":183,"d":"183 "},null,"Exceeding 0,0 m but not exceeding 1,0 m",null,"m",{"v":250,"d":"250 "},null,{"$f":"ROUND(F2482*G2482,2)","v":{"v":0,"d":"0.00"}}]
[]
[{"v":184,"d":"184 "},null,"Exceeding 1,0 m but not exceeding 2,0 m",null,"m",{"v":500,"d":"500 "},null,{"$f":"ROUND(F2484*G2484,2)","v":{"v":0,"d":"0.00"}}]
[]
[{"v":185,"d":"185 "},null,"Exceeding 2,0 m but not exceeding 3,0 m",null,"m","0.0",null,"Rate Only"]
[]
[{"v":186,"d":"186 "},null,"Intermediate excavation",null,"m³",{"v":135,"d":"135 "},null,{"$f":"ROUND(F2488*G2488,2)","v":{"v":0,"d":"0.00"}}]
[]
[{"v":187,"d":"187 "},null,"Hard rock excavation",null,"m³",{"v":90,"d":"90 "},null,{"$f":"ROUND(F2490*G2490,2)","v":{"v":0,"d":"0.00"}}]
[]
[{"v":188,"d":"188 "},null,"Excavate and dispose of unsuitable material from trench bottom (Provisional)",null,"m³",{"v":68,"d":"68 "},null,{"$f":"ROUND(F2492*G2492,2)","v":{"v":0,"d":"0.00"}}]
[]
[null,null,"EXCAVATION. ANCILLARIES Make up deficiency in backfill material (Provisional)"]
[]
[{"v":189,"d":"189 "},null,"from other necessary excavations on site",null,"m³",{"v":25,"d":"25 "},null,{"$f":"ROUND(F2496*G2496,2)","v":{"v":0,"d":"0.00"}}]
[]
[{"v":190,"d":"190 "},null,"by importation from designated borrow pits",null,"m³",{"v":50,"d":"50 "},null,{"$f":"ROUND(F2498*G2498,2)","v":{"v":0,"d":"0.00"}}]
[]
[{"v":191,"d":"191 "},null,"by importation from commercial or off-site sources selected by the Contractor",null,"m³",{"v":50,"d":"50 "},null,{"$f":"ROUND(F2500*G2500,2)","v":{"v":0,"d":"0.00"}}]
[]
[{"v":192,"d":"192 "},null,"Open up and close down borrow pit",null,"SUM",{"v":1,"d":"1 "},null,{"$f":"ROUND(F2502*G2502,2)","v":{"v":0,"d":"0.00"}}]
[]
[{"v":193,"d":"193 "},null,"Compaction in road reserves",null,"m³",{"v":100,"d":"100 "},null,{"$f":"ROUND(F2504*G2504,2)","v":{"v":0,"d":"0.00"}}]
[]
[{"v":194,"d":"194 "},null,"Special haul : Over 50 m up to 0,5 km (provisional)",null,"m³",{"v":100,"d":"100 "},null,{"$f":"ROUND(F2506*G2506,2)","v":{"v":0,"d":"0.00"}}]
[]
[{"v":195,"d":"195 "},null,"Limited overhaul (provisional)",null,"m³",{"v":50,"d":"50 "},null,{"$f":"ROUND(F2508*G2508,2)","v":{"v":0,"d":"0.00"}}]
[]
[{"v":196,"d":"196 "},null,"Long overhaul (provisional)",null,"M3/KM",{"v":250,"d":"250 "},null,{"$f":"ROUND(F2510*G2510,2)","v":{"v":0,"d":"0.00"}}]
[]
[null,null,"Shore trench"]
[]
[{"v":197,"d":"197 "},null,"opp. existing buildings",null,"m","0.0",null,"Rate Only"]
[]
[{"v":198,"d":"198 "},null,"opp. existing services",null,"m","0.0",null,"Rate Only"]
[]
[null,null,"Temporary works : Control water inflow from existing network to temporary pond"]
[]
[{"v":199,"d":"199 "},null,"Provide equipment",null,"SUM",{"v":1,"d":"1 "},null,{"$f":"ROUND(F2520*G2520,2)","v":{"v":0,"d":"0.00"}}]
[]
[{"v":200,"d":"200 "},null,"Operate and maintain",null,"DAY",{"v":20,"d":"20 "},null,{"$f":"ROUND(F2522*G2522,2)","v":{"v":0,"d":"0.00"}}]
[]
[null,null,"EXISTING SERVICES"]
[]
[null,null,"Services across and in trenches"]
[]
[null,null,"Location"]
[]
[{"v":201,"d":"201 "},null,"Excavate by hand in soft material to expose existing services",null,"DAY",{"v":75,"d":"75 "},null,{"$f":"ROUND(F2530*G2530,2)","v":{"v":0,"d":"0.00"}}]
[]
[null,null,"Dealing with services"]
[]
[{"v":202,"d":"202 "},null,"Permanent protection of existing services (Sum/daywork)",null,"DAY",{"v":5,"d":"5 "},null,"Rate Only"]
[]
[{"v":203,"d":"203 "},null,"Temporary protection of existing services (Sum/daywork)",null,"DAY",{"v":5,"d":"5 "},null,"Rate Only"]
[]
[null,null,"FINISHINGS"]
[]
[null,null,"Reinstate road surfaces"]
[]
[{"v":204,"d":"204 "},null,"a) Complete with all courses except surfacing",null,"m²",{"v":100,"d":"100 "},null,{"$f":"ROUND(F2542*G2542,2)","v":{"v":0,"d":"0.00"}}]
[]
[{"v":205,"d":"205 "},null,"b) Gravel surfaced",null,"m²",{"v":250,"d":"250 "},null,{"$f":"ROUND(F2544*G2544,2)","v":{"v":0,"d":"0.00"}}]
[]
[null,null,"SECTION : BEDDING"]
[]
[null,null,"PROVISION OF BEDDING"]
[]
[null,null,"Available from trench within 0,5 km (Subclause 3.4.1)"]
[]
[{"v":206,"d":"206 "},null,"a) Selected granular material",null,"m³",{"v":25,"d":"25 "},null,{"$f":"ROUND(F2552*G2552,2)","v":{"v":0,"d":"0.00"}}]
[]
[{"v":207,"d":"207 "},null,"b) Selected fill material",null,"m³",{"v":30,"d":"30 "},null,{"$f":"ROUND(F2554*G2554,2)","v":{"v":0,"d":"0.00"}}]
[]
[null,null,"Imported from"]
[]
[null,null,"a) Other necessary excavations within 0.5 km (Provisional)"]
[]
[{"v":208,"d":"208 "},null,"1) Selected granular material",null,"m³",{"v":10,"d":"10 "},null,{"$f":"ROUND(F2560*G2560,2)","v":{"v":0,"d":"0.00"}}]
[]
[{"v":209,"d":"209 "},null,"2) Selected fill blanket",null,"m³",{"v":10,"d":"10 "},null,{"$f":"ROUND(F2562*G2562,2)","v":{"v":0,"d":"0.00"}}]
[]
[null,null,"b) Borrow pits (Provisional)"]
[]
[{"v":210,"d":"210 "},null,"1) Selected granular material",null,"m³",{"v":63,"d":"63 "},null,{"$f":"ROUND(F2566*G2566,2)","v":{"v":0,"d":"0.00"}}]
[]
[{"v":211,"d":"211 "},null,"2) Selected fill material",null,"m³",{"v":90,"d":"90 "},null,{"$f":"ROUND(F2568*G2568,2)","v":{"v":0,"d":"0.00"}}]
[]
[null,null,"c) Commercial sources (Provisional)"]
[]
[{"v":212,"d":"212 "},null,"1) Selected granular material",null,"m3","0.0",null,"Rate Only"]
[]
[{"v":213,"d":"213 "},null,"2) Selected fill material",null,"m3","0.0",null,"Rate Only"]
[]
[{"v":214,"d":"214 "},null,"Concrete bedding (Provisional)",null,"m³",{"v":5,"d":"5 "},null,{"$f":"ROUND(F2576*G2576,2)","v":{"v":0,"d":"0.00"}}]
[]
[null,null,"Overhaul of material for bedding (Provisional) where ordered Extra-over items .1.1 to .1.6"]
[]
[{"v":215,"d":"215 "},null,"a) Selected granular material",null,"M3/KM",{"v":500,"d":"500 "},null,{"$f":"+F2580*G2580","v":{"v":0,"d":"0.00"}}]
[]
[{"v":216,"d":"216 "},null,"b) Selected fill material",null,"M3/KM",{"v":500,"d":"500 "},null,{"$f":"+F2582*G2582","v":{"v":0,"d":"0.00"}}]
[]
[null,null,"SECTION : SEWERS"]
[]
[null,null,"SEWER PIPEWORK"]
[]
[null,null,"Supply, lay, joint, bed  Class C and test sewer pipes"]
[]
[{"v":217,"d":"217 "},null,"110 mm diam., Mainlite 400 KPa",null,"m",{"v":125,"d":"125 "},null,{"$f":"ROUND(F2590*G2590,2)","v":{"v":0,"d":"0.00"}}]
[]
[{"v":218,"d":"218 "},null,"160mm diam., Mainlite 400 KPa",null,"m",{"v":300,"d":"300 "},null,{"$f":"ROUND(F2592*G2592,2)","v":{"v":0,"d":"0.00"}}]
[]
[{"v":219,"d":"219 "},null,"200mm diam., Mainlite 400 KPa",null,"m",{"v":325,"d":"325 "},null,{"$f":"ROUND(F2594*G2594,2)","v":{"v":0,"d":"0.00"}}]
[]
[{"v":220,"d":"220 "},null,"300mm diam., Mainlite 400 KPa",null,"m","0.0",null,"Rate Only"]
[]
[null,null,"Extra-over item .3 for supply, lay, joint, bed Class C and test  specials"]
[]
[{"v":221,"d":"221 "},null,"150 mm 45 deg. access bends",null,"No",{"v":25,"d":"25 "},null,{"$f":"ROUND(F2600*G2600,2)","v":{"v":0,"d":"0.00"}}]
[]
[{"v":222,"d":"222 "},null,"225 mm x 100 mm pipe junctions",null,"No",{"v":13,"d":"13 "},null,{"$f":"ROUND(F2602*G2602,2)","v":{"v":0,"d":"0.00"}}]
[]
[{"v":223,"d":"223 "},null,"375 mm end caps",null,"No","0.0",null,"Rate Only"]
[]
[null,null,"BEDDING MATERIALS Supply and deliver"]
[]
[{"v":224,"d":"224 "},null,"Selected granular material",null,"m³",{"v":100,"d":"100 "},null,{"$f":"ROUND(F2608*G2608,2)","v":{"v":0,"d":"0.00"}}]
[]
[{"v":225,"d":"225 "},null,"Selected fill material",null,"m³",{"v":423,"d":"423 "},null,{"$f":"ROUND(F2610*G2610,2)","v":{"v":0,"d":"0.00"}}]
[]
[null,null,"MANHOLES, ETC. Manholes to Dwg No. ..........complete with Type 4 cover and frame, for depths over and up to"]
[]
[{"v":226,"d":"226 "},null,"- 0.5 m",null,"No",{"v":1,"d":"1 "},null,{"$f":"ROUND(F2614*G2614,2)","v":{"v":0,"d":"0.00"}}]
[]
[{"v":227,"d":"227 "},null,"0.5 m to 1,0 m",null,"No",{"v":5,"d":"5 "},null,{"$f":"ROUND(F2616*G2616,2)","v":{"v":0,"d":"0.00"}}]
[]
[{"v":228,"d":"228 "},null,"1,0 m to 1,5 m",null,"No",{"v":8,"d":"8 "},null,{"$f":"ROUND(F2618*G2618,2)","v":{"v":0,"d":"0.00"}}]
[]
[{"v":229,"d":"229 "},null,"Extra-over item .5 for Type 2A cover and frame in road areas",null,"No","0.0",null,"Rate Only"]
[]
[null,null,"Extra-over item .5 for construction of backdrops and ramps including extra excavation, formwork, joints, etc., for depths over and up to 3m"]
[]
[{"v":230,"d":"230 "},null,"- 1,0 m",null,"No",{"v":3,"d":"3 "},null,{"$f":"ROUND(F2624*G2624,2)","v":{"v":0,"d":"0.00"}}]
[]
[{"v":231,"d":"231 "},null,"1,0 m 2,0 m",null,"No",{"v":3,"d":"3 "},null,{"$f":"ROUND(F2626*G2626,2)","v":{"v":0,"d":"0.00"}}]
[]
[{"v":232,"d":"232 "},null,"2,0 m 3,0 m",null,"No",{"v":3,"d":"3 "},null,{"$f":"ROUND(F2628*G2628,2)","v":{"v":0,"d":"0.00"}}]
[]
[null,null,"Erf Connections Direct as per Dwg. No. LD-7"]
[]
[{"v":233,"d":"233 "},null,"100 mm, 4-5 m long, to sewers up to 225 mm",null,"No","0.0",null,"Rate Only"]
[]
[{"v":234,"d":"234 "},null,"156 mm, 4-5 m long, to sewers up to 375 mm",null,"No","0.0",null,"Rate Only"]
[]
[null,null,"Sloping drop as per Dwg. No. LD-8, max. slope 1:20"]
[]
[{"v":235,"d":"235 "},null,"100 mm, 2-3 m long, to sewers up to 225 mm",null,"No","0.0",null,"Rate Only"]
[]
[null,null,"SUNDRIES"]
[]
[{"v":236,"d":"236 "},null,"Casing to pipes, concrete mix 25/19",null,"m³",{"v":25,"d":"25 "},null,{"$f":"ROUND(F2642*G2642,2)","v":{"v":0,"d":"0.00"}}]
[]
[{"v":237,"d":"237 "},null,"Anchor blocks, concrete mix 25/19",null,"m³",{"v":25,"d":"25 "},null,{"$f":"ROUND(F2644*G2644,2)","v":{"v":0,"d":"0.00"}}]
[]
[{"v":238,"d":"238 "},null,"Marker posts, complete, installed",null,"No",{"v":10,"d":"10 "},null,"Rate Only"]
[]
[{"v":239,"d":"239 "},null,"Permanent plug stoppers",null,"No","0.0",null,"Rate Only"]
[]
[{"v":240,"d":"240 "},null,"Break into and connect to existing manhole including flexible joints as Dwg. No. LD-2 and make good all benching",null,"SUM",{"v":1,"d":"1 "},null,{"$f":"ROUND(F2650*G2650,2)","v":{"v":0,"d":"0.00"}}]
[]
[{"v":241,"d":"241 "},null,"Raising or lowering of existing manholes",null,"No",{"v":28,"d":"28 "},null,{"$f":"ROUND(F2652*G2652,2)","v":{"v":0,"d":"0.00"}}]
[]
[{"$nulls":7},{"$f":"SUM(H2439:H2653)","v":{"v":0,"d":"0.00"}}]
[]
[{"v":1,"d":"1 "},null,"Site Clearance",null,"Page",{"v":94,"d":"94 "},null,{"$f":"+H1932","v":{"v":0,"d":"0.00"}}]
[]
[{"v":2,"d":"2 "},null,"Water Supply - Earthworks",null,"Page",{"v":98,"d":"98 "},null,{"$f":"+H2022","v":{"v":0,"d":"0.00"}}]
[]
[{"v":3,"d":"3 "},null,"Water Supply  - Pipeworks",null,"Page",{"v":105,"d":"105 "},null,{"$f":"+H2218","v":{"v":0,"d":"0.00"}}]
[]
[{"v":4,"d":"4 "},null,"Elevated Tank - Earthworks",null,"Page",{"v":108,"d":"108 "},null,{"$f":"+H2272","v":{"v":0,"d":"0.00"}}]
[]
[{"v":5,"d":"5 "},null,"Prefabricated Steel Tank",null,"Page",{"v":115,"d":"115 "},null,{"$f":"H2436","v":{"v":0,"d":"0.00"}}]
[]
[{"v":6,"d":"6 "},null,"Sewer",null,"Page",{"v":123,"d":"123 "},null,{"$f":"+H2654","v":{"v":0,"d":"0.00"}}]
[]
[{"$nulls":7},{"$f":"SUM(H2656:H2667)","v":{"v":0,"d":"0.00"}}]
[]
[null,null,"SECTION NO 5: ELECTRICAL INSTALLATION"]
[]
[null,null,"BILL NO 1"]
[]
[null,null,"MEDIUM VOLTAGE INSTALLATION"]
[]
[null,null,"PAINTWORK"]
[]
[null,null,"MV switchgear"]
[]
[null,null,"Refer to detail and standard specification and drawing"]
[]
[null,null,"Supply and delivery of ring main units"]
[]
[{"v":1,"d":"1 "},null,"Outdoor 630A, 11kV non-extendable RMU as specified",null,"No",{"v":1,"d":"1 "},null,{"$f":"ROUND(F2684*G2684,2)","v":{"v":0,"d":"0.00"}}]
[]
[null,null,"Installation, including rigging into position of ring main units"]
[]
[{"v":2,"d":"2 "},null,"Outdoor non-extendable RMU rigging, incl: off-loading and hoisting into position",null,"No",{"v":1,"d":"1 "},null,{"$f":"ROUND(F2688*G2688,2)","v":{"v":0,"d":"0.00"}}]
[]
[null,null,"Miniature Substation"]
[]
[null,null,"Supply and delivery of Type B minisub"]
[]
[{"v":3,"d":"3 "},null,"Oil type transformer - 315 kVA, 11kV/420V C/W 2 x MV Isolators, 1 x MV Circuit Breaker",null,"No",{"v":1,"d":"1 "},null,{"$f":"ROUND(F2694*G2694,2)","v":{"v":0,"d":"0.00"}}]
[]
[null,null,"Installation of minisub including rigging, off-loading and hoisting into position"]
[]
[{"v":4,"d":"4 "},null,"Type B - 315kVA, 11kV/420V",null,"No",{"v":1,"d":"1 "},null,{"$f":"ROUND(F2698*G2698,2)","v":{"v":0,"d":"0.00"}}]
[]
[null,null,"MV Cable"]
[]
[null,null,"Supply only XPLE Type A"]
[]
[null,null,"Rates for the MV cables shall include danger tape as well as cable markers"]
[]
[{"v":5,"d":"5 "},null,"95mm\"², 3 core, Cu, 6.35/11kV",null,"m",{"v":170,"d":"170 "},null,{"$f":"ROUND(F2706*G2706,2)","v":{"v":0,"d":"0.00"}}]
[]
[null,null,"Installation only XLPE Type"]
[]
[{"v":6,"d":"6 "},null,"95mm\"², 3 core, Cu, 6.35/11kV",null,"m",{"v":170,"d":"170 "},null,{"$f":"ROUND(F2710*G2710,2)","v":{"v":0,"d":"0.00"}}]
[]
[null,null,"Termination of XLPE Type A"]
[]
[{"v":7,"d":"7 "},null,"95mm\"², 3 core, Cu, 6.35/11kV",null,"No",{"v":2,"d":"2 "},null,{"$f":"ROUND(F2714*G2714,2)","v":{"v":0,"d":"0.00"}}]
[]
[null,null,"Cable joint kit for XLPE Type A"]
[]
[{"v":8,"d":"8 "},null,"95mm\"², 3 core, Cu, 6.35/11kV",null,"No",{"v":1,"d":"1 "},null,{"$f":"ROUND(F2718*G2718,2)","v":{"v":0,"d":"0.00"}}]
[]
[null,null,"Earthing & Bonding"]
[]
[{"v":9,"d":"9 "},null,"70mm\"² BCEW",null,"m",{"v":175,"d":"175 "},null,{"$f":"ROUND(F2722*G2722,2)","v":{"v":0,"d":"0.00"}}]
[]
[null,null,"Miscellaneous"]
[]
[null,null,"General"]
[]
[{"v":10,"d":"10 "},null,"FAT for one off minisub",null,"Item",{"v":1,"d":"1 "},null,{"$f":"ROUND(F2728*G2728,2)","v":{"v":0,"d":"0.00"}}]
[]
[{"v":11,"d":"11 "},null,"Testing, commissioning of complete MV installation",null,"Item",{"v":1,"d":"1 "},null,{"$f":"ROUND(F2730*G2730,2)","v":{"v":0,"d":"0.00"}}]
[]
[{"v":12,"d":"12 "},null,"Issue MV COC in accordance to SANS10142-2",null,"Item",{"v":1,"d":"1 "},null,{"$f":"ROUND(F2732*G2732,2)","v":{"v":0,"d":"0.00"}}]
[]
[{"v":13,"d":"13 "},null,"Labelling of all cables on both ends",null,"Item",{"v":1,"d":"1 "},null,{"$f":"ROUND(F2734*G2734,2)","v":{"v":0,"d":"0.00"}}]
[]
[{"v":14,"d":"14 "},null,"Dielectric tests for all MV cabling",null,"Item",{"v":1,"d":"1 "},null,{"$f":"ROUND(F2736*G2736,2)","v":{"v":0,"d":"0.00"}}]
[]
[null,null,"LOW VOLTAGE DISTRIBUTION"]
[]
[null,null,"PVC.SWA.PVC Cu Fire Retardant 600/1000V cable"]
[]
[null,null,"Rates for the LV cables shall include danger tape"]
[]
[null,null,"Supply & delivery of cable"]
[]
[{"v":15,"d":"15 "},null,"95mm\"²,  4 core",null,"m",{"v":500,"d":"500 "},null,{"$f":"ROUND(F2746*G2746,2)","v":{"v":0,"d":"0.00"}}]
[]
[null,null,"Installation of cable"]
[]
[{"v":16,"d":"16 "},null,"95mm\"²,  4 core",null,"m",{"v":500,"d":"500 "},null,{"$f":"ROUND(F2750*G2750,2)","v":{"v":0,"d":"0.00"}}]
[]
[null,null,"Termination of cable"]
[]
[{"v":17,"d":"17 "},null,"95mm\"²,  4 core",null,"No",{"v":10,"d":"10 "},null,{"$f":"ROUND(F2754*G2754,2)","v":{"v":0,"d":"0.00"}}]
[]
[null,null,"PVC.SWA.PVC Low halogen 600/1000V cable"]
[]
[null,null,"Supply & delivery of cable"]
[]
[{"v":18,"d":"18 "},null,"16mm\"²,  4 core",null,"m",{"v":140,"d":"140 "},null,{"$f":"ROUND(F2760*G2760,2)","v":{"v":0,"d":"0.00"}}]
[]
[{"v":19,"d":"19 "},null,"6mm\"²,  4 core",null,"m",{"v":5,"d":"5 "},null,{"$f":"ROUND(F2762*G2762,2)","v":{"v":0,"d":"0.00"}}]
[]
[null,null,"Installation of cable"]
[]
[{"v":20,"d":"20 "},null,"16mm\"²,  4 core",null,"m",{"v":140,"d":"140 "},null,{"$f":"ROUND(F2766*G2766,2)","v":{"v":0,"d":"0.00"}}]
[]
[{"v":21,"d":"21 "},null,"6mm\"²,  4 core",null,"m",{"v":5,"d":"5 "},null,{"$f":"ROUND(F2768*G2768,2)","v":{"v":0,"d":"0.00"}}]
[]
[null,null,"Termination of cable"]
[]
[{"v":22,"d":"22 "},null,"16mm\"²,  4 core",null,"No",{"v":12,"d":"12 "},null,{"$f":"ROUND(F2772*G2772,2)","v":{"v":0,"d":"0.00"}}]
[]
[{"v":23,"d":"23 "},null,"6mm\"²,  4 core",null,"No",{"v":2,"d":"2 "},null,{"$f":"ROUND(F2774*G2774,2)","v":{"v":0,"d":"0.00"}}]
[]
[null,null,"Earthing and bonding"]
[]
[null,null,"Earth conductors Bare copper"]
[]
[{"v":24,"d":"24 "},null,"95mm\"² BCEW",null,"m",{"v":500,"d":"500 "},null,{"$f":"ROUND(F2780*G2780,2)","v":{"v":0,"d":"0.00"}}]
[]
[null,null,"Earth conductors Green/Yellow PVC Insulated copper"]
[]
[{"v":25,"d":"25 "},null,"6mm\"²",null,"m",{"v":100,"d":"100 "},null,{"$f":"ROUND(F2784*G2784,2)","v":{"v":0,"d":"0.00"}}]
[]
[null,null,"Earth conductors Black PVC insulated copper"]
[]
[{"v":26,"d":"26 "},null,"16mm\"²",null,"m",{"v":70,"d":"70 "},null,{"$f":"ROUND(F2788*G2788,2)","v":{"v":0,"d":"0.00"}}]
[]
[null,null,"Earth bars"]
[]
[{"v":27,"d":"27 "},null,"500 x 50 x 6mm insulated earth bar with 10mm dia. Pre-drilled holes",null,"No",{"v":2,"d":"2 "},null,{"$f":"ROUND(F2792*G2792,2)","v":{"v":0,"d":"0.00"}}]
[]
[null,null,"Miscellaneous"]
[]
[null,null,"Labelling"]
[]
[{"v":28,"d":"28 "},null,"Labelling of all cables as specified",null,"Item",{"v":1,"d":"1 "},null,{"$f":"ROUND(F2798*G2798,2)","v":{"v":0,"d":"0.00"}}]
[]
[{"v":29,"d":"29 "},null,"Dielectric and insulation resistance tests on all LV cables",null,"Item",{"v":1,"d":"1 "},null,{"$f":"ROUND(F2800*G2800,2)","v":{"v":0,"d":"0.00"}}]
[]
[null,null,"DISTRIBUTION BOARDS AND OUTDOOR KIOSK"]
[]
[null,null,"Main low voltage panel"]
[]
[null,null,"Refer to detail and standard specification and drawing"]
[]
[null,null,"Supply & delivery of DB"]
[]
[{"v":30,"d":"30 "},null,"DB-C",null,"No",{"v":1,"d":"1 "},null,{"$f":"ROUND(F2810*G2810,2)","v":{"v":0,"d":"0.00"}}]
[]
[{"v":31,"d":"31 "},null,"DB-X-GF",null,"No",{"v":1,"d":"1 "},null,{"$f":"ROUND(F2812*G2812,2)","v":{"v":0,"d":"0.00"}}]
[]
[null,null,"Installation of DB"]
[]
[{"v":32,"d":"32 "},null,"DB-C",null,"No",{"v":1,"d":"1 "},null,{"$f":"ROUND(F2816*G2816,2)","v":{"v":0,"d":"0.00"}}]
[]
[{"v":33,"d":"33 "},null,"DB-X-GF",null,"No",{"v":1,"d":"1 "},null,{"$f":"ROUND(F2818*G2818,2)","v":{"v":0,"d":"0.00"}}]
[]
[null,null,"Rigging of DB"]
[]
[{"v":34,"d":"34 "},null,"DB-C",null,"No",{"v":1,"d":"1 "},null,{"$f":"ROUND(F2822*G2822,2)","v":{"v":0,"d":"0.00"}}]
[]
[{"v":35,"d":"35 "},null,"DB-X",null,"No",{"v":1,"d":"1 "},null,{"$f":"ROUND(F2824*G2824,2)","v":{"v":0,"d":"0.00"}}]
[]
[null,null,"Distribution Boards"]
[]
[null,null,"Refer to detail and standard specification and drawing"]
[]
[null,null,"Supply & delivery of DB"]
[]
[{"v":36,"d":"36 "},null,"DB-UPS in Building C",null,"No",{"v":1,"d":"1 "},null,{"$f":"ROUND(F2832*G2832,2)","v":{"v":0,"d":"0.00"}}]
[]
[{"v":37,"d":"37 "},null,"DB-UPS in Building X",null,"No",{"v":1,"d":"1 "},null,{"$f":"ROUND(F2834*G2834,2)","v":{"v":0,"d":"0.00"}}]
[]
[{"v":38,"d":"38 "},null,"DB-X-FF",null,"No",{"v":1,"d":"1 "},null,{"$f":"ROUND(F2836*G2836,2)","v":{"v":0,"d":"0.00"}}]
[]
[null,null,"Installation of DB"]
[]
[{"v":39,"d":"39 "},null,"DB-UPS in Building C",null,"No",{"v":1,"d":"1 "},null,{"$f":"ROUND(F2840*G2840,2)","v":{"v":0,"d":"0.00"}}]
[]
[{"v":40,"d":"40 "},null,"DB-UPS in Building X",null,"No",{"v":1,"d":"1 "},null,{"$f":"ROUND(F2842*G2842,2)","v":{"v":0,"d":"0.00"}}]
[]
[{"v":41,"d":"41 "},null,"DB-X-FF",null,"No",{"v":1,"d":"1 "},null,{"$f":"ROUND(F2844*G2844,2)","v":{"v":0,"d":"0.00"}}]
[]
[null,null,"Outdoor Kiosk"]
[]
[null,null,"Supply & delivery of outdoor weatherproof kiosk"]
[]
[{"v":42,"d":"42 "},null,"Kiosk 1",null,"No",{"v":1,"d":"1 "},null,{"$f":"ROUND(F2850*G2850,2)","v":{"v":0,"d":"0.00"}}]
[]
[null,null,"Installation of kiosk"]
[]
[{"v":43,"d":"43 "},null,"Kiosk 1",null,"No",{"v":1,"d":"1 "},null,{"$f":"ROUND(F2854*G2854,2)","v":{"v":0,"d":"0.00"}}]
[]
[null,null,"General"]
[]
[{"v":44,"d":"44 "},null,"Issue electrical COC for new electrical installation supplied from Distribution Boards installed",null,"No",{"v":6,"d":"6 "},null,{"$f":"ROUND(F2858*G2858,2)","v":{"v":0,"d":"0.00"}}]
[]
[null,null,"RETICULATION AND SUPPORT"]
[]
[null,null,"Trunking"]
[]
[null,null,"PG = Pre-galvanised, HDG = Hot dipped galvanised, PCS = Powder coated steel"]
[]
[null,null,"All wireways to include all supports and fixing materials"]
[]
[null,null,"Trunking, supported in single volume space"]
[]
[{"v":45,"d":"45 "},null,"Supply PG 76 x 76mm high, c/w PVC cover",null,"m",{"v":300,"d":"300 "},null,{"$f":"ROUND(F2870*G2870,2)","v":{"v":0,"d":"0.00"}}]
[]
[{"v":46,"d":"46 "},null,"Supply PG 76 x 127mm high, c/w PVC cover",null,"m",{"v":580,"d":"580 "},null,{"$f":"ROUND(F2872*G2872,2)","v":{"v":0,"d":"0.00"}}]
[]
[{"v":47,"d":"47 "},null,"Install PG 76 x 76mm high, c/w PVC cover",null,"m",{"v":300,"d":"300 "},null,{"$f":"ROUND(F2874*G2874,2)","v":{"v":0,"d":"0.00"}}]
[]
[{"v":48,"d":"48 "},null,"Install PG 76 x 127mm high, c/w PVC cover",null,"m",{"v":580,"d":"580 "},null,{"$f":"ROUND(F2876*G2876,2)","v":{"v":0,"d":"0.00"}}]
[]
[null,null,"Trunking fittings"]
[]
[null,null,"Trunking, radiused bends"]
[]
[{"v":49,"d":"49 "},null,"Supply PG 76 x 76mm high, c/w PVC cover",null,"No",{"v":4,"d":"4 "},null,{"$f":"ROUND(F2882*G2882,2)","v":{"v":0,"d":"0.00"}}]
[]
[{"v":50,"d":"50 "},null,"Supply PG 76 x 127mm high, c/w PVC cover",null,"No",{"v":30,"d":"30 "},null,{"$f":"ROUND(F2884*G2884,2)","v":{"v":0,"d":"0.00"}}]
[]
[{"v":51,"d":"51 "},null,"Install PG 76 x 127mm high, c/w PVC cover",null,"No",{"v":4,"d":"4 "},null,{"$f":"ROUND(F2886*G2886,2)","v":{"v":0,"d":"0.00"}}]
[]
[{"v":52,"d":"52 "},null,"Install PG 76 x 76mm high, c/w PVC cover",null,"No",{"v":30,"d":"30 "},null,{"$f":"ROUND(F2888*G2888,2)","v":{"v":0,"d":"0.00"}}]
[]
[null,null,"Trunking, radiused T-pieces"]
[]
[{"v":53,"d":"53 "},null,"Supply PG 76 x 76mm high, c/w PVC cover",null,"No",{"v":2,"d":"2 "},null,{"$f":"ROUND(F2892*G2892,2)","v":{"v":0,"d":"0.00"}}]
[]
[{"v":54,"d":"54 "},null,"Supply PG 76 x 127mm high, c/w PVC cover",null,"No",{"v":50,"d":"50 "},null,{"$f":"ROUND(F2894*G2894,2)","v":{"v":0,"d":"0.00"}}]
[]
[{"v":55,"d":"55 "},null,"Install PG 76 x 76mm high, c/w PVC cover",null,"No",{"v":2,"d":"2 "},null,{"$f":"ROUND(F2896*G2896,2)","v":{"v":0,"d":"0.00"}}]
[]
[{"v":56,"d":"56 "},null,"Install PG 76 x 127mm high, c/w PVC cover",null,"No",{"v":50,"d":"50 "},null,{"$f":"ROUND(F2898*G2898,2)","v":{"v":0,"d":"0.00"}}]
[]
[null,null,"Trunking, radiused crossovers"]
[]
[{"v":57,"d":"57 "},null,"Supply PG 76 x 76mm high, c/w PVC cover",null,"No",{"v":8,"d":"8 "},null,{"$f":"ROUND(F2902*G2902,2)","v":{"v":0,"d":"0.00"}}]
[]
[{"v":58,"d":"58 "},null,"Supply PG 76 x 127mm high, c/w PVC cover",null,"No",{"v":2,"d":"2 "},null,{"$f":"ROUND(F2904*G2904,2)","v":{"v":0,"d":"0.00"}}]
[]
[{"v":59,"d":"59 "},null,"Install PG 76 x 76mm high, c/w PVC cover",null,"No",{"v":8,"d":"8 "},null,{"$f":"ROUND(F2906*G2906,2)","v":{"v":0,"d":"0.00"}}]
[]
[{"v":60,"d":"60 "},null,"Install PG 76 x 127mm high, c/w PVC cover",null,"No",{"v":2,"d":"2 "},null,{"$f":"ROUND(F2908*G2908,2)","v":{"v":0,"d":"0.00"}}]
[]
[null,null,"Trunking, end caps"]
[]
[{"v":61,"d":"61 "},null,"Supply PG 76 x 76mm high, c/w PVC cover",null,"No",{"v":6,"d":"6 "},null,{"$f":"ROUND(F2912*G2912,2)","v":{"v":0,"d":"0.00"}}]
[]
[{"v":62,"d":"62 "},null,"Supply PG 76 x 127mm high, c/w PVC cover",null,"No",{"v":2,"d":"2 "},null,{"$f":"ROUND(F2914*G2914,2)","v":{"v":0,"d":"0.00"}}]
[]
[{"v":63,"d":"63 "},null,"Install PG 76 x 76mm high, c/w PVC cover",null,"No",{"v":6,"d":"6 "},null,{"$f":"ROUND(F2916*G2916,2)","v":{"v":0,"d":"0.00"}}]
[]
[{"v":64,"d":"64 "},null,"Install PG 76 x 127mm high, c/w PVC cover",null,"No",{"v":2,"d":"2 "},null,{"$f":"ROUND(F2918*G2918,2)","v":{"v":0,"d":"0.00"}}]
[]
[null,null,"Trunking, offsets, consisting of 4 direction changes"]
[]
[{"v":65,"d":"65 "},null,"Supply PG 76 x 76mm high, c/w PVC cover",null,"No",{"v":4,"d":"4 "},null,{"$f":"ROUND(F2922*G2922,2)","v":{"v":0,"d":"0.00"}}]
[]
[{"v":66,"d":"66 "},null,"Supply PG 76 x 127mm high, c/w PVC cover",null,"No",{"v":6,"d":"6 "},null,{"$f":"ROUND(F2924*G2924,2)","v":{"v":0,"d":"0.00"}}]
[]
[{"v":67,"d":"67 "},null,"Install PG 76 x 76mm high, c/w PVC cover",null,"No",{"v":4,"d":"4 "},null,{"$f":"ROUND(F2926*G2926,2)","v":{"v":0,"d":"0.00"}}]
[]
[{"v":68,"d":"68 "},null,"Install PG 76 x 127mm high, c/w PVC cover",null,"No",{"v":6,"d":"6 "},null,{"$f":"ROUND(F2928*G2928,2)","v":{"v":0,"d":"0.00"}}]
[]
[null,null,"HDG wire mesh"]
[]
[null,null,"Wire mesh, supported in single volume space"]
[]
[{"v":69,"d":"69 "},null,"Supply 100mm medium duty",null,"m",{"v":210,"d":"210 "},null,{"$f":"ROUND(F2934*G2934,2)","v":{"v":0,"d":"0.00"}}]
[]
[{"v":70,"d":"70 "},null,"Supply 200mm medium duty",null,"m",{"v":40,"d":"40 "},null,{"$f":"ROUND(F2936*G2936,2)","v":{"v":0,"d":"0.00"}}]
[]
[{"v":71,"d":"71 "},null,"Supply 300mm medium duty",null,"m",{"v":40,"d":"40 "},null,{"$f":"ROUND(F2938*G2938,2)","v":{"v":0,"d":"0.00"}}]
[]
[{"v":72,"d":"72 "},null,"Install 100mm medium duty",null,"m",{"v":210,"d":"210 "},null,{"$f":"ROUND(F2940*G2940,2)","v":{"v":0,"d":"0.00"}}]
[]
[{"v":73,"d":"73 "},null,"Install 200mm medium duty",null,"m",{"v":40,"d":"40 "},null,{"$f":"ROUND(F2942*G2942,2)","v":{"v":0,"d":"0.00"}}]
[]
[{"v":74,"d":"74 "},null,"Install 300mm medium duty",null,"m",{"v":40,"d":"40 "},null,{"$f":"ROUND(F2944*G2944,2)","v":{"v":0,"d":"0.00"}}]
[]
[null,null,"HDG welded wire mesh cable tray fittings"]
[]
[null,null,"Wire mesh bends, 450mm radius"]
[]
[{"v":75,"d":"75 "},null,"Supply HDG 100mm, medium duty",null,"No",{"v":24,"d":"24 "},null,{"$f":"ROUND(F2950*G2950,2)","v":{"v":0,"d":"0.00"}}]
[]
[{"v":76,"d":"76 "},null,"Install HDG 100mm, medium duty",null,"No",{"v":24,"d":"24 "},null,{"$f":"ROUND(F2952*G2952,2)","v":{"v":0,"d":"0.00"}}]
[]
[null,null,"Wire mesh vertical inside/outside bends, 450mm radius"]
[]
[{"v":77,"d":"77 "},null,"Supply HDG 200mm, medium duty",null,"No",{"v":3,"d":"3 "},null,{"$f":"ROUND(F2956*G2956,2)","v":{"v":0,"d":"0.00"}}]
[]
[{"v":78,"d":"78 "},null,"Supply HDG 300mm, medium duty",null,"No",{"v":3,"d":"3 "},null,{"$f":"ROUND(F2958*G2958,2)","v":{"v":0,"d":"0.00"}}]
[]
[{"v":79,"d":"79 "},null,"Install HDG 200mm, medium duty",null,"No",{"v":3,"d":"3 "},null,{"$f":"ROUND(F2960*G2960,2)","v":{"v":0,"d":"0.00"}}]
[]
[{"v":80,"d":"80 "},null,"Install HDG 300mm, medium duty",null,"No",{"v":3,"d":"3 "},null,{"$f":"ROUND(F2962*G2962,2)","v":{"v":0,"d":"0.00"}}]
[]
[null,null,"Wire mesh Tee's, 450mm radius"]
[]
[{"v":81,"d":"81 "},null,"Supply HDG 200mm, medium duty",null,"No",{"v":8,"d":"8 "},null,{"$f":"ROUND(F2966*G2966,2)","v":{"v":0,"d":"0.00"}}]
[]
[{"v":82,"d":"82 "},null,"Supply HDG 300mm, medium duty",null,"No",{"v":3,"d":"3 "},null,{"$f":"ROUND(F2968*G2968,2)","v":{"v":0,"d":"0.00"}}]
[]
[{"v":83,"d":"83 "},null,"Install HDG 200mm, medium duty",null,"No",{"v":8,"d":"8 "},null,{"$f":"ROUND(F2970*G2970,2)","v":{"v":0,"d":"0.00"}}]
[]
[{"v":84,"d":"84 "},null,"Install HDG 300mm, medium duty",null,"No",{"v":3,"d":"3 "},null,{"$f":"ROUND(F2972*G2972,2)","v":{"v":0,"d":"0.00"}}]
[]
[null,null,"Wire mesh crosses, 450mm radius"]
[]
[{"v":85,"d":"85 "},null,"Supply HDG 300mm, medium duty",null,"No",{"v":6,"d":"6 "},null,{"$f":"ROUND(F2976*G2976,2)","v":{"v":0,"d":"0.00"}}]
[]
[{"v":86,"d":"86 "},null,"Install HDG 300mm, medium duty",null,"No",{"v":6,"d":"6 "},null,{"$f":"ROUND(F2978*G2978,2)","v":{"v":0,"d":"0.00"}}]
[]
[null,null,"Conduit and accessories for electronic services"]
[]
[null,null,"Conduit shall include all fixing materials, bends, terminations and draw and extension boxes"]
[]
[null,null,"Conduit built into / cast into or chased into brickwork, concrete or drywall"]
[]
[{"v":87,"d":"87 "},null,"Supply 25mm diameter, PVC",null,"m",{"v":160,"d":"160 "},null,{"$f":"ROUND(F2986*G2986,2)","v":{"v":0,"d":"0.00"}}]
[]
[{"v":88,"d":"88 "},null,"Supply 32mm diameter, PVC",null,"m",{"v":400,"d":"400 "},null,{"$f":"ROUND(F2988*G2988,2)","v":{"v":0,"d":"0.00"}}]
[]
[{"v":89,"d":"89 "},null,"Install 25mm diameter, PVC",null,"m",{"v":160,"d":"160 "},null,{"$f":"ROUND(F2990*G2990,2)","v":{"v":0,"d":"0.00"}}]
[]
[{"v":90,"d":"90 "},null,"Install 32mm diameter, PVC",null,"m",{"v":400,"d":"400 "},null,{"$f":"ROUND(F2992*G2992,2)","v":{"v":0,"d":"0.00"}}]
[]
[null,null,"Draw wire"]
[]
[{"v":91,"d":"91 "},null,"1.6mm\"² galvanised steel",null,"m",{"v":440,"d":"440 "},null,{"$f":"ROUND(F2996*G2996,2)","v":{"v":0,"d":"0.00"}}]
[]
[null,null,"Thermostat points consist of 25mm diameter PVC conduit from ceiling void to 1.2m AFFL ending in box"]
[]
[{"v":92,"d":"92 "},null,"Thermostat points ending in 60mm galvanised steel round boxes, c/w cover plate",null,"No",{"v":20,"d":"20 "},null,{"$f":"ROUND(F3000*G3000,2)","v":{"v":0,"d":"0.00"}}]
[]
[null,null,"Thermostat points consist of 25mm diameter galvanised steel conduit from respective mechanical equipment piece to 1.2m AFFL ending in box"]
[]
[{"v":93,"d":"93 "},null,"Thermostat points ending in 100 x 50 x 50mm, galvanised steel box, c/w blank cover plate",null,"No",{"v":2,"d":"2 "},null,{"$f":"ROUND(F3004*G3004,2)","v":{"v":0,"d":"0.00"}}]
[]
[null,null,"LIGHTING INSTALLATION"]
[]
[null,null,"Conduits, incl. all fixing materials, bends, terminations and draw and extension boxes"]
[]
[null,null,"Conduits built into / cast into or chased into brickwork, concrete or drywall"]
[]
[{"v":94,"d":"94 "},null,"Supply 20mm diameter, PVC",null,"m",{"v":450,"d":"450 "},null,{"$f":"ROUND(F3012*G3012,2)","v":{"v":0,"d":"0.00"}}]
[]
[{"v":95,"d":"95 "},null,"Install 20mm diameter, PVC",null,"m",{"v":450,"d":"450 "},null,{"$f":"ROUND(F3014*G3014,2)","v":{"v":0,"d":"0.00"}}]
[]
[null,null,"Conduit outlet boxes"]
[]
[null,null,"Boxes built/cast into walls or concrete"]
[]
[{"v":96,"d":"96 "},null,"60mm PVC round boxes, c/w cover plate",null,"No",{"v":40,"d":"40 "},null,{"$f":"ROUND(F3020*G3020,2)","v":{"v":0,"d":"0.00"}}]
[]
[{"v":97,"d":"97 "},null,"100 x 50 x 50mm, galvanised steel box",null,"No",{"v":20,"d":"20 "},null,{"$f":"ROUND(F3022*G3022,2)","v":{"v":0,"d":"0.00"}}]
[]
[null,null,"Surface mounted boxes"]
[]
[{"v":98,"d":"98 "},null,"60mm PVC round boxes, c/w cover plate",null,"No",{"v":420,"d":"420 "},null,{"$f":"ROUND(F3026*G3026,2)","v":{"v":0,"d":"0.00"}}]
[]
[null,null,"Wiring"]
[]
[null,null,"Copper conductors"]
[]
[{"v":99,"d":"99 "},null,"Supply 2.5mm\"², PVC insulated conductor",null,"m",{"v":7000,"d":"7,000 "},null,{"$f":"ROUND(F3032*G3032,2)","v":{"v":0,"d":"0.00"}}]
[]
[{"v":100,"d":"100 "},null,"Install 2.5mm\"², PVC insulated conductor",null,"m",{"v":7000,"d":"7,000 "},null,{"$f":"ROUND(F3034*G3034,2)","v":{"v":0,"d":"0.00"}}]
[]
[{"v":101,"d":"101 "},null,"Supply 2.5mm\"², PVC insulated earth conductor",null,"m",{"v":300,"d":"300 "},null,{"$f":"ROUND(F3036*G3036,2)","v":{"v":0,"d":"0.00"}}]
[]
[{"v":102,"d":"102 "},null,"Install 2.5mm\"², PVC insulated earth conductor",null,"m",{"v":300,"d":"300 "},null,{"$f":"ROUND(F3038*G3038,2)","v":{"v":0,"d":"0.00"}}]
[]
[{"v":103,"d":"103 "},null,"Supply 2.5mm\"², bare copper earth conductor",null,"m",{"v":2800,"d":"2,800 "},null,{"$f":"ROUND(F3040*G3040,2)","v":{"v":0,"d":"0.00"}}]
[]
[{"v":104,"d":"104 "},null,"Install 2.5mm\"², bare copper earth conductor",null,"m",{"v":2800,"d":"2,800 "},null,{"$f":"ROUND(F3042*G3042,2)","v":{"v":0,"d":"0.00"}}]
[]
[null,null,"Surfix cabling"]
[]
[null,null,"Switches and sockets"]
[]
[null,null,"6A Unswitched sockets"]
[]
[{"v":105,"d":"105 "},null,"Mounted on 60mm round box, c/w cover plate",null,"No",{"v":420,"d":"420 "},null,{"$f":"ROUND(F3050*G3050,2)","v":{"v":0,"d":"0.00"}}]
[]
[null,null,"16A Light switches, c/w standard steel cover plate"]
[]
[{"v":106,"d":"106 "},null,"Single lever, 1 way",null,"No",{"v":16,"d":"16 "},null,{"$f":"ROUND(F3054*G3054,2)","v":{"v":0,"d":"0.00"}}]
[]
[{"v":107,"d":"107 "},null,"Single lever, master switch",null,"No",{"v":2,"d":"2 "},null,{"$f":"ROUND(F3056*G3056,2)","v":{"v":0,"d":"0.00"}}]
[]
[null,null,"Dimmer Switches, c/w standard steel cover plate"]
[]
[{"v":108,"d":"108 "},null,"Bell pressed dimmer switch",null,"No",{"v":4,"d":"4 "},null,{"$f":"ROUND(F3060*G3060,2)","v":{"v":0,"d":"0.00"}}]
[]
[null,null,"Occupancy and photoelectric sensors"]
[]
[null,null,"Day/night sensors"]
[]
[{"v":109,"d":"109 "},null,"25A Outdoor day/night sensor with adjustable lux level",null,"No",{"v":5,"d":"5 "},null,{"$f":"ROUND(F3066*G3066,2)","v":{"v":0,"d":"0.00"}}]
[]
[null,null,"Ceiling mounted occupancy sensors"]
[]
[{"v":110,"d":"110 "},null,"Recessed ceiling mounted occupancy sensor",null,"No",{"v":45,"d":"45 "},null,{"$f":"ROUND(F3070*G3070,2)","v":{"v":0,"d":"0.00"}}]
[]
[{"v":111,"d":"111 "},null,"Passage way ceiling mounted occupancy sensor",null,"No",{"v":7,"d":"7 "},null,{"$f":"ROUND(F3072*G3072,2)","v":{"v":0,"d":"0.00"}}]
[]
[null,null,"Luminaires"]
[]
[null,null,"Surface / suspended luminaires"]
[]
[{"v":112,"d":"112 "},null,"Supply type R1, 600mm x 600mm Recessed LED panel, 36W 4000k",null,"No",{"v":142,"d":"142 "},null,{"$f":"ROUND(F3078*G3078,2)","v":{"v":0,"d":"0.00"}}]
[]
[{"v":113,"d":"113 "},null,"Supply type DR1, 600mm x 600mm Recessed dimmable LED panel, 36W 4000k",null,"No",{"v":22,"d":"22 "},null,{"$f":"ROUND(F3080*G3080,2)","v":{"v":0,"d":"0.00"}}]
[]
[{"v":114,"d":"114 "},null,"Supply type ER1, 600mm x 600mm Recessed LED panel, 36W 4000k with 60 minute battery backup",null,"No",{"v":34,"d":"34 "},null,{"$f":"ROUND(F3082*G3082,2)","v":{"v":0,"d":"0.00"}}]
[]
[{"v":115,"d":"115 "},null,"Supply type B1, Round wall mounted bulkhead with 3000K, 20W LED, IP65",null,"No",{"v":24,"d":"24 "},null,{"$f":"ROUND(F3084*G3084,2)","v":{"v":0,"d":"0.00"}}]
[]
[{"v":116,"d":"116 "},null,"Supply type EB1, Round wall mounted bulkhead with 3000K, 20W LED, IP65 with 60 min battery backup",null,"No",{"v":14,"d":"14 "},null,{"$f":"ROUND(F3086*G3086,2)","v":{"v":0,"d":"0.00"}}]
[]
[{"v":117,"d":"117 "},null,"Supply type S1, 1200mm long linear LED, 4000K, 36W, 3000lm Asymetrical Optics",null,"No",{"v":14,"d":"14 "},null,{"$f":"ROUND(F3088*G3088,2)","v":{"v":0,"d":"0.00"}}]
[]
[{"v":118,"d":"118 "},null,"Supply type S2, 1200mm long linear LED, 4000K, 34W, 3000lm",null,"No",{"v":2,"d":"2 "},null,{"$f":"ROUND(F3090*G3090,2)","v":{"v":0,"d":"0.00"}}]
[]
[{"v":119,"d":"119 "},null,"Supply type S3, 1200mm long linear LED, 4000K, 34W, 3000lm complete with 60 minute battery",null,"No",{"v":4,"d":"4 "},null,{"$f":"ROUND(F3092*G3092,2)","v":{"v":0,"d":"0.00"}}]
[]
[{"v":120,"d":"120 "},null,"Install type R1",null,"No",{"v":142,"d":"142 "},null,{"$f":"ROUND(F3094*G3094,2)","v":{"v":0,"d":"0.00"}}]
[]
[{"v":121,"d":"121 "},null,"Install type DR1",null,"No",{"v":22,"d":"22 "},null,{"$f":"ROUND(F3096*G3096,2)","v":{"v":0,"d":"0.00"}}]
[]
[{"v":122,"d":"122 "},null,"Install type ER1",null,"No",{"v":34,"d":"34 "},null,{"$f":"ROUND(F3098*G3098,2)","v":{"v":0,"d":"0.00"}}]
[]
[{"v":123,"d":"123 "},null,"Install type B1",null,"No",{"v":24,"d":"24 "},null,{"$f":"ROUND(F3100*G3100,2)","v":{"v":0,"d":"0.00"}}]
[]
[{"v":124,"d":"124 "},null,"Install type EB1",null,"No",{"v":14,"d":"14 "},null,{"$f":"ROUND(F3102*G3102,2)","v":{"v":0,"d":"0.00"}}]
[]
[{"v":125,"d":"125 "},null,"Install type S1",null,"No",{"v":14,"d":"14 "},null,{"$f":"ROUND(F3104*G3104,2)","v":{"v":0,"d":"0.00"}}]
[]
[{"v":126,"d":"126 "},null,"Install type S2",null,"No",{"v":2,"d":"2 "},null,{"$f":"ROUND(F3106*G3106,2)","v":{"v":0,"d":"0.00"}}]
[]
[{"v":127,"d":"127 "},null,"Install type S3",null,"No",{"v":4,"d":"4 "},null,{"$f":"ROUND(F3108*G3108,2)","v":{"v":0,"d":"0.00"}}]
[]
[null,null,"Recessed downlights"]
[]
[{"v":128,"d":"128 "},null,"Supply type RD1, Round recessed LED downlight, 20W, 1700lm",null,"No",{"v":66,"d":"66 "},null,{"$f":"ROUND(F3112*G3112,2)","v":{"v":0,"d":"0.00"}}]
[]
[{"v":129,"d":"129 "},null,"Supply type RD2, Round recessed LED downlight, 12W, 955lm",null,"No",{"v":16,"d":"16 "},null,{"$f":"ROUND(F3114*G3114,2)","v":{"v":0,"d":"0.00"}}]
[]
[{"v":130,"d":"130 "},null,"Supply type RD3, Round recessed LED downlight, 12W, 955lm",null,"No",{"v":35,"d":"35 "},null,{"$f":"ROUND(F3116*G3116,2)","v":{"v":0,"d":"0.00"}}]
[]
[{"v":131,"d":"131 "},null,"Supply type RD4, Round recessed LED downlight, 18W, 1700lm",null,"No",{"v":26,"d":"26 "},null,{"$f":"ROUND(F3118*G3118,2)","v":{"v":0,"d":"0.00"}}]
[]
[{"v":132,"d":"132 "},null,"Supply type ERD1. As per type RD1, but with self-test battery back-up",null,"No",{"v":37,"d":"37 "},null,{"$f":"ROUND(F3120*G3120,2)","v":{"v":0,"d":"0.00"}}]
[]
[{"v":133,"d":"133 "},null,"Supply type ERD2. As per type RD2, but with self-test battery back-up",null,"No",{"v":2,"d":"2 "},null,{"$f":"ROUND(F3122*G3122,2)","v":{"v":0,"d":"0.00"}}]
[]
[{"v":134,"d":"134 "},null,"Supply type ERD3. As per type RD3, but with self-test battery back-up",null,"No",{"v":13,"d":"13 "},null,{"$f":"ROUND(F3124*G3124,2)","v":{"v":0,"d":"0.00"}}]
[]
[{"v":135,"d":"135 "},null,"Supply type ERD4. As per type RD4, but with self-test battery back-up",null,"No",{"v":26,"d":"26 "},null,{"$f":"ROUND(F3126*G3126,2)","v":{"v":0,"d":"0.00"}}]
[]
[{"v":136,"d":"136 "},null,"Install type RD1",null,"No",{"v":66,"d":"66 "},null,{"$f":"ROUND(F3128*G3128,2)","v":{"v":0,"d":"0.00"}}]
[]
[{"v":137,"d":"137 "},null,"Install type RD2",null,"No",{"v":16,"d":"16 "},null,{"$f":"ROUND(F3130*G3130,2)","v":{"v":0,"d":"0.00"}}]
[]
[{"v":138,"d":"138 "},null,"Install type RD3",null,"No",{"v":35,"d":"35 "},null,{"$f":"ROUND(F3132*G3132,2)","v":{"v":0,"d":"0.00"}}]
[]
[{"v":139,"d":"139 "},null,"Install type RD4",null,"No",{"v":26,"d":"26 "},null,{"$f":"ROUND(F3134*G3134,2)","v":{"v":0,"d":"0.00"}}]
[]
[{"v":140,"d":"140 "},null,"Install type ERD1",null,"No",{"v":37,"d":"37 "},null,{"$f":"ROUND(F3136*G3136,2)","v":{"v":0,"d":"0.00"}}]
[]
[{"v":141,"d":"141 "},null,"Install type ERD2",null,"No",{"v":2,"d":"2 "},null,{"$f":"ROUND(F3138*G3138,2)","v":{"v":0,"d":"0.00"}}]
[]
[{"v":142,"d":"142 "},null,"Install type ERD3",null,"No",{"v":13,"d":"13 "},null,{"$f":"ROUND(F3140*G3140,2)","v":{"v":0,"d":"0.00"}}]
[]
[{"v":143,"d":"143 "},null,"Install type ERD4",null,"No",{"v":26,"d":"26 "},null,{"$f":"ROUND(F3142*G3142,2)","v":{"v":0,"d":"0.00"}}]
[]
[null,null,"SMALL POWER INSTALLATION"]
[]
[null,null,"Conduit incl. all fixing materials, bends, terminations and draw and extension boxes"]
[]
[null,null,"Conduit built into / cast into or chased into brickwork, concrete or drywall"]
[]
[{"v":144,"d":"144 "},null,"Supply 25mm diameter, PVC",null,"m",{"v":360,"d":"360 "},null,{"$f":"ROUND(F3150*G3150,2)","v":{"v":0,"d":"0.00"}}]
[]
[{"v":145,"d":"145 "},null,"Install 25mm diameter, PVC",null,"m",{"v":360,"d":"360 "},null,{"$f":"ROUND(F3152*G3152,2)","v":{"v":0,"d":"0.00"}}]
[]
[{"v":146,"d":"146 "},null,"Supply 32mm diameter, PVC",null,"m",{"v":320,"d":"320 "},null,{"$f":"ROUND(F3154*G3154,2)","v":{"v":0,"d":"0.00"}}]
[]
[{"v":147,"d":"147 "},null,"Install 32mm diameter, PVC",null,"m",{"v":320,"d":"320 "},null,{"$f":"ROUND(F3156*G3156,2)","v":{"v":0,"d":"0.00"}}]
[]
[null,null,"Surface mounted conduit"]
[]
[{"v":148,"d":"148 "},null,"Supply 25mm diameter, PVC",null,"m",{"v":140,"d":"140 "},null,{"$f":"ROUND(F3160*G3160,2)","v":{"v":0,"d":"0.00"}}]
[]
[{"v":149,"d":"149 "},null,"Install 25mm diameter, PVC",null,"m",{"v":140,"d":"140 "},null,{"$f":"ROUND(F3162*G3162,2)","v":{"v":0,"d":"0.00"}}]
[]
[null,null,"Conduit outlet boxes"]
[]
[null,null,"Boxes built/cast into walls or concrete"]
[]
[{"v":150,"d":"150 "},null,"100 x 100 x 50mm, galvanised box",null,"No",{"v":80,"d":"80 "},null,{"$f":"ROUND(F3168*G3168,2)","v":{"v":0,"d":"0.00"}}]
[]
[null,null,"Surface mounted boxes"]
[]
[{"v":151,"d":"151 "},null,"100 x 100 x 50mm, powder coated steel box",null,"No",{"v":38,"d":"38 "},null,{"$f":"ROUND(F3172*G3172,2)","v":{"v":0,"d":"0.00"}}]
[]
[null,null,"Wiring"]
[]
[null,null,"Copper conductors"]
[]
[{"v":152,"d":"152 "},null,"Supply 4mm\"², PVC insulated conductor",null,"m",{"v":10500,"d":"10,500 "},null,{"$f":"ROUND(F3178*G3178,2)","v":{"v":0,"d":"0.00"}}]
[]
[{"v":153,"d":"153 "},null,"Install 4mm\"², PVC insulated conductor",null,"m",{"v":10500,"d":"10,500 "},null,{"$f":"ROUND(F3180*G3180,2)","v":{"v":0,"d":"0.00"}}]
[]
[{"v":154,"d":"154 "},null,"Supply 4mm\"², PVC insulated earth conductor",null,"m",{"v":2500,"d":"2,500 "},null,{"$f":"ROUND(F3182*G3182,2)","v":{"v":0,"d":"0.00"}}]
[]
[{"v":155,"d":"155 "},null,"Install 4mm\"², PVC insulated earth conductor",null,"m",{"v":2500,"d":"2,500 "},null,{"$f":"ROUND(F3184*G3184,2)","v":{"v":0,"d":"0.00"}}]
[]
[{"v":156,"d":"156 "},null,"Supply 4mm\"², bare copper earth conductor",null,"m",{"v":2800,"d":"2,800 "},null,{"$f":"ROUND(F3186*G3186,2)","v":{"v":0,"d":"0.00"}}]
[]
[{"v":157,"d":"157 "},null,"Install 4mm\"², bare copper earth conductor",null,"m",{"v":2800,"d":"2,800 "},null,{"$f":"ROUND(F3188*G3188,2)","v":{"v":0,"d":"0.00"}}]
[]
[null,null,"Power skirting fittings"]
[]
[null,null,"Two compartment"]
[]
[{"v":158,"d":"158 "},null,"Supply power coated steel, power skirting, c/w cover",null,"m",{"v":300,"d":"300 "},null,{"$f":"ROUND(F3194*G3194,2)","v":{"v":0,"d":"0.00"}}]
[]
[{"v":159,"d":"159 "},null,"Install power coated steel, power skirting, c/w cover",null,"m",{"v":300,"d":"300 "},null,{"$f":"ROUND(F3196*G3196,2)","v":{"v":0,"d":"0.00"}}]
[]
[null,null,"Two compartment fittings"]
[]
[{"v":160,"d":"160 "},null,"Supply powder coated internal/external elbow",null,"No",{"v":10,"d":"10 "},null,{"$f":"ROUND(F3200*G3200,2)","v":{"v":0,"d":"0.00"}}]
[]
[{"v":161,"d":"161 "},null,"Install powder coated internal/external elbow",null,"No",{"v":10,"d":"10 "},null,{"$f":"ROUND(F3202*G3202,2)","v":{"v":0,"d":"0.00"}}]
[]
[{"v":162,"d":"162 "},null,"Supply powder coated flat T-piece",null,"No",{"v":14,"d":"14 "},null,{"$f":"ROUND(F3204*G3204,2)","v":{"v":0,"d":"0.00"}}]
[]
[{"v":163,"d":"163 "},null,"Install powder coated flat T-piece",null,"No",{"v":14,"d":"14 "},null,{"$f":"ROUND(F3206*G3206,2)","v":{"v":0,"d":"0.00"}}]
[]
[{"v":164,"d":"164 "},null,"Supply powder coated end cap",null,"No",{"v":40,"d":"40 "},null,{"$f":"ROUND(F3208*G3208,2)","v":{"v":0,"d":"0.00"}}]
[]
[{"v":165,"d":"165 "},null,"Install powder coated end cap",null,"No",{"v":40,"d":"40 "},null,{"$f":"ROUND(F3210*G3210,2)","v":{"v":0,"d":"0.00"}}]
[]
[null,null,"Floorboxes/pedestals"]
[]
[null,null,"Floor pedestal, complete with conduit box"]
[]
[{"v":166,"d":"166 "},null,"Supply Terminal Box for cable reticulation in floor",null,"No",{"v":9,"d":"9 "},null,{"$f":"ROUND(F3216*G3216,2)","v":{"v":0,"d":"0.00"}}]
[]
[{"v":167,"d":"167 "},null,"Install Terminal Box for cable reticulation in floor",null,"No",{"v":9,"d":"9 "},null,{"$f":"ROUND(F3218*G3218,2)","v":{"v":0,"d":"0.00"}}]
[]
[{"v":168,"d":"168 "},null,"Supply rectangular Floor Box WB 1 with 1 x dedicated SSO, 1 x normal SSO, 1 x Euro socket, 1 x data socket & 1 x HDMI socket",null,"No",{"v":12,"d":"12 "},null,{"$f":"ROUND(F3220*G3220,2)","v":{"v":0,"d":"0.00"}}]
[]
[{"v":169,"d":"169 "},null,"Install rectangular Floor Box WB1 with 1 x dedicated SSO, 1 x normal SSO, 1 x Euro socket, 1 x data socket & 1 x HDMI socket",null,"No",{"v":12,"d":"12 "},null,{"$f":"ROUND(F3222*G3222,2)","v":{"v":0,"d":"0.00"}}]
[]
[{"v":170,"d":"170 "},null,"Supply rectangular Floor Box WB 2 with 1 x dedicated SSO, 1 x normal SSO, 1 x Euro socket, 1 x data socket",null,"No",{"v":1,"d":"1 "},null,{"$f":"ROUND(F3224*G3224,2)","v":{"v":0,"d":"0.00"}}]
[]
[{"v":171,"d":"171 "},null,"Install rectangular Floor Box WB2 with 1 x dedicated SSO, 1 x normal SSO, 1 x Euro socket, 1 x data socket",null,"No",{"v":1,"d":"1 "},null,{"$f":"ROUND(F3226*G3226,2)","v":{"v":0,"d":"0.00"}}]
[]
[null,null,"Socket outlets"]
[]
[null,null,"Flush mounted, c/w powder coated steel cover plate"]
[]
[{"v":172,"d":"172 "},null,"Standard  3 pin Euro, switched",null,"No",{"v":30,"d":"30 "},null,{"$f":"ROUND(F3232*G3232,2)","v":{"v":0,"d":"0.00"}}]
[]
[{"v":173,"d":"173 "},null,"Single dedicate red switched outlet (Flat earth pin)",null,"No",{"v":26,"d":"26 "},null,{"$f":"ROUND(F3234*G3234,2)","v":{"v":0,"d":"0.00"}}]
[]
[null,null,"Power skirting, floorbox, pedestal, power pole, power panel mounted"]
[]
[{"v":174,"d":"174 "},null,"Standard 3 pin, switched",null,"No",{"v":197,"d":"197 "},null,{"$f":"ROUND(F3238*G3238,2)","v":{"v":0,"d":"0.00"}}]
[]
[{"v":175,"d":"175 "},null,"Dedicate red switched outlet (Flat earth pin)",null,"No",{"v":174,"d":"174 "},null,{"$f":"ROUND(F3240*G3240,2)","v":{"v":0,"d":"0.00"}}]
[]
[{"v":176,"d":"176 "},null,"Single 3 pin Euro, switched",null,"No",{"v":197,"d":"197 "},null,{"$f":"ROUND(F3242*G3242,2)","v":{"v":0,"d":"0.00"}}]
[]
[null,null,"Isolators/Switch disconnectors"]
[]
[null,null,"Flush mounted, switch disconnector"]
[]
[{"v":177,"d":"177 "},null,"20A, double pole",null,"No",{"v":9,"d":"9 "},null,{"$f":"ROUND(F3248*G3248,2)","v":{"v":0,"d":"0.00"}}]
[]
[null,null,"Surface mounted, switch disconnector"]
[]
[{"v":178,"d":"178 "},null,"20A, double pole",null,"No",{"v":6,"d":"6 "},null,{"$f":"ROUND(F3252*G3252,2)","v":{"v":0,"d":"0.00"}}]
[]
[{"v":179,"d":"179 "},null,"63A, double pole",null,"No",{"v":4,"d":"4 "},null,{"$f":"ROUND(F3254*G3254,2)","v":{"v":0,"d":"0.00"}}]
[]
[null,null,"Lockable Rotary Isolators (IP65)"]
[]
[{"v":180,"d":"180 "},null,"20A, double pole",null,"No",{"v":22,"d":"22 "},null,{"$f":"ROUND(F3258*G3258,2)","v":{"v":0,"d":"0.00"}}]
[]
[{"v":181,"d":"181 "},null,"20A, triple pole",null,"No",{"v":3,"d":"3 "},null,{"$f":"ROUND(F3260*G3260,2)","v":{"v":0,"d":"0.00"}}]
[]
[{"v":182,"d":"182 "},null,"63A, triple pole",null,"No",{"v":2,"d":"2 "},null,{"$f":"ROUND(F3262*G3262,2)","v":{"v":0,"d":"0.00"}}]
[]
[null,null,"BUDGETARY ALLOWANCE"]
[]
[null,null,"Budgetary Allowance means an amount included in the contract sum for work intended for execution by the contractor, the extent of which is identified but not detailed"]
[]
[null,null,"Budgetary allowances include the cost of Overheads, Preliminaries and Profit."]
[]
[null,null,"Work for which budgetary allowances are provided will be measured and valued in accordance with the agreement and deducted in whole or in part if not required without any compensation for loss of profit on the said allowances."]
[]
[{"v":183,"d":"183 "},null,"Allow a budgetary allowance of R99,000 (Ninety Nine Thousand) for Lightning Protection",null,"Item",{"v":1,"d":"1 "},null,{"$f":"ROUND(F3272*G3272,2)","v":{"v":0,"d":"0.00"}}]
[]
[{"v":184,"d":"184 "},null,"Contractor's/Subcontractor's percentage mark-up for attendance (includes for preliminaries, overheads and attendance) and profit on External lighting",null,"%IT","10.00"]
[]
[{"v":185,"d":"185 "},null,"Allow a budgetary allowance of R11,000 (Eleven Thousand) for Earthing of Mini-Substation",null,"Item",{"v":1,"d":"1 "},null,{"$f":"ROUND(F3276*G3276,2)","v":{"v":0,"d":"0.00"}}]
[]
[{"v":186,"d":"186 "},null,"Contractor's/Subcontractor's percentage mark-up for attendance (includes for preliminaries, overheads and attendance) and profit on Gatehouse",null,"%IT","10.00"]
[]
[{"$nulls":7},{"$f":"SUM(H2673:H3279)","v":{"v":0,"d":"0.00"}}]
[]
[null,null,"SECTION NO 6: MECHANICAL INSTALLATION"]
[]
[null,null,"BILL NO 1"]
[]
[null,null,"PRELIMINARIES AND GENERAL"]
[]
[null,null,"SPECIAL CONDITIONS OF SUBCONTRACT AGREEMENT (SECTION C) (Refer Part C1.5) Section 01:  Definitions and Abbreviations"]
[]
[{"v":1,"d":"1 "},null,"Section 02:  General",null,"Item",{"v":1,"d":"1 "},null,{"$f":"ROUND(F3290*G3290,2)","v":{"v":0,"d":"0.00"}}]
[]
[{"v":2,"d":"2 "},null,"Section 03:  Drawings and Submissions",null,"Item",{"v":1,"d":"1 "},null,{"$f":"ROUND(F3292*G3292,2)","v":{"v":0,"d":"0.00"}}]
[]
[{"v":3,"d":"3 "},null,"Section 04:  Work provided by Others",null,"Item",{"v":1,"d":"1 "},null,{"$f":"ROUND(F3294*G3294,2)","v":{"v":0,"d":"0.00"}}]
[]
[{"v":4,"d":"4 "},null,"Section 05:  Compliance with Standards and Regulations",null,"Item",{"v":1,"d":"1 "},null,{"$f":"ROUND(F3296*G3296,2)","v":{"v":0,"d":"0.00"}}]
[]
[{"v":5,"d":"5 "},null,"Section 06:  Safety",null,"Item",{"v":1,"d":"1 "},null,{"$f":"ROUND(F3298*G3298,2)","v":{"v":0,"d":"0.00"}}]
[]
[{"v":6,"d":"6 "},null,"Section 07:  Hoisting and Rigging",null,"Item",{"v":1,"d":"1 "},null,{"$f":"ROUND(F3300*G3300,2)","v":{"v":0,"d":"0.00"}}]
[]
[{"v":7,"d":"7 "},null,"Section 08:  Year 2000 Compliance",null,"Item",{"v":1,"d":"1 "},null,{"$f":"ROUND(F3302*G3302,2)","v":{"v":0,"d":"0.00"}}]
[]
[{"v":8,"d":"8 "},null,"Section 09:  Programming",null,"Item",{"v":1,"d":"1 "},null,{"$f":"ROUND(F3304*G3304,2)","v":{"v":0,"d":"0.00"}}]
[]
[{"v":9,"d":"9 "},null,"Section 10:  Contract Management",null,"Item",{"v":1,"d":"1 "},null,{"$f":"ROUND(F3306*G3306,2)","v":{"v":0,"d":"0.00"}}]
[]
[{"v":10,"d":"10 "},null,"Section 11:  Organization and Staff of Subcontractor",null,"Item",{"v":1,"d":"1 "},null,{"$f":"ROUND(F3308*G3308,2)","v":{"v":0,"d":"0.00"}}]
[]
[{"v":11,"d":"11 "},null,"Section 12:  Protection Against Damage",null,"Item",{"v":1,"d":"1 "},null,{"$f":"ROUND(F3310*G3310,2)","v":{"v":0,"d":"0.00"}}]
[]
[{"v":12,"d":"12 "},null,"Section 13:  Access to Equipment and Systems",null,"Item",{"v":1,"d":"1 "},null,{"$f":"ROUND(F3312*G3312,2)","v":{"v":0,"d":"0.00"}}]
[]
[{"v":13,"d":"13 "},null,"Section 14:  Cleaning and Start-up",null,"Item",{"v":1,"d":"1 "},null,{"$f":"ROUND(F3314*G3314,2)","v":{"v":0,"d":"0.00"}}]
[]
[{"v":14,"d":"14 "},null,"Section 15:  Testing, Balancing, Commissioning, Operation of Plant and Handover",null,"Item",{"v":1,"d":"1 "},null,{"$f":"ROUND(F3316*G3316,2)","v":{"v":0,"d":"0.00"}}]
[]
[{"v":15,"d":"15 "},null,"Section 16:  Guarantee (12 months guarantee from date of Practical Completion)",null,"Item",{"v":1,"d":"1 "},null,{"$f":"ROUND(F3318*G3318,2)","v":{"v":0,"d":"0.00"}}]
[]
[{"v":16,"d":"16 "},null,"Section 17:  Quality Management System, Testing and Inspection",null,"Item",{"v":1,"d":"1 "},null,{"$f":"ROUND(F3320*G3320,2)","v":{"v":0,"d":"0.00"}}]
[]
[{"v":17,"d":"17 "},null,"Section 18:  Operating and Maintenance Manuals",null,"Item",{"v":1,"d":"1 "},null,{"$f":"ROUND(F3322*G3322,2)","v":{"v":0,"d":"0.00"}}]
[]
[{"v":18,"d":"18 "},null,"Section 19:  One Year's Maintenance from date of Practical Completion",null,"Item",{"v":1,"d":"1 "},null,{"$f":"ROUND(F3324*G3324,2)","v":{"v":0,"d":"0.00"}}]
[]
[{"v":19,"d":"19 "},null,"Section 20:  Special Attendance",null,"Item",{"v":1,"d":"1 "},null,{"$f":"ROUND(F3326*G3326,2)","v":{"v":0,"d":"0.00"}}]
[]
[{"v":20,"d":"20 "},null,"Section 21: Preparation of Pre-Start up Checklist",null,"Item",{"v":1,"d":"1 "},null,{"$f":"ROUND(F3328*G3328,2)","v":{"v":0,"d":"0.00"}}]
[]
[{"$nulls":7},{"$f":"SUM(H3286:H3329)","v":{"v":0,"d":"0.00"}}]
[]
[null,null,"SECTION NO 6: MECHANICAL INSTALLATION"]
[]
[null,null,"BILL NO 2"]
[]
[null,null,"FRESH AIR"]
[]
[null,null,"Ducting"]
[]
[null,null,"Galvanised sheet metal ducting and fittings including supports and fixings"]
[]
[null,null,"Refer to Part C3.3 Section 09.01"]
[]
[null,null,"Galvanised sheet metal ducting supported in single volume space from trusses"]
[]
[{"v":21,"d":"21 "},null,"     GSM category 1 (< 750mm with semiperimeter < 1150mm)",null,"m²",{"v":141,"d":"141 "},null,{"$f":"ROUND(F3346*G3346,2)","v":{"v":0,"d":"0.00"}}]
[]
[{"v":22,"d":"22 "},null,"     GSM category 2 (< 750mm with semiperimeter > 1150mm)",null,"m2","0.0",null,"Rate Only"]
[]
[{"v":23,"d":"23 "},null,"     GSM category 3 (from 750mm to 1350mm)",null,"m²",{"v":35,"d":"35 "},null,{"$f":"ROUND(F3350*G3350,2)","v":{"v":0,"d":"0.00"}}]
[]
[{"v":24,"d":"24 "},null,"     GSM category 4 (from 1351mm to 2100mm)",null,"m2","0.0",null,"Rate Only"]
[]
[null,null,"Extra over for fittings (bends, transformations, stop ends, shoes, square to rounds, take-offs, offsets)"]
[]
[null,null,"Refer to Part C3.3 Section 09.01 & Part C3.3 Section 18.05.02"]
[]
[null,null,"Galvanised sheet metal ducting bends"]
[]
[{"v":25,"d":"25 "},null,"     GSM duct bend, category 1",null,"No",{"v":5,"d":"5 "},null,{"$f":"ROUND(F3360*G3360,2)","v":{"v":0,"d":"0.00"}}]
[]
[{"v":26,"d":"26 "},null,"     GSM duct bend, category 2",null,"No","0.0",null,"Rate Only"]
[]
[{"v":27,"d":"27 "},null,"     GSM duct bend, category 3",null,"No",{"v":5,"d":"5 "},null,{"$f":"ROUND(F3364*G3364,2)","v":{"v":0,"d":"0.00"}}]
[]
[{"v":28,"d":"28 "},null,"     GSM duct bend, category 4",null,"No","0.0",null,"Rate Only"]
[]
[{"v":29,"d":"29 "},null,"     GSM duct bend, ×˜250mm",null,"No",{"v":5,"d":"5 "},null,{"$f":"ROUND(F3368*G3368,2)","v":{"v":0,"d":"0.00"}}]
[]
[null,null,"Galvanised sheet metal ducting transformations & offsets (Largest size)"]
[]
[{"v":30,"d":"30 "},null,"     GSM duct transformation, category 1",null,"No",{"v":10,"d":"10 "},null,{"$f":"ROUND(F3372*G3372,2)","v":{"v":0,"d":"0.00"}}]
[]
[{"v":31,"d":"31 "},null,"     GSM duct transformation, category 2",null,"No","0.0",null,"Rate Only"]
[]
[{"v":32,"d":"32 "},null,"     GSM duct transformation, category 3",null,"No",{"v":1,"d":"1 "},null,{"$f":"ROUND(F3376*G3376,2)","v":{"v":0,"d":"0.00"}}]
[]
[{"v":33,"d":"33 "},null,"     GSM duct transformation, category 4",null,"No","0.0",null,"Rate Only"]
[]
[null,null,"Galvanised sheet metal ducting shoe pieces"]
[]
[{"v":34,"d":"34 "},null,"     GSM duct stop end, category 1",null,"No",{"v":2,"d":"2 "},null,{"$f":"ROUND(F3382*G3382,2)","v":{"v":0,"d":"0.00"}}]
[]
[{"v":35,"d":"35 "},null,"     GSM duct stop end, category 2",null,"No","0.0",null,"Rate Only"]
[]
[{"v":36,"d":"36 "},null,"     GSM duct stop end, category 3",null,"No","0.0",null,"Rate Only"]
[]
[null,null,"Galvanised sheet metal ducting stop ends"]
[]
[{"v":37,"d":"37 "},null,"     GSM duct stop end, category 1",null,"No",{"v":4,"d":"4 "},null,{"$f":"ROUND(F3390*G3390,2)","v":{"v":0,"d":"0.00"}}]
[]
[{"v":38,"d":"38 "},null,"     GSM duct stop end, category 2",null,"No","0.0",null,"Rate Only"]
[]
[{"v":39,"d":"39 "},null,"     GSM duct stop end, category 3",null,"No",{"v":1,"d":"1 "},null,{"$f":"ROUND(F3394*G3394,2)","v":{"v":0,"d":"0.00"}}]
[]
[null,null,"Galvanised sheet metal ducting spigots"]
[]
[{"v":40,"d":"40 "},null,"     GSM duct spigot, 150mm diameter",null,"No",{"v":10,"d":"10 "},null,{"$f":"ROUND(F3398*G3398,2)","v":{"v":0,"d":"0.00"}}]
[]
[{"v":41,"d":"41 "},null,"     GSM duct spigot, 200mm diameter",null,"No",{"v":10,"d":"10 "},null,{"$f":"ROUND(F3400*G3400,2)","v":{"v":0,"d":"0.00"}}]
[]
[{"v":42,"d":"42 "},null,"     GSM duct spigot, 250mm diameter",null,"No",{"v":10,"d":"10 "},null,{"$f":"ROUND(F3402*G3402,2)","v":{"v":0,"d":"0.00"}}]
[]
[{"v":43,"d":"43 "},null,"     GSM duct spigot, 300mm diameter",null,"No",{"v":2,"d":"2 "},null,{"$f":"ROUND(F3404*G3404,2)","v":{"v":0,"d":"0.00"}}]
[]
[null,null,"Galvanised sheet metal ducting sqare to round transformations"]
[]
[{"v":44,"d":"44 "},null,"     GSM square to round, category 1",null,"No",{"v":4,"d":"4 "},null,{"$f":"ROUND(F3408*G3408,2)","v":{"v":0,"d":"0.00"}}]
[]
[{"v":45,"d":"45 "},null,"     GSM square to round, category 2",null,"No","0.0",null,"Rate Only"]
[]
[{"v":46,"d":"46 "},null,"     GSM square to round, category 3",null,"No","0.0",null,"Rate Only"]
[]
[{"v":47,"d":"47 "},null,"     GSM square to round, category 4",null,"No","0.0",null,"Rate Only"]
[]
[null,null,"Spiral ducting"]
[]
[null,null,"Refer to Part C3.3 Section 09.01 & Part C3.3 Section 18.05.02"]
[]
[null,null,"uninsulated Spiral ducting"]
[]
[{"v":48,"d":"48 "},null,"     Uninsulated spiral ducting, ×˜150mm",null,"m",{"v":17,"d":"17 "},null,{"$f":"ROUND(F3422*G3422,2)","v":{"v":0,"d":"0.00"}}]
[]
[{"v":49,"d":"49 "},null,"     Uninsulated spiral ducting, ×˜200mm",null,"m",{"v":16,"d":"16 "},null,{"$f":"ROUND(F3424*G3424,2)","v":{"v":0,"d":"0.00"}}]
[]
[{"v":50,"d":"50 "},null,"     Uninsulated spiral ducting, ×˜250mm",null,"m",{"v":17,"d":"17 "},null,{"$f":"ROUND(F3426*G3426,2)","v":{"v":0,"d":"0.00"}}]
[]
[{"v":51,"d":"51 "},null,"     Uninsulated spiral ducting, ×˜300mm",null,"m",{"v":1,"d":"1 "},null,{"$f":"ROUND(F3428*G3428,2)","v":{"v":0,"d":"0.00"}}]
[]
[null,null,"Flexible ducting"]
[]
[null,null,"Refer to Part C3.3 Section 09.01"]
[]
[null,null,"uninsulated flexible ducting c/w clamps (1500 mm long)"]
[]
[{"v":52,"d":"52 "},null,"     Uninsulated flexible ducting, ×˜150mm",null,"No",{"v":10,"d":"10 "},null,{"$f":"ROUND(F3436*G3436,2)","v":{"v":0,"d":"0.00"}}]
[]
[{"v":53,"d":"53 "},null,"     Uninsulated flexible ducting, ×˜200mm",null,"No",{"v":10,"d":"10 "},null,{"$f":"ROUND(F3438*G3438,2)","v":{"v":0,"d":"0.00"}}]
[]
[{"v":54,"d":"54 "},null,"     Uninsulated flexible ducting, ×˜250mm",null,"No",{"v":10,"d":"10 "},null,{"$f":"ROUND(F3440*G3440,2)","v":{"v":0,"d":"0.00"}}]
[]
[{"v":55,"d":"55 "},null,"     Uninsulated flexible ducting, ×˜300mm",null,"No",{"v":2,"d":"2 "},null,{"$f":"ROUND(F3442*G3442,2)","v":{"v":0,"d":"0.00"}}]
[]
[null,null,"Canvas duct collars"]
[]
[null,null,"Refer to Part C3.3 Section 10.01"]
[]
[{"v":56,"d":"56 "},null,"     Flexible canvas collar, 300mm x 300mm to suit FAU01",null,"No",{"v":5,"d":"5 "},null,{"$f":"ROUND(F3448*G3448,2)","v":{"v":0,"d":"0.00"}}]
[]
[null,null,"Dampers"]
[]
[null,null,"Refer to Part C3.3 Section 11.01"]
[]
[{"v":57,"d":"57 "},null,"     Manual butterfly damper, ×˜150mm, DA01",null,"No",{"v":10,"d":"10 "},null,{"$f":"ROUND(F3454*G3454,2)","v":{"v":0,"d":"0.00"}}]
[]
[{"v":58,"d":"58 "},null,"     Manual butterfly damper, ×˜200mm, DA02",null,"No",{"v":10,"d":"10 "},null,{"$f":"ROUND(F3456*G3456,2)","v":{"v":0,"d":"0.00"}}]
[]
[{"v":59,"d":"59 "},null,"     Manual butterfly damper, ×˜250mm, DA03",null,"No",{"v":10,"d":"10 "},null,{"$f":"ROUND(F3458*G3458,2)","v":{"v":0,"d":"0.00"}}]
[]
[{"v":60,"d":"60 "},null,"     Manual butterfly damper, ×˜300mm, DA04",null,"No",{"v":2,"d":"2 "},null,{"$f":"ROUND(F3460*G3460,2)","v":{"v":0,"d":"0.00"}}]
[]
[{"v":61,"d":"61 "},null,"     Manual OBD damper, 550mmx450mm, DA06",null,"No",{"v":1,"d":"1 "},null,{"$f":"ROUND(F3462*G3462,2)","v":{"v":0,"d":"0.00"}}]
[]
[{"v":62,"d":"62 "},null,"     Manual OBD damper, 500mmx350mm, DA07",null,"No",{"v":1,"d":"1 "},null,{"$f":"ROUND(F3464*G3464,2)","v":{"v":0,"d":"0.00"}}]
[]
[null,null,"Terminals"]
[]
[null,null,"Constant volume terminals (Supply, Installation and Commissioning) Refer to Part C3.3 Sections 15.02.01-15.02.03"]
[]
[null,null,"Supply air grilles"]
[]
[{"v":63,"d":"63 "},null,"     SAG, 300mm ×— 300mm c/w plenum box and ×˜150mm spigot, FG01",null,"No",{"v":3,"d":"3 "},null,{"$f":"ROUND(F3472*G3472,2)","v":{"v":0,"d":"0.00"}}]
[]
[{"v":64,"d":"64 "},null,"     SAG, 300mm ×— 300mm c/w plenum box and ×˜200mm spigot, FG02",null,"No",{"v":2,"d":"2 "},null,{"$f":"ROUND(F3474*G3474,2)","v":{"v":0,"d":"0.00"}}]
[]
[{"v":65,"d":"65 "},null,"     SAG, 300mm ×— 300mm c/w plenum box and ×˜250mm spigot, FG03",null,"No",{"v":4,"d":"4 "},null,{"$f":"ROUND(F3476*G3476,2)","v":{"v":0,"d":"0.00"}}]
[]
[{"v":66,"d":"66 "},null,"     SAG, 300mm ×— 300mm c/w plenum box and ×˜300mm spigot, FG04",null,"No",{"v":2,"d":"2 "},null,{"$f":"ROUND(F3478*G3478,2)","v":{"v":0,"d":"0.00"}}]
[]
[{"v":67,"d":"67 "},null,"     WL, 1200mmx1200mm, powder coated to match wall colour, WL01",null,"No",{"v":1,"d":"1 "},null,{"$f":"ROUND(F3480*G3480,2)","v":{"v":0,"d":"0.00"}}]
[]
[{"v":68,"d":"68 "},null,"Weather Louvre, 350mm ×— 350mm powder coated to colour code, WL02",null,"No",{"v":1,"d":"1 "},null,{"$f":"ROUND(F3482*G3482,2)","v":{"v":0,"d":"0.00"}}]
[]
[{"v":69,"d":"69 "},null,"Weather Louvre, 600mm ×— 300mm powder coated to colour code, WL03",null,"No",{"v":2,"d":"2 "},null,{"$f":"ROUND(F3484*G3484,2)","v":{"v":0,"d":"0.00"}}]
[]
[{"v":70,"d":"70 "},null,"     Powder coating of grilles and diffusers to colour specified by Architect",null,"No",{"v":23,"d":"23 "},null,{"$f":"ROUND(F3486*G3486,2)","v":{"v":0,"d":"0.00"}}]
[]
[null,null,"Equipment"]
[]
[null,null,"Fans"]
[]
[null,null,"Refer to Part C3.3 Sections 08.01-08.06"]
[]
[null,null,"Supply and installation of adjustable pitch axial fans c/w anti-vibration mounts (spring type), channel supports,electrical connections, hoisting and rigging, commissioning etc."]
[]
[{"v":71,"d":"71 "},null,"     Wall fan, ×˜150mm c/w 0.05kW motor, FW01, 30 l/s",null,"No",{"v":7,"d":"7 "},null,{"$f":"ROUND(F3496*G3496,2)","v":{"v":0,"d":"0.00"}}]
[]
[{"v":72,"d":"72 "},null,"     Tube fan, ×˜315mm c/w 0.05kW motor, FT01, 280 l/s",null,"No",{"v":2,"d":"2 "},null,{"$f":"ROUND(F3498*G3498,2)","v":{"v":0,"d":"0.00"}}]
[]
[{"v":73,"d":"73 "},null,"     Axial fan, ×˜800mm c/w 1.55kW motor, FA01, 2396 l/s",null,"No",{"v":1,"d":"1 "},null,{"$f":"ROUND(F3500*G3500,2)","v":{"v":0,"d":"0.00"}}]
[]
[null,null,"Variable speed drives"]
[]
[null,null,"Refer to Part C3.3 Section 09.05.03"]
[]
[null,null,"Note: The VSD must be IP54 rated. Using an IP20 rated drive in a IP54 enclosure is not acceptable"]
[]
[{"v":74,"d":"74 "},null,"     VSD, 1.5kW for FA01",null,"No",{"v":1,"d":"1 "},null,{"$f":"ROUND(F3508*G3508,2)","v":{"v":0,"d":"0.00"}}]
[]
[null,null,"Air filter bank"]
[]
[null,null,"Refer to Part C3.3 Section 09.05.01"]
[]
[null,null,"Duct mounted filter bank c/w filter frame, filter elements and duct connections"]
[]
[{"v":75,"d":"75 "},null,"     Primary filter, filter bank, 1200mm ×— 1200mm, FB01",null,"No",{"v":1,"d":"1 "},null,{"$f":"ROUND(F3516*G3516,2)","v":{"v":0,"d":"0.00"}}]
[]
[null,null,"Sound attenuators"]
[]
[null,null,"Refer to Part C3.3 Section 18.01"]
[]
[null,null,"Cylindrical"]
[]
[{"v":76,"d":"76 "},null,"     Cylindrical attenuators, ×˜800mm 2D, c/w POD, SA01",null,"No",{"v":2,"d":"2 "},null,{"$f":"ROUND(F3524*G3524,2)","v":{"v":0,"d":"0.00"}}]
[]
[{"v":77,"d":"77 "},null,"     Cylindrical attenuators, ×˜800mm 1D, c/w POD, SA03",null,"No",{"v":2,"d":"2 "},null,{"$f":"ROUND(F3526*G3526,2)","v":{"v":0,"d":"0.00"}}]
[]
[{"v":78,"d":"78 "},null,"     Square attenuator, 1500mmx900mmx2400mm, SA06",null,"No",{"v":1,"d":"1 "},null,{"$f":"ROUND(F3528*G3528,2)","v":{"v":0,"d":"0.00"}}]
[]
[{"v":79,"d":"79 "},null,"Cylindrical attenuators, ×˜315mm 2D, c/w POD, SA04",null,"No",{"v":4,"d":"4 "},null,{"$f":"ROUND(F3530*G3530,2)","v":{"v":0,"d":"0.00"}}]
[]
[null,null,"Ducting for Patch and Server Room exhausts"]
[]
[null,null,"Galvanised sheet metal ducting and fittings including supports and fixings"]
[]
[null,null,"Refer to Part C3.3 Section 09.01"]
[]
[null,null,"Galvanised sheet metal ducting supported in single volume space from trusses"]
[]
[{"v":80,"d":"80 "},null,"     GSM category 3 (from 750mm to 1350mm)",null,"m²",{"v":16,"d":"16 "},null,{"$f":"ROUND(F3540*G3540,2)","v":{"v":0,"d":"0.00"}}]
[]
[{"v":81,"d":"81 "},null,"     Square bends c/w turning vanes as per drawing X400, see detail drawing",null,"No",{"v":2,"d":"2 "},null,{"$f":"ROUND(F3542*G3542,2)","v":{"v":0,"d":"0.00"}}]
[]
[null,null,"Air filter bank"]
[]
[null,null,"Refer to Part C3.3 Section 09.05.01"]
[]
[null,null,"Duct mounted filter bank c/w filter frame, filter elements and duct connections"]
[]
[{"v":82,"d":"82 "},null,"     Primary filter, filter bank, 600mm ×— 300mm, FB02",null,"No",{"v":2,"d":"2 "},null,{"$f":"ROUND(F3550*G3550,2)","v":{"v":0,"d":"0.00"}}]
[]
[{"$nulls":7},{"$f":"SUM(H3335:H3551)","v":{"v":0,"d":"0.00"}}]
[]
[null,null,"SECTION NO 6: MECHANICAL INSTALLATION"]
[]
[null,null,"BILL NO 3"]
[]
[null,null,"TOILET EXTRACT"]
[]
[null,null,"Ducting"]
[]
[null,null,"Galvanised sheet metal ducting and fittings including supports and fixings"]
[]
[null,null,"Refer to Part C3.3 Section 09.01"]
[]
[null,null,"Galvanised sheet metal ducting supported in single volume space from trusses"]
[]
[{"v":83,"d":"83 "},null,"     GSM category 1 (< 750mm with semiperimeter < 1150mm)",null,"m²",{"v":115,"d":"115 "},null,{"$f":"ROUND(F3568*G3568,2)","v":{"v":0,"d":"0.00"}}]
[]
[{"v":84,"d":"84 "},null,"     GSM category 2 (< 750mm with semiperimeter > 1150mm)",null,"m2","0.0",null,"Rate Only"]
[]
[{"v":85,"d":"85 "},null,"     GSM category 3 (from 750mm to 1350mm)",null,"m2","0.0",null,"Rate Only"]
[]
[{"v":86,"d":"86 "},null,"     GSM category 4 (from 1351mm to 2100mm)",null,"m2","0.0",null,"Rate Only"]
[]
[null,null,"Extra over for fittings (bends, transformations, stop ends, shoes, square to rounds, take-offs, offsets)"]
[]
[null,null,"Refer to Part C3.3 Section 09.01 & Part C3.3 Section 18.05.02"]
[]
[null,null,"Galvanised sheet metal ducting bends"]
[]
[{"v":87,"d":"87 "},null,"     GSM duct bend, category 1",null,"No",{"v":8,"d":"8 "},null,{"$f":"ROUND(F3582*G3582,2)","v":{"v":0,"d":"0.00"}}]
[]
[{"v":88,"d":"88 "},null,"     GSM duct bend, category 2",null,"No","0.0",null,"Rate Only"]
[]
[{"v":89,"d":"89 "},null,"     GSM duct bend, category 3",null,"No","0.0",null,"Rate Only"]
[]
[{"v":90,"d":"90 "},null,"     GSM duct bend, ×˜200mm",null,"No",{"v":4,"d":"4 "},null,{"$f":"ROUND(F3588*G3588,2)","v":{"v":0,"d":"0.00"}}]
[]
[{"v":91,"d":"91 "},null,"     GSM duct bend, ×˜630mm",null,"No",{"v":2,"d":"2 "},null,{"$f":"ROUND(F3590*G3590,2)","v":{"v":0,"d":"0.00"}}]
[]
[null,null,"Galvanised sheet metal ducting transformations & offsets (Largest size)"]
[]
[{"v":92,"d":"92 "},null,"     GSM duct transformation, category 1",null,"No",{"v":7,"d":"7 "},null,{"$f":"ROUND(F3594*G3594,2)","v":{"v":0,"d":"0.00"}}]
[]
[{"v":93,"d":"93 "},null,"     GSM duct transformation, category 2",null,"No","0.0",null,"Rate Only"]
[]
[{"v":94,"d":"94 "},null,"     GSM duct transformation, category 3",null,"No","0.0",null,"Rate Only"]
[]
[{"v":95,"d":"95 "},null,"     GSM duct transformation, category 4",null,"No","0.0",null,"Rate Only"]
[]
[null,null,"Galvanised sheet metal ducting shoe pieces"]
[]
[{"v":96,"d":"96 "},null,"     GSM duct stop end, category 1",null,"No",{"v":6,"d":"6 "},null,{"$f":"ROUND(F3604*G3604,2)","v":{"v":0,"d":"0.00"}}]
[]
[{"v":97,"d":"97 "},null,"     GSM duct stop end, category 2",null,"No","0.0",null,"Rate Only"]
[]
[{"v":98,"d":"98 "},null,"     GSM duct stop end, category 3",null,"No","0.0",null,"Rate Only"]
[]
[null,null,"Galvanised sheet metal ducting stop ends"]
[]
[{"v":99,"d":"99 "},null,"     GSM duct stop end, category 1",null,"No",{"v":8,"d":"8 "},null,{"$f":"ROUND(F3612*G3612,2)","v":{"v":0,"d":"0.00"}}]
[]
[{"v":100,"d":"100 "},null,"     GSM duct stop end, category 2",null,"No","0.0",null,"Rate Only"]
[]
[{"v":101,"d":"101 "},null,"     GSM duct stop end, category 3",null,"No","0.0",null,"Rate Only"]
[]
[null,null,"Galvanised sheet metal ducting spigots"]
[]
[{"v":102,"d":"102 "},null,"     GSM duct spigot, 150mm diameter",null,"No","0.0",null,"Rate Only"]
[]
[{"v":103,"d":"103 "},null,"     GSM duct spigot, 200mm diameter",null,"No",{"v":63,"d":"63 "},null,{"$f":"ROUND(F3622*G3622,2)","v":{"v":0,"d":"0.00"}}]
[]
[{"v":104,"d":"104 "},null,"     GSM duct spigot, 250mm diameter",null,"No","0.0",null,"Rate Only"]
[]
[{"v":105,"d":"105 "},null,"     GSM duct spigot, 300mm diameter",null,"No","0.0",null,"Rate Only"]
[]
[null,null,"Galvanised sheet metal ducting sqare to round transformations"]
[]
[{"v":106,"d":"106 "},null,"     GSM square to round, category 1",null,"No",{"v":2,"d":"2 "},null,{"$f":"ROUND(F3630*G3630,2)","v":{"v":0,"d":"0.00"}}]
[]
[{"v":107,"d":"107 "},null,"     GSM square to round, category 2",null,"No","0.0",null,"Rate Only"]
[]
[{"v":108,"d":"108 "},null,"     GSM square to round, category 3",null,"No","0.0",null,"Rate Only"]
[]
[{"v":109,"d":"109 "},null,"     GSM square to round, category 4",null,"No","0.0",null,"Rate Only"]
[]
[null,null,"Galvanised sheet metal ducting discharge cowl"]
[]
[{"v":110,"d":"110 "},null,"     GSM duct discharge cowl ×˜630 for FA02, c/w wire mesh screen",null,"No",{"v":1,"d":"1 "},null,{"$f":"ROUND(F3640*G3640,2)","v":{"v":0,"d":"0.00"}}]
[]
[{"v":111,"d":"111 "},null,"     GSM duct discharge cowl ×˜710 for FA03",null,"No",{"v":1,"d":"1 "},null,{"$f":"ROUND(F3642*G3642,2)","v":{"v":0,"d":"0.00"}}]
[]
[null,null,"Spiral ducting"]
[]
[null,null,"Refer to Part C3.3 Section 09.01 & Part C3.3 Section 18.05.02"]
[]
[null,null,"uninsulated Spiral ducting"]
[]
[{"v":112,"d":"112 "},null,"     Uninsulated spiral ducting, ×˜150mm",null,"m","0.0",null,"Rate Only"]
[]
[{"v":113,"d":"113 "},null,"     Uninsulated spiral ducting, ×˜200mm",null,"m",{"v":44,"d":"44 "},null,{"$f":"ROUND(F3652*G3652,2)","v":{"v":0,"d":"0.00"}}]
[]
[{"v":114,"d":"114 "},null,"     Uninsulated spiral ducting, ×˜250mm",null,"m","0.0",null,"Rate Only"]
[]
[{"v":115,"d":"115 "},null,"     Uninsulated spiral ducting, ×˜300mm",null,"m","0.0",null,"Rate Only"]
[]
[null,null,"Flexible ducting"]
[]
[null,null,"Refer to Part C3.3 Section 09.01"]
[]
[null,null,"uninsulated flexible ducting c/w clamps (1500 mm long)"]
[]
[{"v":116,"d":"116 "},null,"     Uninsulated flexible ducting, ×˜150mm",null,"No","0.0",null,"Rate Only"]
[]
[{"v":117,"d":"117 "},null,"     Uninsulated flexible ducting, ×˜200mm",null,"No",{"v":63,"d":"63 "},null,{"$f":"ROUND(F3666*G3666,2)","v":{"v":0,"d":"0.00"}}]
[]
[{"v":118,"d":"118 "},null,"     Uninsulated flexible ducting, ×˜250mm",null,"No","0.0",null,"Rate Only"]
[]
[{"v":119,"d":"119 "},null,"     Uninsulated flexible ducting, ×˜300mm",null,"No","0.0",null,"Rate Only"]
[]
[null,null,"Canvas duct collars"]
[]
[null,null,"Refer to Part C3.3 Section 10.01"]
[]
[{"v":120,"d":"120 "},null,"     Flexible canvas collar, ×˜630mm",null,"No",{"v":2,"d":"2 "},null,{"$f":"ROUND(F3676*G3676,2)","v":{"v":0,"d":"0.00"}}]
[]
[{"v":121,"d":"121 "},null,"     Flexible canvas collar, ×˜710mm",null,"No",{"v":2,"d":"2 "},null,{"$f":"ROUND(F3678*G3678,2)","v":{"v":0,"d":"0.00"}}]
[]
[null,null,"Dampers"]
[]
[null,null,"Refer to Part C3.3 Section 11.01"]
[]
[{"v":122,"d":"122 "},null,"     Manual butterfly damper, ×˜150mm, DA01",null,"No","0.0",null,"Rate Only"]
[]
[{"v":123,"d":"123 "},null,"     Manual butterfly damper, ×˜200mm, DA02",null,"No","0.0",null,"Rate Only"]
[]
[{"v":124,"d":"124 "},null,"     Manual butterfly damper, ×˜250mm, DA03",null,"No","0.0",null,"Rate Only"]
[]
[{"v":125,"d":"125 "},null,"     Manual butterfly damper, ×˜300mm, DA04",null,"No","0.0",null,"Rate Only"]
[]
[{"v":126,"d":"126 "},null,"     Manual OBD damper, 550mmx450mm, DA06",null,"No",{"v":1,"d":"1 "},null,"Rate Only"]
[]
[{"v":127,"d":"127 "},null,"     Manual OBD damper, 500mmx350mm, DA07",null,"No",{"v":1,"d":"1 "},null,{"$f":"ROUND(F3694*G3694,2)","v":{"v":0,"d":"0.00"}}]
[]
[null,null,"Terminals"]
[]
[null,null,"Constant volume terminals (Supply, Installation and Commissioning) Refer to Part C3.3 Sections 15.02.01-15.02.03"]
[]
[null,null,"Extract air grilles"]
[]
[{"v":128,"d":"128 "},null,"     EAG, ×˜250mm disc valve with ×˜200mm spigot, DV03",null,"No",{"v":63,"d":"63 "},null,{"$f":"ROUND(F3702*G3702,2)","v":{"v":0,"d":"0.00"}}]
[]
[null,null,"Door grilles"]
[]
[{"v":129,"d":"129 "},null,"     DG, 450mm x 450mm door grille, DG01",null,"No",{"v":16,"d":"16 "},null,{"$f":"ROUND(F3706*G3706,2)","v":{"v":0,"d":"0.00"}}]
[]
[{"v":130,"d":"130 "},null,"     WL, 600mmx600mm, powder coated to match wall colour, WL02",null,"No",{"v":1,"d":"1 "},null,{"$f":"ROUND(F3708*G3708,2)","v":{"v":0,"d":"0.00"}}]
[]
[null,null,"Equipment"]
[]
[null,null,"Fans"]
[]
[null,null,"Refer to Part C3.3 Sections 08.01-08.06"]
[]
[null,null,"Supply and installation of adjustable pitch axial fans c/w anti-vibration mounts (spring type), channel supports,electrical connections, hoisting and rigging, commissioning etc."]
[]
[{"v":131,"d":"131 "},null,"     Axial fan, ×˜630mm c/w 0.55kW motor, FA02, 850 l/s",null,"No",{"v":1,"d":"1 "},null,{"$f":"ROUND(F3718*G3718,2)","v":{"v":0,"d":"0.00"}}]
[]
[{"v":132,"d":"132 "},null,"     Axial fan, ×˜710mm c/w 1.1kW motor, FA03, 2220 l/s",null,"No",{"v":1,"d":"1 "},null,{"$f":"ROUND(F3720*G3720,2)","v":{"v":0,"d":"0.00"}}]
[]
[null,null,"Sound attenuators"]
[]
[null,null,"Refer to Part C3.3 Section 18.01"]
[]
[null,null,"Cylindrical"]
[]
[{"v":133,"d":"133 "},null,"     Cylindrical attenuators, ×˜630mm 2D, c/w POD, SA02",null,"No",{"v":2,"d":"2 "},null,{"$f":"ROUND(F3728*G3728,2)","v":{"v":0,"d":"0.00"}}]
[]
[{"v":134,"d":"134 "},null,"     Cylindrical attenuators, ×˜630mm 2D, c/w POD, SA04",null,"No",{"v":2,"d":"2 "},null,{"$f":"ROUND(F3730*G3730,2)","v":{"v":0,"d":"0.00"}}]
[]
[{"v":135,"d":"135 "},null,"     Cylindrical attenuators, ×˜710mm 2D, c/w POD, SA05",null,"No",{"v":2,"d":"2 "},null,{"$f":"ROUND(F3732*G3732,2)","v":{"v":0,"d":"0.00"}}]
[]
[null,null,"Variable speed drives"]
[]
[null,null,"Refer to Part C3.3 Section 09.05.03"]
[{"$nulls":11},{"$f":"56753812.23/1.15","v":49351141.06956522}]
[null,null,"Note: The VSD must be IP54 rated. Using an IP20 rated drive in a IP54 enclosure is not acceptable",{"$nulls":8},48477000]
[{"$nulls":11},{"$f":"+L3737-L3738","v":874141.0695652217}]
[{"v":136,"d":"136 "},null,"     VSD, 0.5fkW for FA02",null,"No",{"v":1,"d":"1 "},null,{"$f":"ROUND(F3740*G3740,2)","v":{"v":0,"d":"0.00"}}]
[]
[{"v":137,"d":"137 "},null,"     VSD, 1.5fkW for FA01",null,"No",{"v":1,"d":"1 "},null,{"$f":"ROUND(F3742*G3742,2)","v":{"v":0,"d":"0.00"}}]
[]
[{"v":138,"d":"138 "},null,"     VSD, 1.1fkW for FA03",null,"No",{"v":1,"d":"1 "},null,{"$f":"ROUND(F3744*G3744,2)","v":{"v":0,"d":"0.00"}}]
[]
[{"v":139,"d":"139 "},null,"     VSD, 1.5fkW for FA01",null,"No",{"v":1,"d":"1 "},null,{"$f":"ROUND(F3746*G3746,2)","v":{"v":0,"d":"0.00"}}]
[]
[{"$nulls":7},{"$f":"SUM(H3556:H3747)","v":{"v":0,"d":"0.00"}}]
[]
[null,null,"SECTION NO 6: MECHANICAL INSTALLATION",{"$nulls":10},250]
[{"$nulls":13},{"$f":"+N3750*8","v":2000}]
[null,null,"BILL NO 4"]
[]
[null,null,"AIRCONDITIONING"]
[]
[null,null,"Ducting"]
[]
[null,null,"Galvanised sheet metal ducting and fittings including supports and fixings"]
[]
[null,null,"Refer to Part C3.3 Section 09.01"]
[]
[null,null,"Galvanised sheet metal ducting supported in single volume space from trusses"]
[]
[{"v":140,"d":"140 "},null,"     GSM category 1 (< 750mm with semiperimeter < 1150mm)",null,"m²",{"v":120,"d":"120 "},null,{"$f":"ROUND(F3764*G3764,2)","v":{"v":0,"d":"0.00"}}]
[]
[{"v":141,"d":"141 "},null,"     GSM category 2 (< 750mm with semiperimeter > 1150mm)",null,"m2","0.0",null,"Rate Only"]
[]
[{"v":142,"d":"142 "},null,"     GSM category 3 (from 750mm to 1350mm)",null,"m2","0.0",null,"Rate Only"]
[]
[{"v":143,"d":"143 "},null,"     GSM category 4 (from 1351mm to 2100mm)",null,"m2","0.0",null,"Rate Only"]
[]
[null,null,"Extra over for fittings (bends, transformations, stop ends, shoes, square to rounds, take-offs, offsets)"]
[]
[null,null,"Refer to Part C3.3 Section 09.01 & Part C3.3 Section 18.05.02"]
[]
[null,null,"Galvanised sheet metal ducting bends"]
[]
[{"v":144,"d":"144 "},null,"     GSM duct bend, category 1",null,"No","0.0",null,"Rate Only"]
[]
[{"v":145,"d":"145 "},null,"     GSM duct bend, category 2",null,"No","0.0",null,"Rate Only"]
[]
[{"v":146,"d":"146 "},null,"     GSM duct bend, category 3",null,"No","0.0",null,"Rate Only"]
[]
[{"v":147,"d":"147 "},null,"     GSM duct bend, category 4",null,"No","0.0",null,"Rate Only"]
[]
[null,null,"Galvanised sheet metal ducting transformations & offsets (Largest size)"]
[]
[{"v":148,"d":"148 "},null,"     GSM duct transformation, category 1",null,"No",{"v":20,"d":"20 "},null,{"$f":"ROUND(F3788*G3788,2)","v":{"v":0,"d":"0.00"}}]
[]
[{"v":149,"d":"149 "},null,"     GSM duct transformation, category 2",null,"No","0.0",null,"Rate Only"]
[]
[{"v":150,"d":"150 "},null,"     GSM duct transformation, category 3",null,"No","0.0",null,"Rate Only"]
[]
[{"v":151,"d":"151 "},null,"     GSM duct transformation, category 4",null,"No","0.0",null,"Rate Only"]
[]
[null,null,"Galvanised sheet metal ducting shoe pieces"]
[]
[{"v":152,"d":"152 "},null,"     GSM duct stop end, category 1",null,"No","0.0",null,"Rate Only"]
[]
[{"v":153,"d":"153 "},null,"     GSM duct stop end, category 2",null,"No","0.0",null,"Rate Only"]
[]
[{"v":154,"d":"154 "},null,"     GSM duct stop end, category 3",null,"No","0.0",null,"Rate Only"]
[]
[null,null,"Galvanised sheet metal ducting stop ends"]
[]
[{"v":155,"d":"155 "},null,"     GSM duct stop end, category 1",null,"No",{"v":8,"d":"8 "},null,{"$f":"ROUND(F3806*G3806,2)","v":{"v":0,"d":"0.00"}}]
[]
[{"v":156,"d":"156 "},null,"     GSM duct stop end, category 2",null,"No","0.0",null,"Rate Only"]
[]
[{"v":157,"d":"157 "},null,"     GSM duct stop end, category 3",null,"No","0.0",null,"Rate Only"]
[]
[null,null,"Galvanised sheet metal ducting spigots"]
[]
[{"v":158,"d":"158 "},null,"     GSM duct spigot, 150mm diameter",null,"No","0.0",null,"Rate Only"]
[]
[{"v":159,"d":"159 "},null,"     GSM duct spigot, 200mm diameter",null,"No",{"v":16,"d":"16 "},null,{"$f":"ROUND(F3816*G3816,2)","v":{"v":0,"d":"0.00"}}]
[]
[{"v":160,"d":"160 "},null,"     GSM duct spigot, 250mm diameter",null,"No",{"v":16,"d":"16 "},null,{"$f":"ROUND(F3818*G3818,2)","v":{"v":0,"d":"0.00"}}]
[]
[{"v":161,"d":"161 "},null,"     GSM duct spigot, 300mm diameter",null,"No","0.0",null,"Rate Only"]
[]
[null,null,"Galvanised sheet metal ducting sqare to round transformations"]
[]
[{"v":162,"d":"162 "},null,"     GSM square to round, category 1",null,"No","0.0",null,"Rate Only"]
[]
[{"v":163,"d":"163 "},null,"     GSM square to round, category 2",null,"No","0.0",null,"Rate Only"]
[]
[{"v":164,"d":"164 "},null,"     GSM square to round, category 3",null,"No","0.0",null,"Rate Only"]
[]
[{"v":165,"d":"165 "},null,"     GSM square to round, category 4",null,"No","0.0",null,"Rate Only"]
[]
[null,null,"Galvanised sheet metal ducting discharge plenums, insulated"]
[]
[{"v":166,"d":"166 "},null,"     GSM duct discharge plenum for VRF-HU-16.0-M",null,"No",{"v":6,"d":"6 "},null,{"$f":"ROUND(F3834*G3834,2)","v":{"v":0,"d":"0.00"}}]
[]
[null,null,"Galvanised sheet metal ducting return plenums, insulated"]
[]
[{"v":167,"d":"167 "},null,"     GSM duct return plenum for VRF-HU-16.0-M",null,"No",{"v":6,"d":"6 "},null,{"$f":"ROUND(F3838*G3838,2)","v":{"v":0,"d":"0.00"}}]
[]
[null,null,"Spiral ducting"]
[]
[null,null,"Refer to Part C3.3 Section 09.01 & Part C3.3 Section 18.05.02"]
[]
[null,null,"Insulated Spiral ducting"]
[]
[{"v":168,"d":"168 "},null,"     Insulated spiral ducting, ×˜150mm",null,"m","0.0",null,"Rate Only"]
[]
[{"v":169,"d":"169 "},null,"     Insulated spiral ducting, ×˜200mm",null,"m",{"v":10,"d":"10 "},null,{"$f":"ROUND(F3848*G3848,2)","v":{"v":0,"d":"0.00"}}]
[]
[{"v":170,"d":"170 "},null,"     Insulated spiral ducting, ×˜250mm",null,"m",{"v":10,"d":"10 "},null,{"$f":"ROUND(F3850*G3850,2)","v":{"v":0,"d":"0.00"}}]
[]
[{"v":171,"d":"171 "},null,"     Insulated spiral ducting, ×˜300mm",null,"m","0.0",null,"Rate Only"]
[]
[null,null,"Flexible ducting"]
[]
[null,null,"Refer to Part C3.3 Section 09.01"]
[]
[null,null,"Insulated flexible ducting c/w clamps (1500 mm long)"]
[]
[{"v":172,"d":"172 "},null,"     Insulated flexible ducting, ×˜150mm",null,"No","0.0",null,"Rate Only"]
[]
[{"v":173,"d":"173 "},null,"     Insulated flexible ducting, ×˜200mm",null,"No",{"v":16,"d":"16 "},null,{"$f":"ROUND(F3862*G3862,2)","v":{"v":0,"d":"0.00"}}]
[]
[{"v":174,"d":"174 "},null,"     Insulated flexible ducting, ×˜250mm",null,"No",{"v":16,"d":"16 "},null,{"$f":"ROUND(F3864*G3864,2)","v":{"v":0,"d":"0.00"}}]
[]
[{"v":175,"d":"175 "},null,"     Insulated flexible ducting, ×˜300mm",null,"No","0.0",null,"Rate Only"]
[]
[null,null,"Canvas duct collars"]
[]
[null,null,"Refer to Part C3.3 Section 10.01"]
[]
[{"v":176,"d":"176 "},null,"     Flexible canvas collar, 1000mm x 300mm to suit VRFHU-16.0-M",null,"No",{"v":6,"d":"6 "},null,{"$f":"ROUND(F3872*G3872,2)","v":{"v":0,"d":"0.00"}}]
[]
[null,null,"Dampers"]
[]
[null,null,"Refer to Part C3.3 Section 11.01"]
[]
[null,null,"Manual butterfly dampers"]
[]
[{"v":177,"d":"177 "},null,"     Manual butterfly damper, ×˜150mm, DA01",null,"No","0.0",null,"Rate Only"]
[]
[{"v":178,"d":"178 "},null,"     Manual butterfly damper, ×˜200mm, DA02",null,"No","0.0",null,"Rate Only"]
[]
[{"v":179,"d":"179 "},null,"     Manual butterfly damper, ×˜250mm, DA03",null,"No","0.0",null,"Rate Only"]
[]
[{"v":180,"d":"180 "},null,"     Manual butterfly damper, ×˜300mm, DA04",null,"No","0.0",null,"Rate Only"]
[]
[null,null,"Duct insulation"]
[]
[null,null,"Refer to Part C3.2 Section 04 for specifications"]
[]
[null,null,"External duct insulation"]
[]
[{"v":181,"d":"181 "},null,"     External duct insulation",null,"m²",{"v":105,"d":"105 "},null,{"$f":"ROUND(F3894*G3894,2)","v":{"v":0,"d":"0.00"}}]
[]
[null,null,"Terminals"]
[]
[null,null,"Constant volume terminals (Supply, Installation and Commissioning)"]
[]
[null,null,"Refer to Part C3.3 Sections 15.02.01-15.02.03"]
[]
[null,null,"Supply air grilles"]
[]
[{"v":182,"d":"182 "},null,"     SAG, 600mm x 600mm swirl diffuser with ×˜150mm neck, CVS01",null,"No","0.0",null,"Rate Only"]
[]
[{"v":183,"d":"183 "},null,"     SAG, 600mm x 600mm swirl diffuser with ×˜200mm neck, CVS02",null,"No",{"v":16,"d":"16 "},null,{"$f":"ROUND(F3906*G3906,2)","v":{"v":0,"d":"0.00"}}]
[]
[{"v":184,"d":"184 "},null,"     SAG, 600mm x 600mm swirl diffuser with ×˜250mm neck, CVS03",null,"No",{"v":16,"d":"16 "},null,{"$f":"ROUND(F3908*G3908,2)","v":{"v":0,"d":"0.00"}}]
[]
[{"v":185,"d":"185 "},null,"     SAG, 600mm x 600mm swirl diffuser with ×˜300mm neck, CVS04",null,"No","0.0",null,"Rate Only"]
[]
[null,null,"Return air grilles"]
[]
[{"v":186,"d":"186 "},null,"     RAG, 600mm x 1200mm RAG c/w GSM plenum box, 2off ×˜300mm and 1off ×˜250mm spigots, RG01",null,"No",{"v":6,"d":"6 "},null,{"$f":"ROUND(F3914*G3914,2)","v":{"v":0,"d":"0.00"}}]
[]
[null,null,"Piping"]
[]
[null,null,"Refrigerant copper piping including supports, fixings, bends and insulation."]
[]
[null,null,"Refer to Part C3.2 Section 4 & Part C3.3 Section 09.04"]
[]
[null,null,"Refrigerant copper piping c/w insulation supported in single volume space"]
[]
[{"v":187,"d":"187 "},null,"     Refrigerant copper ×˜6mm soft drawn straight pipe",null,"m",{"v":95,"d":"95 "},null,{"$f":"ROUND(F3924*G3924,2)","v":{"v":0,"d":"0.00"}}]
[]
[{"v":188,"d":"188 "},null,"     Refrigerant copper ×˜10mm soft drawn straight pipe",null,"m",{"v":144,"d":"144 "},null,{"$f":"ROUND(F3926*G3926,2)","v":{"v":0,"d":"0.00"}}]
[]
[{"v":189,"d":"189 "},null,"     Refrigerant copper ×˜13mm soft drawn straight pipe",null,"m",{"v":150,"d":"150 "},null,{"$f":"ROUND(F3928*G3928,2)","v":{"v":0,"d":"0.00"}}]
[]
[{"v":190,"d":"190 "},null,"     Refrigerant copper ×˜16mm soft drawn straight pipe",null,"m",{"v":189,"d":"189 "},null,{"$f":"ROUND(F3930*G3930,2)","v":{"v":0,"d":"0.00"}}]
[]
[{"v":191,"d":"191 "},null,"     Refrigerant copper ×˜19mm soft drawn straight pipe",null,"m",{"v":49,"d":"49 "},null,{"$f":"ROUND(F3932*G3932,2)","v":{"v":0,"d":"0.00"}}]
[]
[{"v":192,"d":"192 "},null,"     Refrigerant copper ×˜22mm soft drawn straight pipe c/w couplings",null,"m",{"v":35,"d":"35 "},null,{"$f":"ROUND(F3934*G3934,2)","v":{"v":0,"d":"0.00"}}]
[]
[{"v":193,"d":"193 "},null,"     Refrigerant copper ×˜29mm soft drawn straight pipe c/w couplings",null,"m",{"v":136,"d":"136 "},null,{"$f":"ROUND(F3936*G3936,2)","v":{"v":0,"d":"0.00"}}]
[]
[{"v":194,"d":"194 "},null,"     Refrigerant copper ×˜35mm soft drawn straight pipe c/w couplings",null,"m",{"v":28,"d":"28 "},null,{"$f":"ROUND(F3938*G3938,2)","v":{"v":0,"d":"0.00"}}]
[]
[{"v":195,"d":"195 "},null,"     Refrigerant copper ×˜41mm soft drawn straight pipe c/w couplings",null,"m",{"v":7,"d":"7 "},null,{"$f":"ROUND(F3940*G3940,2)","v":{"v":0,"d":"0.00"}}]
[]
[null,null,"Extra over for refrigerant copper pipe fittings"]
[]
[null,null,"Refrigerant copper pipe bends c/w insulation. Note: Bends less than or equal to ×˜16mm are to be included in piping linear rate"]
[]
[{"v":196,"d":"196 "},null,"     Refrigerant ×˜19mm pipe bend",null,"No",{"v":2,"d":"2 "},null,{"$f":"ROUND(F3946*G3946,2)","v":{"v":0,"d":"0.00"}}]
[]
[{"v":197,"d":"197 "},null,"     Refrigerant ×˜22mm pipe bend",null,"No",{"v":2,"d":"2 "},null,{"$f":"ROUND(F3948*G3948,2)","v":{"v":0,"d":"0.00"}}]
[]
[{"v":198,"d":"198 "},null,"     Refrigerant ×˜29mm pipe bend",null,"No",{"v":8,"d":"8 "},null,{"$f":"ROUND(F3950*G3950,2)","v":{"v":0,"d":"0.00"}}]
[]
[{"v":199,"d":"199 "},null,"     Refrigerant ×˜35mm pipe bend",null,"No",{"v":4,"d":"4 "},null,{"$f":"ROUND(F3952*G3952,2)","v":{"v":0,"d":"0.00"}}]
[]
[{"v":200,"d":"200 "},null,"     Refrigerant ×˜41mm pipe bend",null,"No",{"v":2,"d":"2 "},null,{"$f":"ROUND(F3954*G3954,2)","v":{"v":0,"d":"0.00"}}]
[]
[null,null,"Refrigerant copper pipe branches (y-joints) c/w insulation"]
[]
[{"v":201,"d":"201 "},null,"     Refrigerant copper pipe branches to suit. Sizes to be confirmed by supplier upon system sizing",null,"No",{"v":8,"d":"8 "},null,{"$f":"ROUND(F3958*G3958,2)","v":{"v":0,"d":"0.00"}}]
[]
[{"v":202,"d":"202 "},null,"     Refrigerant copper pipe y-joints to suit. Sizes to be confirmed by supplier upon system sizing",null,"No",{"v":14,"d":"14 "},null,{"$f":"ROUND(F3960*G3960,2)","v":{"v":0,"d":"0.00"}}]
[]
[null,null,"Refrigerant cable trays and fittings including supports and fixings"]
[]
[null,null,"Refer to Part C3.2 Section 4 & Part C3.3 Section 09.04"]
[]
[null,null,"Supply, deliver and installation of heavy duty cable trays supported in single volume space c/w brackets and supports, all of which will be galvanised"]
[]
[{"v":203,"d":"203 "},null,"     50mm Perforated metal cable tray",null,"m","0.0",null,"Rate Only"]
[]
[{"v":204,"d":"204 "},null,"     100mm Perforated metal cable tray",null,"m","0.0",null,"Rate Only"]
[]
[{"v":205,"d":"205 "},null,"     150mm Perforated metal cable tray",null,"m",{"v":119,"d":"119 "},null,{"$f":"ROUND(F3972*G3972,2)","v":{"v":0,"d":"0.00"}}]
[]
[{"v":206,"d":"206 "},null,"     200mm Perforated metal cable tray",null,"m","0.0",null,"Rate Only"]
[]
[{"v":207,"d":"207 "},null,"     250mm Perforated metal cable tray",null,"m",{"v":54,"d":"54 "},null,{"$f":"ROUND(F3976*G3976,2)","v":{"v":0,"d":"0.00"}}]
[]
[{"v":208,"d":"208 "},null,"     300mm Perforated metal cable tray",null,"m",{"v":90,"d":"90 "},null,{"$f":"ROUND(F3978*G3978,2)","v":{"v":0,"d":"0.00"}}]
[]
[{"v":209,"d":"209 "},null,"     400mm Perforated metal cable tray",null,"m",{"v":42,"d":"42 "},null,{"$f":"ROUND(F3980*G3980,2)","v":{"v":0,"d":"0.00"}}]
[]
[{"v":210,"d":"210 "},null,"     500mm Perforated metal cable tray",null,"m",{"v":25,"d":"25 "},null,"Rate Only"]
[]
[{"v":211,"d":"211 "},null,"     600mm Perforated metal cable tray",null,"m",{"v":15,"d":"15 "},null,{"$f":"ROUND(F3984*G3984,2)","v":{"v":0,"d":"0.00"}}]
[]
[null,null,"Extra over for supply, deliver and installation of heavy duty cable tray covers"]
[]
[{"v":212,"d":"212 "},null,"     50mm Perforated metal cable tray",null,"m",{"v":25,"d":"25 "},null,{"$f":"ROUND(F3988*G3988,2)","v":{"v":0,"d":"0.00"}}]
[]
[{"v":213,"d":"213 "},null,"     400mm Perforated metal cable tray",null,"m",{"v":5,"d":"5 "},null,{"$f":"ROUND(F3990*G3990,2)","v":{"v":0,"d":"0.00"}}]
[]
[{"v":214,"d":"214 "},null,"     100mm Perforated metal cable tray",null,"m",{"v":25,"d":"25 "},null,{"$f":"ROUND(F3992*G3992,2)","v":{"v":0,"d":"0.00"}}]
[]
[{"v":215,"d":"215 "},null,"     150mm Perforated metal cable tray",null,"m",{"v":25,"d":"25 "},null,{"$f":"ROUND(F3994*G3994,2)","v":{"v":0,"d":"0.00"}}]
[]
[{"v":216,"d":"216 "},null,"     600mm Perforated metal cable tray",null,"m",{"v":6,"d":"6 "},null,{"$f":"ROUND(F3996*G3996,2)","v":{"v":0,"d":"0.00"}}]
[]
[null,null,"uPVC piping and ancillaries including supports and fittings"]
[]
[null,null,"uPVC piping supported in single volume from trusses"]
[]
[{"v":217,"d":"217 "},null,"     uPVC ×˜32mm straight pipe, insulated",null,"m",{"v":54,"d":"54 "},null,{"$f":"ROUND(F4002*G4002,2)","v":{"v":0,"d":"0.00"}}]
[]
[null,null,"Extra over for uPVC pipe fittings"]
[]
[{"v":218,"d":"218 "},null,"     uPVC ×˜32mm fittings, insulated",null,"No",{"v":136,"d":"136 "},null,{"$f":"ROUND(F4006*G4006,2)","v":{"v":0,"d":"0.00"}}]
[]
[null,null,"Equipment"]
[]
[null,null,"Variable Refrigerant Flow (VRF) units"]
[]
[null,null,"VRF unit supply and installation, including: Supports & brackets etc. Duct connections, Controls & electrical connections, Drain pipe connections, Wired wall mounted controller"]
[]
[null,null,"Refer to Part C3.3 Section 14.02"]
[]
[{"v":219,"d":"219 "},null,"     VRF cassette 4 way blow, VRFCU4-3.6, 3.6kW",null,"No",{"v":3,"d":"3 "},null,{"$f":"ROUND(F4016*G4016,2)","v":{"v":0,"d":"0.00"}}]
[]
[{"v":220,"d":"220 "},null,"     VRF cassette 4 way blow, VRFCU4-4.5, 4.5kW",null,"No",{"v":4,"d":"4 "},null,{"$f":"ROUND(F4018*G4018,2)","v":{"v":0,"d":"0.00"}}]
[]
[{"v":221,"d":"221 "},null,"     VRF cassette 4 way blow, VRFCU4-5.6, 5.6kW",null,"No",{"v":2,"d":"2 "},null,{"$f":"ROUND(F4020*G4020,2)","v":{"v":0,"d":"0.00"}}]
[]
[{"v":222,"d":"222 "},null,"     VRF cassette 4 way blow, VRFCU4-9.0, 9.0kW",null,"No",{"v":2,"d":"2 "},null,{"$f":"ROUND(F4022*G4022,2)","v":{"v":0,"d":"0.00"}}]
[]
[{"v":223,"d":"223 "},null,"     VRF cassette 4 way blow, VRFCU4-11.2, 11.2kW",null,"No",{"v":5,"d":"5 "},null,{"$f":"ROUND(F4024*G4024,2)","v":{"v":0,"d":"0.00"}}]
[]
[{"v":224,"d":"224 "},null,"     VRF cassette 4 way blow, VRFCU4-12.8, 12.8kW",null,"No",{"v":8,"d":"8 "},null,{"$f":"ROUND(F4026*G4026,2)","v":{"v":0,"d":"0.00"}}]
[]
[{"v":225,"d":"225 "},null,"     VRF cassette 4 way blow, VRFCU4-14.0, 14.0kW",null,"No",{"v":1,"d":"1 "},null,{"$f":"ROUND(F4028*G4028,2)","v":{"v":0,"d":"0.00"}}]
[]
[{"v":226,"d":"226 "},null,"     VRF hideaway unit, VRFHU-16.0-M, 16.0kW medium static",null,"No",{"v":6,"d":"6 "},null,{"$f":"ROUND(F4030*G4030,2)","v":{"v":0,"d":"0.00"}}]
[]
[{"v":227,"d":"227 "},null,"     VRF midwall unit, VRFMU-2.8, 2.8kW",null,"No",{"v":1,"d":"1 "},null,{"$f":"ROUND(F4032*G4032,2)","v":{"v":0,"d":"0.00"}}]
[]
[{"v":228,"d":"228 "},null,"     VRF 4 port refrigerant junction box",null,"No",{"v":2,"d":"2 "},null,{"$f":"ROUND(F4034*G4034,2)","v":{"v":0,"d":"0.00"}}]
[]
[{"v":229,"d":"229 "},null,"     VRF 6 port refrigerant junction box",null,"No",{"v":2,"d":"2 "},null,{"$f":"ROUND(F4036*G4036,2)","v":{"v":0,"d":"0.00"}}]
[]
[{"v":230,"d":"230 "},null,"     Heat recovery VRF outdoor condenserunits, VRFOU-61.6-HR, 61.6kW",null,"No",{"v":2,"d":"2 "},null,{"$f":"ROUND(F4038*G4038,2)","v":{"v":0,"d":"0.00"}}]
[]
[{"v":231,"d":"231 "},null,"     Heat pump VRF outdoor condenserunits, VRFOU-50.4-HP, 50.4kW",null,"No",{"v":4,"d":"4 "},null,{"$f":"ROUND(F4040*G4040,2)","v":{"v":0,"d":"0.00"}}]
[]
[{"v":232,"d":"232 "},null,"     Heat pump VRF outdoor condenserunits, VRFOU-56.0-HP, 56.1kW",null,"No",{"v":2,"d":"2 "},null,{"$f":"ROUND(F4042*G4042,2)","v":{"v":0,"d":"0.00"}}]
[]
[{"v":233,"d":"233 "},null,"     Additional refrigerant charge. Supplier to confirm amount",null,"No",{"v":2,"d":"2 "},null,{"$f":"ROUND(F4044*G4044,2)","v":{"v":0,"d":"0.00"}}]
[]
[{"v":234,"d":"234 "},null,"     Additional refrigerant charge for outdoor condenser units, VRFOU-61.6-HR.",null,"No",{"v":4,"d":"4 "},null,{"$f":"ROUND(F4046*G4046,2)","v":{"v":0,"d":"0.00"}}]
[]
[{"v":235,"d":"235 "},null,"     Additional refrigerant charge for outdoor condenser units, VRFOU-50.4-HP",null,"No",{"v":2,"d":"2 "},null,{"$f":"ROUND(F4048*G4048,2)","v":{"v":0,"d":"0.00"}}]
[]
[null,null,"Off-loading, rigging and hoisting of each VRF condenser unit into its final position"]
[]
[{"v":236,"d":"236 "},null,"     Heat recovery VRF outdoor condenserunits, VRFOU-61.6-HR, 61.6kW",null,"No",{"v":2,"d":"2 "},null,{"$f":"ROUND(F4052*G4052,2)","v":{"v":0,"d":"0.00"}}]
[]
[{"v":237,"d":"237 "},null,"     Heat pump VRF outdoor condenserunits, VRFOU-50.4-HP, 50.4kW",null,"No",{"v":2,"d":"2 "},null,{"$f":"ROUND(F4054*G4054,2)","v":{"v":0,"d":"0.00"}}]
[]
[{"v":238,"d":"238 "},null,"     Heat pump VRF outdoor condenserunits, VRFOU-56.0-HP, 56.1kW",null,"No",{"v":2,"d":"2 "},null,{"$f":"ROUND(F4056*G4056,2)","v":{"v":0,"d":"0.00"}}]
[]
[null,null,"Control cabling between VRF outdoor and associated indoor units"]
[]
[{"v":239,"d":"239 "},null,"     Control cabling between outdoor and indoor units",null,"m",{"v":285,"d":"285 "},null,{"$f":"ROUND(F4060*G4060,2)","v":{"v":0,"d":"0.00"}}]
[]
[null,null,"Split units"]
[]
[null,null,"Refer to Part C3.3 Section 14.02"]
[]
[null,null,"Split unit supply and installation, including: Electrical connections c/w isolator at indoor unit Drain pipe connections Indoor & outdoor units Wired wall mounted controller, commissioning, gas included."]
[]
[null,null,"Inverter type midwall split unit c/w indoor and outdoor units"]
[]
[{"v":240,"d":"240 "},null,"Inverter type midwall split unit c/w indoor and outdoor unit, SMU-3.5, 3.5 kW",null,"No",{"v":2,"d":"2 "},null,{"$f":"ROUND(F4070*G4070,2)","v":{"v":0,"d":"0.00"}}]
[]
[{"v":241,"d":"241 "},null,"Inverter type midwall split unit c/w indoor and outdoor unit, SMU-4.5, 4.5 kW",null,"No",{"v":2,"d":"2 "},null,{"$f":"ROUND(F4072*G4072,2)","v":{"v":0,"d":"0.00"}}]
[]
[{"v":242,"d":"242 "},null,"Power & control cabling between split outdoor and indoor units     Power & control cabling between indoor and outdoor split units",null,"m",{"v":34,"d":"34 "},null,{"$f":"ROUND(F4074*G4074,2)","v":{"v":0,"d":"0.00"}}]
[]
[null,null,"Split unit piping"]
[]
[{"v":243,"d":"243 "},null,"Central Controller for VRF system",null,"No",{"v":4,"d":"4 "},null,{"$f":"ROUND(F4078*G4078,2)","v":{"v":0,"d":"0.00"}}]
[]
[null,null,"Refrigerant copper piping including supports, fixings, bends and insulation."]
[]
[null,null,"Refer to Part C3.2 Section 4 & Part C3.3 Section 09.04"]
[]
[null,null,"Refrigerant copper piping c/w insulation supported in single volume space"]
[]
[{"v":244,"d":"244 "},null,"     Refrigerant copper piping for SMU-3.5 soft drawn straight pipe",null,"m",{"v":17,"d":"17 "},null,{"$f":"ROUND(F4086*G4086,2)","v":{"v":0,"d":"0.00"}}]
[]
[{"v":245,"d":"245 "},null,"     Refrigerant copper piping for SMU-4.5 soft drawn straight pipe",null,"m",{"v":17,"d":"17 "},null,{"$f":"ROUND(F4088*G4088,2)","v":{"v":0,"d":"0.00"}}]
[]
[null,null,"Refrigerant cable trays and fittings including supports and fixings"]
[]
[null,null,"Refer to Part C3.2 Section 4 & Part C3.3 Section 09.04 Supply, deliver and installation of heavy duty cable trays supported in single volume space c/w brackets and supports, all of which will be galvanised"]
[]
[{"v":246,"d":"246 "},null,"     100mm Perforated metal cable tray c/w covers",null,"m",{"v":17,"d":"17 "},null,{"$f":"ROUND(F4094*G4094,2)","v":{"v":0,"d":"0.00"}}]
[]
[{"v":247,"d":"247 "},null,"Stainless Steel emergency drip trays, insulated at the bottom to prevent condensation droplets on the bottom surface",null,"No",{"v":8,"d":"8 "},null,{"$f":"ROUND(F4096*G4096,2)","v":{"v":0,"d":"0.00"}}]
[]
[{"$nulls":7},{"$f":"SUM(H3753:H4097)","v":{"v":0,"d":"0.00"}}]
[]
[{"v":1,"d":"1 "},null,"Preliminaries and General",null,"Page",{"v":145,"d":"145 "},null,{"$f":"+H3330","v":{"v":0,"d":"0.00"}}]
[]
[{"v":2,"d":"2 "},null,"Fresh Air",null,"Page",{"v":152,"d":"152 "},null,{"$f":"+H3552","v":{"v":0,"d":"0.00"}}]
[]
[{"v":3,"d":"3 "},null,"Toilet Extract",null,"Page",{"v":159,"d":"159 "},null,{"$f":"+H3748","v":{"v":0,"d":"0.00"}}]
[]
[{"v":4,"d":"4 "},null,"Air Conditioning",null,"Page",{"v":170,"d":"170 "},null,{"$f":"+H4098","v":{"v":0,"d":"0.00"}}]
[]
[{"$nulls":7},{"$f":"SUM(H4100:H4107)","v":{"v":0,"d":"0.00"}}]
[]
[null,null,"SECTION NO 7: FIRE  DETECTIONS"]
[]
[null,null,"BILL NO 1"]
[]
[null,null,"PRELIMINARIES AND GENERAL"]
[]
[null,null,"PREAMBLES AND SPECIAL CONDITIONS"]
[]
[null,null,"Note 1 Principal building agreement"]
[]
[null,null,"The agreement entered into between the employer and the contractor is the July 2007 (Code 2101) Principal Building Agreement prepared by the Joint Building Contracts Committee and recommended by the JBCC Constituents, as amplified and amended by:"]
[]
[null,null,"1.1  The July 2007 (Code 2103) JBCC Preliminaries."]
[]
[null,null,"1.2  SANS 10400 Part T and W, SANS 10139"]
[]
[null,null,"1.3  The bills of quantities."]
[]
[null,null,"1.4  Such other documents as are identified in the schedule to"]
[]
[null,null,"       the agreement."]
[]
[null,null,"(The documents referred to in Note 1 above and comprising the principal building agreement, the preliminaries, the bills of quantities, and such other documents as are identified in the schedule shall collectively be referred to as the principal agreement)"]
[]
[null,null,"Note 2"]
[]
[null,null,"Nominated/selected subcontract agreement."]
[]
[null,null,"The selected subcontract agreement to be entered into between the contractor and the subcontractor shall be referred to as the N/S agreement and shall:"]
[]
[null,null,"2.1  not conflict with any of the provisions of the principal       agreement as defined in Note 1 above;  and"]
[]
[null,null,"2.2  conform to and incorporate the July 2007 (Code 2102)       Nominated/Selected Subcontract Agreement prepared by       the Joint Building Contracts Committee as amplified       and/or amended by:"]
[]
[null,null,"2.2.1  these preliminaries;"]
[]
[null,null,"2.2.2  the N/S contract documents as defined in clause 1"]
[]
[null,null,"                of the N/S agreement."]
[]
[null,null,"Note 3 In the event of a conflict between any provision contained in these preliminaries on the one hand and any provision contained in the N/S agreement on the other hand, the relevant provisions of these preliminaries shall prevail."]
[]
[null,null,"SPECIAL CONDITIONS OF CONTRACT (Refer to Part C1.5 AND C2.3)"]
[]
[{"v":1,"d":"1 "},null,"Clause 1.0:  Definitions and interpretations",null,"SUM",{"v":1,"d":"1 "},null,{"$f":"+F4154*G4154","v":{"v":0,"d":"0.00"}}]
[]
[{"v":2,"d":"2 "},null,"Clause 2.0:  General",null,"SUM","0.0"]
[]
[{"v":3,"d":"3 "},null,"Clause 3.0:  Drawings and Submissions",null,"SUM","0.0"]
[]
[{"v":4,"d":"4 "},null,"Clause 4.0:  Work provided by others",null,"SUM","0.0"]
[]
[{"v":5,"d":"5 "},null,"Clause 5.0:  Compliance with Regulations",null,"SUM","0.0"]
[]
[{"v":6,"d":"6 "},null,"Clause 6.0:  Health and Safety",null,"SUM","0.0"]
[]
[{"v":7,"d":"7 "},null,"Clause 7.0:  Hoisting and Rigging",null,"SUM","0.0"]
[]
[{"v":8,"d":"8 "},null,"Clause 8.0:  Materials and Workmanship",null,"SUM","0.0"]
[]
[{"v":9,"d":"9 "},null,"Clause 9.0:  Programming",null,"SUM","0.0"]
[]
[{"v":10,"d":"10 "},null,"Clause 10.0: Contract Management",null,"SUM","0.0"]
[]
[{"v":11,"d":"11 "},null,"Clause 11.0:  Organisation and staff of sub-contractor",null,"SUM","0.0"]
[]
[{"v":12,"d":"12 "},null,"Clause 12.0:  Protection against Damage",null,"SUM","0.0"]
[]
[{"v":13,"d":"13 "},null,"Clause 13.0:  Access to Equipment and Systems",null,"SUM","0.0"]
[]
[{"v":14,"d":"14 "},null,"Clause 14.0:  Testing, Balancing, Commissioning, Operating of Plant & Handover",null,"SUM","0.0"]
[]
[{"v":15,"d":"15 "},null,"Clause 15.0:  Guarantee",null,"SUM","0.0"]
[]
[{"v":16,"d":"16 "},null,"Clause 16.0:  Quality Management Systm - Testing and Inspection",null,"SUM","0.0"]
[]
[{"v":17,"d":"17 "},null,"Clause 17.0:  Operating and Maintenance Manuals",null,"SUM","0.0"]
[]
[{"v":18,"d":"18 "},null,"Clause 18.0:  One Year's Maintenance",null,"SUM","0.0"]
[]
[{"v":19,"d":"19 "},null,"Clause 19.0:  Special Attendance",null,"SUM","0.0"]
[]
[{"v":20,"d":"20 "},null,"Clause 20.0:  Example Checklists",null,"SUM","0.0"]
[]
[{"v":21,"d":"21 "},null,"Clause 21.0  Example Checklists",null,"SUM","0.0"]
[]
[{"v":22,"d":"22 "},null,"Clause 22.0  Example Checklists",null,"SUM","0.0"]
[]
[null,null,"PROVISIONAL AMOUNTS FOR P&G"]
[]
[null,null,"Provisional Amounts exclude the cost of Overheads, Preliminaries and Profit"]
[]
[null,null,"Tenderers are referred to Spoormaker & Partners\"€™ General Technical Specification (Part IV ) and Project Technical Specification (Part V.1) for the following Additional Preliminaries:"]
[]
[{"v":23,"d":"23 "},null,"Operating and Maintenance Manuals (Part IV Section 16)",null,"Item",{"v":0,"d":"0 "},null,{"$f":"ROUND(F4204*G4204,2)","v":{"v":0,"d":"0.00"}}]
[]
[{"v":24,"d":"24 "},null,"\"€œAs Built\"€\u009d Drawings (Part IV Section 16 and Part V.1 Section 2)",null,"Item",{"v":0,"d":"0 "},null,{"$f":"ROUND(F4206*G4206,2)","v":{"v":0,"d":"0.00"}}]
[]
[{"v":25,"d":"25 "},null,"Testing and Commissioning (Part V.1 Section 9)",null,"SUM","0.0"]
[]
[{"v":26,"d":"26 "},null,"Equipment Submissions (Part IV Section 16 and Part V.1 Section 2)",null,"SUM","0.0"]
[]
[{"v":27,"d":"27 "},null,"1 - Year Maintenance and Guarantee (Part IV Section 13).",null,"SUM","0.0"]
[]
[{"v":28,"d":"28 "},null,"Operator Training",null,"SUM","0.0"]
[]
[{"v":29,"d":"29 "},null,"Labels Graflux",null,"SUM","0.0"]
[]
[{"$nulls":7},{"$f":"SUM(H4111:H4217)","v":{"v":0,"d":"0.00"}}]
[]
[null,null,"SECTION NO 7: FIRE  DETECTIONS"]
[]
[null,null,"BILL NO 2"]
[]
[null,null,"PUMPS & TANKS"]
[]
[null,null,"The mechanical contractor shall provide, all the necessary labor and accessories to manufacture, and install the following in accordance with the relevant section within the mechanical specification  and applicable standard."]
[]
[null,null,"Sprinkler reticulation to be in accordance with SANS10400-T, SANS10252, SANS 10287 & FM"]
[]
[null,null,"12 months maintenance"]
[]
[null,null,"12 months guarantee"]
[]
[null,null,"Attendance during commissioning"]
[]
[null,null,"Suction tank"]
[]
[{"v":30,"d":"30 "},null,"Butterfly valve, gear driven, 250mm",null,"Item",{"v":2,"d":"2 "},null,{"$f":"ROUND(F4238*G4238,2)","v":{"v":0,"d":"0.00"}}]
[]
[{"v":31,"d":"31 "},null,"Butterfly valve, gear driven, 150mm",null,"Item",{"v":1,"d":"1 "},null,{"$f":"ROUND(F4240*G4240,2)","v":{"v":0,"d":"0.00"}}]
[]
[{"v":32,"d":"32 "},null,"Butterfly valve, gear driven,100mm",null,"Item",{"v":2,"d":"2 "},null,{"$f":"ROUND(F4242*G4242,2)","v":{"v":0,"d":"0.00"}}]
[]
[{"v":33,"d":"33 "},null,"Galvanized steel sectional water storage tank divided in two equal sections - 150m\"³ total effective capacity",null,"Item",{"v":1,"d":"1 "},null,{"$f":"ROUND(F4244*G4244,2)","v":{"v":0,"d":"0.00"}}]
[]
[{"v":34,"d":"34 "},null,"Tank-infill water level control valve, 100mm",null,"Item",{"v":2,"d":"2 "},null,{"$f":"ROUND(F4246*G4246,2)","v":{"v":0,"d":"0.00"}}]
[]
[{"v":35,"d":"35 "},null,"Vortex inhibitor, 200mm flanged fitting, galvanized",null,"Item",{"v":2,"d":"2 "},null,{"$f":"ROUND(F4248*G4248,2)","v":{"v":0,"d":"0.00"}}]
[]
[{"v":36,"d":"36 "},null,"Mechanically water level indicators, complete with floats, cables, pulleys and level signage.",null,"Item",{"v":2,"d":"2 "},null,{"$f":"ROUND(F4250*G4250,2)","v":{"v":0,"d":"0.00"}}]
[]
[null,null,"Plant room ventilation"]
[]
[{"v":37,"d":"37 "},null,"Exhaust fan similar or equal to AMS compact wall mounted model HCBT/6 - 710",null,"Item",{"v":1,"d":"1 "},null,{"$f":"ROUND(F4254*G4254,2)","v":{"v":0,"d":"0.00"}}]
[]
[{"v":38,"d":"38 "},null,"Intake weather Louvers similar tor Trox AWG 985 x 825 mm with 120 minute fire damper (fusible link operated)",null,"Item",{"v":1,"d":"1 "},null,{"$f":"ROUND(F4256*G4256,2)","v":{"v":0,"d":"0.00"}}]
[]
[{"v":39,"d":"39 "},null,"Exhaust weather Louvers similar tor Trox AWG 985 x 825 mm  with 120 minute fire damper (fusible link operated)",null,"Item",{"v":1,"d":"1 "},null,{"$f":"ROUND(F4258*G4258,2)","v":{"v":0,"d":"0.00"}}]
[]
[null,null,"Fire Pump"]
[]
[{"v":40,"d":"40 "},null,"Butterfly valve, gear driven, 250mm",null,"Item",{"v":2,"d":"2 "},null,{"$f":"ROUND(F4262*G4262,2)","v":{"v":0,"d":"0.00"}}]
[]
[{"v":41,"d":"41 "},null,"Butterfly valve, gear driven,150mm",null,"Item",{"v":4,"d":"4 "},null,{"$f":"ROUND(F4264*G4264,2)","v":{"v":0,"d":"0.00"}}]
[]
[{"v":42,"d":"42 "},null,"Butterfly valve, gear driven,100mm",null,"Item",{"v":2,"d":"2 "},null,{"$f":"ROUND(F4266*G4266,2)","v":{"v":0,"d":"0.00"}}]
[]
[{"v":43,"d":"43 "},null,"Gate valve, 32mm",null,"Item",{"v":2,"d":"2 "},null,{"$f":"ROUND(F4268*G4268,2)","v":{"v":0,"d":"0.00"}}]
[]
[{"v":44,"d":"44 "},null,"Check valve, swing type with maintenance cover, 150mm",null,"Item",{"v":2,"d":"2 "},null,{"$f":"ROUND(F4270*G4270,2)","v":{"v":0,"d":"0.00"}}]
[]
[{"v":45,"d":"45 "},null,"Check valve, swing type with maintenance cover, 25mm",null,"Item",{"v":1,"d":"1 "},null,{"$f":"ROUND(F4272*G4272,2)","v":{"v":0,"d":"0.00"}}]
[]
[{"v":46,"d":"46 "},null,"Flexible pipe couplings, 250mm, suction & discharge",null,"Item",{"v":2,"d":"2 "},null,{"$f":"ROUND(F4274*G4274,2)","v":{"v":0,"d":"0.00"}}]
[]
[{"v":47,"d":"47 "},null,"Flexible pipe couplings, 150mm, suction & discharge",null,"Item",{"v":2,"d":"2 "},null,{"$f":"ROUND(F4276*G4276,2)","v":{"v":0,"d":"0.00"}}]
[]
[{"v":48,"d":"48 "},null,"Eccentric reducers from 200 to 100mm",null,"Item",{"v":2,"d":"2 "},null,{"$f":"ROUND(F4278*G4278,2)","v":{"v":0,"d":"0.00"}}]
[]
[{"v":49,"d":"49 "},null,"Eccentric concentric increasers 80 to 150",null,"Item",{"v":2,"d":"2 "},null,{"$f":"ROUND(F4280*G4280,2)","v":{"v":0,"d":"0.00"}}]
[]
[{"v":50,"d":"50 "},null,"Pump set, diesel engine and pump, complete 3000L/min (Qmax) @ 8 bar (Pmax)",null,"Item",{"v":1,"d":"1 "},null,{"$f":"ROUND(F4282*G4282,2)","v":{"v":0,"d":"0.00"}}]
[]
[{"v":51,"d":"51 "},null,"Pump set, electrical motor and pump, complete 3000L/min (Qmax) @ 8 bar (Pmax)",null,"Item",{"v":1,"d":"1 "},null,{"$f":"ROUND(F4284*G4284,2)","v":{"v":0,"d":"0.00"}}]
[]
[{"v":52,"d":"52 "},null,"Jockey pump set, jockey pump and electrical motor, complete",null,"Item",{"v":1,"d":"1 "},null,{"$f":"ROUND(F4286*G4286,2)","v":{"v":0,"d":"0.00"}}]
[]
[{"v":53,"d":"53 "},null,"Diesel engine fuel lines and diesel fuel tank",null,"Item",{"v":1,"d":"1 "},null,{"$f":"ROUND(F4288*G4288,2)","v":{"v":0,"d":"0.00"}}]
[]
[{"v":54,"d":"54 "},null,"Motor control centre, diesel engine complete",null,"Item",{"v":1,"d":"1 "},null,{"$f":"ROUND(F4290*G4290,2)","v":{"v":0,"d":"0.00"}}]
[]
[{"v":55,"d":"55 "},null,"Motor control centre, electrical motor complete",null,"Item",{"v":1,"d":"1 "},null,{"$f":"ROUND(F4292*G4292,2)","v":{"v":0,"d":"0.00"}}]
[]
[{"v":56,"d":"56 "},null,"Motor Control Centre, jockey electrical motor complete",null,"Item",{"v":1,"d":"1 "},null,{"$f":"ROUND(F4294*G4294,2)","v":{"v":0,"d":"0.00"}}]
[]
[{"v":57,"d":"57 "},null,"Vane Type Water flow switch, similar or equal to POTTER VSD -5 DN150 mm",null,"Item",{"v":1,"d":"1 "},null,{"$f":"ROUND(F4296*G4296,2)","v":{"v":0,"d":"0.00"}}]
[]
[{"v":58,"d":"58 "},null,"System starting / test arrangement, 5-stage, complete with 25mm globe valves, 25mm swing check valves, pressure gauges and pressure switches as specified.",null,"Item",{"v":1,"d":"1 "},null,{"$f":"ROUND(F4298*G4298,2)","v":{"v":0,"d":"0.00"}}]
[]
[{"v":59,"d":"59 "},null,"Water flow test instrument, sprinkler, pump flow test, Gerand Model K",null,"Item",{"v":1,"d":"1 "},null,{"$f":"ROUND(F4300*G4300,2)","v":{"v":0,"d":"0.00"}}]
[]
[{"v":60,"d":"60 "},null,"Pressure gauge, 100mm stainless steel, glycerin filled and gauge cock",null,"Item",{"v":16,"d":"16 "},null,{"$f":"ROUND(F4302*G4302,2)","v":{"v":0,"d":"0.00"}}]
[]
[null,null,"Piping"]
[]
[{"v":61,"d":"61 "},null,"Piping, UPVC, class 16, \"Supramyn\"grooved lock, 110mm",null,"m",{"v":200,"d":"200 "},null,{"$f":"ROUND(F4306*G4306,2)","v":{"v":0,"d":"0.00"}}]
[]
[{"v":62,"d":"62 "},null,"Piping, UPVC, class 16, \"€œSupramyn\"€\u009d grooved lock, \"T\" connection 110mm",null,"m",{"v":2,"d":"2 "},null,{"$f":"ROUND(F4308*G4308,2)","v":{"v":0,"d":"0.00"}}]
[]
[{"v":63,"d":"63 "},null,"Piping, UPVC, class 16, \"€œSupramyn\"€\u009d grooved lock, 90 \"° elbow, 110mm",null,"m",{"v":8,"d":"8 "},null,{"$f":"ROUND(F4310*G4310,2)","v":{"v":0,"d":"0.00"}}]
[]
[{"v":64,"d":"64 "},null,"Piping, black steel, medium grade, primed and painted, 200mm, incl. all fittings and hangers",null,"m",{"v":24,"d":"24 "},null,{"$f":"ROUND(F4312*G4312,2)","v":{"v":0,"d":"0.00"}}]
[]
[{"v":65,"d":"65 "},null,"Piping, black steel, medium grade, primed and painted, 150mm, incl. all fittings and hangers",null,"m",{"v":30,"d":"30 "},null,{"$f":"ROUND(F4314*G4314,2)","v":{"v":0,"d":"0.00"}}]
[]
[{"v":66,"d":"66 "},null,"Piping, black steel, medium grade, primed and painted, 100mm, incl. all fittings and hangers",null,"m",{"v":10,"d":"10 "},null,{"$f":"ROUND(F4316*G4316,2)","v":{"v":0,"d":"0.00"}}]
[]
[{"v":67,"d":"67 "},null,"Mains, black steel, medium grade, pipe 150mm, grooved ends with 1 coat primer and painted",null,"m",{"v":30,"d":"30 "},null,{"$f":"ROUND(F4318*G4318,2)","v":{"v":0,"d":"0.00"}}]
[]
[{"v":68,"d":"68 "},null,"Mains, black steel, medium grade, pipe 100mm, grooved ends with 1 coat primer and painted",null,"m",{"v":10,"d":"10 "},null,{"$f":"ROUND(F4320*G4320,2)","v":{"v":0,"d":"0.00"}}]
[]
[{"v":69,"d":"69 "},null,"Piping, black steel, medium grade, primed and painted, 32mm, incl. all fittings and hangers",null,"m",{"v":20,"d":"20 "},null,{"$f":"ROUND(F4322*G4322,2)","v":{"v":0,"d":"0.00"}}]
[]
[{"v":70,"d":"70 "},null,"Piping, black steel, medium grade, primed and painted, 25mm, incl. all fittings and hangers",null,"m",{"v":60,"d":"60 "},null,{"$f":"ROUND(F4324*G4324,2)","v":{"v":0,"d":"0.00"}}]
[]
[{"v":71,"d":"71 "},null,"Piping, black steel, medium grade, primed and painted, 250mm \"€œT\"€\u009d, incl. all fittings and hangers",null,"m",{"v":1,"d":"1 "},null,{"$f":"ROUND(F4326*G4326,2)","v":{"v":0,"d":"0.00"}}]
[]
[{"v":72,"d":"72 "},null,"Piping, black steel, medium grade, primed and painted, 150mm \"€œT\"€\u009d, incl. all fittings and hangers",null,"m",{"v":2,"d":"2 "},null,{"$f":"ROUND(F4328*G4328,2)","v":{"v":0,"d":"0.00"}}]
[]
[{"v":73,"d":"73 "},null,"Piping, black steel, medium grade, primed and painted, 32mm \"€œT\"€\u009d, incl. all fittings and hangers",null,"m",{"v":2,"d":"2 "},null,{"$f":"ROUND(F4330*G4330,2)","v":{"v":0,"d":"0.00"}}]
[]
[{"v":74,"d":"74 "},null,"Piping, black steel, medium grade, primed and painted, 25mm \"€œT\"€\u009d, incl. all fittings and hangers",null,"m",{"v":18,"d":"18 "},null,{"$f":"ROUND(F4332*G4332,2)","v":{"v":0,"d":"0.00"}}]
[]
[{"v":75,"d":"75 "},null,"Piping, black steel, medium grade, primed and painted, 250mm 90\"\u0081° bend, incl. all fittings and hangers",null,"m",{"v":6,"d":"6 "},null,{"$f":"ROUND(F4334*G4334,2)","v":{"v":0,"d":"0.00"}}]
[]
[{"v":76,"d":"76 "},null,"Piping, black steel, medium grade, primed and painted, 150mm 90\"\u0081° bend, incl. all fittings and hangers",null,"m",{"v":6,"d":"6 "},null,{"$f":"ROUND(F4336*G4336,2)","v":{"v":0,"d":"0.00"}}]
[]
[{"v":77,"d":"77 "},null,"Piping, black steel, medium grade, primed and painted, 100mm 90\"\u0081° bend, incl. all fittings and hangers",null,"m",{"v":4,"d":"4 "},null,{"$f":"ROUND(F4338*G4338,2)","v":{"v":0,"d":"0.00"}}]
[]
[{"v":78,"d":"78 "},null,"Grooved end piping, black steel, medium grade, primed and painted, 150mm 90\"\u0081° bend, incl. all fittings and hangers",null,"m",{"v":6,"d":"6 "},null,{"$f":"ROUND(F4340*G4340,2)","v":{"v":0,"d":"0.00"}}]
[]
[{"v":79,"d":"79 "},null,"Grooved end piping, black steel, medium grade, primed and painted, 100mm 90\"\u0081° bend, incl. all fittings and hangers",null,"m",{"v":4,"d":"4 "},null,{"$f":"ROUND(F4342*G4342,2)","v":{"v":0,"d":"0.00"}}]
[]
[{"v":80,"d":"80 "},null,"Piping, black steel, medium grade, primed and painted, 32mm 90\"\u0081° bend, incl. all fittings and hangers",null,"m",{"v":4,"d":"4 "},null,{"$f":"ROUND(F4344*G4344,2)","v":{"v":0,"d":"0.00"}}]
[]
[{"v":81,"d":"81 "},null,"Piping, black steel, medium grade, primed and painted, 25mm 90\"\u0081° bend, incl. all fittings and hangers",null,"m",{"v":10,"d":"10 "},null,{"$f":"ROUND(F4346*G4346,2)","v":{"v":0,"d":"0.00"}}]
[]
[{"v":82,"d":"82 "},null,"Black steel, medium grade, reducers 150mm x 100mm, with 1 coat primer and painted",null,"Item",{"v":2,"d":"2 "},null,{"$f":"ROUND(F4348*G4348,2)","v":{"v":0,"d":"0.00"}}]
[]
[{"v":83,"d":"83 "},null,"Denso tape wrapped on the 250 mm piping",null,"m",{"v":24,"d":"24 "},null,{"$f":"ROUND(F4350*G4350,2)","v":{"v":0,"d":"0.00"}}]
[]
[{"v":84,"d":"84 "},null,"Denso tape wrapped on the 150 mm piping",null,"m",{"v":30,"d":"30 "},null,{"$f":"ROUND(F4352*G4352,2)","v":{"v":0,"d":"0.00"}}]
[]
[{"v":85,"d":"85 "},null,"Grooved end pipe coupling 150 mm",null,"Item",{"v":36,"d":"36 "},null,{"$f":"ROUND(F4354*G4354,2)","v":{"v":0,"d":"0.00"}}]
[]
[{"v":86,"d":"86 "},null,"Grooved end pipe coupling 100 mm",null,"Item",{"v":36,"d":"36 "},null,{"$f":"ROUND(F4356*G4356,2)","v":{"v":0,"d":"0.00"}}]
[]
[{"v":87,"d":"87 "},null,"Flanges 200mm, with gaskets, nuts & bolts",null,"Item",{"v":8,"d":"8 "},null,{"$f":"ROUND(F4358*G4358,2)","v":{"v":0,"d":"0.00"}}]
[]
[{"v":88,"d":"88 "},null,"Flanges 150mm, with gaskets, nuts & bolts",null,"Item",{"v":8,"d":"8 "},null,{"$f":"ROUND(F4360*G4360,2)","v":{"v":0,"d":"0.00"}}]
[]
[{"v":89,"d":"89 "},null,"Flanges 100mm, with gaskets, nuts & bolts",null,"Item",{"v":4,"d":"4 "},null,{"$f":"ROUND(F4362*G4362,2)","v":{"v":0,"d":"0.00"}}]
[]
[{"v":90,"d":"90 "},null,"Hanger / support 150mm to 250mmpipework",null,"Item",{"v":42,"d":"42 "},null,{"$f":"ROUND(F4364*G4364,2)","v":{"v":0,"d":"0.00"}}]
[]
[{"v":91,"d":"91 "},null,"Hanger / support 100mm to 80mm pipework",null,"Item",{"v":10,"d":"10 "},null,{"$f":"ROUND(F4366*G4366,2)","v":{"v":0,"d":"0.00"}}]
[]
[{"v":92,"d":"92 "},null,"Hanger / support 65mm to 25mm pipework",null,"Item",{"v":8,"d":"8 "},null,{"$f":"ROUND(F4368*G4368,2)","v":{"v":0,"d":"0.00"}}]
[]
[null,null,"Power Supply"]
[]
[{"v":93,"d":"93 "},null,"NS160 H Circuit breaker with electronic trip unit",null,"Item",{"v":2,"d":"2 "},null,{"$f":"ROUND(F4372*G4372,2)","v":{"v":0,"d":"0.00"}}]
[]
[{"v":94,"d":"94 "},null,"C60H 3P 10 Amp",null,"Item",{"v":2,"d":"2 "},null,{"$f":"ROUND(F4374*G4374,2)","v":{"v":0,"d":"0.00"}}]
[]
[{"v":95,"d":"95 "},null,"C60H 1P 20 Amp",null,"Item",{"v":2,"d":"2 "},null,{"$f":"ROUND(F4376*G4376,2)","v":{"v":0,"d":"0.00"}}]
[]
[{"v":96,"d":"96 "},null,"Labeling and other accessories",null,"Item",{"v":1,"d":"1 "},null,{"$f":"ROUND(F4378*G4378,2)","v":{"v":0,"d":"0.00"}}]
[]
[{"v":97,"d":"97 "},null,"IP55 Enclosure",null,"Item",{"v":1,"d":"1 "},null,{"$f":"ROUND(F4380*G4380,2)","v":{"v":0,"d":"0.00"}}]
[]
[{"v":98,"d":"98 "},null,"4mm\"² x 4 Core SWA/PVC",null,"m",{"v":30,"d":"30 "},null,{"$f":"ROUND(F4382*G4382,2)","v":{"v":0,"d":"0.00"}}]
[]
[{"v":99,"d":"99 "},null,"6mm\"² x 4 Core SWA/PVC",null,"m",{"v":30,"d":"30 "},null,{"$f":"ROUND(F4384*G4384,2)","v":{"v":0,"d":"0.00"}}]
[]
[{"v":100,"d":"100 "},null,"35mm\"² x 4 Core SWA/PVC",null,"m",{"v":30,"d":"30 "},null,{"$f":"ROUND(F4386*G4386,2)","v":{"v":0,"d":"0.00"}}]
[]
[{"v":101,"d":"101 "},null,"50mm\"² x 4 Core SWA/PVC",null,"m",{"v":120,"d":"120 "},null,{"$f":"ROUND(F4388*G4388,2)","v":{"v":0,"d":"0.00"}}]
[]
[{"v":102,"d":"102 "},null,"150mm cable ladder",null,"Item",{"v":120,"d":"120 "},null,{"$f":"ROUND(F4390*G4390,2)","v":{"v":0,"d":"0.00"}}]
[]
[{"v":103,"d":"103 "},null,"150mm bend",null,"Item",{"v":12,"d":"12 "},null,{"$f":"ROUND(F4392*G4392,2)","v":{"v":0,"d":"0.00"}}]
[]
[{"v":104,"d":"104 "},null,"150mm tee",null,"m",{"v":12,"d":"12 "},null,{"$f":"ROUND(F4394*G4394,2)","v":{"v":0,"d":"0.00"}}]
[]
[{"v":105,"d":"105 "},null,"25mm Diam Galvanized conduit surface",null,"m",{"v":60,"d":"60 "},null,{"$f":"ROUND(F4396*G4396,2)","v":{"v":0,"d":"0.00"}}]
[]
[{"v":106,"d":"106 "},null,"25mm diam ends,box,locknuts incl. Steel",null,"m",{"v":10,"d":"10 "},null,{"$f":"ROUND(F4398*G4398,2)","v":{"v":0,"d":"0.00"}}]
[]
[{"v":107,"d":"107 "},null,"25mm round box 1,2,3 or 4way-Steel",null,"m",{"v":10,"d":"10 "},null,{"$f":"ROUND(F4400*G4400,2)","v":{"v":0,"d":"0.00"}}]
[]
[{"v":108,"d":"108 "},null,"4mm BCEW wire",null,"m",{"v":30,"d":"30 "},null,{"$f":"ROUND(F4402*G4402,2)","v":{"v":0,"d":"0.00"}}]
[]
[{"v":109,"d":"109 "},null,"6mm BCEW wire",null,"m",{"v":30,"d":"30 "},null,{"$f":"ROUND(F4404*G4404,2)","v":{"v":0,"d":"0.00"}}]
[]
[{"v":110,"d":"110 "},null,"16mm BCEW wire",null,"m",{"v":30,"d":"30 "},null,{"$f":"ROUND(F4406*G4406,2)","v":{"v":0,"d":"0.00"}}]
[]
[{"v":111,"d":"111 "},null,"25mm BCEW wire",null,"m",{"v":120,"d":"120 "},null,{"$f":"ROUND(F4408*G4408,2)","v":{"v":0,"d":"0.00"}}]
[]
[{"v":112,"d":"112 "},null,"IP 65 Fluorescent lap & fiting Lascon C2N 158 ELB 1270 mm",null,"Item",{"v":2,"d":"2 "},null,{"$f":"ROUND(F4410*G4410,2)","v":{"v":0,"d":"0.00"}}]
[]
[{"v":113,"d":"113 "},null,"IP 65 Industrial/surface mounted light switch",null,"Item",{"v":1,"d":"1 "},null,{"$f":"ROUND(F4412*G4412,2)","v":{"v":0,"d":"0.00"}}]
[]
[{"v":114,"d":"114 "},null,"IP 65 Industrial/surface mounted 16 amp wall socket",null,"Item",{"v":1,"d":"1 "},null,{"$f":"ROUND(F4414*G4414,2)","v":{"v":0,"d":"0.00"}}]
[]
[null,null,"Others"]
[]
[{"v":115,"d":"115 "},null,"Remove, cut and provide pipe welds to be identified by the mechanical engineer for inspection of welding quality, visual inspection only",null,"Item",{"v":4,"d":"4 "},null,{"$f":"ROUND(F4418*G4418,2)","v":{"v":0,"d":"0.00"}}]
[]
[{"v":116,"d":"116 "},null,"Standard locks and keys to all critical valves and equipment to be locked.",null,"Item",{"v":6,"d":"6 "},null,{"$f":"ROUND(F4420*G4420,2)","v":{"v":0,"d":"0.00"}}]
[]
[{"v":117,"d":"117 "},null,"Provide openings through brick and non-structural concrete, 100 - 150mm diameter, including finishing",null,"Item",{"v":6,"d":"6 "},null,{"$f":"ROUND(F4422*G4422,2)","v":{"v":0,"d":"0.00"}}]
[]
[{"v":118,"d":"118 "},null,"Provide openings through brick and structural concrete floor, 150 - 250 mm diameter, including finishing",null,"Item",{"v":6,"d":"6 "},null,{"$f":"ROUND(F4424*G4424,2)","v":{"v":0,"d":"0.00"}}]
[]
[{"v":119,"d":"119 "},null,"Propriety \"€œY\"€\u009d boosting / infill connection, standard unit",null,"Item",{"v":5,"d":"5 "},null,{"$f":"ROUND(F4426*G4426,2)","v":{"v":0,"d":"0.00"}}]
[]
[{"v":120,"d":"120 "},null,"Hydraulic calculations and calculation drawings, complete with approvals",null,"Item",{"v":1,"d":"1 "},null,{"$f":"ROUND(F4428*G4428,2)","v":{"v":0,"d":"0.00"}}]
[]
[{"$nulls":7},{"$f":"SUM(H4223:H4429)","v":{"v":0,"d":"0.00"}}]
[]
[null,null,"SECTION NO 7: FIRE  DETECTIONS"]
[]
[null,null,"BILL NO 3"]
[]
[null,null,"FIRE SIGNAGE"]
[]
[null,null,"The mechanical contractor shall provide, all the necessary labor and accessories to manufacture, and install the following in accordance with the relevant section within the mechanical specification  and applicable standard."]
[]
[null,null,"Signage to be in accordance with SANS 101186 & SANS10140"]
[]
[null,null,"12 months maintenance"]
[]
[null,null,"12 months guarantee"]
[]
[null,null,"Attendance during commissioning"]
[]
[null,null,"Signage"]
[]
[{"v":121,"d":"121 "},null,"Boosting connection signage",null,"No",{"v":1,"d":"1 "},null,{"$f":"ROUND(F4450*G4450,2)","v":{"v":0,"d":"0.00"}}]
[]
[{"v":122,"d":"122 "},null,"Suction hydrant signage",null,"No",{"v":1,"d":"1 "},null,{"$f":"ROUND(F4452*G4452,2)","v":{"v":0,"d":"0.00"}}]
[]
[{"v":123,"d":"123 "},null,"Provisional ammount specialized pipe contents signage",null,"No","0.0",null,"Rate Only"]
[]
[{"v":124,"d":"124 "},null,"GA & FB, double sided, photoluminescent, 190mm x 380mm, suspended, aluminum framed",null,"No",{"v":12,"d":"12 "},null,{"$f":"ROUND(F4456*G4456,2)","v":{"v":0,"d":"0.00"}}]
[]
[{"v":125,"d":"125 "},null,"GA & FB, single sided, photoluminescent,190mm x 380mm, wall mounted",null,"No",{"v":50,"d":"50 "},null,{"$f":"ROUND(F4458*G4458,2)","v":{"v":0,"d":"0.00"}}]
[]
[{"v":126,"d":"126 "},null,"GA & FB, single sided, Chromodek,190mm x 760mm, wall mounted",null,"No","0.0",null,"Rate Only"]
[]
[{"v":127,"d":"127 "},null,"GA & FB, single sided, Chromodek,190mm x 760mm, Pole mounted",null,"No","0.0",null,"Rate Only"]
[]
[{"v":128,"d":"128 "},null,"A3 Size of hose reel block plan of risks shall be plastic laminated and mounted at each  ICV chamber.",null,"No","0.0",null,"Rate Only"]
[]
[{"v":129,"d":"129 "},null,"A0 Size of complete fire protection system schematic shall be plastic laminated and mounted inside the valve chamber.",null,"No","0.0",null,"Rate Only"]
[]
[{"$nulls":7},{"$f":"SUM(H4435:H4467)","v":{"v":0,"d":"0.00"}}]
[]
[null,null,"SECTION NO 7: FIRE  DETECTIONS"]
[]
[null,null,"BILL NO 4"]
[]
[null,null,"FIRE EXTINGUISHERS"]
[]
[null,null,"The mechanical contractor shall provide, all the necessary labor and accessories to manufacture, and install the following in accordance with the relevant section within the mechanical specification  and applicable standard."]
[]
[null,null,"Fire extinguishers installed shall comply with the requirements as setout in SANS1910 and shall be installed in accordance with SANS10400-T, SANS1475 and SANS105-1"]
[]
[null,null,"12 months maintenance"]
[]
[null,null,"12 months guarantee"]
[]
[null,null,"Attendance during commissioning"]
[]
[null,null,"Fire Extinghuisers"]
[]
[{"v":130,"d":"130 "},null,"Fire extinguisher, 4.5kg DCP with wooden backboard and bracket",null,"No",{"v":30,"d":"30 "},null,{"$f":"ROUND(F4488*G4488,2)","v":{"v":0,"d":"0.00"}}]
[]
[{"v":131,"d":"131 "},null,"Fire extinguisher, 5kg CO2 with red backboard and bracket",null,"No",{"v":2,"d":"2 "},null,{"$f":"ROUND(F4490*G4490,2)","v":{"v":0,"d":"0.00"}}]
[]
[{"v":132,"d":"132 "},null,"Fire extinguisher, 9kg DCP with wooden backboard and bracket",null,"Item","0.00",null,"Rate Only"]
[]
[{"$nulls":7},{"$f":"SUM(H4473:H4493)","v":{"v":0,"d":"0.00"}}]
[]
[null,null,"SECTION NO 7: FIRE  DETECTIONS"]
[]
[null,null,"BILL NO 4"]
[]
[null,null,"HYDRANT AND HOSE REEL INSTALLATION"]
[]
[null,null,"Delivery and installation on site"]
[]
[null,null,"Water reticulation to be in accordance with SANS 10400 Part W"]
[]
[null,null,"Water reticulation to be in accordance with SANS 10252"]
[]
[null,null,"Hydrants to be in accordance with SANS 1128-1 &2"]
[]
[null,null,"Hose reels shall be install accordance with SANS 10105-1 and shall complay with the requirements as setout in SANS543"]
[]
[null,null,"The mechanical contractor shall provide, all the necessary labor and accessories to manufacture, and install the following in accordance with the relevant section within the mechanical specification  and applicable standard."]
[]
[null,null,"12 months maintenance"]
[]
[null,null,"12 months guarantee"]
[]
[null,null,"Attendance during commissioning"]
[]
[null,null,"Complete installation of supply piping, fittings, carbon steel, including hangers, brackets, painting, rigging, hoisting etc."]
[]
[null,null,"Hydrant, brass, single lug, flanged with dofemale instantaneous connection"]
[]
[{"v":133,"d":"133 "},null,"Fire hydrant, conventional 65mm",null,"Item",{"v":5,"d":"5 "},null,{"$f":"ROUND(F4524*G4524,2)","v":{"v":0,"d":"0.00"}}]
[]
[{"v":134,"d":"134 "},null,"Fire hydrant, Storz 100 mm",null,"Item",{"v":1,"d":"1 "},null,{"$f":"ROUND(F4526*G4526,2)","v":{"v":0,"d":"0.00"}}]
[]
[{"v":135,"d":"135 "},null,"Fire hydrant hoses, nozzle and storage cabinet",null,"Item","0.00",null,"Rate Only"]
[]
[{"v":136,"d":"136 "},null,"All preparation and paintwork to new hydrant and hosereel system installation 25 - 250 mm piping",null,"Item",{"v":3,"d":"3 "},null,{"$f":"ROUND(F4530*G4530,2)","v":{"v":0,"d":"0.00"}}]
[]
[null,null,"Hose reel, wall mounted with bracket and hose guide and 30m hose (25mm diameter).  Complete with 25mm diameter BSP CP Valve.  Disk diameter to be no more than 580mm in diameter and wall projection to be no more than 300mm."]
[]
[{"v":137,"d":"137 "},null,"Fire hose reel complete, 30m red UPVC hose, aluminium nozzle",null,"Item",{"v":6,"d":"6 "},null,{"$f":"ROUND(F4534*G4534,2)","v":{"v":0,"d":"0.00"}}]
[]
[{"v":138,"d":"138 "},null,"Fire hose reel storage cabinets",null,"Item","0.00",null,"Rate Only"]
[]
[null,null,"FIRE HYDRANT AND HOSE REEL PIPING"]
[]
[null,null,"Complete installation of main supply piping, carbon steel, including hangers, brackets, painting, rigging, hoisting etc."]
[]
[null,null,"All Floors"]
[]
[{"v":139,"d":"139 "},null,"×¸25 mm",null,"m",{"v":100,"d":"100 "},null,{"$f":"ROUND(F4544*G4544,2)","v":{"v":0,"d":"0.00"}}]
[]
[{"v":140,"d":"140 "},null,"×¸50 mm",null,"m","0.0",null,"Rate Only"]
[]
[{"v":141,"d":"141 "},null,"×¸65 mm",null,"m","0.0",null,"Rate Only"]
[]
[{"v":142,"d":"142 "},null,"×¸80 mm",null,"m",{"v":10,"d":"10 "},null,{"$f":"ROUND(F4550*G4550,2)","v":{"v":0,"d":"0.00"}}]
[]
[{"v":143,"d":"143 "},null,"×¸100 mm",null,"m",{"v":50,"d":"50 "},null,{"$f":"ROUND(F4552*G4552,2)","v":{"v":0,"d":"0.00"}}]
[]
[{"v":144,"d":"144 "},null,"×¸150 mm",null,"m","0.0",null,"Rate Only"]
[]
[null,null,"All Floors"]
[]
[{"v":145,"d":"145 "},null,"×¸25 mm Elbow",null,"Item",{"v":16,"d":"16 "},null,{"$f":"ROUND(F4558*G4558,2)","v":{"v":0,"d":"0.00"}}]
[]
[{"v":146,"d":"146 "},null,"×¸50 mm Elbow",null,"Item","0.00",null,"Rate Only"]
[]
[{"v":147,"d":"147 "},null,"×¸65 mm Elbow",null,"Item","0.00",null,"Rate Only"]
[]
[{"v":148,"d":"148 "},null,"×¸80 mm Elbow",null,"Item",{"v":5,"d":"5 "},null,{"$f":"ROUND(F4564*G4564,2)","v":{"v":0,"d":"0.00"}}]
[]
[{"v":149,"d":"149 "},null,"×¸100 mm Elbow",null,"Item",{"v":6,"d":"6 "},null,{"$f":"ROUND(F4566*G4566,2)","v":{"v":0,"d":"0.00"}}]
[]
[{"v":150,"d":"150 "},null,"×¸150 mm Elbow",null,"Item","0.00",null,"Rate Only"]
[]
[null,null,"All Floors"]
[]
[{"v":151,"d":"151 "},null,"×¸25 mm T-Piece",null,"Item",{"v":5,"d":"5 "},null,{"$f":"ROUND(F4572*G4572,2)","v":{"v":0,"d":"0.00"}}]
[]
[{"v":152,"d":"152 "},null,"×¸50 mm T-Piece",null,"Item","0.00",null,"Rate Only"]
[]
[{"v":153,"d":"153 "},null,"×¸65 mm T-Piece",null,"Item","0.00",null,"Rate Only"]
[]
[{"v":154,"d":"154 "},null,"×¸80 mm T-Piece",null,"Item",{"v":5,"d":"5 "},null,{"$f":"ROUND(F4578*G4578,2)","v":{"v":0,"d":"0.00"}}]
[]
[{"v":155,"d":"155 "},null,"×¸100 mm T-Piece",null,"Item",{"v":10,"d":"10 "},null,{"$f":"ROUND(F4580*G4580,2)","v":{"v":0,"d":"0.00"}}]
[]
[{"v":156,"d":"156 "},null,"×¸150 mm T-Piece",null,"Item","0.00",null,"Rate Only"]
[]
[null,null,"All Floors"]
[]
[{"v":157,"d":"157 "},null,"×¸100 mm - ×¸80 mm reducer",null,"Item",{"v":5,"d":"5 "},null,{"$f":"ROUND(F4586*G4586,2)","v":{"v":0,"d":"0.00"}}]
[]
[{"v":158,"d":"158 "},null,"×¸150 mm - ×¸80 mm reducer",null,"Item","0.00",null,"Rate Only"]
[]
[{"v":159,"d":"159 "},null,"×¸150 mm - ×¸100 mm reducer",null,"Item","0.00",null,"Rate Only"]
[]
[null,null,"Valve"]
[]
[{"v":160,"d":"160 "},null,"Butterfly valve, gear driven,100mm",null,"Item",{"v":5,"d":"5 "},null,{"$f":"ROUND(F4594*G4594,2)","v":{"v":0,"d":"0.00"}}]
[]
[{"v":161,"d":"161 "},null,"Gate valve, 25mm",null,"Item","0.00",null,"Rate Only"]
[]
[{"v":162,"d":"162 "},null,"Check valve, swing type with maintenance cover, 100mm",null,"Item",{"v":3,"d":"3 "},null,{"$f":"ROUND(F4598*G4598,2)","v":{"v":0,"d":"0.00"}}]
[]
[null,null,"GENERAL ITEMS"]
[]
[{"v":163,"d":"163 "},null,"Propriety \"€œY\"€\u009d hydrant boosting connection, standard unit",null,"Item",{"v":1,"d":"1 "},null,{"$f":"ROUND(F4602*G4602,2)","v":{"v":0,"d":"0.00"}}]
[]
[{"v":164,"d":"164 "},null,"Pressure gauge, 100mm SS, glycerine filled & gauge cock",null,"Item",{"v":2,"d":"2 "},null,{"$f":"ROUND(F4604*G4604,2)","v":{"v":0,"d":"0.00"}}]
[]
[{"v":165,"d":"165 "},null,"Concrete platform, around fire or suction hydrants",null,"Item","0.00",null,"Rate Only"]
[]
[{"v":166,"d":"166 "},null,"Thust block for 90\"° bends",null,"Item","0.00",null,"Rate Only"]
[]
[{"v":167,"d":"167 "},null,"Anchor blocks fo vertical tees",null,"Item","0.00",null,"Rate Only"]
[]
[{"v":168,"d":"168 "},null,"Denso tape wrapped on the 150 mm piping",null,"Item","0.00",null,"Rate Only"]
[]
[{"v":169,"d":"169 "},null,"Flow and pressure test",null,"Item",{"v":6,"d":"6 "},null,{"$f":"ROUND(F4614*G4614,2)","v":{"v":0,"d":"0.00"}}]
[]
[{"v":170,"d":"170 "},null,"Trenching, backfill and compacting of ground",null,"m","0.0",null,"Rate Only"]
[]
[{"v":171,"d":"171 "},null,"Hydraulic calculations and calculation drawings, complete for Hydrant & Hose reel system",null,"Item","0.00",null,"Rate Only"]
[]
[{"v":172,"d":"172 "},null,"Coordination",null,"Item",{"v":1,"d":"1 "},null,{"$f":"ROUND(F4620*G4620,2)","v":{"v":0,"d":"0.00"}}]
[]
[{"$nulls":7},{"$f":"SUM(H4499:H4621)","v":{"v":0,"d":"0.00"}}]
[]
[null,null,"SECTION NO 7: FIRE  DETECTIONS"]
[]
[null,null,"BILL NO 5"]
[]
[null,null,"CONTROL AND COMMUNICATION"]
[]
[null,null,"Supply and installation of addressable, Class L1 fire detection system to Ziton or similar"]
[]
[null,null,"Control Panel"]
[]
[null,null,"Supply and installation of control panel, including backup power supply battery, isolator, mounting brackets etc."]
[]
[{"v":173,"d":"173 "},null,"Fire alarm control panel with 2 loops expandable to 4 loops, complete",null,"No",{"v":2,"d":"2 "},null,{"$f":"ROUND(F4636*G4636,2)","v":{"v":0,"d":"0.00"}}]
[]
[{"v":174,"d":"174 "},null,"Mimic fire alarm control panel",null,"No",{"v":1,"d":"1 "},null,{"$f":"ROUND(F4638*G4638,2)","v":{"v":0,"d":"0.00"}}]
[]
[null,null,"Cabling and Terminations"]
[]
[null,null,"Fire retardent cable (PH30) installed in conduit (measured elsewhere) for field wiring to detectors and other devices as specified under clause 3.2 of the standard specification, including terminations. Cable shall be 1,5 sq mm. 30min Resistant"]
[]
[{"v":175,"d":"175 "},null,"Supply & Install",null,"m",{"v":1500,"d":"1,500 "},null,{"$f":"ROUND(F4644*G4644,2)","v":{"v":0,"d":"0.00"}}]
[]
[null,null,"LINE DEVICES"]
[]
[null,null,"Optical smoke detectors"]
[]
[null,null,"Supply and installation of addressable, optical smoke detectors, complete with base surface mounted to slab or ceiling as indicated on the drawings and specifications"]
[]
[null,null,"Note: Ceiling Void Detection to have LED indication installed below detector/sensor in ceiling tile."]
[]
[null,null,"Point detector in condiut box, surface mounted"]
[]
[{"v":176,"d":"176 "},null,"In Ceiling",null,"No",{"v":60,"d":"60 "},null,{"$f":"ROUND(F4656*G4656,2)","v":{"v":0,"d":"0.00"}}]
[]
[{"v":177,"d":"177 "},null,"Void",null,"No",{"v":15,"d":"15 "},null,{"$f":"ROUND(F4658*G4658,2)","v":{"v":0,"d":"0.00"}}]
[]
[null,null,"Heat detectors"]
[]
[null,null,"Supply and installation of addresssable, heat detector, complete with base surface mounted to slab/ceiling as indiccated on the drawings and specifications"]
[]
[null,null,"Fixed temperature detector"]
[]
[{"v":178,"d":"178 "},null,"In Ceiling",null,"No","0.0",null,"Rate Only"]
[]
[{"v":179,"d":"179 "},null,"Void",null,"No","0.0",null,"Rate Only"]
[]
[null,null,"Isolator modules"]
[]
[null,null,"Supply and installation of line isolator modules for short cirucuit protection as specified in the specifications"]
[]
[{"v":180,"d":"180 "},null,"LI module",null,"No","0.0",null,"Rate Only"]
[]
[null,null,"Resettable Break Glass Unit"]
[]
[null,null,"Supply and installation of addressable, resettable surface mounted manual call points as indicated on the drawings and specifications"]
[]
[null,null,"MCP (Red) - Manual Call point"]
[]
[{"v":181,"d":"181 "},null,"All Floors",null,"No",{"v":25,"d":"25 "},null,{"$f":"ROUND(F4682*G4682,2)","v":{"v":0,"d":"0.00"}}]
[]
[null,null,"EDR (Green) - Emergency door releace"]
[]
[{"v":182,"d":"182 "},null,"All Floors",null,"No","0.0",null,"Rate Only"]
[]
[null,null,"LINE DEVICES"]
[]
[null,null,"Audible and visual alarm"]
[]
[null,null,"Supply and installation of surface mounted sounder and strobe combination unit complete with base as indicated on the drawings and specifications"]
[]
[null,null,"Sounder strobe combination"]
[]
[{"v":183,"d":"183 "},null,"All Floors",null,"No",{"v":15,"d":"15 "},null,{"$f":"ROUND(F4696*G4696,2)","v":{"v":0,"d":"0.00"}}]
[]
[null,null,"Supply and installation of surface mounted red strobe unit complete with base as indicated on the drawings and specifications"]
[]
[null,null,"Strobe only"]
[]
[{"v":184,"d":"184 "},null,"All Floors",null,"No","0.0",null,"Rate Only"]
[]
[null,null,"Beam Detection"]
[]
[null,null,"Supply and installation of beam detection, including backup power supply battery, isolator, relays, mounting brackets and all other required accessories etc."]
[]
[{"v":185,"d":"185 "},null,"Optical beam detector (transmit & receiver) smoke detection",null,"No","0.0",null,"Rate Only"]
[]
[null,null,"INTERFACE, MONITOR AND CONTROL"]
[]
[null,null,"Input/Output module"]
[]
[null,null,"Supply and installation of addressable low voltage relay modules for control of the HVAC & Smoke Extraction systems, Sprinkler Flow Switches, Fire Doors, etc."]
[]
[null,null,"Control Modules shall be mounted in a surface mounted panel with door and catch, as shown on the drawings and specifications."]
[]
[null,null,"Inupt/Output Relay"]
[]
[{"v":186,"d":"186 "},null,"All Floors",null,"No",{"v":10,"d":"10 "},null,{"$f":"ROUND(F4720*G4720,2)","v":{"v":0,"d":"0.00"}}]
[]
[null,null,"Door auxilliary"]
[]
[null,null,"Supply and installation of maglocks, pushbars or hold open magnets as shown on the drawings and stipulated in the specifications"]
[]
[null,null,"Magnet Hold-open device"]
[]
[{"v":187,"d":"187 "},null,"All Floors",null,"No","0.0",null,"Rate Only"]
[]
[null,null,"CONDIUT, WIREWAYS & ACCESSORIES"]
[]
[null,null,"Supply to and installation by the Electrical contractor"]
[]
[null,null,"Conduit as specified under clause 3.3 of the  standard specification including bending, jointing, short lengths, draw boxes,  expansion joints, adaptors, round coverplates with chrome screwsbends and conduit ends which are to be allowed for in the conduit per meter rate."]
[]
[null,null,"25mm dia PVC conduit built or chased into brick walls"]
[]
[{"v":188,"d":"188 "},null,"Supply",null,"m","0.0",null,"rate only"]
[]
[{"v":189,"d":"189 "},null,"Install",null,"m","0.0",null,"rate only"]
[]
[null,null,"25mm dia PVC with galvanised saddles on surface against underside of the concrete slab or against brick walls"]
[]
[{"v":190,"d":"190 "},null,"Supply",null,"m",{"v":1500,"d":"1,500 "},null,{"$f":"ROUND(F4744*G4744,2)","v":{"v":0,"d":"0.00"}}]
[]
[{"v":191,"d":"191 "},null,"Install",null,"m",{"v":1500,"d":"1,500 "},null,{"$f":"ROUND(F4746*G4746,2)","v":{"v":0,"d":"0.00"}}]
[]
[null,null,"25mm dia Galvanize/ Bosal Conduits on surface against underside of the concrete slab or against brick walls"]
[]
[{"v":192,"d":"192 "},null,"Supply",null,"m","0.0",null,"rate only"]
[]
[{"v":193,"d":"193 "},null,"Install",null,"m","0.0",null,"rate only"]
[]
[null,null,"Wiring trunking"]
[]
[null,null,"76 x 76mm galvanised wiring trunking fixed to the wall as specified under clause 3.3. of the standard specification."]
[]
[{"v":194,"d":"194 "},null,"Supply",null,"m","0.0",null,"rate only"]
[]
[{"v":195,"d":"195 "},null,"Install",null,"m","0.0",null,"rate only"]
[]
[null,null,"76 x 76mm galvanised wiring trunking suspended from the roof slab complete with hangers at 1,5m intervals"]
[]
[{"v":196,"d":"196 "},null,"Supply",null,"m","0.0",null,"rate only"]
[]
[{"v":197,"d":"197 "},null,"Install",null,"m","0.0",null,"rate only"]
[]
[null,null,"Draw Wire - Supply and Install by Electrical Contractor"]
[]
[null,null,"Galvanised draw wire installed in conduits."]
[]
[{"v":198,"d":"198 "},null,"Supply",null,"m","0.0",null,"rate only"]
[]
[{"v":199,"d":"199 "},null,"Install",null,"m","0.0",null,"rate only"]
[]
[{"$nulls":7},{"$f":"SUM(H4627:H4775)","v":{"v":0,"d":"0.00"}}]
[]
[{"v":1,"d":"1 "},null,"Preliminaries",null,"Page",{"v":176,"d":"176 "},null,{"$f":"+H4218","v":{"v":0,"d":"0.00"}}]
[]
[{"v":2,"d":"2 "},null,"Pump & Tanks",null,"Page",{"v":184,"d":"184 "},null,{"$f":"+H4430","v":{"v":0,"d":"0.00"}}]
[]
[{"v":3,"d":"3 "},null,"Signages",null,"Page",{"v":187,"d":"187 "},null,{"$f":"+H4468","v":{"v":0,"d":"0.00"}}]
[]
[{"v":4,"d":"4 "},null,"Extinguishers",null,"Page",{"v":188,"d":"188 "},null,{"$f":"+H4494","v":{"v":0,"d":"0.00"}}]
[]
[{"v":5,"d":"5 "},null,"Hydrant & Hose Reels",null,"Page",{"v":193,"d":"193 "},null,{"$f":"+H4622","v":{"v":0,"d":"0.00"}}]
[]
[{"v":6,"d":"6 "},null,"Smoke Detection",null,"Page",{"v":199,"d":"199 "},null,{"$f":"+H4776","v":{"v":0,"d":"0.00"}}]
[]
[{"$nulls":7},{"$f":"SUM(H4778:H4789)","v":{"v":0,"d":"0.00"}}]
[]
[{"v":1,"d":"1 "},null,"PRELIMINARIES",null,"Page",{"v":26,"d":"26 "},null,{"$f":"+H576","v":{"v":0,"d":"0.00"}}]
[]
[{"v":2,"d":"2 "},null,"BUILDERS WORK",null,"Page",{"v":90,"d":"90 "},null,{"$f":"+H1860","v":{"v":0,"d":"0.00"}}]
[]
[{"v":3,"d":"3 "},null,"PROVISIONAL SUMS",null,"Page",{"v":93,"d":"93 "},null,{"$f":"+H1904","v":{"v":0,"d":"0.00"}}]
[]
[{"v":4,"d":"4 "},null,"CIVIL WORKS",null,"Page",{"v":124,"d":"124 "},null,{"$f":"+H2668","v":{"v":0,"d":"0.00"}}]
[]
[{"v":5,"d":"5 "},null,"ELECTRICAL INSTALLATION",null,"Page",{"v":142,"d":"142 "},null,{"$f":"+H3280","v":{"v":0,"d":"0.00"}}]
[]
[{"v":6,"d":"6 "},null,"MECHANICAL INSTALLATION",null,"Page",{"v":171,"d":"171 "},null,{"$f":"+H4108","v":{"v":0,"d":"0.00"}}]
[]
[{"v":7,"d":"7 "},null,"FIRE DETECTION",null,"Page",{"v":200,"d":"200 "},null,{"$f":"+H4790","v":{"v":0,"d":"0.00"}}]
[]
[null,null,"SUB TOTAL",null,"ST","0.00",null,{"$f":"SUM(H4792:H4805)","v":{"v":0,"d":"0.00"}}]
[]
[null,null,"ADD: ESCALATION"]
[]
[null,null,"ADD : The Contract Sum will not be adjusted in terms of the Contract Price Adjustment Provisions (CPAP) as stated in clause 32.13, but will be fixed for the duration of the project. Tenderers are to price for any compensation required to cover this change to the Conditions of Contract.",null,"PS",{"v":1,"d":"1 "},{"v":2154000,"d":"2,154,000.00"},{"$f":"+G4810*F4810","v":{"v":2154000,"d":"2,154,000.00"}}]
[]
[null,null,"SUB TOTAL",null,"ST","0.00",null,{"$f":"SUM(H4806:H4810)","v":{"v":2154000,"d":"2,154,000.00"}}]
[]
[null,null,"ADD: CONTINGENCIES"]
[]
[null,null,"SUB TOTAL BEFORE VAT",null,"ST","0.00"]
[]
[null,null,"Contingencies",null,"PS",{"v":1,"d":"1 "},{"v":4338613.68,"d":"4,338,613.68"},{"$f":"+G4818*F4818","v":{"v":4338613.68,"d":"4,338,613.68"}}]
[]
[null,null,"SUB TOTAL BEFORE VAT",null,"ST","0.00"]
[]
[null,null,"ADD: VALUE ADDED TAX"]
[]
[null,null,"Value Added Tax (15%)",null,"TAX",{"v":15,"d":"15 "}]
[]
[null,null,"TENDER SUM CARRIED FORWARD TO FORM OF OFFER AND ACCEPTANCE RATE#",null,"ST","0.00"]